Workbook

Sheet Inputs
A1: INPUTS
A2: Select your region | B2: Large Urban | C2: =IF(B2="Large Urban",1,IF(B2="Urban Regional",2,IF(B2="Medium Urban",3,IF(B2="Small Urban",4,IF(B2="Rural Regional",5,IF(B2="Rural Collection - North",6,IF(B2="Rural Collection - South",7,8))))))) -> 1 | F2: Region Description
A3: Select frequency of collection | B3: Bi Weekly | C3: =IF(B3="Bi Weekly",20,10) -> 20
A4: Select Single or Dual Stream Collection | B4: Single | C4: =IF(B4="Single",30,48) -> 30 | F4: =IF(B2="Large Urban"," • Population greater than 250,000 • Population density greater than 4 residents per square km, Examples: Toronto, Peel",IF(B2="Urban Regional"," • Population greater than 250,000 • Population density less than 4 residents per square km, Examples: Ottawa, Windsor",IF(B2="Medium Urban"," • Population between 50,000 and 250,000 • Population density greater than 3 residents per square km , Examples: Barrie, Simcoe",IF(B2="Small Urban","• Population less than 50,000 • Population density greater than 4 residents per square km, Examples: Orangeville, St. Thomas",IF(B2="Rural Collection - North","• Population less than 50,000 • Population density less than 4 residents per square km • Located in the “North” as defined by O. Reg. 101/94 • Provide curbside collection service of Blue Box materials to at least 30% of households ",CONCATENATE("• Population less than 50,000 • Population density less than 4 residents per square km • Located in the “South” as defined by O. Reg. 101/94", "• Provide only depot collection service or a combination of depot and curbside collection with less than 30% of households receiving curbside collection of Blue Box materials") ))))) -> • Population greater than 250,000 • Population density greater than 4 residents per square km, Examples: Toronto, Peel
C5: =SUM(C2:C4) -> 51
A6: Select Collection Vehicle | B6: 169000
A8: Enter # of Collected Tonnes | B8: 172112
A9: Enter # of Multi Family Household | B9: 500000 | C9: =B9/B11 -> 0.4995324376
A10: Enter # of Single Family Households | B10: 500936 | C10: =B10/B11 -> 0.5004675624
A11: Total # of Households | B11: 1000936
A13: Enter Distance to MRF | B13: 20
A15: Enter Fuel Costs | B15: 1.33 | F15: Truck Description
A16: Enter Amortization period | B16: 5
A17: Enter Interest Rate | B17: 0.05 | F17: =VLOOKUP(B6,Sheet3!G14:H17,2,FALSE) -> Picture 3
A18: Enter Crew Size | B18: 2
A19: Enter Length of Work Week | B19: 5
A21: OUTPUTS
A22: Number of households serviced before truck runs out of time | B22: =(VLOOKUP(C5,'Look Up Table'!$C$6:$E$37,2,FALSE)*C10)+(('Look Up Table'!D37)*Inputs!C9) -> 687.3557203
A23: Number of Households serviced before run out of capacity (per day) | B23: ='Truck Assumptions'!B5/(((B8)/SUM(B9:B10))/'Truck Assumptions'!B11) -> 529.2203681
A24: Run out of Time or Run out of Space? | B24: =IF(B22>B23,"run out of space","run out of time") -> run out of space
A25: Number of households serviced in an hour | B25: =VLOOKUP(C5,'Look Up Table'!$C$6:$E$37,3,FALSE) -> 138.1596238
A26: If run out of space, time left to return to collection (after drop off) | B26: =IF(B23<B22,((B22-B23)/B22)*'Collection Route Parameters'!B30-'Collection Route Parameters'!B54,0) -> 0.9020159743
A27: Max Households Serviced in a Day per Truck | B27: =IF(B26<0,B23,B23+(B26*B25)) -> 653.8425558 | F27: =IF(B6=199500,CONCATENATE("The FEL truck is equipped with large arms/forks that are inserted into the container sleeves. The driver then uses the hydraulic arms to lift the container up and over the cab in order to dump","the material in from the container into the hopper in truck body."),IF(B6=140000,CONCATENATE("For recyclers that want to target office buildings and other accounts in a dense urban environment where there may not be room for large exterior steel containers","In order to empty the larger containers, the driver and assistant backs the truck up until the bars that stick","out from the container on both sides (Trunion Bars) slide into the locks on the back of the REL truck.","The cable and hook is then attached to the eye on the opposite side of the container.","Once attached the driver uses the winch cable to pivot the container up around the axis of the trunion bars",". When the container reaches the near vertical position, the material falls into the hopper"),IF(B6=136500,CONCATENATE("This form of collection gets its name from the manner in which the containers of material are picked up. In a roll-off collection system","the driver hooks the large container with a cable hook and hoists the container onto its back. The bottom of the roll-off container has guides that fit on the outside of","the rails of the truck body. Once the container has been hoisted up the rails, the driver then lowers the back until the container is parallel to the ground and flat on the back of the","truck. In order to deliver the container, the driver lifts the hydraulic truck rails and","slowly releases the tension on cable so that the container slides down onto the ground."),"Similar principle to front end loader. Ideal for curbside card collection using a single operator"))) -> Similar principle to front end loader. Ideal for curbside card collection using a single operator
A28: Trucks Required For Five Day Work Week | B28: =ROUNDUP(SUM(B9:B10)/B27/5,0) -> 307
A29: Cost of truck fleet (per year) | B29: ='Truck Assumptions'!B16*B28 -> 18181667.05
A30: # of Labor Hours Per year | B30: =('Fuel and Labor Assumptions'!B6*('Fuel and Labor Assumptions'!B5)*B28)*52 -> 239460
A31: Labor Costs Per Year | B31: =B30*'Fuel and Labor Assumptions'!B4 -> 10775700
A32: Kilometers travelled per trip | B32: =(VLOOKUP(C5,'Look Up Table'!$C$6:$F$37,4,FALSE)*B10)+('Look Up Table'!F37*Inputs!B9)+(B13*2) -> 54446.82025
A33: Kilometers travelled per year | B33: =B32*'Truck Assumptions'!B11 -> 1415617.326
A34: Fuel use per Year | B34: =B33*'Truck Assumptions'!B10 -> 1493476.279
A35: Fuel Costs Per Year | B35: =B34*B15 -> 1986323.452
A36: Collection Costs Per Year | B36: =B35+B31+B29 -> 30943690.5

Sheet Collection Route Parameters
A1: TRAVEL TIME & DISTANCE | B1: Time | C1: Unit Conversion | H1: Municipalities | I1: Weighted Average Distance Between Households | J1: Tavel Time Between Households | K1: Unit Conversion
A2: Travel time between houses urban | B2: 5 | C2: =(B2/60)/60 -> 0.001388888889 | D2: Ernsdorff et al, 2012 | H2: Large Urban | I2: =Sheet3!B2 -> 16.82449097 | J2: =I2/((($B$9*1000)/60)/60)*1.5 -> 6.056816748 | K2: =(J2/60)/60 -> 0.001682449097
A3: Travel time between houses rural | B3: 10 | C3: =(B3/60)/60 -> 0.002777777778 | D3: Ernsdorff et al, 2012 | H3: Urban Regional | I3: =Sheet3!B3 -> 8.836211145 | J3: =I3/((($B$9*1000)/60)/60)*1.5 -> 3.181036012 | K3: =(J3/60)/60 -> 0.0008836211145
A4: Travel time beteen multi residential | B4: 30 | C4: 0.008333333333 | D4: Ernsdorff et al, 2012 | H4: Medium Urban | I4: =Sheet3!B4 -> 18.93312424 | J4: 6.815924725 | K4: 0.001893312424
A5: Pick up and drop off time (x2) | B5: 20 | C5: =(B5*2)/60 -> 0.6666666667 | D5: Ernsdorff et al, 2012 | H5: Small Urban | I5: =Sheet3!B5 -> 14.30943868 | J5: 5.151397924 | K5: 0.001430943868
A6: Distance to MRF/Transfer Station | H6: Rural Regional | I6: =Sheet3!B6 -> 17.67193414 | J6: 6.361896291 | K6: 0.001767193414
A7: Distance Between Households | B7: 10 | D7: Ernsdorff et al, 2012 | H7: Rural Collection - North | I7: =Sheet3!B7 -> 25.86244892 | J7: 9.310481612 | K7: 0.002586244892
A8: Distance Between MF Households | B8: 25 | D8: Ernsdorff et al, 2012 | H8: Rural Collection - South | I8: =Sheet3!B8 -> 23.87269261 | J8: 8.594169339 | K8: 0.002387269261
A9: Speed Between stops | B9: 15 | H9: Multi Family Urban | I9: =Sheet3!B9 -> 91.95765408 | J9: 33.10475547 | K9: 0.009195765408
A11: STOP TIME & COLLECTION FREQUENCY
A12: Collection Program | B12: Single Stream Time Per Setout | C12: Dual Stream Time Per Set Out | D12: Unit Conversion (Single) | E12: Unit Conversion (Dual)
A13: Recyclables Collected Weekly | B13: 15 | C13: 18 | D13: =(B13/60/60) -> 0.004166666667 | E13: =(C13/60/60) -> 0.005 | F13: Wilson, 2001
A14: Recyclables Collected bi Weekly | B14: 20 | C14: 24 | D14: =(B14/60/60) -> 0.005555555556 | E14: =(C14/60/60) -> 0.006666666667 | F14: Wilson, 2001
A15: Recyclables and Garbage Co Collected Weekly | B15: 16 | C15: 16 | D15: 0.004444444444 | E15: 0.004444444444 | F15: Wilson, 2001 | I15: Urban, Weekly, Single Stream | J15: Urban, Bi Weekly, Single Stream | K15: Urban, Weekly, Dual Stream | L15: Urban, Bi Weekly, Dual Stream | M15: Rural, Weekly, Single Stream | N15: Rural, Bi Weekly, Single Stream | O15: Rural, Weekly, Dual Stream | P15: Rural, Bi Weekly, Dual Stream | Q15: MF , Single Stream | R15: MF , Dual Stream
A16: Recyclables and Garbage Co Collected bi weekly | B16: 20 | C16: 20 | D16: 0.005555555556 | E16: 0.005555555556 | F16: Wilson, 2001 | H16: Large Urban | I16: =$B$30/(K2+$D$13) -> 1167.792848 | J16: =$B$30/(K2+$D$14) -> 943.7069861 | K16: =$C$30/(K2+$E$13) -> 1021.955658 | L16: =$C$30/(K2+$E$14) -> 817.9508897
A17: Recyclables Multi Residential (Cart) | B17: 60 | C17: 70 | D17: 0.01666666667 | E17: 0.01944444444 | F17: Wilson, 2001 | H17: Urban Regional | I17: =$B$30/(K3+$D$13) -> 1352.508184 | J17: =$B$30/(K3+$D$14) -> 1060.780889 | K17: =$C$30/(K3+$E$13) -> 1160.708097 | L17: =$C$30/(K3+$E$14) -> 904.4909101
H18: Medium Urban | I18: 1127.158271 | J18: 916.9924309 | K18: 990.6944945 | L18: 797.8017931
H19: Small Urban | I19: 1220.262738 | J19: 977.6792556 | K19: 1061.922916 | L19: 843.3557822
A20: TIPPING TIMES | H20: Rural Regional | I20: 1151.115035 | J20: 932.7857044 | K20: 1009.157896 | L20: 809.7320327 | M20: =$B$30/(K6+$D$13) -> 1151.115035 | N20: =$B$30/(K6+$E$13) -> 1009.363134 | O20: =$B$30/(K6+$D$14) -> 932.7857044 | P20: =$C$30/(K6+$E$13) -> 1009.157896
A21: Number of Streams | B21: Dumping Time (min) | H21: Rural Collection - North | I21: 1011.497855 | J21: 838.949026 | K21: 900.2038246 | L21: 738.0559755 | M21: 1011.497855 | N21: =$B$30/(K7+$E$13) -> 900.3869045 | O21: =$B$30/(K7+$D$14) -> 838.949026 | P21: =$C$30/(K7+$E$13) -> 900.2038246
A22: Single Stream | B22: 10 | C22: =(B22/60/60) -> 0.002777777778 | D22: Wilson, 2001 | H22: Rural Collection - South | I22: 1042.206642 | J22: 859.9655303 | K22: 924.4507578 | L22: 754.27601 | M22: 1042.206642 | N22: 924.638769 | O22: 859.9655303 | P22: 924.4507578
A23: Garbage and recycling together | B23: 15 | C23: =(B23/60/60) -> 0.004166666667 | D23: Wilson, 2001 | H23: Multi Family Urban | I23: 511.1760731 | J23: 463.0470432 | K23: 481.0706905 | L23: 430.5245649 | Q23: =$B$30/(K9+$D$17) -> 264.1111066 | R23: =C30/($K$9+E17) -> 238.4468096
A24: 2-stream | B24: 15 | C24: 0.004166666667 | D24: Wilson, 2001
I25: Urban, Weekly, Single Stream | J25: Urban, Bi Weekly, Single Stream | K25: Urban, Weekly, Dual Stream | L25: Urban, Bi Weekly, Dual Stream | M25: Rural, Weekly, Single Stream | N25: Rural, Bi Weekly, Single Stream | O25: Rural, Weekly, Dual Stream | P25: Rural, Bi Weekly, Dual Stream | Q25: MF , Single Stream | R25: MF , Dual Stream
H26: Large Urban | I26: =I16/$B$30 -> 170.9660127 | J26: =J16/$B$30 -> 138.1596238 | K26: =K16/$C$30 -> 149.645734 | L26: =L16/$C$30 -> 119.7731626
H27: Urban Regional | I27: =I17/$B$30 -> 198.0085182 | J27: 155.2993575 | K27: =K17/$C$30 -> 169.9633577 | L27: 132.4452827
A28: HOUSEHOLDS SERVICED | H28: Medium Urban | I28: 165.017071 | J28: 134.2485869 | K28: 145.0681383 | L28: 116.8227153
A29: Max Number of Households Truck can service in a day | C29: Dual Stream | H29: Small Urban | I29: 178.6476558 | J29: 143.1331972 | K29: 155.4981696 | L29: 123.4932201
A30: Workable Hours in a day | B30: ='Fuel and Labor Assumptions'!B5-'Collection Route Parameters'!C5-C22 -> 6.830555556 | C30: ='Fuel and Labor Assumptions'!B5-'Collection Route Parameters'!C5-'Collection Route Parameters'!C24 -> 6.829166667 | H30: Rural Regional | I30: 168.5243646 | J30: 136.5607375 | K30: 147.771748 | L30: 118.5696692 | M30: =M20/$B$30 -> 168.5243646 | N30: 147.771748 | O30: =O20/$C$30 -> 136.5885107 | P30: =P20/$C$30 -> 147.771748
A31: Urban, Weekly, Single Stream | B31: =B30/(C2+D13) -> 1229.5 | H31: Rural Collection - North | I31: 148.0842732 | J31: 122.8229562 | K31: 131.8175216 | L31: 108.0740904 | M31: =M21/$B$30 -> 148.0842732 | N31: 131.8175216 | O31: 122.8479355 | P31: 131.8175216
A32: Urban, Bi Weekly, Single Stream | B32: =B30/(C2+D14) -> 983.6 | H32: Rural Collection - South | I32: 152.5800696 | J32: 125.899793 | K32: 135.3680182 | L32: 110.4492022 | M32: =M22/$B$30 -> 152.5800696 | N32: 135.3680182 | O32: 125.925398 | P32: 135.3680182
A33: Urban, Weekly, Dual Stream | B33: =C30/(C2+E13) -> 1068.913043 | H33: Multi Family Urban | I33: 74.83667602 | J33: 67.79053906 | K33: 70.44354223 | L33: 63.04203512 | Q33: =Q23/$B$30 -> 38.66612379 | R33: =R23/$C$30 -> 34.91594528
A34: Urban, Bi Weekly, Dual Stream | B34: =C30/(C2+E14) -> 847.7586207
A35: Rural, Weekly, Single Stream | B35: =B30/(C3+D13) -> 983.6
A36: Rural, Bi Weekly, Single Stream | B36: =B30/(C3+D14) -> 819.6666667
A37: Rural, Weekly, Dual Stream | B37: =C30/(C3+E13) -> 878.0357143
A38: Rural, Bi Weekly, Dual Stream | B38: =C30/(C3+E14) -> 723.0882353
A39: MF , Single Stream | B39: =B30/(C4+D17) -> 273.2222222
A40: MF , Dual Stream | B40: =C30/(C4+E17) -> 245.85
A42: Max Number of Households Truck can service in a hour
A43: Urban, Weekly, Single Stream | B43: =B31/$B$30 -> 180
A44: Urban, Bi Weekly, Single Stream | B44: =B32/$B$30 -> 144
A45: Urban, Weekly, Dual Stream | B45: =B33/$C$30 -> 156.5217391
A46: Urban, Bi Weekly, Dual Stream | B46: =B34/$C$30 -> 124.137931
A47: Rural, Weekly, Single Stream | B47: =B35/$B$30 -> 144
A48: Rural, Bi Weekly, Single Stream | B48: =B36/$B$30 -> 120
A49: Rural, Weekly, Dual Stream | B49: =B37/$C$30 -> 128.5714286
A50: Rural, Bi Weekly, Dual Stream | B50: =B38/$C$30 -> 105.8823529
A51: MF , Single Stream | B51: =$B$39/B30 -> 40
A52: MF , Dual Stream | B52: =B40/C30 -> 36
A54: Return Trip (Single Stream) | B54: =C5+C22 -> 0.6694444444
A55: Return Trip (Dual Stream) | B55: =C5+C24 -> 0.6708333333

Sheet Fuel and Labor Assumptions
A1: Labour Assumptions
A2: Crew Wage | B2: 25
A3: Admin + Supervisor Wages | B3: 20
A4: Total Labor Cost Per Hour | B4: =SUM(B2:B3) -> 45
A5: # of Working Hours Per Day | B5: 7.5
A6: Average Crew Size | B6: =Inputs!B18 -> 2
A7: Work days per week | B7: =Inputs!B19 -> 5
A9: Fuel Assumptions
A10: Fuel Cost per L | B10: =Inputs!B15 -> 1.33

Sheet Truck Assumptions
A1: Truck Assumptions
A2: Capital Cost of Recycling Truck | B2: =Inputs!B6 -> 169000
A3: Capacity of Recycling Truck | B3: 35
A4: Density of Commingled Reyclables | B4: 220
A5: Capacity of Recycling Truck | B5: =((B4/2.2)*B3)/1000 -> 3.5
A6: Average Truck Speed | B6: 40
A7: Amortization Period | B7: =Inputs!B16 -> 5
A8: Yearly Maintance | B8: 25000
A9: Interest Rate | B9: =Inputs!B17 -> 0.05
A10: Fuel efficiency | B10: 1.055
A11: Frequency of Collection | B11: =IF(Inputs!C3=10,52,26) -> 26
A14: Average # of Households truck can service in a day
A16: Yearly Cost of Truck | B16: =PMT(B9/12,B7,-B2,0)+B8 -> 59223.67116

Sheet Municipalities
A1: Group | B1: PC | C1: Municipality | G1: Total Households Served | H1: TOTAL Reported and/or Calculated Marketed Tonnes1 | J1: TOTAL Material Available for Pickup | N1: Number of households serviced before truck runs out of time | O1: Number of households serviced before truck runs out of time | P1: Number of Households serviced before run out of capacity (per day) | V1: Trucks Required For Five Day Work Week | W1: Cost of truck fleet (per year) | X1: # of Labor Hours Per week | Y1: # of Labor Hours Per year | Z1: Labor Costs Per Year | AA1: Kilometers travelled per trip | AB1: Kilometers travelled per year | AC1: Fuel use per Year
D2: Single Stream? | E2: Household Serviced by Curbside Collection | F2: Households Servied by Depot Collection | I2: Multi Family Households | K2: # of Pickups per year | L2: Recyclable Generation per Household | M2: Distance to Nearest MRF/Depot/Transfer Station | Q2: Run out of Time or Run out of Space? | R2: Number of Households serviced in an hour | S2: Number of Households serviced in an hour | T2: If run out of space, time left to return to collection (after drop off) | U2: Max Households Serviced in a Day per Truck | AD2: Fuel Costs Per Year | AE2: Collection Costs Per Year | AF2: Collection Costs Reported | AG2: Difference
A3: Large Urban | B3: 1 | C3: HALTON, REGIONAL MUNICIPALITY OF | D3: Y | E3: =VLOOKUP(B3,'2012 Program Data'!$B$30:$F$235,3,FALSE) -> 183677 | F3: =VLOOKUP(B3,'2012 Program Data'!$B$6:$E$235,4,FALSE) -> 0 | G3: 183677 | H3: 41298.58 | I3: 47000 | J3: =H3*(1+$B$234) -> 45428.438 | K3: =VLOOKUP(B3,'2012 Program Data'!$B$6:$T$235,19,FALSE) -> 52 | L3: =(J3/G3)/52 -> 0.00475630486 | M3: 20 | N3: =IF(AND(D3="Y",F3<1,K3=52),'Collection Route Parameters'!$B$31,IF(AND(D3="N",F3<1,K3=52),'Collection Route Parameters'!$B$33,IF(AND(D152="Y",F152<1,K152=26),'Collection Route Parameters'!$B$32,'Collection Route Parameters'!$B$34))) -> 1229.5 | O3: =IF(AND(D3="Y",I3>0),($AL$15*(1-I3/G3)+($AL$23*(I3/G3))),IF(AND(D3="N",I3>0),($AL$18*(1-I3/G3)+($AL$24*(I3/G3))),(N3))) -> 984.8038456 | P3: ='Truck Assumptions'!$B$5/Municipalities!L3 -> 735.8653626 | Q3: =IF(O3>P3,"run out of space", "run out of time") -> run out of space | R3: =IF(N3=$AL$15,$AL$3,IF(N3=$AL$16,$AL$4,IF(N3=$AL$17,$AL$5,IF(N3=$AL$6,$AL$18,IF(N3=$AL$19,$AL$7,IF(N3=$AL$20,$AL$8,IF(N3=$AL$21,$AL$9,$AL$10))))))) -> 180 | S3: =IF(AND(I3>0,D3="Y"),(R3*(G3-I3)/G3)+($AL$11*I3/G3),IF(AND(I3>0,D3="N"),(R3*(G3-I3)/G3)+($AL$12*I3/G3),R3)) -> 144.1762442 | T3: =IF(Q3="run out of space",((N3-P3)/'Collection Route Parameters'!$B$43)-'Collection Route Parameters'!$B$54,"") -> 2.072970208 | U3: =IF(AND(T3<>"",T3>0),(R3*T3)+P3,O3) -> 1109 | V3: =ROUNDUP((G3/U3)/'Fuel and Labor Assumptions'!$B$7,0) -> 34 | W3: =V3*'Truck Assumptions'!$B$16 -> 2013604.82 | X3: =(V3*'Fuel and Labor Assumptions'!$B$5)*'Fuel and Labor Assumptions'!$B$6 -> 510 | Y3: =X3*K3 -> 26520 | Z3: =Y3*'Fuel and Labor Assumptions'!$B$4 -> 1193400 | AA3: =(((U3*'Collection Route Parameters'!$B$7)*Municipalities!V3)/1000)+(M3*V3) -> 1057.06 | AB3: =AA3*K3 -> 54967.12 | AC3: =AB3*'Truck Assumptions'!$B$10 -> 57990.3116 | AD3: =AC3*'Fuel and Labor Assumptions'!$B$10 -> 77127.11443 | AE3: =AD3+Z3+W3 -> 3284131.934 | AF3: =VLOOKUP(B3,'2012 Macro Cost Data'!$B$5:$F$245,5,FALSE) -> 5130395.68 | AG3: =AE3-AF3 -> -1846263.746 | AK3: Urban, Weekly, Single Stream | AL3: ='Collection Route Parameters'!B43 -> 180
A4: Large Urban | B4: 20 | C4: TORONTO, CITY OF | D4: N | E4: =VLOOKUP(B4,'2012 Program Data'!$B$30:$F$235,3,FALSE) -> 879335 | F4: =VLOOKUP(B4,'2012 Program Data'!$B$6:$E$235,4,FALSE) -> 0 | G4: 1000936 | H4: 156465 | I4: 500000 | J4: 172111.5 | K4: =VLOOKUP(B4,'2012 Program Data'!$B$6:$T$235,19,FALSE) -> 26 | L4: 0.003306741428 | M4: 20 | N4: =IF(AND(D4="Y",F4<1,K4=52),'Collection Route Parameters'!$B$31,IF(AND(D4="N",F4<1,K4=52),'Collection Route Parameters'!$B$33,IF(AND(D153="Y",F153<1,K153=26),'Collection Route Parameters'!$B$32,'Collection Route Parameters'!$B$34))) -> 847.7586207 | O4: 547.0857402 | P4: ='Truck Assumptions'!$B$5/Municipalities!L4 -> 1058.443811 | Q4: =IF(O4>P4,"run out of space", "run out of time") -> run out of time | R4: 105.8823529 | S4: =IF(AND(I4>0,D4="Y"),(R4*(G4-I4)/G4)+($AL$11*I4/G4),IF(AND(I4>0,D4="N"),(R4*(G4-I4)/G4)+($AL$12*I4/G4),R4)) -> 70.97385083 | T4: =IF(Q4="run out of space",((N4-P4)/'Collection Route Parameters'!$B$43)-'Collection Route Parameters'!$B$54,"") ->  | U4: =IF(AND(T4<>"",T4>0),(R4*T4)+P4,O4) -> 547.0857402 | V4: =ROUNDUP((G4/U4)/'Fuel and Labor Assumptions'!$B$7,0) -> 366 | W4: =V4*'Truck Assumptions'!$B$16 -> 21675863.65 | X4: =(V4*'Fuel and Labor Assumptions'!$B$5)*'Fuel and Labor Assumptions'!$B$6 -> 5490 | Y4: 142740 | Z4: =Y4*'Fuel and Labor Assumptions'!$B$4 -> 6423300 | AA4: =(((U4*'Collection Route Parameters'!$B$7)*Municipalities!V4)/1000)+(M4*V4) -> 9322.333809 | AB4: 242380.679 | AC4: =AB4*'Truck Assumptions'!$B$10 -> 255711.6164 | AD4: =AC4*'Fuel and Labor Assumptions'!$B$10 -> 340096.4498 | AE4: 28439260.1 | AF4: =VLOOKUP(B4,'2012 Macro Cost Data'!$B$5:$F$245,5,FALSE) -> 33215934.3 | AG4: -4776674.204 | AK4: Urban, Bi Weekly, Single Stream | AL4: ='Collection Route Parameters'!B44 -> 144
A5: Large Urban | B5: 50 | C5: LONDON, CITY OF | D5: N | E5: =VLOOKUP(B5,'2012 Program Data'!$B$30:$F$235,3,FALSE) -> 164390 | F5: =VLOOKUP(B5,'2012 Program Data'!$B$6:$E$235,4,FALSE) -> 4178 | G5: 168568 | H5: 26669.9 | J5: 29336.89 | K5: 52 | L5: 0.003346844962 | M5: 20 | N5: 1229.5 | O5: 1229.5 | P5: ='Truck Assumptions'!$B$5/Municipalities!L5 -> 1045.76102 | Q5: run out of space | R5: 180 | S5: 180 | T5: =IF(Q5="run out of space",((N5-P5)/'Collection Route Parameters'!$B$43)-'Collection Route Parameters'!$B$54,"") -> 0.3513276686 | U5: 1109 | V5: =ROUNDUP((G5/U5)/'Fuel and Labor Assumptions'!$B$7,0) -> 31 | W5: =V5*'Truck Assumptions'!$B$16 -> 1835933.806 | X5: =(V5*'Fuel and Labor Assumptions'!$B$5)*'Fuel and Labor Assumptions'!$B$6 -> 465 | Y5: 24180 | Z5: =Y5*'Fuel and Labor Assumptions'!$B$4 -> 1088100 | AA5: =(((U5*'Collection Route Parameters'!$B$7)*Municipalities!V5)/1000)+(M5*V5) -> 963.79 | AB5: 50117.08 | AC5: =AB5*'Truck Assumptions'!$B$10 -> 52873.5194 | AD5: =AC5*'Fuel and Labor Assumptions'!$B$10 -> 70321.7808 | AE5: 2994355.587 | AF5: =VLOOKUP(B5,'2012 Macro Cost Data'!$B$5:$F$245,5,FALSE) -> 5084528.22 | AG5: -2090172.633 | AK5: Urban, Weekly, Dual Stream | AL5: ='Collection Route Parameters'!B45 -> 156.5217391
A6: Large Urban | B6: 97 | C6: YORK, REGIONAL MUNICIPALITY OF | D6: Y | E6: =VLOOKUP(B6,'2012 Program Data'!$B$30:$F$235,3,FALSE) -> 324702 | F6: =VLOOKUP(B6,'2012 Program Data'!$B$6:$E$235,4,FALSE) -> 0 | G6: 332788 | H6: 76736.71 | I6: 50000 | J6: 84410.381 | K6: =VLOOKUP(B6,'2012 Program Data'!$B$6:$T$235,19,FALSE) -> 52 | L6: 0.00487780977 | M6: 20 | N6: =IF(AND(D6="Y",F6<1,K6=52),'Collection Route Parameters'!$B$31,IF(AND(D6="N",F6<1,K6=52),'Collection Route Parameters'!$B$33,IF(AND(D155="Y",F155<1,K155=26),'Collection Route Parameters'!$B$32,'Collection Route Parameters'!$B$34))) -> 1229.5 | O6: 1085.823278 | P6: ='Truck Assumptions'!$B$5/Municipalities!L6 -> 717.5351572 | Q6: run out of space | R6: 180 | S6: 158.9655877 | T6: =IF(Q6="run out of space",((N6-P6)/'Collection Route Parameters'!$B$43)-'Collection Route Parameters'!$B$54,"") -> 2.174804682 | U6: 1109 | V6: =ROUNDUP((G6/U6)/'Fuel and Labor Assumptions'!$B$7,0) -> 61 | W6: =V6*'Truck Assumptions'!$B$16 -> 3612643.941 | X6: =(V6*'Fuel and Labor Assumptions'!$B$5)*'Fuel and Labor Assumptions'!$B$6 -> 915 | Y6: 47580 | Z6: =Y6*'Fuel and Labor Assumptions'!$B$4 -> 2141100 | AA6: =(((U6*'Collection Route Parameters'!$B$7)*Municipalities!V6)/1000)+(M6*V6) -> 1896.49 | AB6: 98617.48 | AC6: =AB6*'Truck Assumptions'!$B$10 -> 104041.4414 | AD6: =AC6*'Fuel and Labor Assumptions'!$B$10 -> 138375.1171 | AE6: 5892119.058 | AF6: =VLOOKUP(B6,'2012 Macro Cost Data'!$B$5:$F$245,5,FALSE) -> 9252969.95 | AG6: -3360850.892 | AK6: Urban, Bi Weekly, Dual Stream | AL6: ='Collection Route Parameters'!B46 -> 124.137931
A7: Large Urban | B7: 172 | C7: HAMILTON, CITY OF | D7: Y | E7: =VLOOKUP(B7,'2012 Program Data'!$B$30:$F$235,3,FALSE) -> 213903 | F7: =VLOOKUP(B7,'2012 Program Data'!$B$6:$E$235,4,FALSE) -> 0 | G7: 215733 | H7: 38422.15 | I7: 60000 | J7: 42264.365 | K7: 52 | L7: 0.00376751007 | M7: 20 | N7: =IF(AND(D7="Y",F7<1,K7=52),'Collection Route Parameters'!$B$31,IF(AND(D7="N",F7<1,K7=52),'Collection Route Parameters'!$B$33,IF(AND(D156="Y",F156<1,K156=26),'Collection Route Parameters'!$B$32,'Collection Route Parameters'!$B$34))) -> 1229.5 | O7: 963.538526 | P7: ='Truck Assumptions'!$B$5/Municipalities!L7 -> 928.9955261 | Q7: run out of space | R7: 180 | S7: 141.0629806 | T7: =IF(Q7="run out of space",((N7-P7)/'Collection Route Parameters'!$B$43)-'Collection Route Parameters'!$B$54,"") -> 1.000024855 | U7: 1109 | V7: =ROUNDUP((G7/U7)/'Fuel and Labor Assumptions'!$B$7,0) -> 39 | W7: =V7*'Truck Assumptions'!$B$16 -> 2309723.175 | X7: =(V7*'Fuel and Labor Assumptions'!$B$5)*'Fuel and Labor Assumptions'!$B$6 -> 585 | Y7: 30420 | Z7: =Y7*'Fuel and Labor Assumptions'!$B$4 -> 1368900 | AA7: =(((U7*'Collection Route Parameters'!$B$7)*Municipalities!V7)/1000)+(M7*V7) -> 1212.51 | AB7: 63050.52 | AC7: =AB7*'Truck Assumptions'!$B$10 -> 66518.2986 | AD7: =AC7*'Fuel and Labor Assumptions'!$B$10 -> 88469.33714 | AE7: 3767092.513 | AF7: =VLOOKUP(B7,'2012 Macro Cost Data'!$B$5:$F$245,5,FALSE) -> 7922612.29 | AG7: -4155519.777 | AK7: Rural, Weekly, Single Stream | AL7: ='Collection Route Parameters'!B47 -> 144
A8: Large Urban | B8: 270 | C8: PEEL, REGIONAL MUNICIPALITY OF | D8: Y | E8: =VLOOKUP(B8,'2012 Program Data'!$B$30:$F$235,3,FALSE) -> 416500 | F8: =VLOOKUP(B8,'2012 Program Data'!$B$6:$E$235,4,FALSE) -> 0 | G8: 416500 | H8: 86950.4 | I8: 96000 | J8: 95645.44 | K8: 52 | L8: 0.004416171392 | M8: 20 | N8: =IF(AND(D8="Y",F8<1,K8=52),'Collection Route Parameters'!$B$31,IF(AND(D8="N",F8<1,K8=52),'Collection Route Parameters'!$B$33,IF(AND(D157="Y",F157<1,K157=26),'Collection Route Parameters'!$B$32,'Collection Route Parameters'!$B$34))) -> 1229.5 | O8: 1009.085434 | P8: ='Truck Assumptions'!$B$5/Municipalities!L8 -> 792.541704 | Q8: run out of space | R8: 180 | S8: 147.7310924 | T8: =IF(Q8="run out of space",((N8-P8)/'Collection Route Parameters'!$B$43)-'Collection Route Parameters'!$B$54,"") -> 1.758101644 | U8: 1109 | V8: =ROUNDUP((G8/U8)/'Fuel and Labor Assumptions'!$B$7,0) -> 76 | W8: =V8*'Truck Assumptions'!$B$16 -> 4500999.008 | X8: =(V8*'Fuel and Labor Assumptions'!$B$5)*'Fuel and Labor Assumptions'!$B$6 -> 1140 | Y8: 59280 | Z8: =Y8*'Fuel and Labor Assumptions'!$B$4 -> 2667600 | AA8: =(((U8*'Collection Route Parameters'!$B$7)*Municipalities!V8)/1000)+(M8*V8) -> 2362.84 | AB8: 122867.68 | AC8: =AB8*'Truck Assumptions'!$B$10 -> 129625.4024 | AD8: =AC8*'Fuel and Labor Assumptions'!$B$10 -> 172401.7852 | AE8: 7341000.794 | AF8: =VLOOKUP(B8,'2012 Macro Cost Data'!$B$5:$F$245,5,FALSE) -> 19937202.43 | AG8: -12596201.64 | AK8: Rural, Bi Weekly, Single Stream | AL8: ='Collection Route Parameters'!B48 -> 120
A9: Urban Regional | B9: 6 | C9: DURHAM, REGIONAL MUNICIPALITY OF | D9: N | E9: =VLOOKUP(B9,'2012 Program Data'!$B$30:$F$235,3,FALSE) -> 213317 | F9: =VLOOKUP(B9,'2012 Program Data'!$B$6:$E$235,4,FALSE) -> 0 | G9: 213317 | H9: 44429.08 | J9: 48871.988 | K9: =VLOOKUP(B9,'2012 Program Data'!$B$6:$T$235,19,FALSE) -> 52 | L9: 0.004405865088 | M9: 20 | N9: =IF(AND(D9="Y",F9<1,K9=52),'Collection Route Parameters'!$B$31,IF(AND(D9="N",F9<1,K9=52),'Collection Route Parameters'!$B$33,IF(AND(D158="Y",F158<1,K158=26),'Collection Route Parameters'!$B$32,'Collection Route Parameters'!$B$34))) -> 1068.913043 | O9: 1068.913043 | P9: ='Truck Assumptions'!$B$5/Municipalities!L9 -> 794.3956362 | Q9: run out of space | R9: 156.5217391 | S9: 156.5217391 | T9: =IF(Q9="run out of space",((N9-P9)/'Collection Route Parameters'!$B$43)-'Collection Route Parameters'!$B$54,"") -> 0.8556522626 | U9: 928.3238164 | V9: =ROUNDUP((G9/U9)/'Fuel and Labor Assumptions'!$B$7,0) -> 46 | W9: =V9*'Truck Assumptions'!$B$16 -> 2724288.874 | X9: =(V9*'Fuel and Labor Assumptions'!$B$5)*'Fuel and Labor Assumptions'!$B$6 -> 690 | Y9: 35880 | Z9: =Y9*'Fuel and Labor Assumptions'!$B$4 -> 1614600 | AA9: =(((U9*'Collection Route Parameters'!$B$7)*Municipalities!V9)/1000)+(M9*V9) -> 1347.028956 | AB9: 70045.50569 | AC9: =AB9*'Truck Assumptions'!$B$10 -> 73898.0085 | AD9: =AC9*'Fuel and Labor Assumptions'!$B$10 -> 98284.35131 | AE9: 4437173.225 | AF9: =VLOOKUP(B9,'2012 Macro Cost Data'!$B$5:$F$245,5,FALSE) -> 9578932.45 | AG9: -5141759.225 | AK9: Rural, Weekly, Dual Stream | AL9: ='Collection Route Parameters'!B49 -> 128.5714286
A10: Urban Regional | B10: 18 | C10: ESSEX-WINDSOR SOLID WASTE AUTHORITY | D10: N | E10: =VLOOKUP(B10,'2012 Program Data'!$B$30:$F$235,3,FALSE) -> 164356 | F10: =VLOOKUP(B10,'2012 Program Data'!$B$6:$E$235,4,FALSE) -> 0 | G10: 164356 | H10: 24918.31 | J10: 27410.141 | K10: =VLOOKUP(B10,'2012 Program Data'!$B$6:$T$235,19,FALSE) -> 26 | L10: 0.003207172821 | M10: 20 | N10: =IF(AND(D10="Y",F10<1,K10=52),'Collection Route Parameters'!$B$31,IF(AND(D10="N",F10<1,K10=52),'Collection Route Parameters'!$B$33,IF(AND(D159="Y",F159<1,K159=26),'Collection Route Parameters'!$B$32,'Collection Route Parameters'!$B$34))) -> 847.7586207 | O10: 847.7586207 | P10: ='Truck Assumptions'!$B$5/Municipalities!L10 -> 1091.303835 | Q10: run out of time | R10: 105.8823529 | S10: 105.8823529 | T10: =IF(Q10="run out of space",((N10-P10)/'Collection Route Parameters'!$B$43)-'Collection Route Parameters'!$B$54,"") ->  | U10: 847.7586207 | V10: =ROUNDUP((G10/U10)/'Fuel and Labor Assumptions'!$B$7,0) -> 39 | W10: =V10*'Truck Assumptions'!$B$16 -> 2309723.175 | X10: =(V10*'Fuel and Labor Assumptions'!$B$5)*'Fuel and Labor Assumptions'!$B$6 -> 585 | Y10: 15210 | Z10: =Y10*'Fuel and Labor Assumptions'!$B$4 -> 684450 | AA10: =(((U10*'Collection Route Parameters'!$B$7)*Municipalities!V10)/1000)+(M10*V10) -> 1110.625862 | AB10: 28876.27241 | AC10: =AB10*'Truck Assumptions'!$B$10 -> 30464.4674 | AD10: =AC10*'Fuel and Labor Assumptions'!$B$10 -> 40517.74164 | AE10: 3034690.917 | AF10: =VLOOKUP(B10,'2012 Macro Cost Data'!$B$5:$F$245,5,FALSE) -> 3756911.15 | AG10: -722220.233 | AK10: Rural, Bi Weekly, Dual Stream | AL10: ='Collection Route Parameters'!B50 -> 105.8823529
A11: Urban Regional | B11: 53 | C11: WATERLOO, REGIONAL MUNICIPALITY OF | D11: N | E11: =VLOOKUP(B11,'2012 Program Data'!$B$30:$F$235,3,FALSE) -> 199450 | F11: =VLOOKUP(B11,'2012 Program Data'!$B$6:$E$235,4,FALSE) -> 0 | G11: 199450 | H11: 34534.41 | J11: 37987.851 | K11: =VLOOKUP(B11,'2012 Program Data'!$B$6:$T$235,19,FALSE) -> 52 | L11: 0.003662750545 | M11: 20 | N11: =IF(AND(D11="Y",F11<1,K11=52),'Collection Route Parameters'!$B$31,IF(AND(D11="N",F11<1,K11=52),'Collection Route Parameters'!$B$33,IF(AND(D160="Y",F160<1,K160=26),'Collection Route Parameters'!$B$32,'Collection Route Parameters'!$B$34))) -> 1068.913043 | O11: 1068.913043 | P11: ='Truck Assumptions'!$B$5/Municipalities!L11 -> 955.5660308 | Q11: run out of space | R11: 156.5217391 | S11: 156.5217391 | U11: 1068.913043 | V11: =ROUNDUP((G11/U11)/'Fuel and Labor Assumptions'!$B$7,0) -> 38 | W11: =V11*'Truck Assumptions'!$B$16 -> 2250499.504 | X11: =(V11*'Fuel and Labor Assumptions'!$B$5)*'Fuel and Labor Assumptions'!$B$6 -> 570 | Y11: 29640 | Z11: =Y11*'Fuel and Labor Assumptions'!$B$4 -> 1333800 | AA11: =(((U11*'Collection Route Parameters'!$B$7)*Municipalities!V11)/1000)+(M11*V11) -> 1166.186957 | AB11: 60641.72174 | AC11: =AB11*'Truck Assumptions'!$B$10 -> 63977.01643 | AD11: =AC11*'Fuel and Labor Assumptions'!$B$10 -> 85089.43186 | AE11: 3669388.936 | AF11: =VLOOKUP(B11,'2012 Macro Cost Data'!$B$5:$F$245,5,FALSE) -> 6866744.12 | AG11: -3197355.184 | AK11: MF , Single Stream | AL11: ='Collection Route Parameters'!B51 -> 40
A12: Urban Regional | B12: 335 | C12: SIMCOE, COUNTY OF | D12: N | E12: =VLOOKUP(B12,'2012 Program Data'!$B$30:$F$235,3,FALSE) -> 126559 | F12: =VLOOKUP(B12,'2012 Program Data'!$B$6:$E$235,4,FALSE) -> 0 | G12: 131150 | H12: 25511.02 | J12: 28062.122 | K12: =VLOOKUP(B12,'2012 Program Data'!$B$6:$T$235,19,FALSE) -> 52 | L12: 0.004114801314 | M12: 20 | N12: =IF(AND(D12="Y",F12<1,K12=52),'Collection Route Parameters'!$B$31,IF(AND(D12="N",F12<1,K12=52),'Collection Route Parameters'!$B$33,IF(AND(D161="Y",F161<1,K161=26),'Collection Route Parameters'!$B$32,'Collection Route Parameters'!$B$34))) -> 1068.913043 | O12: 1068.913043 | P12: ='Truck Assumptions'!$B$5/Municipalities!L12 -> 850.5878493 | Q12: run out of space | R12: 156.5217391 | S12: 156.5217391 | U12: 1068.913043 | V12: =ROUNDUP((G12/U12)/'Fuel and Labor Assumptions'!$B$7,0) -> 25 | W12: =V12*'Truck Assumptions'!$B$16 -> 1480591.779 | X12: =(V12*'Fuel and Labor Assumptions'!$B$5)*'Fuel and Labor Assumptions'!$B$6 -> 375 | Y12: 19500 | Z12: =Y12*'Fuel and Labor Assumptions'!$B$4 -> 877500 | AA12: =(((U12*'Collection Route Parameters'!$B$7)*Municipalities!V12)/1000)+(M12*V12) -> 767.2282609 | AB12: 39895.86957 | AC12: =AB12*'Truck Assumptions'!$B$10 -> 42090.14239 | AD12: =AC12*'Fuel and Labor Assumptions'!$B$10 -> 55979.88938 | AE12: 2414071.668 | AF12: =VLOOKUP(B12,'2012 Macro Cost Data'!$B$5:$F$245,5,FALSE) -> 5836446.95 | AG12: -3422375.282 | AK12: MF , Dual Stream | AL12: ='Collection Route Parameters'!B52 -> 36
A13: Urban Regional | B13: 357 | C13: NIAGARA, REGIONAL MUNICIPALITY OF | D13: N | E13: =VLOOKUP(B13,'2012 Program Data'!$B$30:$F$235,3,FALSE) -> 187495 | F13: =VLOOKUP(B13,'2012 Program Data'!$B$6:$E$235,4,FALSE) -> 0 | G13: 190710 | H13: 39464.89 | J13: 43411.379 | K13: =VLOOKUP(B13,'2012 Program Data'!$B$6:$T$235,19,FALSE) -> 52 | L13: 0.004377506222 | M13: 20 | N13: =IF(AND(D13="Y",F13<1,K13=52),'Collection Route Parameters'!$B$31,IF(AND(D13="N",F13<1,K13=52),'Collection Route Parameters'!$B$33,IF(AND(D162="Y",F162<1,K162=26),'Collection Route Parameters'!$B$32,'Collection Route Parameters'!$B$34))) -> 1068.913043 | O13: 1068.913043 | P13: ='Truck Assumptions'!$B$5/Municipalities!L13 -> 799.5419818 | Q13: run out of space | R13: 156.5217391 | S13: 156.5217391 | T13: =IF(Q13="run out of space",((N13-P13)/'Collection Route Parameters'!$B$43)-'Collection Route Parameters'!$B$54,"") -> 0.8270614536 | U13: 928.9950789 | V13: =ROUNDUP((G13/U13)/'Fuel and Labor Assumptions'!$B$7,0) -> 42 | W13: =V13*'Truck Assumptions'!$B$16 -> 2487394.189 | X13: =(V13*'Fuel and Labor Assumptions'!$B$5)*'Fuel and Labor Assumptions'!$B$6 -> 630 | Y13: 32760 | Z13: =Y13*'Fuel and Labor Assumptions'!$B$4 -> 1474200 | AA13: =(((U13*'Collection Route Parameters'!$B$7)*Municipalities!V13)/1000)+(M13*V13) -> 1230.177933 | AB13: 63969.25252 | AC13: =AB13*'Truck Assumptions'!$B$10 -> 67487.56141 | AD13: =AC13*'Fuel and Labor Assumptions'!$B$10 -> 89758.45668 | AE13: 4051352.646 | AF13: =VLOOKUP(B13,'2012 Macro Cost Data'!$B$5:$F$245,5,FALSE) -> 6658374.74 | AG13: -2607022.094
A14: Urban Regional | B14: 441 | C14: OTTAWA, CITY OF | D14: N | E14: =VLOOKUP(B14,'2012 Program Data'!$B$30:$F$235,3,FALSE) -> 387732 | F14: =VLOOKUP(B14,'2012 Program Data'!$B$6:$E$235,4,FALSE) -> 0 | G14: 387732 | H14: 60885.53 | I14: 117000 | J14: 66974.083 | K14: 52 | L14: 0.003321787045 | M14: 20 | N14: =IF(AND(D14="Y",F14<1,K14=52),'Collection Route Parameters'!$B$31,IF(AND(D14="N",F14<1,K14=52),'Collection Route Parameters'!$B$33,IF(AND(D163="Y",F163<1,K163=26),'Collection Route Parameters'!$B$32,'Collection Route Parameters'!$B$34))) -> 1068.913043 | O14: 666.129793 | P14: ='Truck Assumptions'!$B$5/Municipalities!L14 -> 1053.649723 | Q14: run out of time | R14: 156.5217391 | S14: 120.1537234 | T14: =IF(Q14="run out of space",((N14-P14)/'Collection Route Parameters'!$B$43)-'Collection Route Parameters'!$B$54,"") ->  | U14: 666.129793 | V14: =ROUNDUP((G14/U14)/'Fuel and Labor Assumptions'!$B$7,0) -> 117 | W14: =V14*'Truck Assumptions'!$B$16 -> 6929169.526 | X14: =(V14*'Fuel and Labor Assumptions'!$B$5)*'Fuel and Labor Assumptions'!$B$6 -> 1755 | Y14: 91260 | Z14: =Y14*'Fuel and Labor Assumptions'!$B$4 -> 4106700 | AA14: =(((U14*'Collection Route Parameters'!$B$7)*Municipalities!V14)/1000)+(M14*V14) -> 3119.371858 | AB14: 162207.3366 | AC14: =AB14*'Truck Assumptions'!$B$10 -> 171128.7401 | AD14: =AC14*'Fuel and Labor Assumptions'!$B$10 -> 227601.2244 | AE14: 11263470.75 | AF14: =VLOOKUP(B14,'2012 Macro Cost Data'!$B$5:$F$245,5,FALSE) -> 12603398.73 | AG14: -1339927.979
A15: Medium Urban | B15: 14 | C15: BARRIE, CITY OF | D15: N | E15: =VLOOKUP(B15,'2012 Program Data'!B14:D235,3,FALSE) -> 56292 | F15: =VLOOKUP(B15,'2012 Program Data'!$B$6:$E$235,4,FALSE) -> 0 | G15: 56292 | H15: 11589.59511 | J15: 12748.55462 | K15: =VLOOKUP(B15,'2012 Program Data'!$B$6:$T$235,19,FALSE) -> 52 | L15: 0.004355228309 | M15: 20 | N15: =IF(AND(D15="Y",F15<1,K15=52),'Collection Route Parameters'!$B$31,IF(AND(D15="N",F15<1,K15=52),'Collection Route Parameters'!$B$33,IF(AND(D164="Y",F164<1,K164=26),'Collection Route Parameters'!$B$32,'Collection Route Parameters'!$B$34))) -> 1068.913043 | O15: 1068.913043 | P15: ='Truck Assumptions'!$B$5/Municipalities!L15 -> 803.631808 | Q15: run out of space | R15: 156.5217391 | S15: 156.5217391 | T15: =IF(Q15="run out of space",((N15-P15)/'Collection Route Parameters'!$B$43)-'Collection Route Parameters'!$B$54,"") -> 0.8043401969 | U15: 929.5285345 | V15: =ROUNDUP((G15/U15)/'Fuel and Labor Assumptions'!$B$7,0) -> 13 | W15: =V15*'Truck Assumptions'!$B$16 -> 769907.7251 | X15: =(V15*'Fuel and Labor Assumptions'!$B$5)*'Fuel and Labor Assumptions'!$B$6 -> 195 | Y15: 10140 | Z15: =Y15*'Fuel and Labor Assumptions'!$B$4 -> 456300 | AA15: =(((U15*'Collection Route Parameters'!$B$7)*Municipalities!V15)/1000)+(M15*V15) -> 380.8387095 | AB15: 19803.61289 | AC15: =AB15*'Truck Assumptions'!$B$10 -> 20892.8116 | AD15: =AC15*'Fuel and Labor Assumptions'!$B$10 -> 27787.43943 | AE15: 1253995.165 | AF15: =VLOOKUP(B15,'2012 Macro Cost Data'!$B$5:$F$245,5,FALSE) -> 1532833.43 | AG15: -278838.2654 | AK15: Urban, Weekly, Single Stream | AL15: ='Collection Route Parameters'!B31 -> 1229.5
A16: Medium Urban | B16: 36 | C16: GUELPH, CITY OF | D16: N | E16: =VLOOKUP(B16,'2012 Program Data'!$B$30:$F$235,3,FALSE) -> 44244 | F16: =VLOOKUP(B16,'2012 Program Data'!$B$6:$E$235,4,FALSE) -> 0 | G16: 49482 | H16: 8415.73 | J16: 9257.303 | K16: =VLOOKUP(B16,'2012 Program Data'!$B$6:$T$235,19,FALSE) -> 52 | L16: 0.003597774093 | M16: 20 | N16: =IF(AND(D16="Y",F16<1,K16=52),'Collection Route Parameters'!$B$31,IF(AND(D16="N",F16<1,K16=52),'Collection Route Parameters'!$B$33,IF(AND(D165="Y",F165<1,K165=26),'Collection Route Parameters'!$B$32,'Collection Route Parameters'!$B$34))) -> 1068.913043 | O16: 1068.913043 | P16: ='Truck Assumptions'!$B$5/Municipalities!L16 -> 972.8237263 | Q16: run out of space | R16: 156.5217391 | S16: 156.5217391 | U16: 1068.913043 | V16: =ROUNDUP((G16/U16)/'Fuel and Labor Assumptions'!$B$7,0) -> 10 | W16: =V16*'Truck Assumptions'!$B$16 -> 592236.7116 | X16: =(V16*'Fuel and Labor Assumptions'!$B$5)*'Fuel and Labor Assumptions'!$B$6 -> 150 | Y16: 7800 | Z16: =Y16*'Fuel and Labor Assumptions'!$B$4 -> 351000 | AA16: =(((U16*'Collection Route Parameters'!$B$7)*Municipalities!V16)/1000)+(M16*V16) -> 306.8913043 | AB16: 15958.34783 | AC16: =AB16*'Truck Assumptions'!$B$10 -> 16836.05696 | AD16: =AC16*'Fuel and Labor Assumptions'!$B$10 -> 22391.95575 | AE16: 965628.6674 | AF16: =VLOOKUP(B16,'2012 Macro Cost Data'!$B$5:$F$245,5,FALSE) -> 1098724.37 | AG16: -133095.7026 | AK16: Urban, Bi Weekly, Single Stream | AL16: ='Collection Route Parameters'!B32 -> 983.6
A17: Medium Urban | B17: 55 | C17: SAULT STE. MARIE, CITY OF | D17: Y | E17: =VLOOKUP(B17,'2012 Program Data'!$B$30:$F$235,3,FALSE) -> 32517 | F17: =VLOOKUP(B17,'2012 Program Data'!$B$6:$E$235,4,FALSE) -> 0 | G17: 32517 | H17: 6013.93 | J17: 6615.323 | K17: =VLOOKUP(B17,'2012 Program Data'!$B$6:$T$235,19,FALSE) -> 52 | L17: 0.00391234585 | M17: 20 | N17: =IF(AND(D17="Y",F17<1,K17=52),'Collection Route Parameters'!$B$31,IF(AND(D17="N",F17<1,K17=52),'Collection Route Parameters'!$B$33,IF(AND(D166="Y",F166<1,K166=26),'Collection Route Parameters'!$B$32,'Collection Route Parameters'!$B$34))) -> 1229.5 | O17: 1229.5 | P17: ='Truck Assumptions'!$B$5/Municipalities!L17 -> 894.603937 | Q17: run out of space | R17: 180 | S17: 180 | T17: =IF(Q17="run out of space",((N17-P17)/'Collection Route Parameters'!$B$43)-'Collection Route Parameters'!$B$54,"") -> 1.191089239 | U17: 1109 | V17: =ROUNDUP((G17/U17)/'Fuel and Labor Assumptions'!$B$7,0) -> 6 | W17: =V17*'Truck Assumptions'!$B$16 -> 355342.027 | X17: =(V17*'Fuel and Labor Assumptions'!$B$5)*'Fuel and Labor Assumptions'!$B$6 -> 90 | Y17: 4680 | Z17: =Y17*'Fuel and Labor Assumptions'!$B$4 -> 210600 | AA17: =(((U17*'Collection Route Parameters'!$B$7)*Municipalities!V17)/1000)+(M17*V17) -> 186.54 | AB17: 9700.08 | AC17: =AB17*'Truck Assumptions'!$B$10 -> 10233.5844 | AD17: =AC17*'Fuel and Labor Assumptions'!$B$10 -> 13610.66725 | AE17: 579552.6942 | AF17: =VLOOKUP(B17,'2012 Macro Cost Data'!$B$5:$F$245,5,FALSE) -> 851172.44 | AG17: -271619.7458 | AK17: Urban, Weekly, Dual Stream | AL17: ='Collection Route Parameters'!B33 -> 1068.913043
A18: Medium Urban | B18: 103 | C18: SARNIA, CITY OF | D18: N | E18: =VLOOKUP(B18,'2012 Program Data'!$B$30:$F$235,3,FALSE) -> 39326 | F18: =VLOOKUP(B18,'2012 Program Data'!$B$6:$E$235,4,FALSE) -> 0 | G18: 39326 | H18: 3873.07 | J18: 4260.377 | K18: =VLOOKUP(B18,'2012 Program Data'!$B$6:$T$235,19,FALSE) -> 26 | L18: 0.002083362837 | M18: 20 | N18: =IF(AND(D18="Y",F18<1,K18=52),'Collection Route Parameters'!$B$31,IF(AND(D18="N",F18<1,K18=52),'Collection Route Parameters'!$B$33,IF(AND(D167="Y",F167<1,K167=26),'Collection Route Parameters'!$B$32,'Collection Route Parameters'!$B$34))) -> 847.7586207 | O18: 847.7586207 | P18: ='Truck Assumptions'!$B$5/Municipalities!L18 -> 1679.976209 | Q18: run out of time | R18: 105.8823529 | S18: 105.8823529 | T18: =IF(Q18="run out of space",((N18-P18)/'Collection Route Parameters'!$B$43)-'Collection Route Parameters'!$B$54,"") ->  | U18: 847.7586207 | V18: =ROUNDUP((G18/U18)/'Fuel and Labor Assumptions'!$B$7,0) -> 10 | W18: =V18*'Truck Assumptions'!$B$16 -> 592236.7116 | X18: =(V18*'Fuel and Labor Assumptions'!$B$5)*'Fuel and Labor Assumptions'!$B$6 -> 150 | Y18: 3900 | Z18: =Y18*'Fuel and Labor Assumptions'!$B$4 -> 175500 | AA18: =(((U18*'Collection Route Parameters'!$B$7)*Municipalities!V18)/1000)+(M18*V18) -> 284.7758621 | AB18: 7404.172414 | AC18: =AB18*'Truck Assumptions'!$B$10 -> 7811.401897 | AD18: =AC18*'Fuel and Labor Assumptions'!$B$10 -> 10389.16452 | AE18: 778125.8762 | AF18: =VLOOKUP(B18,'2012 Macro Cost Data'!$B$5:$F$245,5,FALSE) -> 737100.68 | AG18: 41025.19616 | AK18: Urban, Bi Weekly, Dual Stream | AL18: ='Collection Route Parameters'!B34 -> 847.7586207
A19: Medium Urban | B19: 123 | C19: THUNDER BAY, CITY OF | D19: Y | E19: =VLOOKUP(B19,'2012 Program Data'!$B$30:$F$235,3,FALSE) -> 46945 | F19: =VLOOKUP(B19,'2012 Program Data'!$B$6:$E$235,4,FALSE) -> 0 | G19: 46945 | H19: 6212.87 | J19: 6834.157 | K19: =VLOOKUP(B19,'2012 Program Data'!$B$6:$T$235,19,FALSE) -> 26 | L19: 0.002799576018 | M19: 20 | N19: =IF(AND(D19="Y",F19<1,K19=52),'Collection Route Parameters'!$B$31,IF(AND(D19="N",F19<1,K19=52),'Collection Route Parameters'!$B$33,IF(AND(D168="Y",F168<1,K168=26),'Collection Route Parameters'!$B$32,'Collection Route Parameters'!$B$34))) -> 847.7586207 | O19: 847.7586207 | P19: ='Truck Assumptions'!$B$5/Municipalities!L19 -> 1250.189306 | Q19: run out of time | R19: 105.8823529 | S19: 105.8823529 | T19: =IF(Q19="run out of space",((N19-P19)/'Collection Route Parameters'!$B$43)-'Collection Route Parameters'!$B$54,"") ->  | U19: 847.7586207 | V19: =ROUNDUP((G19/U19)/'Fuel and Labor Assumptions'!$B$7,0) -> 12 | W19: =V19*'Truck Assumptions'!$B$16 -> 710684.054 | X19: =(V19*'Fuel and Labor Assumptions'!$B$5)*'Fuel and Labor Assumptions'!$B$6 -> 180 | Y19: 4680 | Z19: =Y19*'Fuel and Labor Assumptions'!$B$4 -> 210600 | AA19: =(((U19*'Collection Route Parameters'!$B$7)*Municipalities!V19)/1000)+(M19*V19) -> 341.7310345 | AB19: 8885.006897 | AC19: =AB19*'Truck Assumptions'!$B$10 -> 9373.682276 | AD19: =AC19*'Fuel and Labor Assumptions'!$B$10 -> 12466.99743 | AE19: 933751.0514 | AF19: =VLOOKUP(B19,'2012 Macro Cost Data'!$B$5:$F$245,5,FALSE) -> 290268.88 | AG19: 643482.1714 | AK19: Rural, Weekly, Single Stream | AL19: ='Collection Route Parameters'!B35 -> 983.6
A20: Medium Urban | B20: 179 | C20: BRANTFORD, CITY OF | D20: N | E20: =VLOOKUP(B20,'2012 Program Data'!$B$30:$F$235,3,FALSE) -> 37874 | F20: =VLOOKUP(B20,'2012 Program Data'!$B$6:$E$235,4,FALSE) -> 0 | G20: 37874 | H20: 6607.44 | J20: 7268.184 | K20: =VLOOKUP(B20,'2012 Program Data'!$B$6:$T$235,19,FALSE) -> 52 | L20: 0.003690467583 | M20: 20 | N20: =IF(AND(D20="Y",F20<1,K20=52),'Collection Route Parameters'!$B$31,IF(AND(D20="N",F20<1,K20=52),'Collection Route Parameters'!$B$33,IF(AND(D169="Y",F169<1,K169=26),'Collection Route Parameters'!$B$32,'Collection Route Parameters'!$B$34))) -> 1068.913043 | O20: 1068.913043 | P20: ='Truck Assumptions'!$B$5/Municipalities!L20 -> 948.3893088 | Q20: run out of space | R20: 156.5217391 | S20: 156.5217391 | T20: =IF(Q20="run out of space",((N20-P20)/'Collection Route Parameters'!$B$43)-'Collection Route Parameters'!$B$54,"") -> 0.000131859317 | U20: 948.4099477 | V20: =ROUNDUP((G20/U20)/'Fuel and Labor Assumptions'!$B$7,0) -> 8 | W20: =V20*'Truck Assumptions'!$B$16 -> 473789.3693 | X20: =(V20*'Fuel and Labor Assumptions'!$B$5)*'Fuel and Labor Assumptions'!$B$6 -> 120 | Y20: 6240 | Z20: =Y20*'Fuel and Labor Assumptions'!$B$4 -> 280800 | AA20: =(((U20*'Collection Route Parameters'!$B$7)*Municipalities!V20)/1000)+(M20*V20) -> 235.8727958 | AB20: 12265.38538 | AC20: =AB20*'Truck Assumptions'!$B$10 -> 12939.98158 | AD20: =AC20*'Fuel and Labor Assumptions'!$B$10 -> 17210.1755 | AE20: 771799.5448 | AF20: =VLOOKUP(B20,'2012 Macro Cost Data'!$B$5:$F$245,5,FALSE) -> 1715467.76 | AG20: -943668.2152 | AK20: Rural, Bi Weekly, Single Stream | AL20: ='Collection Route Parameters'!B36 -> 819.6666667
A21: Medium Urban | B21: 293 | C21: PETERBOROUGH, CITY OF | D21: N | E21: =VLOOKUP(B21,'2012 Program Data'!$B$30:$F$235,3,FALSE) -> 36465 | F21: =VLOOKUP(B21,'2012 Program Data'!$B$6:$E$235,4,FALSE) -> 0 | G21: 36465 | H21: 8517.7 | J21: 9369.47 | K21: =VLOOKUP(B21,'2012 Program Data'!$B$6:$T$235,19,FALSE) -> 52 | L21: 0.004941234482 | M21: 20 | N21: =IF(AND(D21="Y",F21<1,K21=52),'Collection Route Parameters'!$B$31,IF(AND(D21="N",F21<1,K21=52),'Collection Route Parameters'!$B$33,IF(AND(D170="Y",F170<1,K170=26),'Collection Route Parameters'!$B$32,'Collection Route Parameters'!$B$34))) -> 1068.913043 | O21: 1068.913043 | P21: ='Truck Assumptions'!$B$5/Municipalities!L21 -> 708.3250173 | Q21: run out of space | R21: 156.5217391 | S21: 156.5217391 | T21: =IF(Q21="run out of space",((N21-P21)/'Collection Route Parameters'!$B$43)-'Collection Route Parameters'!$B$54,"") -> 1.333822368 | U21: 917.097214 | V21: =ROUNDUP((G21/U21)/'Fuel and Labor Assumptions'!$B$7,0) -> 8 | W21: =V21*'Truck Assumptions'!$B$16 -> 473789.3693 | X21: =(V21*'Fuel and Labor Assumptions'!$B$5)*'Fuel and Labor Assumptions'!$B$6 -> 120 | Y21: 6240 | Z21: =Y21*'Fuel and Labor Assumptions'!$B$4 -> 280800 | AA21: =(((U21*'Collection Route Parameters'!$B$7)*Municipalities!V21)/1000)+(M21*V21) -> 233.3677771 | AB21: 12135.12441 | AC21: =AB21*'Truck Assumptions'!$B$10 -> 12802.55625 | AD21: =AC21*'Fuel and Labor Assumptions'!$B$10 -> 17027.39982 | AE21: 771616.7691 | AF21: =VLOOKUP(B21,'2012 Macro Cost Data'!$B$5:$F$245,5,FALSE) -> 1161008.14 | AG21: -389391.3709 | AK21: Rural, Weekly, Dual Stream | AL21: ='Collection Route Parameters'!B37 -> 878.0357143
A22: Small Urban | B22: 8 | C22: STRATFORD, CITY OF | D22: N | E22: =VLOOKUP(B22,'2012 Program Data'!$B$30:$F$235,3,FALSE) -> 13750 | F22: =VLOOKUP(B22,'2012 Program Data'!$B$6:$E$235,4,FALSE) -> 0 | G22: 13750 | H22: 2265.1 | J22: 2491.61 | K22: =VLOOKUP(B22,'2012 Program Data'!$B$6:$T$235,19,FALSE) -> 26 | L22: 0.003484769231 | M22: 20 | N22: =IF(AND(D22="Y",F22<1,K22=52),'Collection Route Parameters'!$B$31,IF(AND(D22="N",F22<1,K22=52),'Collection Route Parameters'!$B$33,IF(AND(D171="Y",F171<1,K171=26),'Collection Route Parameters'!$B$32,'Collection Route Parameters'!$B$34))) -> 983.6 | O22: 983.6 | P22: ='Truck Assumptions'!$B$5/Municipalities!L22 -> 1004.370668 | Q22: run out of time | R22: 144 | S22: 144 | U22: 983.6 | V22: =ROUNDUP((G22/U22)/'Fuel and Labor Assumptions'!$B$7,0) -> 3 | W22: =V22*'Truck Assumptions'!$B$16 -> 177671.0135 | X22: =(V22*'Fuel and Labor Assumptions'!$B$5)*'Fuel and Labor Assumptions'!$B$6 -> 45 | Y22: 1170 | Z22: =Y22*'Fuel and Labor Assumptions'!$B$4 -> 52650 | AA22: =(((U22*'Collection Route Parameters'!$B$7)*Municipalities!V22)/1000)+(M22*V22) -> 89.508 | AB22: 2327.208 | AC22: =AB22*'Truck Assumptions'!$B$10 -> 2455.20444 | AD22: =AC22*'Fuel and Labor Assumptions'!$B$10 -> 3265.421905 | AE22: 233586.4354 | AF22: =VLOOKUP(B22,'2012 Macro Cost Data'!$B$5:$F$245,5,FALSE) -> 489647.86 | AG22: -256061.4246 | AK22: Rural, Bi Weekly, Dual Stream | AL22: ='Collection Route Parameters'!B38 -> 723.0882353
A23: Small Urban | B23: 41 | C23: OWEN SOUND, CITY OF | D23: Y | E23: =VLOOKUP(B23,'2012 Program Data'!$B$30:$F$235,3,FALSE) -> 9605 | F23: =VLOOKUP(B23,'2012 Program Data'!$B$6:$E$235,4,FALSE) -> 0 | G23: 9605 | H23: 2068.16 | J23: 2274.976 | K23: =VLOOKUP(B23,'2012 Program Data'!$B$6:$T$235,19,FALSE) -> 26 | L23: 0.004554871261 | M23: 20 | N23: =IF(AND(D23="Y",F23<1,K23=52),'Collection Route Parameters'!$B$31,IF(AND(D23="N",F23<1,K23=52),'Collection Route Parameters'!$B$33,IF(AND(D172="Y",F172<1,K172=26),'Collection Route Parameters'!$B$32,'Collection Route Parameters'!$B$34))) -> 847.7586207 | O23: 847.7586207 | P23: ='Truck Assumptions'!$B$5/Municipalities!L23 -> 768.4081063 | Q23: run out of space | R23: 105.8823529 | S23: 105.8823529 | T23: =IF(Q23="run out of space",((N23-P23)/'Collection Route Parameters'!$B$43)-'Collection Route Parameters'!$B$54,"") -> -0.2286082533 | U23: 847.7586207 | V23: =ROUNDUP((G23/U23)/'Fuel and Labor Assumptions'!$B$7,0) -> 3 | W23: =V23*'Truck Assumptions'!$B$16 -> 177671.0135 | X23: =(V23*'Fuel and Labor Assumptions'!$B$5)*'Fuel and Labor Assumptions'!$B$6 -> 45 | Y23: 1170 | Z23: =Y23*'Fuel and Labor Assumptions'!$B$4 -> 52650 | AA23: =(((U23*'Collection Route Parameters'!$B$7)*Municipalities!V23)/1000)+(M23*V23) -> 85.43275862 | AB23: 2221.251724 | AC23: =AB23*'Truck Assumptions'!$B$10 -> 2343.420569 | AD23: =AC23*'Fuel and Labor Assumptions'!$B$10 -> 3116.749357 | AE23: 233437.7628 | AF23: =VLOOKUP(B23,'2012 Macro Cost Data'!$B$5:$F$245,5,FALSE) -> 255888.92 | AG23: -22451.15715 | AK23: MF , Single Stream | AL23: ='Collection Route Parameters'!B39 -> 273.2222222
A24: Small Urban | B24: 56 | C24: ORILLIA, CITY OF | D24: Y | E24: =VLOOKUP(B24,'2012 Program Data'!$B$30:$F$235,3,FALSE) -> 14560 | F24: =VLOOKUP(B24,'2012 Program Data'!$B$6:$E$235,4,FALSE) -> 40 | G24: 14600 | H24: 2948.44 | J24: 3243.284 | K24: =VLOOKUP(B24,'2012 Program Data'!$B$6:$T$235,19,FALSE) -> 52 | L24: 0.004271975764 | M24: 20 | N24: =IF(AND(D24="Y",F24<1,K24=52),'Collection Route Parameters'!$B$31,IF(AND(D24="N",F24<1,K24=52),'Collection Route Parameters'!$B$33,IF(AND(D173="Y",F173<1,K173=26),'Collection Route Parameters'!$B$32,'Collection Route Parameters'!$B$34))) -> 847.7586207 | O24: 847.7586207 | P24: ='Truck Assumptions'!$B$5/Municipalities!L24 -> 819.2930376 | Q24: run out of space | R24: 105.8823529 | S24: 105.8823529 | U24: 847.7586207 | V24: =ROUNDUP((G24/U24)/'Fuel and Labor Assumptions'!$B$7,0) -> 4 | W24: =V24*'Truck Assumptions'!$B$16 -> 236894.6847 | X24: =(V24*'Fuel and Labor Assumptions'!$B$5)*'Fuel and Labor Assumptions'!$B$6 -> 60 | Y24: 3120 | Z24: =Y24*'Fuel and Labor Assumptions'!$B$4 -> 140400 | AA24: =(((U24*'Collection Route Parameters'!$B$7)*Municipalities!V24)/1000)+(M24*V24) -> 113.9103448 | AB24: 5923.337931 | AC24: =AB24*'Truck Assumptions'!$B$10 -> 6249.121517 | AD24: =AC24*'Fuel and Labor Assumptions'!$B$10 -> 8311.331618 | AE24: 385606.0163 | AF24: =VLOOKUP(B24,'2012 Macro Cost Data'!$B$5:$F$245,5,FALSE) -> 424584.81 | AG24: -38978.79373 | AK24: MF , Dual Stream | AL24: ='Collection Route Parameters'!B40 -> 245.85
A25: Small Urban | B25: 67 | C25: BROCKVILLE, CITY OF | D25: N | E25: =VLOOKUP(B25,'2012 Program Data'!$B$30:$F$235,3,FALSE) -> 9769 | F25: =VLOOKUP(B25,'2012 Program Data'!$B$6:$E$235,4,FALSE) -> 0 | G25: 10689 | H25: 1376.472448 | J25: 1514.119693 | K25: =VLOOKUP(B25,'2012 Program Data'!$B$6:$T$235,19,FALSE) -> 52 | L25: 0.002724079558 | M25: 20 | N25: =IF(AND(D25="Y",F25<1,K25=52),'Collection Route Parameters'!$B$31,IF(AND(D25="N",F25<1,K25=52),'Collection Route Parameters'!$B$33,IF(AND(D174="Y",F174<1,K174=26),'Collection Route Parameters'!$B$32,'Collection Route Parameters'!$B$34))) -> 1068.913043 | O25: 1068.913043 | P25: ='Truck Assumptions'!$B$5/Municipalities!L25 -> 1284.837658 | Q25: run out of time | R25: 156.5217391 | S25: 156.5217391 | T25: =IF(Q25="run out of space",((N25-P25)/'Collection Route Parameters'!$B$43)-'Collection Route Parameters'!$B$54,"") ->  | U25: 1068.913043 | V25: =ROUNDUP((G25/U25)/'Fuel and Labor Assumptions'!$B$7,0) -> 2 | W25: =V25*'Truck Assumptions'!$B$16 -> 118447.3423 | X25: =(V25*'Fuel and Labor Assumptions'!$B$5)*'Fuel and Labor Assumptions'!$B$6 -> 30 | Y25: 1560 | Z25: =Y25*'Fuel and Labor Assumptions'!$B$4 -> 70200 | AA25: =(((U25*'Collection Route Parameters'!$B$7)*Municipalities!V25)/1000)+(M25*V25) -> 61.37826087 | AB25: 3191.669565 | AC25: =AB25*'Truck Assumptions'!$B$10 -> 3367.211391 | AD25: =AC25*'Fuel and Labor Assumptions'!$B$10 -> 4478.39115 | AE25: 193125.7335 | AF25: =VLOOKUP(B25,'2012 Macro Cost Data'!$B$5:$F$245,5,FALSE) -> 199680.14 | AG25: -6554.406521
A26: Small Urban | B26: 75 | C26: ORANGEVILLE, TOWN OF | D26: Y | E26: =VLOOKUP(B26,'2012 Program Data'!$B$30:$F$235,3,FALSE) -> 10303 | F26: =VLOOKUP(B26,'2012 Program Data'!$B$6:$E$235,4,FALSE) -> 0 | G26: 10303 | H26: 3605.5768 | J26: 3966.13448 | K26: =VLOOKUP(B26,'2012 Program Data'!$B$6:$T$235,19,FALSE) -> 52 | L26: 0.007402874592 | M26: 20 | N26: =IF(AND(D26="Y",F26<1,K26=52),'Collection Route Parameters'!$B$31,IF(AND(D26="N",F26<1,K26=52),'Collection Route Parameters'!$B$33,IF(AND(D175="Y",F175<1,K175=26),'Collection Route Parameters'!$B$32,'Collection Route Parameters'!$B$34))) -> 1229.5 | O26: 1229.5 | P26: ='Truck Assumptions'!$B$5/Municipalities!L26 -> 472.789314 | Q26: run out of space | R26: 180 | S26: 180 | T26: =IF(Q26="run out of space",((N26-P26)/'Collection Route Parameters'!$B$43)-'Collection Route Parameters'!$B$54,"") -> 3.534503811 | U26: 1109 | V26: =ROUNDUP((G26/U26)/'Fuel and Labor Assumptions'!$B$7,0) -> 2 | W26: =V26*'Truck Assumptions'!$B$16 -> 118447.3423 | X26: =(V26*'Fuel and Labor Assumptions'!$B$5)*'Fuel and Labor Assumptions'!$B$6 -> 30 | Y26: 1560 | Z26: =Y26*'Fuel and Labor Assumptions'!$B$4 -> 70200 | AA26: =(((U26*'Collection Route Parameters'!$B$7)*Municipalities!V26)/1000)+(M26*V26) -> 62.18 | AB26: 3233.36 | AC26: =AB26*'Truck Assumptions'!$B$10 -> 3411.1948 | AD26: =AC26*'Fuel and Labor Assumptions'!$B$10 -> 4536.889084 | AE26: 193184.2314 | AF26: =VLOOKUP(B26,'2012 Macro Cost Data'!$B$5:$F$245,5,FALSE) -> 648980.33 | AG26: -455796.0986
A27: Small Urban | B27: 157 | C27: HANOVER, TOWN OF | D27: Y | E27: =VLOOKUP(B27,'2012 Program Data'!$B$30:$F$235,3,FALSE) -> 3375 | F27: =VLOOKUP(B27,'2012 Program Data'!$B$6:$E$235,4,FALSE) -> 0 | G27: 3375 | H27: 524.86075 | J27: 577.346825 | K27: =VLOOKUP(B27,'2012 Program Data'!$B$6:$T$235,19,FALSE) -> 26 | L27: 0.003289725499 | M27: 20 | N27: =IF(AND(D27="Y",F27<1,K27=52),'Collection Route Parameters'!$B$31,IF(AND(D27="N",F27<1,K27=52),'Collection Route Parameters'!$B$33,IF(AND(D176="Y",F176<1,K176=26),'Collection Route Parameters'!$B$32,'Collection Route Parameters'!$B$34))) -> 847.7586207 | O27: 847.7586207 | P27: ='Truck Assumptions'!$B$5/Municipalities!L27 -> 1063.918555 | Q27: run out of time | R27: 105.8823529 | S27: 105.8823529 | T27: =IF(Q27="run out of space",((N27-P27)/'Collection Route Parameters'!$B$43)-'Collection Route Parameters'!$B$54,"") ->  | U27: 847.7586207 | V27: =ROUNDUP((G27/U27)/'Fuel and Labor Assumptions'!$B$7,0) -> 1 | W27: =V27*'Truck Assumptions'!$B$16 -> 59223.67116 | X27: =(V27*'Fuel and Labor Assumptions'!$B$5)*'Fuel and Labor Assumptions'!$B$6 -> 15 | Y27: 390 | Z27: =Y27*'Fuel and Labor Assumptions'!$B$4 -> 17550 | AA27: =(((U27*'Collection Route Parameters'!$B$7)*Municipalities!V27)/1000)+(M27*V27) -> 28.47758621 | AB27: 740.4172414 | AC27: =AB27*'Truck Assumptions'!$B$10 -> 781.1401897 | AD27: =AC27*'Fuel and Labor Assumptions'!$B$10 -> 1038.916452 | AE27: 77812.58762 | AF27: =VLOOKUP(B27,'2012 Macro Cost Data'!$B$5:$F$245,5,FALSE) -> 144835.4 | AG27: -67022.81238
A28: Small Urban | B28: 182 | C28: SHELBURNE, TOWN OF | D28: N | E28: =VLOOKUP(B28,'2012 Program Data'!$B$30:$F$235,3,FALSE) -> 2161 | F28: =VLOOKUP(B28,'2012 Program Data'!$B$6:$E$235,4,FALSE) -> 0 | G28: 2161 | H28: 487.61 | J28: 536.371 | K28: =VLOOKUP(B28,'2012 Program Data'!$B$6:$T$235,19,FALSE) -> 52 | L28: 0.004773173032 | M28: 20 | N28: =IF(AND(D28="Y",F28<1,K28=52),'Collection Route Parameters'!$B$31,IF(AND(D28="N",F28<1,K28=52),'Collection Route Parameters'!$B$33,IF(AND(D177="Y",F177<1,K177=26),'Collection Route Parameters'!$B$32,'Collection Route Parameters'!$B$34))) -> 1068.913043 | O28: 1068.913043 | P28: ='Truck Assumptions'!$B$5/Municipalities!L28 -> 733.2648484 | Q28: run out of space | R28: 156.5217391 | S28: 156.5217391 | T28: =IF(Q28="run out of space",((N28-P28)/'Collection Route Parameters'!$B$43)-'Collection Route Parameters'!$B$54,"") -> 1.19526775 | U28: 920.3502354 | V28: =ROUNDUP((G28/U28)/'Fuel and Labor Assumptions'!$B$7,0) -> 1 | W28: =V28*'Truck Assumptions'!$B$16 -> 59223.67116 | X28: =(V28*'Fuel and Labor Assumptions'!$B$5)*'Fuel and Labor Assumptions'!$B$6 -> 15 | Y28: 780 | Z28: =Y28*'Fuel and Labor Assumptions'!$B$4 -> 35100 | AA28: =(((U28*'Collection Route Parameters'!$B$7)*Municipalities!V28)/1000)+(M28*V28) -> 29.20350235 | AB28: 1518.582122 | AC28: =AB28*'Truck Assumptions'!$B$10 -> 1602.104139 | AD28: =AC28*'Fuel and Labor Assumptions'!$B$10 -> 2130.798505 | AE28: 96454.46967 | AF28: =VLOOKUP(B28,'2012 Macro Cost Data'!$B$5:$F$245,5,FALSE) -> 93380.96 | AG28: 3073.509669
A29: Small Urban | B29: 214 | C29: CORNWALL, CITY OF | D29: Y | E29: =VLOOKUP(B29,'2012 Program Data'!$B$30:$F$235,3,FALSE) -> 21416 | F29: =VLOOKUP(B29,'2012 Program Data'!$B$6:$E$235,4,FALSE) -> 0 | G29: 21629 | H29: 2598.56 | J29: 2858.416 | K29: =VLOOKUP(B29,'2012 Program Data'!$B$6:$T$235,19,FALSE) -> 52 | L29: 0.002541473876 | M29: 20 | N29: =IF(AND(D29="Y",F29<1,K29=52),'Collection Route Parameters'!$B$31,IF(AND(D29="N",F29<1,K29=52),'Collection Route Parameters'!$B$33,IF(AND(D178="Y",F178<1,K178=26),'Collection Route Parameters'!$B$32,'Collection Route Parameters'!$B$34))) -> 1229.5 | O29: 1229.5 | P29: ='Truck Assumptions'!$B$5/Municipalities!L29 -> 1377.15364 | Q29: run out of time | R29: 180 | S29: 180 | T29: =IF(Q29="run out of space",((N29-P29)/'Collection Route Parameters'!$B$43)-'Collection Route Parameters'!$B$54,"") ->  | U29: 1229.5 | V29: =ROUNDUP((G29/U29)/'Fuel and Labor Assumptions'!$B$7,0) -> 4 | W29: =V29*'Truck Assumptions'!$B$16 -> 236894.6847 | X29: =(V29*'Fuel and Labor Assumptions'!$B$5)*'Fuel and Labor Assumptions'!$B$6 -> 60 | Y29: 3120 | Z29: =Y29*'Fuel and Labor Assumptions'!$B$4 -> 140400 | AA29: =(((U29*'Collection Route Parameters'!$B$7)*Municipalities!V29)/1000)+(M29*V29) -> 129.18 | AB29: 6717.36 | AC29: =AB29*'Truck Assumptions'!$B$10 -> 7086.8148 | AD29: =AC29*'Fuel and Labor Assumptions'!$B$10 -> 9425.463684 | AE29: 386720.1483 | AF29: =VLOOKUP(B29,'2012 Macro Cost Data'!$B$5:$F$245,5,FALSE) -> 762792.9 | AG29: -376072.7517
A30: Small Urban | B30: 223 | C30: PARRY SOUND, TOWN OF | D30: N | E30: =VLOOKUP(B30,'2012 Program Data'!$B$30:$F$235,3,FALSE) -> 3041 | F30: =VLOOKUP(B30,'2012 Program Data'!$B$6:$E$235,4,FALSE) -> 0 | G30: 3041 | H30: 358.02 | J30: 393.822 | K30: =VLOOKUP(B30,'2012 Program Data'!$B$6:$T$235,19,FALSE) -> 52 | L30: 0.002490463663 | M30: 20 | N30: =IF(AND(D30="Y",F30<1,K30=52),'Collection Route Parameters'!$B$31,IF(AND(D30="N",F30<1,K30=52),'Collection Route Parameters'!$B$33,IF(AND(D179="Y",F179<1,K179=26),'Collection Route Parameters'!$B$32,'Collection Route Parameters'!$B$34))) -> 1068.913043 | O30: 1068.913043 | P30: ='Truck Assumptions'!$B$5/Municipalities!L30 -> 1405.360798 | Q30: run out of time | R30: 156.5217391 | S30: 156.5217391 | T30: =IF(Q30="run out of space",((N30-P30)/'Collection Route Parameters'!$B$43)-'Collection Route Parameters'!$B$54,"") ->  | U30: 1068.913043 | V30: =ROUNDUP((G30/U30)/'Fuel and Labor Assumptions'!$B$7,0) -> 1 | W30: =V30*'Truck Assumptions'!$B$16 -> 59223.67116 | X30: =(V30*'Fuel and Labor Assumptions'!$B$5)*'Fuel and Labor Assumptions'!$B$6 -> 15 | Y30: 780 | Z30: =Y30*'Fuel and Labor Assumptions'!$B$4 -> 35100 | AA30: =(((U30*'Collection Route Parameters'!$B$7)*Municipalities!V30)/1000)+(M30*V30) -> 30.68913043 | AB30: 1595.834783 | AC30: =AB30*'Truck Assumptions'!$B$10 -> 1683.605696 | AD30: =AC30*'Fuel and Labor Assumptions'!$B$10 -> 2239.195575 | AE30: 96562.86674 | AF30: =VLOOKUP(B30,'2012 Macro Cost Data'!$B$5:$F$245,5,FALSE) -> 106777.55 | AG30: -10214.68326
A31: Small Urban | B31: 224 | C31: PRESCOTT,TOWN OF | D31: N | E31: =VLOOKUP(B31,'2012 Program Data'!$B$30:$F$235,3,FALSE) -> 2263 | F31: =VLOOKUP(B31,'2012 Program Data'!$B$6:$E$235,4,FALSE) -> 0 | G31: 2263 | H31: 257.91626 | J31: 283.707886 | K31: 52 | L31: 0.002410923944 | M31: 20 | N31: =IF(AND(D31="Y",F31<1,K31=52),'Collection Route Parameters'!$B$31,IF(AND(D31="N",F31<1,K31=52),'Collection Route Parameters'!$B$33,IF(AND(D180="Y",F180<1,K180=26),'Collection Route Parameters'!$B$32,'Collection Route Parameters'!$B$34))) -> 1068.913043 | O31: 1068.913043 | P31: ='Truck Assumptions'!$B$5/Municipalities!L31 -> 1451.725596 | Q31: run out of time | R31: 156.5217391 | S31: 156.5217391 | T31: =IF(Q31="run out of space",((N31-P31)/'Collection Route Parameters'!$B$43)-'Collection Route Parameters'!$B$54,"") ->  | U31: 1068.913043 | V31: =ROUNDUP((G31/U31)/'Fuel and Labor Assumptions'!$B$7,0) -> 1 | W31: =V31*'Truck Assumptions'!$B$16 -> 59223.67116 | X31: =(V31*'Fuel and Labor Assumptions'!$B$5)*'Fuel and Labor Assumptions'!$B$6 -> 15 | Y31: 780 | Z31: =Y31*'Fuel and Labor Assumptions'!$B$4 -> 35100 | AA31: =(((U31*'Collection Route Parameters'!$B$7)*Municipalities!V31)/1000)+(M31*V31) -> 30.68913043 | AB31: 1595.834783 | AC31: =AB31*'Truck Assumptions'!$B$10 -> 1683.605696 | AD31: =AC31*'Fuel and Labor Assumptions'!$B$10 -> 2239.195575 | AE31: 96562.86674 | AF31: =VLOOKUP(B31,'2012 Macro Cost Data'!$B$5:$F$245,5,FALSE) -> 79104 | AG31: 17458.86674
A32: Small Urban | B32: 233 | C32: ST. THOMAS, CITY OF | D32: N | E32: =VLOOKUP(B32,'2012 Program Data'!$B$30:$F$235,3,FALSE) -> 16476 | F32: =VLOOKUP(B32,'2012 Program Data'!$B$6:$E$235,4,FALSE) -> 0 | G32: 16476 | H32: 2142.03 | J32: 2356.233 | K32: =VLOOKUP(B32,'2012 Program Data'!$B$6:$T$235,19,FALSE) -> 26 | L32: 0.002750192588 | M32: 20 | N32: =IF(AND(D32="Y",F32<1,K32=52),'Collection Route Parameters'!$B$31,IF(AND(D32="N",F32<1,K32=52),'Collection Route Parameters'!$B$33,IF(AND(D181="Y",F181<1,K181=26),'Collection Route Parameters'!$B$32,'Collection Route Parameters'!$B$34))) -> 847.7586207 | O32: 847.7586207 | P32: ='Truck Assumptions'!$B$5/Municipalities!L32 -> 1272.638147 | Q32: run out of time | R32: 105.8823529 | S32: 105.8823529 | T32: =IF(Q32="run out of space",((N32-P32)/'Collection Route Parameters'!$B$43)-'Collection Route Parameters'!$B$54,"") ->  | U32: 847.7586207 | V32: =ROUNDUP((G32/U32)/'Fuel and Labor Assumptions'!$B$7,0) -> 4 | W32: =V32*'Truck Assumptions'!$B$16 -> 236894.6847 | X32: =(V32*'Fuel and Labor Assumptions'!$B$5)*'Fuel and Labor Assumptions'!$B$6 -> 60 | Y32: 1560 | Z32: =Y32*'Fuel and Labor Assumptions'!$B$4 -> 70200 | AA32: =(((U32*'Collection Route Parameters'!$B$7)*Municipalities!V32)/1000)+(M32*V32) -> 113.9103448 | AB32: 2961.668966 | AC32: =AB32*'Truck Assumptions'!$B$10 -> 3124.560759 | AD32: =AC32*'Fuel and Labor Assumptions'!$B$10 -> 4155.665809 | AE32: 311250.3505 | AF32: =VLOOKUP(B32,'2012 Macro Cost Data'!$B$5:$F$245,5,FALSE) -> 421084.73 | AG32: -109834.3795
A33: Small Urban | B33: 272 | C33: GANANOQUE, TOWN OF | D33: N | E33: =VLOOKUP(B33,'2012 Program Data'!$B$30:$F$235,3,FALSE) -> 2493 | F33: =VLOOKUP(B33,'2012 Program Data'!$B$6:$E$235,4,FALSE) -> 0 | G33: 2493 | H33: 416.71232 | J33: 458.383552 | K33: =VLOOKUP(B33,'2012 Program Data'!$B$6:$T$235,19,FALSE) -> 52 | L33: 0.003535927921 | M33: 20 | N33: =IF(AND(D33="Y",F33<1,K33=52),'Collection Route Parameters'!$B$31,IF(AND(D33="N",F33<1,K33=52),'Collection Route Parameters'!$B$33,IF(AND(D182="Y",F182<1,K182=26),'Collection Route Parameters'!$B$32,'Collection Route Parameters'!$B$34))) -> 1068.913043 | O33: 1068.913043 | P33: ='Truck Assumptions'!$B$5/Municipalities!L33 -> 989.8391817 | Q33: run out of space | R33: 156.5217391 | S33: 156.5217391 | T33: =IF(Q33="run out of space",((N33-P33)/'Collection Route Parameters'!$B$43)-'Collection Route Parameters'!$B$54,"") -> -0.2301452121 | U33: 1068.913043 | V33: =ROUNDUP((G33/U33)/'Fuel and Labor Assumptions'!$B$7,0) -> 1 | W33: =V33*'Truck Assumptions'!$B$16 -> 59223.67116 | X33: =(V33*'Fuel and Labor Assumptions'!$B$5)*'Fuel and Labor Assumptions'!$B$6 -> 15 | Y33: 780 | Z33: =Y33*'Fuel and Labor Assumptions'!$B$4 -> 35100 | AA33: =(((U33*'Collection Route Parameters'!$B$7)*Municipalities!V33)/1000)+(M33*V33) -> 30.68913043 | AB33: 1595.834783 | AC33: =AB33*'Truck Assumptions'!$B$10 -> 1683.605696 | AD33: =AC33*'Fuel and Labor Assumptions'!$B$10 -> 2239.195575 | AE33: 96562.86674 | AF33: =VLOOKUP(B33,'2012 Macro Cost Data'!$B$5:$F$245,5,FALSE) -> 81128.85 | AG33: 15434.01674
A34: Small Urban | B34: 427 | C34: AYLMER, TOWN OF | D34: Y | E34: =VLOOKUP(B34,'2012 Program Data'!$B$6:$D$235,3,FALSE) -> 2906 | F34: =VLOOKUP(B34,'2012 Program Data'!$B$6:$E$235,4,FALSE) -> 0 | G34: 2906 | H34: 382.737048 | J34: 421.0107528 | K34: =VLOOKUP(B34,'2012 Program Data'!$B$6:$T$235,19,FALSE) -> 52 | L34: 0.002786084181 | M34: 20 | N34: =IF(AND(D34="Y",F34<1,K34=52),'Collection Route Parameters'!$B$31,IF(AND(D34="N",F34<1,K34=52),'Collection Route Parameters'!$B$33,IF(AND(D183="Y",F183<1,K183=26),'Collection Route Parameters'!$B$32,'Collection Route Parameters'!$B$34))) -> 1229.5 | O34: 1229.5 | P34: ='Truck Assumptions'!$B$5/Municipalities!L34 -> 1256.243449 | Q34: run out of time | R34: 180 | S34: 180 | T34: =IF(Q34="run out of space",((N34-P34)/'Collection Route Parameters'!$B$43)-'Collection Route Parameters'!$B$54,"") ->  | U34: 1229.5 | V34: =ROUNDUP((G34/U34)/'Fuel and Labor Assumptions'!$B$7,0) -> 1 | W34: =V34*'Truck Assumptions'!$B$16 -> 59223.67116 | X34: =(V34*'Fuel and Labor Assumptions'!$B$5)*'Fuel and Labor Assumptions'!$B$6 -> 15 | Y34: 780 | Z34: =Y34*'Fuel and Labor Assumptions'!$B$4 -> 35100 | AA34: =(((U34*'Collection Route Parameters'!$B$7)*Municipalities!V34)/1000)+(M34*V34) -> 32.295 | AB34: 1679.34 | AC34: =AB34*'Truck Assumptions'!$B$10 -> 1771.7037 | AD34: =AC34*'Fuel and Labor Assumptions'!$B$10 -> 2356.365921 | AE34: 96680.03709 | AF34: =VLOOKUP(B34,'2012 Macro Cost Data'!$B$5:$F$245,5,FALSE) -> 118234.91 | AG34: -21554.87291
A35: Small Urban | B35: 524 | C35: ARNPRIOR, TOWN OF | D35: N | E35: =VLOOKUP(B35,'2012 Program Data'!$B$6:$D$235,3,FALSE) -> 3494 | F35: =VLOOKUP(B35,'2012 Program Data'!$B$6:$E$235,4,FALSE) -> 0 | G35: 3494 | H35: 642.00449 | J35: 706.204939 | K35: =VLOOKUP(B35,'2012 Program Data'!$B$6:$T$235,19,FALSE) -> 26 | L35: 0.003886910192 | M35: 20 | N35: =IF(AND(D35="Y",F35<1,K35=52),'Collection Route Parameters'!$B$31,IF(AND(D35="N",F35<1,K35=52),'Collection Route Parameters'!$B$33,IF(AND(D184="Y",F184<1,K184=26),'Collection Route Parameters'!$B$32,'Collection Route Parameters'!$B$34))) -> 847.7586207 | O35: =IF(AND(D35="Y",I35>0),($AL$15*(1-I35/G35)+($AL$23*(I35/G35))),IF(AND(D35="N",I35>0),($AL$18*(1-I35/G35)+($AL$24*(I35/G35))),(N35))) -> 847.7586207 | P35: ='Truck Assumptions'!$B$5/Municipalities!L35 -> 900.4581601 | Q35: run out of time | R35: =IF(N35=$AL$15,$AL$3,IF(N35=$AL$16,$AL$4,IF(N35=$AL$17,$AL$5,IF(N35=$AL$6,$AL$18,IF(N35=$AL$19,$AL$7,IF(N35=$AL$20,$AL$8,IF(N35=$AL$21,$AL$9,$AL$10))))))) -> 105.8823529 | S35: 105.8823529 | T35: =IF(Q35="run out of space",((N35-P35)/'Collection Route Parameters'!$B$43)-'Collection Route Parameters'!$B$54,"") ->  | U35: 847.7586207 | V35: =ROUNDUP((G35/U35)/'Fuel and Labor Assumptions'!$B$7,0) -> 1 | W35: =V35*'Truck Assumptions'!$B$16 -> 59223.67116 | X35: =(V35*'Fuel and Labor Assumptions'!$B$5)*'Fuel and Labor Assumptions'!$B$6 -> 15 | Y35: 390 | Z35: =Y35*'Fuel and Labor Assumptions'!$B$4 -> 17550 | AA35: =(((U35*'Collection Route Parameters'!$B$7)*Municipalities!V35)/1000)+(M35*V35) -> 28.47758621 | AB35: 740.4172414 | AC35: =AB35*'Truck Assumptions'!$B$10 -> 781.1401897 | AD35: =AC35*'Fuel and Labor Assumptions'!$B$10 -> 1038.916452 | AE35: 77812.58762 | AF35: =VLOOKUP(B35,'2012 Macro Cost Data'!$B$5:$F$245,5,FALSE) -> 147447.99 | AG35: -69635.40238
A36: Small Urban | B36: 565 | C36: RENFREW, TOWN OF | D36: N | E36: =VLOOKUP(B36,'2012 Program Data'!$B$6:$D$235,3,FALSE) -> 3621 | F36: =VLOOKUP(B36,'2012 Program Data'!$B$6:$E$235,4,FALSE) -> 0 | G36: 3621 | H36: 457.60892 | J36: 503.369812 | K36: =VLOOKUP(B36,'2012 Program Data'!$B$6:$T$235,19,FALSE) -> 26 | L36: 0.002673346781 | M36: 20 | N36: =IF(AND(D36="Y",F36<1,K36=52),'Collection Route Parameters'!$B$31,IF(AND(D36="N",F36<1,K36=52),'Collection Route Parameters'!$B$33,IF(AND(D185="Y",F185<1,K185=26),'Collection Route Parameters'!$B$32,'Collection Route Parameters'!$B$34))) -> 847.7586207 | O36: 847.7586207 | P36: ='Truck Assumptions'!$B$5/Municipalities!L36 -> 1309.220347 | Q36: run out of time | R36: 105.8823529 | S36: 105.8823529 | T36: =IF(Q36="run out of space",((N36-P36)/'Collection Route Parameters'!$B$43)-'Collection Route Parameters'!$B$54,"") ->  | U36: 847.7586207 | V36: =ROUNDUP((G36/U36)/'Fuel and Labor Assumptions'!$B$7,0) -> 1 | W36: =V36*'Truck Assumptions'!$B$16 -> 59223.67116 | X36: =(V36*'Fuel and Labor Assumptions'!$B$5)*'Fuel and Labor Assumptions'!$B$6 -> 15 | Y36: 390 | Z36: =Y36*'Fuel and Labor Assumptions'!$B$4 -> 17550 | AA36: =(((U36*'Collection Route Parameters'!$B$7)*Municipalities!V36)/1000)+(M36*V36) -> 28.47758621 | AB36: 740.4172414 | AC36: =AB36*'Truck Assumptions'!$B$10 -> 781.1401897 | AD36: =AC36*'Fuel and Labor Assumptions'!$B$10 -> 1038.916452 | AE36: 77812.58762 | AF36: =VLOOKUP(B36,'2012 Macro Cost Data'!$B$5:$F$245,5,FALSE) -> 169365.71 | AG36: -91553.12238
A37: Small Urban | B37: 613 | C37: MATTAWA, TOWN OF | D37: Y | E37: =VLOOKUP(B37,'2012 Program Data'!$B$6:$D$235,3,FALSE) -> 1052 | F37: =VLOOKUP(B37,'2012 Program Data'!$B$6:$E$235,4,FALSE) -> 0 | G37: 1052 | H37: 158.16816 | J37: 173.984976 | K37: =VLOOKUP(B37,'2012 Program Data'!$B$6:$T$235,19,FALSE) -> 26 | L37: 0.003180479965 | M37: 20 | N37: =IF(AND(D37="Y",F37<1,K37=52),'Collection Route Parameters'!$B$31,IF(AND(D37="N",F37<1,K37=52),'Collection Route Parameters'!$B$33,IF(AND(D186="Y",F186<1,K186=26),'Collection Route Parameters'!$B$32,'Collection Route Parameters'!$B$34))) -> 847.7586207 | O37: 847.7586207 | P37: ='Truck Assumptions'!$B$5/Municipalities!L37 -> 1100.462835 | Q37: run out of time | R37: 105.8823529 | S37: 105.8823529 | T37: =IF(Q37="run out of space",((N37-P37)/'Collection Route Parameters'!$B$43)-'Collection Route Parameters'!$B$54,"") ->  | U37: 847.7586207 | V37: =ROUNDUP((G37/U37)/'Fuel and Labor Assumptions'!$B$7,0) -> 1 | W37: =V37*'Truck Assumptions'!$B$16 -> 59223.67116 | X37: =(V37*'Fuel and Labor Assumptions'!$B$5)*'Fuel and Labor Assumptions'!$B$6 -> 15 | Y37: 390 | Z37: =Y37*'Fuel and Labor Assumptions'!$B$4 -> 17550 | AA37: =(((U37*'Collection Route Parameters'!$B$7)*Municipalities!V37)/1000)+(M37*V37) -> 28.47758621 | AB37: 740.4172414 | AC37: =AB37*'Truck Assumptions'!$B$10 -> 781.1401897 | AD37: =AC37*'Fuel and Labor Assumptions'!$B$10 -> 1038.916452 | AE37: 77812.58762 | AF37: =VLOOKUP(B37,'2012 Macro Cost Data'!$B$5:$F$245,5,FALSE) -> 51588.89 | AG37: 26223.69762
A38: Small Urban | B38: 696 | C38: PETROLIA, TOWN OF | D38: N | E38: =VLOOKUP(B38,'2012 Program Data'!$B$6:$D$235,3,FALSE) -> 2242 | F38: =VLOOKUP(B38,'2012 Program Data'!$B$6:$E$235,4,FALSE) -> 0 | G38: 2242 | H38: 3130.56 | J38: 3443.616 | K38: =VLOOKUP(B38,'2012 Program Data'!$B$6:$T$235,19,FALSE) -> 52 | L38: 0.0295376381 | M38: 20 | N38: =IF(AND(D38="Y",F38<1,K38=52),'Collection Route Parameters'!$B$31,IF(AND(D38="N",F38<1,K38=52),'Collection Route Parameters'!$B$33,IF(AND(D187="Y",F187<1,K187=26),'Collection Route Parameters'!$B$32,'Collection Route Parameters'!$B$34))) -> 1068.913043 | O38: 1068.913043 | P38: ='Truck Assumptions'!$B$5/Municipalities!L38 -> 118.4928865 | Q38: run out of space | R38: 156.5217391 | S38: 156.5217391 | T38: =IF(Q38="run out of space",((N38-P38)/'Collection Route Parameters'!$B$43)-'Collection Route Parameters'!$B$54,"") -> 4.610667539 | U38: 840.1625882 | V38: =ROUNDUP((G38/U38)/'Fuel and Labor Assumptions'!$B$7,0) -> 1 | W38: =V38*'Truck Assumptions'!$B$16 -> 59223.67116 | X38: =(V38*'Fuel and Labor Assumptions'!$B$5)*'Fuel and Labor Assumptions'!$B$6 -> 15 | Y38: 780 | Z38: =Y38*'Fuel and Labor Assumptions'!$B$4 -> 35100 | AA38: =(((U38*'Collection Route Parameters'!$B$7)*Municipalities!V38)/1000)+(M38*V38) -> 28.40162588 | AB38: 1476.884546 | AC38: =AB38*'Truck Assumptions'!$B$10 -> 1558.113196 | AD38: =AC38*'Fuel and Labor Assumptions'!$B$10 -> 2072.290551 | AE38: 96395.96171 | AF38: =VLOOKUP(B38,'2012 Macro Cost Data'!$B$5:$F$245,5,FALSE) -> 116747.96 | AG38: -20351.99829
A39: Small Urban | B39: 732 | C39: CASSELMAN, VILLAGE OF | D39: N | E39: =VLOOKUP(B39,'2012 Program Data'!$B$6:$D$235,3,FALSE) -> 1374 | F39: =VLOOKUP(B39,'2012 Program Data'!$B$6:$E$235,4,FALSE) -> 0 | G39: 1374 | H39: 235.174624 | J39: 258.6920864 | K39: =VLOOKUP(B39,'2012 Program Data'!$B$6:$T$235,19,FALSE) -> 52 | L39: 0.003620704378 | M39: 20 | N39: =IF(AND(D39="Y",F39<1,K39=52),'Collection Route Parameters'!$B$31,IF(AND(D39="N",F39<1,K39=52),'Collection Route Parameters'!$B$33,IF(AND(D188="Y",F188<1,K188=26),'Collection Route Parameters'!$B$32,'Collection Route Parameters'!$B$34))) -> 1068.913043 | O39: 1068.913043 | P39: ='Truck Assumptions'!$B$5/Municipalities!L39 -> 966.6627359 | Q39: run out of space | R39: 156.5217391 | S39: 156.5217391 | U39: 1068.913043 | V39: =ROUNDUP((G39/U39)/'Fuel and Labor Assumptions'!$B$7,0) -> 1 | W39: =V39*'Truck Assumptions'!$B$16 -> 59223.67116 | X39: =(V39*'Fuel and Labor Assumptions'!$B$5)*'Fuel and Labor Assumptions'!$B$6 -> 15 | Y39: 780 | Z39: =Y39*'Fuel and Labor Assumptions'!$B$4 -> 35100 | AA39: =(((U39*'Collection Route Parameters'!$B$7)*Municipalities!V39)/1000)+(M39*V39) -> 30.68913043 | AB39: 1595.834783 | AC39: =AB39*'Truck Assumptions'!$B$10 -> 1683.605696 | AD39: =AC39*'Fuel and Labor Assumptions'!$B$10 -> 2239.195575 | AE39: 96562.86674 | AF39: =VLOOKUP(B39,'2012 Macro Cost Data'!$B$5:$F$245,5,FALSE) -> 48493.83 | AG39: 48069.03674
A40: Small Urban | B40: 736 | C40: LAURENTIAN HILLS, TOWN OF | D40: Y | E40: =VLOOKUP(B40,'2012 Program Data'!$B$6:$D$235,3,FALSE) -> 1457 | F40: =VLOOKUP(B40,'2012 Program Data'!$B$6:$E$235,4,FALSE) -> 0 | G40: 1457 | H40: 140.71894 | J40: 154.790834 | K40: =VLOOKUP(B40,'2012 Program Data'!$B$6:$T$235,19,FALSE) -> 52 | L40: 0.002043065757 | M40: 20 | N40: =IF(AND(D40="Y",F40<1,K40=52),'Collection Route Parameters'!$B$31,IF(AND(D40="N",F40<1,K40=52),'Collection Route Parameters'!$B$33,IF(AND(D189="Y",F189<1,K189=26),'Collection Route Parameters'!$B$32,'Collection Route Parameters'!$B$34))) -> 1229.5 | O40: 1229.5 | P40: ='Truck Assumptions'!$B$5/Municipalities!L40 -> 1713.111772 | Q40: run out of time | R40: 180 | S40: 180 | T40: =IF(Q40="run out of space",((N40-P40)/'Collection Route Parameters'!$B$43)-'Collection Route Parameters'!$B$54,"") ->  | U40: 1229.5 | V40: =ROUNDUP((G40/U40)/'Fuel and Labor Assumptions'!$B$7,0) -> 1 | W40: =V40*'Truck Assumptions'!$B$16 -> 59223.67116 | X40: =(V40*'Fuel and Labor Assumptions'!$B$5)*'Fuel and Labor Assumptions'!$B$6 -> 15 | Y40: 780 | Z40: =Y40*'Fuel and Labor Assumptions'!$B$4 -> 35100 | AA40: =(((U40*'Collection Route Parameters'!$B$7)*Municipalities!V40)/1000)+(M40*V40) -> 32.295 | AB40: 1679.34 | AC40: =AB40*'Truck Assumptions'!$B$10 -> 1771.7037 | AD40: =AC40*'Fuel and Labor Assumptions'!$B$10 -> 2356.365921 | AE40: 96680.03709 | AF40: =VLOOKUP(B40,'2012 Macro Cost Data'!$B$5:$F$245,5,FALSE) -> 66631.09 | AG40: 30048.94709
A41: Small Urban | B41: 757 | C41: DRUMMOND-NORTH ELMSLEY, TOWNSHIP OF | D41: N | E41: =VLOOKUP(B41,'2012 Program Data'!$B$6:$D$235,3,FALSE) -> 3566 | F41: =VLOOKUP(B41,'2012 Program Data'!$B$6:$E$235,4,FALSE) -> 0 | G41: 3566 | H41: 526.71 | J41: 579.381 | K41: =VLOOKUP(B41,'2012 Program Data'!$B$6:$T$235,19,FALSE) -> 52 | L41: 0.003124493076 | M41: 20 | N41: =IF(AND(D41="Y",F41<1,K41=52),'Collection Route Parameters'!$B$31,IF(AND(D41="N",F41<1,K41=52),'Collection Route Parameters'!$B$33,IF(AND(D190="Y",F190<1,K190=26),'Collection Route Parameters'!$B$32,'Collection Route Parameters'!$B$34))) -> 1068.913043 | O41: 1068.913043 | P41: ='Truck Assumptions'!$B$5/Municipalities!L41 -> 1120.181711 | Q41: run out of time | R41: 156.5217391 | S41: 156.5217391 | T41: =IF(Q41="run out of space",((N41-P41)/'Collection Route Parameters'!$B$43)-'Collection Route Parameters'!$B$54,"") ->  | U41: 1068.913043 | V41: =ROUNDUP((G41/U41)/'Fuel and Labor Assumptions'!$B$7,0) -> 1 | W41: =V41*'Truck Assumptions'!$B$16 -> 59223.67116 | X41: =(V41*'Fuel and Labor Assumptions'!$B$5)*'Fuel and Labor Assumptions'!$B$6 -> 15 | Y41: 780 | Z41: =Y41*'Fuel and Labor Assumptions'!$B$4 -> 35100 | AA41: =(((U41*'Collection Route Parameters'!$B$7)*Municipalities!V41)/1000)+(M41*V41) -> 30.68913043 | AB41: 1595.834783 | AC41: =AB41*'Truck Assumptions'!$B$10 -> 1683.605696 | AD41: =AC41*'Fuel and Labor Assumptions'!$B$10 -> 2239.195575 | AE41: 96562.86674 | AF41: =VLOOKUP(B41,'2012 Macro Cost Data'!$B$5:$F$245,5,FALSE) -> 178029.05 | AG41: -81466.18326
A42: Small Urban | B42: 885 | C42: PERTH, TOWN OF | D42: N | E42: =VLOOKUP(B42,'2012 Program Data'!$B$6:$D$235,3,FALSE) -> 3009 | F42: =VLOOKUP(B42,'2012 Program Data'!$B$6:$E$235,4,FALSE) -> 0 | G42: 3009 | H42: 543.49 | J42: 597.839 | K42: =VLOOKUP(B42,'2012 Program Data'!$B$6:$T$235,19,FALSE) -> 52 | L42: 0.003820838766 | M42: 20 | N42: =IF(AND(D42="Y",F42<1,K42=52),'Collection Route Parameters'!$B$31,IF(AND(D42="N",F42<1,K42=52),'Collection Route Parameters'!$B$33,IF(AND(D191="Y",F191<1,K191=26),'Collection Route Parameters'!$B$32,'Collection Route Parameters'!$B$34))) -> 1068.913043 | O42: 1068.913043 | P42: ='Truck Assumptions'!$B$5/Municipalities!L42 -> 916.029232 | Q42: run out of space | R42: 156.5217391 | S42: 156.5217391 | U42: 1068.913043 | V42: =ROUNDUP((G42/U42)/'Fuel and Labor Assumptions'!$B$7,0) -> 1 | W42: =V42*'Truck Assumptions'!$B$16 -> 59223.67116 | X42: =(V42*'Fuel and Labor Assumptions'!$B$5)*'Fuel and Labor Assumptions'!$B$6 -> 15 | Y42: 780 | Z42: =Y42*'Fuel and Labor Assumptions'!$B$4 -> 35100 | AA42: =(((U42*'Collection Route Parameters'!$B$7)*Municipalities!V42)/1000)+(M42*V42) -> 30.68913043 | AB42: 1595.834783 | AC42: =AB42*'Truck Assumptions'!$B$10 -> 1683.605696 | AD42: =AC42*'Fuel and Labor Assumptions'!$B$10 -> 2239.195575 | AE42: 96562.86674 | AF42: =VLOOKUP(B42,'2012 Macro Cost Data'!$B$5:$F$245,5,FALSE) -> 111648.45 | AG42: -15085.58326
A43: Small Urban | B43: 909 | C43: SMITHS FALLS, TOWN OF | D43: Y | E43: =VLOOKUP(B43,'2012 Program Data'!$B$6:$D$235,3,FALSE) -> 4383 | F43: =VLOOKUP(B43,'2012 Program Data'!$B$6:$E$235,4,FALSE) -> 0 | G43: 4383 | H43: 576.83 | J43: 634.513 | K43: =VLOOKUP(B43,'2012 Program Data'!$B$6:$T$235,19,FALSE) -> 52 | L43: 0.00278397743 | M43: 20 | N43: =IF(AND(D43="Y",F43<1,K43=52),'Collection Route Parameters'!$B$31,IF(AND(D43="N",F43<1,K43=52),'Collection Route Parameters'!$B$33,IF(AND(D192="Y",F192<1,K192=26),'Collection Route Parameters'!$B$32,'Collection Route Parameters'!$B$34))) -> 1229.5 | O43: 1229.5 | P43: ='Truck Assumptions'!$B$5/Municipalities!L43 -> 1257.1941 | Q43: run out of time | R43: 180 | S43: 180 | T43: =IF(Q43="run out of space",((N43-P43)/'Collection Route Parameters'!$B$43)-'Collection Route Parameters'!$B$54,"") ->  | U43: 1229.5 | V43: =ROUNDUP((G43/U43)/'Fuel and Labor Assumptions'!$B$7,0) -> 1 | W43: =V43*'Truck Assumptions'!$B$16 -> 59223.67116 | X43: =(V43*'Fuel and Labor Assumptions'!$B$5)*'Fuel and Labor Assumptions'!$B$6 -> 15 | Y43: 780 | Z43: =Y43*'Fuel and Labor Assumptions'!$B$4 -> 35100 | AA43: =(((U43*'Collection Route Parameters'!$B$7)*Municipalities!V43)/1000)+(M43*V43) -> 32.295 | AB43: 1679.34 | AC43: =AB43*'Truck Assumptions'!$B$10 -> 1771.7037 | AD43: =AC43*'Fuel and Labor Assumptions'!$B$10 -> 2356.365921 | AE43: 96680.03709 | AF43: =VLOOKUP(B43,'2012 Macro Cost Data'!$B$5:$F$245,5,FALSE) -> 161764.65 | AG43: -65084.61291
A44: Small Urban | B44: 923 | C44: SUNDRIDGE, VILLAGE OF | D44: N | E44: =VLOOKUP(B44,'2012 Program Data'!$B$6:$D$235,3,FALSE) -> 505 | F44: =VLOOKUP(B44,'2012 Program Data'!$B$6:$E$235,4,FALSE) -> 0 | G44: 505 | H44: 67.10895 | J44: 73.819845 | K44: =VLOOKUP(B44,'2012 Program Data'!$B$6:$T$235,19,FALSE) -> 52 | L44: 0.002811113671 | M44: 20 | N44: =IF(AND(D44="Y",F44<1,K44=52),'Collection Route Parameters'!$B$31,IF(AND(D44="N",F44<1,K44=52),'Collection Route Parameters'!$B$33,IF(AND(D193="Y",F193<1,K193=26),'Collection Route Parameters'!$B$32,'Collection Route Parameters'!$B$34))) -> 1068.913043 | O44: 1068.913043 | P44: ='Truck Assumptions'!$B$5/Municipalities!L44 -> 1245.058155 | Q44: run out of time | R44: 156.5217391 | S44: 156.5217391 | T44: =IF(Q44="run out of space",((N44-P44)/'Collection Route Parameters'!$B$43)-'Collection Route Parameters'!$B$54,"") ->  | U44: 1068.913043 | V44: =ROUNDUP((G44/U44)/'Fuel and Labor Assumptions'!$B$7,0) -> 1 | W44: =V44*'Truck Assumptions'!$B$16 -> 59223.67116 | X44: =(V44*'Fuel and Labor Assumptions'!$B$5)*'Fuel and Labor Assumptions'!$B$6 -> 15 | Y44: 780 | Z44: =Y44*'Fuel and Labor Assumptions'!$B$4 -> 35100 | AA44: =(((U44*'Collection Route Parameters'!$B$7)*Municipalities!V44)/1000)+(M44*V44) -> 30.68913043 | AB44: 1595.834783 | AC44: =AB44*'Truck Assumptions'!$B$10 -> 1683.605696 | AD44: =AC44*'Fuel and Labor Assumptions'!$B$10 -> 2239.195575 | AE44: 96562.86674 | AF44: =VLOOKUP(B44,'2012 Macro Cost Data'!$B$5:$F$245,5,FALSE) -> 23155.87 | AG44: 73406.99674
A45: Rural Regional | B45: 12 | C45: NORTHUMBERLAND, COUNTY OF | D45: Y | E45: =VLOOKUP(B45,'2012 Program Data'!$B$6:$D$235,3,FALSE) -> 36097 | F45: =VLOOKUP(B45,'2012 Program Data'!$B$6:$E$235,4,FALSE) -> 1560 | G45: 37657 | H45: 5461.1 | J45: 6007.21 | K45: 52 | L45: 0.003067776754 | M45: 20 | N45: =IF(AND(D45="Y",F45<1,K45=52),'Collection Route Parameters'!$B$31,IF(AND(D45="N",F45<1,K45=52),'Collection Route Parameters'!$B$33,IF(AND(D194="Y",F194<1,K194=26),'Collection Route Parameters'!$B$32,'Collection Route Parameters'!$B$34))) -> 847.7586207 | O45: 847.7586207 | P45: ='Truck Assumptions'!$B$5/Municipalities!L45 -> 1140.891362 | Q45: run out of time | R45: 105.8823529 | S45: 105.8823529 | T45: =IF(Q45="run out of space",((N45-P45)/'Collection Route Parameters'!$B$43)-'Collection Route Parameters'!$B$54,"") ->  | U45: 847.7586207 | V45: =ROUNDUP((G45/U45)/'Fuel and Labor Assumptions'!$B$7,0) -> 9 | W45: =V45*'Truck Assumptions'!$B$16 -> 533013.0405 | X45: =(V45*'Fuel and Labor Assumptions'!$B$5)*'Fuel and Labor Assumptions'!$B$6 -> 135 | Y45: 7020 | Z45: =Y45*'Fuel and Labor Assumptions'!$B$4 -> 315900 | AA45: =(((U45*'Collection Route Parameters'!$B$7)*Municipalities!V45)/1000)+(M45*V45) -> 256.2982759 | AB45: 13327.51034 | AC45: =AB45*'Truck Assumptions'!$B$10 -> 14060.52341 | AD45: =AC45*'Fuel and Labor Assumptions'!$B$10 -> 18700.49614 | AE45: 867613.5366 | AF45: =VLOOKUP(B45,'2012 Macro Cost Data'!$B$5:$F$245,5,FALSE) -> 964184.99 | AG45: -96571.45338
A46: Rural Regional | B46: 21 | C46: WELLINGTON, COUNTY OF | D46: N | E46: =VLOOKUP(B46,'2012 Program Data'!$B$6:$D$235,3,FALSE) -> 22154 | F46: =VLOOKUP(B46,'2012 Program Data'!$B$6:$E$235,4,FALSE) -> 9988 | G46: 32142 | H46: 4999.51 | J46: 5499.461 | K46: =VLOOKUP(B46,'2012 Program Data'!$B$6:$T$235,19,FALSE) -> 52 | L46: 0.003290363555 | M46: 20 | N46: =IF(AND(D46="Y",F46<1,K46=52),'Collection Route Parameters'!$B$31,IF(AND(D46="N",F46<1,K46=52),'Collection Route Parameters'!$B$33,IF(AND(D195="Y",F195<1,K195=26),'Collection Route Parameters'!$B$32,'Collection Route Parameters'!$B$34))) -> 847.7586207 | O46: 847.7586207 | P46: ='Truck Assumptions'!$B$5/Municipalities!L46 -> 1063.712244 | Q46: run out of time | R46: 105.8823529 | S46: 105.8823529 | T46: =IF(Q46="run out of space",((N46-P46)/'Collection Route Parameters'!$B$43)-'Collection Route Parameters'!$B$54,"") ->  | U46: 847.7586207 | V46: =ROUNDUP((G46/U46)/'Fuel and Labor Assumptions'!$B$7,0) -> 8 | W46: =V46*'Truck Assumptions'!$B$16 -> 473789.3693 | X46: =(V46*'Fuel and Labor Assumptions'!$B$5)*'Fuel and Labor Assumptions'!$B$6 -> 120 | Y46: 6240 | Z46: =Y46*'Fuel and Labor Assumptions'!$B$4 -> 280800 | AA46: =(((U46*'Collection Route Parameters'!$B$7)*Municipalities!V46)/1000)+(M46*V46) -> 227.8206897 | AB46: 11846.67586 | AC46: =AB46*'Truck Assumptions'!$B$10 -> 12498.24303 | AD46: =AC46*'Fuel and Labor Assumptions'!$B$10 -> 16622.66324 | AE46: 771212.0325 | AF46: =VLOOKUP(B46,'2012 Macro Cost Data'!$B$5:$F$245,5,FALSE) -> 1266434.85 | AG46: -495222.8175
A47: Rural Regional | B47: 34 | C47: NORFOLK, COUNTY OF | D47: N | E47: =VLOOKUP(B47,'2012 Program Data'!$B$6:$D$235,3,FALSE) -> 28581 | F47: =VLOOKUP(B47,'2012 Program Data'!$B$6:$E$235,4,FALSE) -> 0 | G47: 28581 | H47: 4677.18 | J47: 5144.898 | K47: =VLOOKUP(B47,'2012 Program Data'!$B$6:$T$235,19,FALSE) -> 52 | L47: 0.003461752428 | M47: 20 | N47: =IF(AND(D47="Y",F47<1,K47=52),'Collection Route Parameters'!$B$31,IF(AND(D47="N",F47<1,K47=52),'Collection Route Parameters'!$B$33,IF(AND(D196="Y",F196<1,K196=26),'Collection Route Parameters'!$B$32,'Collection Route Parameters'!$B$34))) -> 1068.913043 | O47: 1068.913043 | P47: ='Truck Assumptions'!$B$5/Municipalities!L47 -> 1011.048616 | Q47: run out of space | R47: 156.5217391 | S47: 156.5217391 | T47: =IF(Q47="run out of space",((N47-P47)/'Collection Route Parameters'!$B$43)-'Collection Route Parameters'!$B$54,"") -> -0.3479754003 | U47: 1068.913043 | V47: =ROUNDUP((G47/U47)/'Fuel and Labor Assumptions'!$B$7,0) -> 6 | W47: =V47*'Truck Assumptions'!$B$16 -> 355342.027 | X47: =(V47*'Fuel and Labor Assumptions'!$B$5)*'Fuel and Labor Assumptions'!$B$6 -> 90 | Y47: 4680 | Z47: =Y47*'Fuel and Labor Assumptions'!$B$4 -> 210600 | AA47: =(((U47*'Collection Route Parameters'!$B$7)*Municipalities!V47)/1000)+(M47*V47) -> 184.1347826 | AB47: 9575.008696 | AC47: =AB47*'Truck Assumptions'!$B$10 -> 10101.63417 | AD47: =AC47*'Fuel and Labor Assumptions'!$B$10 -> 13435.17345 | AE47: 579377.2004 | AF47: =VLOOKUP(B47,'2012 Macro Cost Data'!$B$5:$F$245,5,FALSE) -> 1466156.39 | AG47: -886779.1896
A48: Rural Regional | B48: 87 | C48: QUINTE WASTE SOLUTIONS | D48: Y | E48: =VLOOKUP(B48,'2012 Program Data'!$B$6:$D$235,3,FALSE) -> 55869 | F48: =VLOOKUP(B48,'2012 Program Data'!$B$6:$E$235,4,FALSE) -> 8127 | G48: 63996 | H48: 10751.01 | J48: 11826.111 | K48: =VLOOKUP(B48,'2012 Program Data'!$B$6:$T$235,19,FALSE) -> 52 | L48: 0.003553741039 | M48: 20 | N48: =IF(AND(D48="Y",F48<1,K48=52),'Collection Route Parameters'!$B$31,IF(AND(D48="N",F48<1,K48=52),'Collection Route Parameters'!$B$33,IF(AND(D197="Y",F197<1,K197=26),'Collection Route Parameters'!$B$32,'Collection Route Parameters'!$B$34))) -> 847.7586207 | O48: 847.7586207 | P48: ='Truck Assumptions'!$B$5/Municipalities!L48 -> 984.8776153 | Q48: run out of time | R48: 105.8823529 | S48: 105.8823529 | T48: =IF(Q48="run out of space",((N48-P48)/'Collection Route Parameters'!$B$43)-'Collection Route Parameters'!$B$54,"") ->  | U48: 847.7586207 | V48: =ROUNDUP((G48/U48)/'Fuel and Labor Assumptions'!$B$7,0) -> 16 | W48: =V48*'Truck Assumptions'!$B$16 -> 947578.7386 | X48: =(V48*'Fuel and Labor Assumptions'!$B$5)*'Fuel and Labor Assumptions'!$B$6 -> 240 | Y48: 12480 | Z48: =Y48*'Fuel and Labor Assumptions'!$B$4 -> 561600 | AA48: =(((U48*'Collection Route Parameters'!$B$7)*Municipalities!V48)/1000)+(M48*V48) -> 455.6413793 | AB48: 23693.35172 | AC48: =AB48*'Truck Assumptions'!$B$10 -> 24996.48607 | AD48: =AC48*'Fuel and Labor Assumptions'!$B$10 -> 33245.32647 | AE48: 1542424.065 | AF48: =VLOOKUP(B48,'2012 Macro Cost Data'!$B$5:$F$245,5,FALSE) -> 2347903.02 | AG48: -805478.9549
A49: Rural Regional | B49: 88 | C49: PETERBOROUGH, COUNTY OF | D49: N | E49: =VLOOKUP(B49,'2012 Program Data'!$B$6:$D$235,3,FALSE) -> 23422 | F49: =VLOOKUP(B49,'2012 Program Data'!$B$6:$E$235,4,FALSE) -> 9553 | G49: 32975 | H49: 4707.1 | J49: 5177.81 | K49: =VLOOKUP(B49,'2012 Program Data'!$B$6:$T$235,19,FALSE) -> 52 | L49: 0.003019659416 | M49: 20 | N49: =IF(AND(D49="Y",F49<1,K49=52),'Collection Route Parameters'!$B$31,IF(AND(D49="N",F49<1,K49=52),'Collection Route Parameters'!$B$33,IF(AND(D198="Y",F198<1,K198=26),'Collection Route Parameters'!$B$32,'Collection Route Parameters'!$B$34))) -> 847.7586207 | O49: 847.7586207 | P49: ='Truck Assumptions'!$B$5/Municipalities!L49 -> 1159.071113 | Q49: run out of time | R49: 105.8823529 | S49: 105.8823529 | T49: =IF(Q49="run out of space",((N49-P49)/'Collection Route Parameters'!$B$43)-'Collection Route Parameters'!$B$54,"") ->  | U49: 847.7586207 | V49: =ROUNDUP((G49/U49)/'Fuel and Labor Assumptions'!$B$7,0) -> 8 | W49: =V49*'Truck Assumptions'!$B$16 -> 473789.3693 | X49: =(V49*'Fuel and Labor Assumptions'!$B$5)*'Fuel and Labor Assumptions'!$B$6 -> 120 | Y49: 6240 | Z49: =Y49*'Fuel and Labor Assumptions'!$B$4 -> 280800 | AA49: =(((U49*'Collection Route Parameters'!$B$7)*Municipalities!V49)/1000)+(M49*V49) -> 227.8206897 | AB49: 11846.67586 | AC49: =AB49*'Truck Assumptions'!$B$10 -> 12498.24303 | AD49: =AC49*'Fuel and Labor Assumptions'!$B$10 -> 16622.66324 | AE49: 771212.0325 | AF49: =VLOOKUP(B49,'2012 Macro Cost Data'!$B$5:$F$245,5,FALSE) -> 1048946.32 | AG49: -277734.2875
A50: Rural Regional | B50: 89 | C50: MUSKOKA, DISTRICT MUNICIPALITY OF | D50: N | E50: =VLOOKUP(B50,'2012 Program Data'!$B$6:$D$235,3,FALSE) -> 37620 | F50: =VLOOKUP(B50,'2012 Program Data'!$B$6:$E$235,4,FALSE) -> 10376 | G50: 47996 | H50: 5843.74 | J50: 6428.114 | K50: =VLOOKUP(B50,'2012 Program Data'!$B$6:$T$235,19,FALSE) -> 52 | L50: 0.002575580818 | M50: 20 | N50: =IF(AND(D50="Y",F50<1,K50=52),'Collection Route Parameters'!$B$31,IF(AND(D50="N",F50<1,K50=52),'Collection Route Parameters'!$B$33,IF(AND(D199="Y",F199<1,K199=26),'Collection Route Parameters'!$B$32,'Collection Route Parameters'!$B$34))) -> 847.7586207 | O50: 847.7586207 | P50: ='Truck Assumptions'!$B$5/Municipalities!L50 -> 1358.916783 | Q50: run out of time | R50: 105.8823529 | S50: 105.8823529 | T50: =IF(Q50="run out of space",((N50-P50)/'Collection Route Parameters'!$B$43)-'Collection Route Parameters'!$B$54,"") ->  | U50: 847.7586207 | V50: =ROUNDUP((G50/U50)/'Fuel and Labor Assumptions'!$B$7,0) -> 12 | W50: =V50*'Truck Assumptions'!$B$16 -> 710684.054 | X50: =(V50*'Fuel and Labor Assumptions'!$B$5)*'Fuel and Labor Assumptions'!$B$6 -> 180 | Y50: 9360 | Z50: =Y50*'Fuel and Labor Assumptions'!$B$4 -> 421200 | AA50: =(((U50*'Collection Route Parameters'!$B$7)*Municipalities!V50)/1000)+(M50*V50) -> 341.7310345 | AB50: 17770.01379 | AC50: =AB50*'Truck Assumptions'!$B$10 -> 18747.36455 | AD50: =AC50*'Fuel and Labor Assumptions'!$B$10 -> 24933.99485 | AE50: 1156818.049 | AF50: =VLOOKUP(B50,'2012 Macro Cost Data'!$B$5:$F$245,5,FALSE) -> 1549703.93 | AG50: -392885.8812
A51: Rural Regional | B51: 143 | C51: NORTH BAY, CITY OF | D51: N | E51: =VLOOKUP(B51,'2012 Program Data'!$B$6:$D$235,3,FALSE) -> 23977 | F51: =VLOOKUP(B51,'2012 Program Data'!$B$6:$E$235,4,FALSE) -> 0 | G51: 23977 | H51: 3895.94 | J51: 4285.534 | K51: =VLOOKUP(B51,'2012 Program Data'!$B$6:$T$235,19,FALSE) -> 26 | L51: 0.003437215473 | M51: 20 | N51: =IF(AND(D51="Y",F51<1,K51=52),'Collection Route Parameters'!$B$31,IF(AND(D51="N",F51<1,K51=52),'Collection Route Parameters'!$B$33,IF(AND(D200="Y",F200<1,K200=26),'Collection Route Parameters'!$B$32,'Collection Route Parameters'!$B$34))) -> 847.7586207 | O51: 847.7586207 | P51: ='Truck Assumptions'!$B$5/Municipalities!L51 -> 1018.266102 | Q51: run out of time | R51: 105.8823529 | S51: 105.8823529 | T51: =IF(Q51="run out of space",((N51-P51)/'Collection Route Parameters'!$B$43)-'Collection Route Parameters'!$B$54,"") ->  | U51: 847.7586207 | V51: =ROUNDUP((G51/U51)/'Fuel and Labor Assumptions'!$B$7,0) -> 6 | W51: =V51*'Truck Assumptions'!$B$16 -> 355342.027 | X51: =(V51*'Fuel and Labor Assumptions'!$B$5)*'Fuel and Labor Assumptions'!$B$6 -> 90 | Y51: 2340 | Z51: =Y51*'Fuel and Labor Assumptions'!$B$4 -> 105300 | AA51: =(((U51*'Collection Route Parameters'!$B$7)*Municipalities!V51)/1000)+(M51*V51) -> 170.8655172 | AB51: 4442.503448 | AC51: =AB51*'Truck Assumptions'!$B$10 -> 4686.841138 | AD51: =AC51*'Fuel and Labor Assumptions'!$B$10 -> 6233.498713 | AE51: 466875.5257 | AF51: =VLOOKUP(B51,'2012 Macro Cost Data'!$B$5:$F$245,5,FALSE) -> 758595.38 | AG51: -291719.8543
A52: Rural Regional | B52: 183 | C52: GREATER SUDBURY, CITY OF | D52: N | E52: =VLOOKUP(B52,'2012 Program Data'!$B$6:$D$235,3,FALSE) -> 60695 | F52: =VLOOKUP(B52,'2012 Program Data'!$B$6:$E$235,4,FALSE) -> 13540 | G52: 74235 | H52: 13310.88 | I52: 15000 | J52: 14641.968 | K52: =VLOOKUP(B52,'2012 Program Data'!$B$6:$T$235,19,FALSE) -> 52 | L52: 0.003793039775 | M52: 20 | N52: =IF(AND(D52="Y",F52<1,K52=52),'Collection Route Parameters'!$B$31,IF(AND(D52="N",F52<1,K52=52),'Collection Route Parameters'!$B$33,IF(AND(D201="Y",F201<1,K201=26),'Collection Route Parameters'!$B$32,'Collection Route Parameters'!$B$34))) -> 847.7586207 | O52: 726.1363494 | P52: ='Truck Assumptions'!$B$5/Municipalities!L52 -> 922.7427624 | Q52: run out of time | R52: 105.8823529 | S52: 91.76185326 | T52: =IF(Q52="run out of space",((N52-P52)/'Collection Route Parameters'!$B$43)-'Collection Route Parameters'!$B$54,"") ->  | U52: 726.1363494 | V52: =ROUNDUP((G52/U52)/'Fuel and Labor Assumptions'!$B$7,0) -> 21 | W52: =V52*'Truck Assumptions'!$B$16 -> 1243697.094 | X52: =(V52*'Fuel and Labor Assumptions'!$B$5)*'Fuel and Labor Assumptions'!$B$6 -> 315 | Y52: 16380 | Z52: =Y52*'Fuel and Labor Assumptions'!$B$4 -> 737100 | AA52: =(((U52*'Collection Route Parameters'!$B$7)*Municipalities!V52)/1000)+(M52*V52) -> 572.4886334 | AB52: 29769.40894 | AC52: =AB52*'Truck Assumptions'!$B$10 -> 31406.72643 | AD52: =AC52*'Fuel and Labor Assumptions'!$B$10 -> 41770.94615 | AE52: 2022568.041 | AF52: =VLOOKUP(B52,'2012 Macro Cost Data'!$B$5:$F$245,5,FALSE) -> 2921752.65 | AG52: -899184.6094
A53: Rural Regional | B53: 186 | C53: BLUEWATER RECYCLING ASSOCIATION | D53: N | E53: =VLOOKUP(B53,'2012 Program Data'!$B$6:$D$235,3,FALSE) -> 72182 | F53: =VLOOKUP(B53,'2012 Program Data'!$B$6:$E$235,4,FALSE) -> 503 | G53: 72685 | H53: 11868.21 | J53: 13055.031 | K53: =VLOOKUP(B53,'2012 Program Data'!$B$6:$T$235,19,FALSE) -> 52 | L53: 0.003454059138 | M53: 20 | N53: =IF(AND(D53="Y",F53<1,K53=52),'Collection Route Parameters'!$B$31,IF(AND(D53="N",F53<1,K53=52),'Collection Route Parameters'!$B$33,IF(AND(D202="Y",F202<1,K202=26),'Collection Route Parameters'!$B$32,'Collection Route Parameters'!$B$34))) -> 847.7586207 | O53: 847.7586207 | P53: ='Truck Assumptions'!$B$5/Municipalities!L53 -> 1013.300543 | Q53: run out of time | R53: 105.8823529 | S53: 105.8823529 | T53: =IF(Q53="run out of space",((N53-P53)/'Collection Route Parameters'!$B$43)-'Collection Route Parameters'!$B$54,"") ->  | U53: 847.7586207 | V53: =ROUNDUP((G53/U53)/'Fuel and Labor Assumptions'!$B$7,0) -> 18 | W53: =V53*'Truck Assumptions'!$B$16 -> 1066026.081 | X53: =(V53*'Fuel and Labor Assumptions'!$B$5)*'Fuel and Labor Assumptions'!$B$6 -> 270 | Y53: 14040 | Z53: =Y53*'Fuel and Labor Assumptions'!$B$4 -> 631800 | AA53: =(((U53*'Collection Route Parameters'!$B$7)*Municipalities!V53)/1000)+(M53*V53) -> 512.5965517 | AB53: 26655.02069 | AC53: =AB53*'Truck Assumptions'!$B$10 -> 28121.04683 | AD53: =AC53*'Fuel and Labor Assumptions'!$B$10 -> 37400.99228 | AE53: 1735227.073 | AF53: =VLOOKUP(B53,'2012 Macro Cost Data'!$B$5:$F$245,5,FALSE) -> 3528377.7 | AG53: -1793150.627
A54: Rural Regional | B54: 190 | C54: BRUCE AREA SOLID WASTE RECYCLING | D54: Y | E54: =VLOOKUP(B54,'2012 Program Data'!$B$6:$D$235,3,FALSE) -> 31929 | F54: =VLOOKUP(B54,'2012 Program Data'!$B$6:$E$235,4,FALSE) -> 1268 | G54: 33197 | H54: 4359.68 | J54: 4795.648 | K54: 52 | L54: 0.002778082357 | M54: 20 | N54: =IF(AND(D54="Y",F54<1,K54=52),'Collection Route Parameters'!$B$31,IF(AND(D54="N",F54<1,K54=52),'Collection Route Parameters'!$B$33,IF(AND(D203="Y",F203<1,K203=26),'Collection Route Parameters'!$B$32,'Collection Route Parameters'!$B$34))) -> 847.7586207 | O54: 847.7586207 | P54: ='Truck Assumptions'!$B$5/Municipalities!L54 -> 1259.861858 | Q54: run out of time | R54: 105.8823529 | S54: 105.8823529 | T54: =IF(Q54="run out of space",((N54-P54)/'Collection Route Parameters'!$B$43)-'Collection Route Parameters'!$B$54,"") ->  | U54: 847.7586207 | V54: =ROUNDUP((G54/U54)/'Fuel and Labor Assumptions'!$B$7,0) -> 8 | W54: =V54*'Truck Assumptions'!$B$16 -> 473789.3693 | X54: =(V54*'Fuel and Labor Assumptions'!$B$5)*'Fuel and Labor Assumptions'!$B$6 -> 120 | Y54: 6240 | Z54: =Y54*'Fuel and Labor Assumptions'!$B$4 -> 280800 | AA54: =(((U54*'Collection Route Parameters'!$B$7)*Municipalities!V54)/1000)+(M54*V54) -> 227.8206897 | AB54: 11846.67586 | AC54: =AB54*'Truck Assumptions'!$B$10 -> 12498.24303 | AD54: =AC54*'Fuel and Labor Assumptions'!$B$10 -> 16622.66324 | AE54: 771212.0325 | AF54: =VLOOKUP(B54,'2012 Macro Cost Data'!$B$5:$F$245,5,FALSE) -> 815055.89 | AG54: -43843.85745
A55: Rural Regional | B55: 324 | C55: KINGSTON, CITY OF | D55: N | E55: =VLOOKUP(B55,'2012 Program Data'!$B$6:$D$235,3,FALSE) -> 53160 | F55: =VLOOKUP(B55,'2012 Program Data'!$B$6:$E$235,4,FALSE) -> 0 | G55: 53160 | H55: 9280.22 | J55: 10208.242 | K55: =VLOOKUP(B55,'2012 Program Data'!$B$6:$T$235,19,FALSE) -> 52 | L55: 0.00369285828 | M55: 20 | N55: =IF(AND(D55="Y",F55<1,K55=52),'Collection Route Parameters'!$B$31,IF(AND(D55="N",F55<1,K55=52),'Collection Route Parameters'!$B$33,IF(AND(D204="Y",F204<1,K204=26),'Collection Route Parameters'!$B$32,'Collection Route Parameters'!$B$34))) -> 1068.913043 | O55: 1068.913043 | P55: ='Truck Assumptions'!$B$5/Municipalities!L55 -> 947.7753368 | Q55: run out of space | R55: 156.5217391 | S55: 156.5217391 | T55: =IF(Q55="run out of space",((N55-P55)/'Collection Route Parameters'!$B$43)-'Collection Route Parameters'!$B$54,"") -> 0.003542814708 | U55: 948.3298644 | V55: =ROUNDUP((G55/U55)/'Fuel and Labor Assumptions'!$B$7,0) -> 12 | W55: =V55*'Truck Assumptions'!$B$16 -> 710684.054 | X55: =(V55*'Fuel and Labor Assumptions'!$B$5)*'Fuel and Labor Assumptions'!$B$6 -> 180 | Y55: 9360 | Z55: =Y55*'Fuel and Labor Assumptions'!$B$4 -> 421200 | AA55: =(((U55*'Collection Route Parameters'!$B$7)*Municipalities!V55)/1000)+(M55*V55) -> 353.7995837 | AB55: 18397.57835 | AC55: =AB55*'Truck Assumptions'!$B$10 -> 19409.44516 | AD55: =AC55*'Fuel and Labor Assumptions'!$B$10 -> 25814.56207 | AE55: 1157698.616 | AF55: =VLOOKUP(B55,'2012 Macro Cost Data'!$B$5:$F$245,5,FALSE) -> 1944212.71 | AG55: -786514.094
A56: Rural Regional | B56: 429 | C56: CHATHAM-KENT, MUNICIPALITY OF | D56: N | E56: =VLOOKUP(B56,'2012 Program Data'!$B$6:$D$235,3,FALSE) -> 35228 | F56: =VLOOKUP(B56,'2012 Program Data'!$B$6:$E$235,4,FALSE) -> 12075 | G56: 47303 | H56: 4232.23955 | J56: 4655.463505 | K56: =VLOOKUP(B56,'2012 Program Data'!$B$6:$T$235,19,FALSE) -> 26 | L56: 0.001892652566 | M56: 20 | N56: =IF(AND(D56="Y",F56<1,K56=52),'Collection Route Parameters'!$B$31,IF(AND(D56="N",F56<1,K56=52),'Collection Route Parameters'!$B$33,IF(AND(D205="Y",F205<1,K205=26),'Collection Route Parameters'!$B$32,'Collection Route Parameters'!$B$34))) -> 847.7586207 | O56: 847.7586207 | P56: ='Truck Assumptions'!$B$5/Municipalities!L56 -> 1849.256468 | Q56: run out of time | R56: 105.8823529 | S56: 105.8823529 | T56: =IF(Q56="run out of space",((N56-P56)/'Collection Route Parameters'!$B$43)-'Collection Route Parameters'!$B$54,"") ->  | U56: 847.7586207 | V56: =ROUNDUP((G56/U56)/'Fuel and Labor Assumptions'!$B$7,0) -> 12 | W56: =V56*'Truck Assumptions'!$B$16 -> 710684.054 | X56: =(V56*'Fuel and Labor Assumptions'!$B$5)*'Fuel and Labor Assumptions'!$B$6 -> 180 | Y56: 4680 | Z56: =Y56*'Fuel and Labor Assumptions'!$B$4 -> 210600 | AA56: =(((U56*'Collection Route Parameters'!$B$7)*Municipalities!V56)/1000)+(M56*V56) -> 341.7310345 | AB56: 8885.006897 | AC56: =AB56*'Truck Assumptions'!$B$10 -> 9373.682276 | AD56: =AC56*'Fuel and Labor Assumptions'!$B$10 -> 12466.99743 | AE56: 933751.0514 | AF56: =VLOOKUP(B56,'2012 Macro Cost Data'!$B$5:$F$245,5,FALSE) -> 842300.1 | AG56: 91450.9514
A57: Rural Regional | B57: 601 | C57: KAWARTHA LAKES, CITY OF | D57: N | E57: =VLOOKUP(B57,'2012 Program Data'!$B$6:$D$235,3,FALSE) -> 39445 | F57: =VLOOKUP(B57,'2012 Program Data'!$B$6:$E$235,4,FALSE) -> 0 | G57: 39445 | H57: 5857.16 | J57: 6442.876 | K57: =VLOOKUP(B57,'2012 Program Data'!$B$6:$T$235,19,FALSE) -> 52 | L57: 0.003141119573 | M57: 20 | N57: =IF(AND(D57="Y",F57<1,K57=52),'Collection Route Parameters'!$B$31,IF(AND(D57="N",F57<1,K57=52),'Collection Route Parameters'!$B$33,IF(AND(D206="Y",F206<1,K206=26),'Collection Route Parameters'!$B$32,'Collection Route Parameters'!$B$34))) -> 1068.913043 | O57: 1068.913043 | P57: ='Truck Assumptions'!$B$5/Municipalities!L57 -> 1114.252393 | Q57: run out of time | R57: 156.5217391 | S57: 156.5217391 | T57: =IF(Q57="run out of space",((N57-P57)/'Collection Route Parameters'!$B$43)-'Collection Route Parameters'!$B$54,"") ->  | U57: 1068.913043 | V57: =ROUNDUP((G57/U57)/'Fuel and Labor Assumptions'!$B$7,0) -> 8 | W57: =V57*'Truck Assumptions'!$B$16 -> 473789.3693 | X57: =(V57*'Fuel and Labor Assumptions'!$B$5)*'Fuel and Labor Assumptions'!$B$6 -> 120 | Y57: 6240 | Z57: =Y57*'Fuel and Labor Assumptions'!$B$4 -> 280800 | AA57: =(((U57*'Collection Route Parameters'!$B$7)*Municipalities!V57)/1000)+(M57*V57) -> 245.5130435 | AB57: 12766.67826 | AC57: =AB57*'Truck Assumptions'!$B$10 -> 13468.84557 | AD57: =AC57*'Fuel and Labor Assumptions'!$B$10 -> 17913.5646 | AE57: 772502.9339 | AF57: =VLOOKUP(B57,'2012 Macro Cost Data'!$B$5:$F$245,5,FALSE) -> 1586532.04 | AG57: -814029.1061
A58: Rural Regional | B58: 878 | C58: OXFORD, RESTRUCTURED COUNTY OF | D58: N | E58: =VLOOKUP(B58,'2012 Program Data'!$B$6:$D$235,3,FALSE) -> 48586 | F58: =VLOOKUP(B58,'2012 Program Data'!$B$6:$E$235,4,FALSE) -> 0 | G58: 49192 | H58: 7146.65 | J58: 7861.315 | K58: =VLOOKUP(B58,'2012 Program Data'!$B$6:$T$235,19,FALSE) -> 26 | L58: 0.003073246353 | M58: 20 | N58: =IF(AND(D58="Y",F58<1,K58=52),'Collection Route Parameters'!$B$31,IF(AND(D58="N",F58<1,K58=52),'Collection Route Parameters'!$B$33,IF(AND(D207="Y",F207<1,K207=26),'Collection Route Parameters'!$B$32,'Collection Route Parameters'!$B$34))) -> 847.7586207 | O58: 847.7586207 | P58: ='Truck Assumptions'!$B$5/Municipalities!L58 -> 1138.860865 | Q58: run out of time | R58: 105.8823529 | S58: 105.8823529 | T58: =IF(Q58="run out of space",((N58-P58)/'Collection Route Parameters'!$B$43)-'Collection Route Parameters'!$B$54,"") ->  | U58: 847.7586207 | V58: =ROUNDUP((G58/U58)/'Fuel and Labor Assumptions'!$B$7,0) -> 12 | W58: =V58*'Truck Assumptions'!$B$16 -> 710684.054 | X58: =(V58*'Fuel and Labor Assumptions'!$B$5)*'Fuel and Labor Assumptions'!$B$6 -> 180 | Y58: 4680 | Z58: =Y58*'Fuel and Labor Assumptions'!$B$4 -> 210600 | AA58: =(((U58*'Collection Route Parameters'!$B$7)*Municipalities!V58)/1000)+(M58*V58) -> 341.7310345 | AB58: 8885.006897 | AC58: =AB58*'Truck Assumptions'!$B$10 -> 9373.682276 | AD58: =AC58*'Fuel and Labor Assumptions'!$B$10 -> 12466.99743 | AE58: 933751.0514 | AF58: =VLOOKUP(B58,'2012 Macro Cost Data'!$B$5:$F$245,5,FALSE) -> 1322872.63 | AG58: -389121.5786
A59: Rural Collection - North | B59: 394 | C59: WEST NIPISSING, MUNICIPALITY OF | D59: Y | E59: =VLOOKUP(B59,'2012 Program Data'!$B$6:$D$235,3,FALSE) -> 5009 | F59: =VLOOKUP(B59,'2012 Program Data'!$B$6:$E$235,4,FALSE) -> 2147 | G59: 7156 | H59: 626.81 | J59: 689.491 | K59: =VLOOKUP(B59,'2012 Program Data'!$B$6:$T$235,19,FALSE) -> 26 | L59: 0.001852912564 | M59: 20 | N59: =IF(AND(D59="Y",F59<1,K59=52),'Collection Route Parameters'!$B$35,IF(AND(D59="N",F59<1,K59=52),'Collection Route Parameters'!$B$37,IF(AND(D59="Y",F59<1,K59=26),'Collection Route Parameters'!$B$36,('Collection Route Parameters'!$B$38)))) -> 723.0882353 | O59: 723.0882353 | P59: ='Truck Assumptions'!$B$5/Municipalities!L59 -> 1888.918057 | Q59: run out of time | R59: 105.8823529 | S59: 105.8823529 | T59: =IF(Q59="run out of space",((N59-P59)/'Collection Route Parameters'!$B$43)-'Collection Route Parameters'!$B$54,"") ->  | U59: 723.0882353 | V59: =ROUNDUP((G59/U59)/'Fuel and Labor Assumptions'!$B$7,0) -> 2 | W59: =V59*'Truck Assumptions'!$B$16 -> 118447.3423 | X59: =(V59*'Fuel and Labor Assumptions'!$B$5)*'Fuel and Labor Assumptions'!$B$6 -> 30 | Y59: 780 | Z59: =Y59*'Fuel and Labor Assumptions'!$B$4 -> 35100 | AA59: =(((U59*'Collection Route Parameters'!$B$7)*Municipalities!V59)/1000)+(M59*V59) -> 54.46176471 | AB59: 1416.005882 | AC59: =AB59*'Truck Assumptions'!$B$10 -> 1493.886206 | AD59: =AC59*'Fuel and Labor Assumptions'!$B$10 -> 1986.868654 | AE59: 155534.211 | AF59: =VLOOKUP(B59,'2012 Macro Cost Data'!$B$5:$F$245,5,FALSE) -> 87466.93 | AG59: 68067.28098
A60: Rural Collection - North | B60: 414 | C60: KIRKLAND LAKE, TOWN OF | D60: Y | E60: =VLOOKUP(B60,'2012 Program Data'!$B$6:$D$235,3,FALSE) -> 3700 | F60: =VLOOKUP(B60,'2012 Program Data'!$B$6:$E$235,4,FALSE) -> 0 | G60: 3700 | H60: 676.64 | J60: 744.304 | K60: =VLOOKUP(B60,'2012 Program Data'!$B$6:$T$235,19,FALSE) -> 26 | L60: 0.003868523909 | M60: 20 | N60: =IF(AND(D60="Y",F60<1,K60=52),'Collection Route Parameters'!$B$35,IF(AND(D60="N",F60<1,K60=52),'Collection Route Parameters'!$B$37,IF(AND(D60="Y",F60<1,K60=26),'Collection Route Parameters'!$B$36,('Collection Route Parameters'!$B$38)))) -> 819.6666667 | O60: 819.6666667 | P60: ='Truck Assumptions'!$B$5/Municipalities!L60 -> 904.7378491 | Q60: run out of time | R60: 120 | S60: 120 | T60: =IF(Q60="run out of space",((N60-P60)/'Collection Route Parameters'!$B$43)-'Collection Route Parameters'!$B$54,"") ->  | U60: 819.6666667 | V60: =ROUNDUP((G60/U60)/'Fuel and Labor Assumptions'!$B$7,0) -> 1 | W60: =V60*'Truck Assumptions'!$B$16 -> 59223.67116 | X60: =(V60*'Fuel and Labor Assumptions'!$B$5)*'Fuel and Labor Assumptions'!$B$6 -> 15 | Y60: 390 | Z60: =Y60*'Fuel and Labor Assumptions'!$B$4 -> 17550 | AA60: =(((U60*'Collection Route Parameters'!$B$7)*Municipalities!V60)/1000)+(M60*V60) -> 28.19666667 | AB60: 733.1133333 | AC60: =AB60*'Truck Assumptions'!$B$10 -> 773.4345667 | AD60: =AC60*'Fuel and Labor Assumptions'!$B$10 -> 1028.667974 | AE60: 77802.33914 | AF60: =VLOOKUP(B60,'2012 Macro Cost Data'!$B$5:$F$245,5,FALSE) -> 126634 | AG60: -48831.66086
A61: Rural Collection - North | B61: 426 | C61: ELLIOT LAKE, CITY OF | D61: N | E61: =VLOOKUP(B61,'2012 Program Data'!$B$6:$D$235,3,FALSE) -> 6182 | F61: =VLOOKUP(B61,'2012 Program Data'!$B$6:$E$235,4,FALSE) -> 0 | G61: 6182 | H61: 515.78787 | J61: 567.366657 | K61: =VLOOKUP(B61,'2012 Program Data'!$B$6:$T$235,19,FALSE) -> 52 | L61: 0.001764946174 | M61: 20 | N61: =IF(AND(D61="Y",F61<1,K61=52),'Collection Route Parameters'!$B$35,IF(AND(D61="N",F61<1,K61=52),'Collection Route Parameters'!$B$37,IF(AND(D61="Y",F61<1,K61=26),'Collection Route Parameters'!$B$36,('Collection Route Parameters'!$B$38)))) -> 878.0357143 | O61: 878.0357143 | P61: ='Truck Assumptions'!$B$5/Municipalities!L61 -> 1983.063309 | Q61: run out of time | R61: 128.5714286 | S61: 128.5714286 | T61: =IF(Q61="run out of space",((N61-P61)/'Collection Route Parameters'!$B$43)-'Collection Route Parameters'!$B$54,"") ->  | U61: 878.0357143 | V61: =ROUNDUP((G61/U61)/'Fuel and Labor Assumptions'!$B$7,0) -> 2 | W61: =V61*'Truck Assumptions'!$B$16 -> 118447.3423 | X61: =(V61*'Fuel and Labor Assumptions'!$B$5)*'Fuel and Labor Assumptions'!$B$6 -> 30 | Y61: 1560 | Z61: =Y61*'Fuel and Labor Assumptions'!$B$4 -> 70200 | AA61: =(((U61*'Collection Route Parameters'!$B$7)*Municipalities!V61)/1000)+(M61*V61) -> 57.56071429 | AB61: 2993.157143 | AC61: =AB61*'Truck Assumptions'!$B$10 -> 3157.780786 | AD61: =AC61*'Fuel and Labor Assumptions'!$B$10 -> 4199.848445 | AE61: 192847.1908 | AF61: =VLOOKUP(B61,'2012 Macro Cost Data'!$B$5:$F$245,5,FALSE) -> 109704.1 | AG61: 83143.09077
A62: Rural Collection - North | B62: 430 | C62: TIMMINS, CITY OF | D62: N | E62: =VLOOKUP(B62,'2012 Program Data'!$B$6:$D$235,3,FALSE) -> 20361 | F62: =VLOOKUP(B62,'2012 Program Data'!$B$6:$E$235,4,FALSE) -> 0 | G62: 20361 | H62: 3077.401352 | J62: 3385.141487 | K62: =VLOOKUP(B62,'2012 Program Data'!$B$6:$T$235,19,FALSE) -> 56 | L62: 0.00319723367 | M62: 20 | N62: =IF(AND(D62="Y",F62<1,K62=52),'Collection Route Parameters'!$B$35,IF(AND(D62="N",F62<1,K62=52),'Collection Route Parameters'!$B$37,IF(AND(D62="Y",F62<1,K62=26),'Collection Route Parameters'!$B$36,('Collection Route Parameters'!$B$38)))) -> 723.0882353 | O62: 723.0882353 | P62: ='Truck Assumptions'!$B$5/Municipalities!L62 -> 1094.696341 | Q62: run out of time | R62: 105.8823529 | S62: 105.8823529 | T62: =IF(Q62="run out of space",((N62-P62)/'Collection Route Parameters'!$B$43)-'Collection Route Parameters'!$B$54,"") ->  | U62: 723.0882353 | V62: =ROUNDUP((G62/U62)/'Fuel and Labor Assumptions'!$B$7,0) -> 6 | W62: =V62*'Truck Assumptions'!$B$16 -> 355342.027 | X62: =(V62*'Fuel and Labor Assumptions'!$B$5)*'Fuel and Labor Assumptions'!$B$6 -> 90 | Y62: 5040 | Z62: =Y62*'Fuel and Labor Assumptions'!$B$4 -> 226800 | AA62: =(((U62*'Collection Route Parameters'!$B$7)*Municipalities!V62)/1000)+(M62*V62) -> 163.3852941 | AB62: 9149.576471 | AC62: =AB62*'Truck Assumptions'!$B$10 -> 9652.803176 | AD62: =AC62*'Fuel and Labor Assumptions'!$B$10 -> 12838.22822 | AE62: 594980.2552 | AF62: =VLOOKUP(B62,'2012 Macro Cost Data'!$B$5:$F$245,5,FALSE) -> 653698.7 | AG62: -58718.44479
A63: Rural Collection - North | B63: 562 | C63: PRINCE, TOWNSHIP OF | D63: Y | E63: =VLOOKUP(B63,'2012 Program Data'!$B$6:$D$235,3,FALSE) -> 475 | F63: =VLOOKUP(B63,'2012 Program Data'!$B$6:$E$235,4,FALSE) -> 0 | G63: 475 | H63: 77.881376 | J63: 85.6695136 | K63: 26 | L63: 0.00346840136 | M63: 20 | N63: =IF(AND(D63="Y",F63<1,K63=52),'Collection Route Parameters'!$B$35,IF(AND(D63="N",F63<1,K63=52),'Collection Route Parameters'!$B$37,IF(AND(D63="Y",F63<1,K63=26),'Collection Route Parameters'!$B$36,('Collection Route Parameters'!$B$38)))) -> 819.6666667 | O63: 819.6666667 | P63: ='Truck Assumptions'!$B$5/Municipalities!L63 -> 1009.110433 | Q63: run out of time | R63: 120 | S63: 120 | T63: =IF(Q63="run out of space",((N63-P63)/'Collection Route Parameters'!$B$43)-'Collection Route Parameters'!$B$54,"") ->  | U63: 819.6666667 | V63: =ROUNDUP((G63/U63)/'Fuel and Labor Assumptions'!$B$7,0) -> 1 | W63: =V63*'Truck Assumptions'!$B$16 -> 59223.67116 | X63: =(V63*'Fuel and Labor Assumptions'!$B$5)*'Fuel and Labor Assumptions'!$B$6 -> 15 | Y63: 390 | Z63: =Y63*'Fuel and Labor Assumptions'!$B$4 -> 17550 | AA63: =(((U63*'Collection Route Parameters'!$B$7)*Municipalities!V63)/1000)+(M63*V63) -> 28.19666667 | AB63: 733.1133333 | AC63: =AB63*'Truck Assumptions'!$B$10 -> 773.4345667 | AD63: =AC63*'Fuel and Labor Assumptions'!$B$10 -> 1028.667974 | AE63: 77802.33914 | AF63: =VLOOKUP(B63,'2012 Macro Cost Data'!$B$5:$F$245,5,FALSE) -> 30390.67 | AG63: 47411.66914
A64: Rural Collection - North | B64: 603 | C64: SABLES-SPANISH RIVERS, TOWNSHIP OF | D64: N | E64: =VLOOKUP(B64,'2012 Program Data'!$B$6:$D$235,3,FALSE) -> 1760 | F64: =VLOOKUP(B64,'2012 Program Data'!$B$6:$E$235,4,FALSE) -> 0 | G64: 1760 | H64: 134.935832 | J64: 148.4294152 | K64: =VLOOKUP(B64,'2012 Program Data'!$B$6:$T$235,19,FALSE) -> 52 | L64: 0.001621824904 | M64: 20 | N64: =IF(AND(D64="Y",F64<1,K64=52),'Collection Route Parameters'!$B$35,IF(AND(D64="N",F64<1,K64=52),'Collection Route Parameters'!$B$37,IF(AND(D64="Y",F64<1,K64=26),'Collection Route Parameters'!$B$36,('Collection Route Parameters'!$B$38)))) -> 878.0357143 | O64: 878.0357143 | P64: ='Truck Assumptions'!$B$5/Municipalities!L64 -> 2158.062804 | Q64: run out of time | R64: 128.5714286 | S64: 128.5714286 | T64: =IF(Q64="run out of space",((N64-P64)/'Collection Route Parameters'!$B$43)-'Collection Route Parameters'!$B$54,"") ->  | U64: 878.0357143 | V64: =ROUNDUP((G64/U64)/'Fuel and Labor Assumptions'!$B$7,0) -> 1 | W64: =V64*'Truck Assumptions'!$B$16 -> 59223.67116 | X64: =(V64*'Fuel and Labor Assumptions'!$B$5)*'Fuel and Labor Assumptions'!$B$6 -> 15 | Y64: 780 | Z64: =Y64*'Fuel and Labor Assumptions'!$B$4 -> 35100 | AA64: =(((U64*'Collection Route Parameters'!$B$7)*Municipalities!V64)/1000)+(M64*V64) -> 28.78035714 | AB64: 1496.578571 | AC64: =AB64*'Truck Assumptions'!$B$10 -> 1578.890393 | AD64: =AC64*'Fuel and Labor Assumptions'!$B$10 -> 2099.924223 | AE64: 96423.59539 | AF64: =VLOOKUP(B64,'2012 Macro Cost Data'!$B$5:$F$245,5,FALSE) -> 78152.35 | AG64: 18271.24539
A65: Rural Collection - North | B65: 618 | C65: BALDWIN, TOWNSHIP OF | D65: Y | E65: =VLOOKUP(B65,'2012 Program Data'!$B$6:$D$235,3,FALSE) -> 353 | F65: =VLOOKUP(B65,'2012 Program Data'!$B$6:$E$235,4,FALSE) -> 0 | G65: 353 | H65: 19.2888 | J65: 21.21768 | K65: =VLOOKUP(B65,'2012 Program Data'!$B$6:$T$235,19,FALSE) -> 52 | L65: 0.001155898889 | M65: 20 | N65: =IF(AND(D65="Y",F65<1,K65=52),'Collection Route Parameters'!$B$35,IF(AND(D65="N",F65<1,K65=52),'Collection Route Parameters'!$B$37,IF(AND(D65="Y",F65<1,K65=26),'Collection Route Parameters'!$B$36,('Collection Route Parameters'!$B$38)))) -> 983.6 | O65: 983.6 | P65: ='Truck Assumptions'!$B$5/Municipalities!L65 -> 3027.946505 | Q65: run out of time | R65: 144 | S65: 144 | T65: =IF(Q65="run out of space",((N65-P65)/'Collection Route Parameters'!$B$43)-'Collection Route Parameters'!$B$54,"") ->  | U65: 983.6 | V65: =ROUNDUP((G65/U65)/'Fuel and Labor Assumptions'!$B$7,0) -> 1 | W65: =V65*'Truck Assumptions'!$B$16 -> 59223.67116 | X65: =(V65*'Fuel and Labor Assumptions'!$B$5)*'Fuel and Labor Assumptions'!$B$6 -> 15 | Y65: 780 | Z65: =Y65*'Fuel and Labor Assumptions'!$B$4 -> 35100 | AA65: =(((U65*'Collection Route Parameters'!$B$7)*Municipalities!V65)/1000)+(M65*V65) -> 29.836 | AB65: 1551.472 | AC65: =AB65*'Truck Assumptions'!$B$10 -> 1636.80296 | AD65: =AC65*'Fuel and Labor Assumptions'!$B$10 -> 2176.947937 | AE65: 96500.6191 | AF65: =VLOOKUP(B65,'2012 Macro Cost Data'!$B$5:$F$245,5,FALSE) -> 13603.95 | AG65: 82896.6691
A66: Rural Collection - North | B66: 620 | C66: BLIND RIVER, TOWN OF | D66: Y | E66: =VLOOKUP(B66,'2012 Program Data'!$B$6:$D$235,3,FALSE) -> 2417 | F66: =VLOOKUP(B66,'2012 Program Data'!$B$6:$E$235,4,FALSE) -> 0 | G66: 2417 | H66: 342.912 | J66: 377.2032 | K66: 52 | L66: 0.003001203017 | M66: 20 | N66: =IF(AND(D66="Y",F66<1,K66=52),'Collection Route Parameters'!$B$35,IF(AND(D66="N",F66<1,K66=52),'Collection Route Parameters'!$B$37,IF(AND(D66="Y",F66<1,K66=26),'Collection Route Parameters'!$B$36,('Collection Route Parameters'!$B$38)))) -> 983.6 | O66: 983.6 | P66: ='Truck Assumptions'!$B$5/Municipalities!L66 -> 1166.199014 | Q66: run out of time | R66: 144 | S66: 144 | T66: =IF(Q66="run out of space",((N66-P66)/'Collection Route Parameters'!$B$43)-'Collection Route Parameters'!$B$54,"") ->  | U66: 983.6 | V66: =ROUNDUP((G66/U66)/'Fuel and Labor Assumptions'!$B$7,0) -> 1 | W66: =V66*'Truck Assumptions'!$B$16 -> 59223.67116 | X66: =(V66*'Fuel and Labor Assumptions'!$B$5)*'Fuel and Labor Assumptions'!$B$6 -> 15 | Y66: 780 | Z66: =Y66*'Fuel and Labor Assumptions'!$B$4 -> 35100 | AA66: =(((U66*'Collection Route Parameters'!$B$7)*Municipalities!V66)/1000)+(M66*V66) -> 29.836 | AB66: 1551.472 | AC66: =AB66*'Truck Assumptions'!$B$10 -> 1636.80296 | AD66: =AC66*'Fuel and Labor Assumptions'!$B$10 -> 2176.947937 | AE66: 96500.6191 | AF66: =VLOOKUP(B66,'2012 Macro Cost Data'!$B$5:$F$245,5,FALSE) -> 84949 | AG66: 11551.6191
A67: Rural Collection - North | B67: 622 | C67: CENTRAL MANITOULIN, TOWNSHIP OF | D67: Y | E67: =VLOOKUP(B67,'2012 Program Data'!$B$6:$D$235,3,FALSE) -> 1541 | F67: =VLOOKUP(B67,'2012 Program Data'!$B$6:$E$235,4,FALSE) -> 0 | G67: 1541 | H67: 117.82242 | J67: =H67*(1+$B$234) -> 129.604662 | K67: 52 | L67: =(J67/G67)/52 -> 0.001617389582 | M67: 20 | N67: =IF(AND(D67="Y",F67<1,K67=52),'Collection Route Parameters'!$B$35,IF(AND(D67="N",F67<1,K67=52),'Collection Route Parameters'!$B$37,IF(AND(D67="Y",F67<1,K67=26),'Collection Route Parameters'!$B$36,('Collection Route Parameters'!$B$38)))) -> 983.6 | O67: =IF(AND(D67="Y",I67>0),($AL$15*(1-I67/G67)+($AL$23*(I67/G67))),IF(AND(D67="N",I67>0),($AL$18*(1-I67/G67)+($AL$24*(I67/G67))),(N67))) -> 983.6 | P67: ='Truck Assumptions'!$B$5/Municipalities!L67 -> 2163.980799 | Q67: run out of time | R67: =IF(N67=$AL$15,$AL$3,IF(N67=$AL$16,$AL$4,IF(N67=$AL$17,$AL$5,IF(N67=$AL$6,$AL$18,IF(N67=$AL$19,$AL$7,IF(N67=$AL$20,$AL$8,IF(N67=$AL$21,$AL$9,$AL$10))))))) -> 144 | S67: 144 | T67: =IF(Q67="run out of space",((N67-P67)/'Collection Route Parameters'!$B$43)-'Collection Route Parameters'!$B$54,"") ->  | U67: 983.6 | V67: =ROUNDUP((G67/U67)/'Fuel and Labor Assumptions'!$B$7,0) -> 1 | W67: =V67*'Truck Assumptions'!$B$16 -> 59223.67116 | X67: =(V67*'Fuel and Labor Assumptions'!$B$5)*'Fuel and Labor Assumptions'!$B$6 -> 15 | Y67: =X67*K67 -> 780 | Z67: =Y67*'Fuel and Labor Assumptions'!$B$4 -> 35100 | AA67: =(((U67*'Collection Route Parameters'!$B$7)*Municipalities!V67)/1000)+(M67*V67) -> 29.836 | AB67: =AA67*K67 -> 1551.472 | AC67: =AB67*'Truck Assumptions'!$B$10 -> 1636.80296 | AD67: =AC67*'Fuel and Labor Assumptions'!$B$10 -> 2176.947937 | AE67: =AD67+Z67+W67 -> 96500.6191 | AF67: =VLOOKUP(B67,'2012 Macro Cost Data'!$B$5:$F$245,5,FALSE) -> 58503.6 | AG67: =AE67-AF67 -> 37997.0191
A68: Rural Collection - North | B68: 623 | C68: ESPANOLA, TOWN OF | D68: N | E68: =VLOOKUP(B68,'2012 Program Data'!$B$6:$D$235,3,FALSE) -> 2306 | F68: =VLOOKUP(B68,'2012 Program Data'!$B$6:$E$235,4,FALSE) -> 0 | G68: 2306 | H68: 213.025912 | J68: 234.3285032 | K68: =VLOOKUP(B68,'2012 Program Data'!$B$6:$T$235,19,FALSE) -> 52 | L68: 0.001954170585 | M68: 20 | N68: =IF(AND(D68="Y",F68<1,K68=52),'Collection Route Parameters'!$B$35,IF(AND(D68="N",F68<1,K68=52),'Collection Route Parameters'!$B$37,IF(AND(D68="Y",F68<1,K68=26),'Collection Route Parameters'!$B$36,('Collection Route Parameters'!$B$38)))) -> 878.0357143 | O68: 878.0357143 | P68: ='Truck Assumptions'!$B$5/Municipalities!L68 -> 1791.041185 | Q68: =IF(O68>P68,"run out of space", "run out of time") -> run out of time | R68: 128.5714286 | S68: =IF(AND(I68>0,D68="Y"),(R68*(G68-I68)/G68)+($AL$11*I68/G68),IF(AND(I68>0,D68="N"),(R68*(G68-I68)/G68)+($AL$12*I68/G68),R68)) -> 128.5714286 | T68: =IF(Q68="run out of space",((N68-P68)/'Collection Route Parameters'!$B$43)-'Collection Route Parameters'!$B$54,"") ->  | U68: =IF(AND(T68<>"",T68>0),(R68*T68)+P68,O68) -> 878.0357143 | V68: =ROUNDUP((G68/U68)/'Fuel and Labor Assumptions'!$B$7,0) -> 1 | W68: =V68*'Truck Assumptions'!$B$16 -> 59223.67116 | X68: =(V68*'Fuel and Labor Assumptions'!$B$5)*'Fuel and Labor Assumptions'!$B$6 -> 15 | Y68: 780 | Z68: =Y68*'Fuel and Labor Assumptions'!$B$4 -> 35100 | AA68: =(((U68*'Collection Route Parameters'!$B$7)*Municipalities!V68)/1000)+(M68*V68) -> 28.78035714 | AB68: 1496.578571 | AC68: =AB68*'Truck Assumptions'!$B$10 -> 1578.890393 | AD68: =AC68*'Fuel and Labor Assumptions'!$B$10 -> 2099.924223 | AE68: 96423.59539 | AF68: =VLOOKUP(B68,'2012 Macro Cost Data'!$B$5:$F$245,5,FALSE) -> 72685.31 | AG68: 23738.28539
A69: Rural Collection - North | B69: 626 | C69: NAIRN & HYMAN, TOWNSHIP OF | D69: Y | E69: =VLOOKUP(B69,'2012 Program Data'!$B$6:$D$235,3,FALSE) -> 276 | F69: =VLOOKUP(B69,'2012 Program Data'!$B$6:$E$235,4,FALSE) -> 25 | G69: 301 | H69: 17.93144 | J69: 19.724584 | K69: 52 | L69: 0.001260195758 | M69: 20 | N69: =IF(AND(D69="Y",F69<1,K69=52),'Collection Route Parameters'!$B$35,IF(AND(D69="N",F69<1,K69=52),'Collection Route Parameters'!$B$37,IF(AND(D69="Y",F69<1,K69=26),'Collection Route Parameters'!$B$36,('Collection Route Parameters'!$B$38)))) -> 723.0882353 | O69: =IF(AND(D69="Y",I69>0),($AL$15*(1-I69/G69)+($AL$23*(I69/G69))),IF(AND(D69="N",I69>0),($AL$18*(1-I69/G69)+($AL$24*(I69/G69))),(N69))) -> 723.0882353 | P69: ='Truck Assumptions'!$B$5/Municipalities!L69 -> 2777.34628 | Q69: run out of time | R69: 105.8823529 | S69: 105.8823529 | T69: =IF(Q69="run out of space",((N69-P69)/'Collection Route Parameters'!$B$43)-'Collection Route Parameters'!$B$54,"") ->  | U69: 723.0882353 | V69: =ROUNDUP((G69/U69)/'Fuel and Labor Assumptions'!$B$7,0) -> 1 | W69: =V69*'Truck Assumptions'!$B$16 -> 59223.67116 | X69: =(V69*'Fuel and Labor Assumptions'!$B$5)*'Fuel and Labor Assumptions'!$B$6 -> 15 | Y69: 780 | Z69: =Y69*'Fuel and Labor Assumptions'!$B$4 -> 35100 | AA69: =(((U69*'Collection Route Parameters'!$B$7)*Municipalities!V69)/1000)+(M69*V69) -> 27.23088235 | AB69: 1416.005882 | AC69: =AB69*'Truck Assumptions'!$B$10 -> 1493.886206 | AD69: =AC69*'Fuel and Labor Assumptions'!$B$10 -> 1986.868654 | AE69: 96310.53982 | AF69: =VLOOKUP(B69,'2012 Macro Cost Data'!$B$5:$F$245,5,FALSE) -> 13112.5 | AG69: 83198.03982
A70: Rural Collection - North | B70: 627 | C70: NORTHEASTERN MANITOULIN & ISLANDS, TOWN OF | D70: Y | E70: =VLOOKUP(B70,'2012 Program Data'!$B$6:$D$235,3,FALSE) -> 779 | F70: =VLOOKUP(B70,'2012 Program Data'!$B$6:$E$235,4,FALSE) -> 1250 | G70: 2029 | H70: 274.82968 | J70: 302.312648 | K70: 52 | L70: 0.002865305456 | M70: 20 | N70: =IF(AND(D70="Y",F70<1,K70=52),'Collection Route Parameters'!$B$35,IF(AND(D70="N",F70<1,K70=52),'Collection Route Parameters'!$B$37,IF(AND(D70="Y",F70<1,K70=26),'Collection Route Parameters'!$B$36,('Collection Route Parameters'!$B$38)))) -> 723.0882353 | O70: 723.0882353 | P70: ='Truck Assumptions'!$B$5/Municipalities!L70 -> 1221.510256 | Q70: run out of time | R70: 105.8823529 | S70: 105.8823529 | T70: =IF(Q70="run out of space",((N70-P70)/'Collection Route Parameters'!$B$43)-'Collection Route Parameters'!$B$54,"") ->  | U70: 723.0882353 | V70: =ROUNDUP((G70/U70)/'Fuel and Labor Assumptions'!$B$7,0) -> 1 | W70: =V70*'Truck Assumptions'!$B$16 -> 59223.67116 | X70: =(V70*'Fuel and Labor Assumptions'!$B$5)*'Fuel and Labor Assumptions'!$B$6 -> 15 | Y70: 780 | Z70: =Y70*'Fuel and Labor Assumptions'!$B$4 -> 35100 | AA70: =(((U70*'Collection Route Parameters'!$B$7)*Municipalities!V70)/1000)+(M70*V70) -> 27.23088235 | AB70: 1416.005882 | AC70: =AB70*'Truck Assumptions'!$B$10 -> 1493.886206 | AD70: =AC70*'Fuel and Labor Assumptions'!$B$10 -> 1986.868654 | AE70: 96310.53982 | AF70: =VLOOKUP(B70,'2012 Macro Cost Data'!$B$5:$F$245,5,FALSE) -> 32461.44 | AG70: 63849.09982
A71: Rural Collection - North | B71: 697 | C71: SAULT NORTH WASTE MANAGEMENT COUNCIL | D71: N | E71: =VLOOKUP(B71,'2012 Program Data'!$B$6:$D$235,3,FALSE) -> 4533 | F71: =VLOOKUP(B71,'2012 Program Data'!$B$6:$E$235,4,FALSE) -> 0 | G71: 4533 | H71: 39.079824 | J71: 42.9878064 | K71: 52 | L71: 0.0001823711857 | M71: 20 | N71: =IF(AND(D71="Y",F71<1,K71=52),'Collection Route Parameters'!$B$35,IF(AND(D71="N",F71<1,K71=52),'Collection Route Parameters'!$B$37,IF(AND(D71="Y",F71<1,K71=26),'Collection Route Parameters'!$B$36,('Collection Route Parameters'!$B$38)))) -> 878.0357143 | O71: 878.0357143 | P71: ='Truck Assumptions'!$B$5/Municipalities!L71 -> 19191.62826 | Q71: run out of time | R71: 128.5714286 | S71: 128.5714286 | T71: =IF(Q71="run out of space",((N71-P71)/'Collection Route Parameters'!$B$43)-'Collection Route Parameters'!$B$54,"") ->  | U71: 878.0357143 | V71: =ROUNDUP((G71/U71)/'Fuel and Labor Assumptions'!$B$7,0) -> 2 | W71: =V71*'Truck Assumptions'!$B$16 -> 118447.3423 | X71: =(V71*'Fuel and Labor Assumptions'!$B$5)*'Fuel and Labor Assumptions'!$B$6 -> 30 | Y71: 1560 | Z71: =Y71*'Fuel and Labor Assumptions'!$B$4 -> 70200 | AA71: =(((U71*'Collection Route Parameters'!$B$7)*Municipalities!V71)/1000)+(M71*V71) -> 57.56071429 | AB71: 2993.157143 | AC71: =AB71*'Truck Assumptions'!$B$10 -> 3157.780786 | AD71: =AC71*'Fuel and Labor Assumptions'!$B$10 -> 4199.848445 | AE71: 192847.1908 | AF71: =VLOOKUP(B71,'2012 Macro Cost Data'!$B$5:$F$245,5,FALSE) -> 48070.2 | AG71: 144776.9908
A72: Rural Collection - North | B72: 710 | C72: ATIKOKAN, TOWNSHIP OF | D72: Y | E72: =VLOOKUP(B72,'2012 Program Data'!$B$6:$D$235,3,FALSE) -> 1658 | F72: =VLOOKUP(B72,'2012 Program Data'!$B$6:$E$235,4,FALSE) -> 0 | G72: 1658 | H72: 59.506728 | J72: 65.4574008 | K72: =VLOOKUP(B72,'2012 Program Data'!$B$6:$T$235,19,FALSE) -> 52 | L72: 0.000759225675 | M72: 20 | N72: =IF(AND(D72="Y",F72<1,K72=52),'Collection Route Parameters'!$B$35,IF(AND(D72="N",F72<1,K72=52),'Collection Route Parameters'!$B$37,IF(AND(D72="Y",F72<1,K72=26),'Collection Route Parameters'!$B$36,('Collection Route Parameters'!$B$38)))) -> 983.6 | O72: 983.6 | P72: ='Truck Assumptions'!$B$5/Municipalities!L72 -> 4609.960009 | Q72: run out of time | R72: 144 | S72: 144 | T72: =IF(Q72="run out of space",((N72-P72)/'Collection Route Parameters'!$B$43)-'Collection Route Parameters'!$B$54,"") ->  | U72: 983.6 | V72: =ROUNDUP((G72/U72)/'Fuel and Labor Assumptions'!$B$7,0) -> 1 | W72: =V72*'Truck Assumptions'!$B$16 -> 59223.67116 | X72: =(V72*'Fuel and Labor Assumptions'!$B$5)*'Fuel and Labor Assumptions'!$B$6 -> 15 | Y72: 780 | Z72: =Y72*'Fuel and Labor Assumptions'!$B$4 -> 35100 | AA72: =(((U72*'Collection Route Parameters'!$B$7)*Municipalities!V72)/1000)+(M72*V72) -> 29.836 | AB72: 1551.472 | AC72: =AB72*'Truck Assumptions'!$B$10 -> 1636.80296 | AD72: =AC72*'Fuel and Labor Assumptions'!$B$10 -> 2176.947937 | AE72: 96500.6191 | AF72: =VLOOKUP(B72,'2012 Macro Cost Data'!$B$5:$F$245,5,FALSE) -> 35000 | AG72: 61500.6191
A73: Rural Collection - North | B73: 718 | C73: MISSISSAUGAS OF THE NEW CREDIT FIRST NATION | D73: Y | E73: =VLOOKUP(B73,'2012 Program Data'!$B$6:$D$235,3,FALSE) -> 92 | F73: =VLOOKUP(B73,'2012 Program Data'!$B$6:$E$235,4,FALSE) -> 0 | G73: 254 | H73: 13.65272 | J73: 15.017992 | K73: =VLOOKUP(B73,'2012 Program Data'!$B$6:$T$235,19,FALSE) -> 51 | L73: 0.001137037553 | M73: 20 | N73: =IF(AND(D73="Y",F73<1,K73=52),'Collection Route Parameters'!$B$35,IF(AND(D73="N",F73<1,K73=52),'Collection Route Parameters'!$B$37,IF(AND(D73="Y",F73<1,K73=26),'Collection Route Parameters'!$B$36,('Collection Route Parameters'!$B$38)))) -> 723.0882353 | O73: 723.0882353 | P73: ='Truck Assumptions'!$B$5/Municipalities!L73 -> 3078.174499 | Q73: run out of time | R73: 105.8823529 | S73: 105.8823529 | T73: =IF(Q73="run out of space",((N73-P73)/'Collection Route Parameters'!$B$43)-'Collection Route Parameters'!$B$54,"") ->  | U73: 723.0882353 | V73: =ROUNDUP((G73/U73)/'Fuel and Labor Assumptions'!$B$7,0) -> 1 | W73: =V73*'Truck Assumptions'!$B$16 -> 59223.67116 | X73: =(V73*'Fuel and Labor Assumptions'!$B$5)*'Fuel and Labor Assumptions'!$B$6 -> 15 | Y73: 765 | Z73: =Y73*'Fuel and Labor Assumptions'!$B$4 -> 34425 | AA73: =(((U73*'Collection Route Parameters'!$B$7)*Municipalities!V73)/1000)+(M73*V73) -> 27.23088235 | AB73: 1388.775 | AC73: =AB73*'Truck Assumptions'!$B$10 -> 1465.157625 | AD73: =AC73*'Fuel and Labor Assumptions'!$B$10 -> 1948.659641 | AE73: 95597.33081 | AF73: =VLOOKUP(B73,'2012 Macro Cost Data'!$B$5:$F$245,5,FALSE) -> 12122.15 | AG73: 83475.18081
A74: Rural Collection - North | B74: 758 | C74: DRYDEN, CITY OF | D74: N | E74: =VLOOKUP(B74,'2012 Program Data'!$B$6:$D$235,3,FALSE) -> 3590 | F74: =VLOOKUP(B74,'2012 Program Data'!$B$6:$E$235,4,FALSE) -> 0 | G74: 3602 | H74: 681.1142 | J74: 749.22562 | K74: 26 | L74: 0.00400005136 | M74: 20 | N74: =IF(AND(D74="Y",F74<1,K74=52),'Collection Route Parameters'!$B$35,IF(AND(D74="N",F74<1,K74=52),'Collection Route Parameters'!$B$37,IF(AND(D74="Y",F74<1,K74=26),'Collection Route Parameters'!$B$36,('Collection Route Parameters'!$B$38)))) -> 723.0882353 | O74: 723.0882353 | P74: ='Truck Assumptions'!$B$5/Municipalities!L74 -> 874.9887651 | Q74: run out of time | R74: 105.8823529 | S74: 105.8823529 | T74: =IF(Q74="run out of space",((N74-P74)/'Collection Route Parameters'!$B$43)-'Collection Route Parameters'!$B$54,"") ->  | U74: 723.0882353 | V74: =ROUNDUP((G74/U74)/'Fuel and Labor Assumptions'!$B$7,0) -> 1 | W74: =V74*'Truck Assumptions'!$B$16 -> 59223.67116 | X74: =(V74*'Fuel and Labor Assumptions'!$B$5)*'Fuel and Labor Assumptions'!$B$6 -> 15 | Y74: 390 | Z74: =Y74*'Fuel and Labor Assumptions'!$B$4 -> 17550 | AA74: =(((U74*'Collection Route Parameters'!$B$7)*Municipalities!V74)/1000)+(M74*V74) -> 27.23088235 | AB74: 708.0029412 | AC74: =AB74*'Truck Assumptions'!$B$10 -> 746.9431029 | AD74: =AC74*'Fuel and Labor Assumptions'!$B$10 -> 993.4343269 | AE74: 77767.10549 | AF74: =VLOOKUP(B74,'2012 Macro Cost Data'!$B$5:$F$245,5,FALSE) -> 150128.96 | AG74: -72361.85451
A75: Rural Collection - North | B75: 774 | C75: FORT FRANCES, TOWN OF | D75: N | E75: =VLOOKUP(B75,'2012 Program Data'!$B$6:$D$235,3,FALSE) -> 3813 | F75: =VLOOKUP(B75,'2012 Program Data'!$B$6:$E$235,4,FALSE) -> 0 | G75: 3813 | H75: 528.14 | J75: 580.954 | K75: =VLOOKUP(B75,'2012 Program Data'!$B$6:$T$235,19,FALSE) -> 26 | L75: 0.002930026831 | M75: 20 | N75: =IF(AND(D75="Y",F75<1,K75=52),'Collection Route Parameters'!$B$35,IF(AND(D75="N",F75<1,K75=52),'Collection Route Parameters'!$B$37,IF(AND(D75="Y",F75<1,K75=26),'Collection Route Parameters'!$B$36,('Collection Route Parameters'!$B$38)))) -> 723.0882353 | O75: 723.0882353 | P75: ='Truck Assumptions'!$B$5/Municipalities!L75 -> 1194.52831 | Q75: run out of time | R75: 105.8823529 | S75: 105.8823529 | T75: =IF(Q75="run out of space",((N75-P75)/'Collection Route Parameters'!$B$43)-'Collection Route Parameters'!$B$54,"") ->  | U75: 723.0882353 | V75: =ROUNDUP((G75/U75)/'Fuel and Labor Assumptions'!$B$7,0) -> 2 | W75: =V75*'Truck Assumptions'!$B$16 -> 118447.3423 | X75: =(V75*'Fuel and Labor Assumptions'!$B$5)*'Fuel and Labor Assumptions'!$B$6 -> 30 | Y75: 780 | Z75: =Y75*'Fuel and Labor Assumptions'!$B$4 -> 35100 | AA75: =(((U75*'Collection Route Parameters'!$B$7)*Municipalities!V75)/1000)+(M75*V75) -> 54.46176471 | AB75: 1416.005882 | AC75: =AB75*'Truck Assumptions'!$B$10 -> 1493.886206 | AD75: =AC75*'Fuel and Labor Assumptions'!$B$10 -> 1986.868654 | AE75: 155534.211 | AF75: =VLOOKUP(B75,'2012 Macro Cost Data'!$B$5:$F$245,5,FALSE) -> 71706 | AG75: 83828.21098
A76: Rural Collection - North | B76: 794 | C76: HEAD, CLARA AND MARIA, TOWNSHIPS OF | D76: N | E76: =VLOOKUP(B76,'2012 Program Data'!$B$6:$D$235,3,FALSE) -> 128 | F76: =VLOOKUP(B76,'2012 Program Data'!$B$6:$E$235,4,FALSE) -> 209 | G76: 337 | H76: 37.12201 | J76: 40.834211 | K76: 52 | L76: 0.0023301878 | M76: 20 | N76: =IF(AND(D76="Y",F76<1,K76=52),'Collection Route Parameters'!$B$35,IF(AND(D76="N",F76<1,K76=52),'Collection Route Parameters'!$B$37,IF(AND(D76="Y",F76<1,K76=26),'Collection Route Parameters'!$B$36,('Collection Route Parameters'!$B$38)))) -> 723.0882353 | O76: 723.0882353 | P76: ='Truck Assumptions'!$B$5/Municipalities!L76 -> 1502.024859 | Q76: run out of time | R76: 105.8823529 | S76: 105.8823529 | T76: =IF(Q76="run out of space",((N76-P76)/'Collection Route Parameters'!$B$43)-'Collection Route Parameters'!$B$54,"") ->  | U76: 723.0882353 | V76: =ROUNDUP((G76/U76)/'Fuel and Labor Assumptions'!$B$7,0) -> 1 | W76: =V76*'Truck Assumptions'!$B$16 -> 59223.67116 | X76: =(V76*'Fuel and Labor Assumptions'!$B$5)*'Fuel and Labor Assumptions'!$B$6 -> 15 | Y76: 780 | Z76: =Y76*'Fuel and Labor Assumptions'!$B$4 -> 35100 | AA76: =(((U76*'Collection Route Parameters'!$B$7)*Municipalities!V76)/1000)+(M76*V76) -> 27.23088235 | AB76: 1416.005882 | AC76: =AB76*'Truck Assumptions'!$B$10 -> 1493.886206 | AD76: =AC76*'Fuel and Labor Assumptions'!$B$10 -> 1986.868654 | AE76: 96310.53982 | AF76: =VLOOKUP(B76,'2012 Macro Cost Data'!$B$5:$F$245,5,FALSE) -> 24381.09 | AG76: 71929.44982
A77: Rural Collection - North | B77: 811 | C77: KENORA, CITY OF | D77: N | E77: =VLOOKUP(B77,'2012 Program Data'!$B$6:$D$235,3,FALSE) -> 6742 | F77: =VLOOKUP(B77,'2012 Program Data'!$B$6:$E$235,4,FALSE) -> 0 | G77: 6742 | H77: 967.31 | J77: 1064.041 | K77: =VLOOKUP(B77,'2012 Program Data'!$B$6:$T$235,19,FALSE) -> 52 | L77: 0.00303505294 | M77: 20 | N77: =IF(AND(D77="Y",F77<1,K77=52),'Collection Route Parameters'!$B$35,IF(AND(D77="N",F77<1,K77=52),'Collection Route Parameters'!$B$37,IF(AND(D77="Y",F77<1,K77=26),'Collection Route Parameters'!$B$36,('Collection Route Parameters'!$B$38)))) -> 878.0357143 | O77: 878.0357143 | P77: ='Truck Assumptions'!$B$5/Municipalities!L77 -> 1153.192405 | Q77: run out of time | R77: 128.5714286 | S77: 128.5714286 | T77: =IF(Q77="run out of space",((N77-P77)/'Collection Route Parameters'!$B$43)-'Collection Route Parameters'!$B$54,"") ->  | U77: 878.0357143 | V77: =ROUNDUP((G77/U77)/'Fuel and Labor Assumptions'!$B$7,0) -> 2 | W77: =V77*'Truck Assumptions'!$B$16 -> 118447.3423 | X77: =(V77*'Fuel and Labor Assumptions'!$B$5)*'Fuel and Labor Assumptions'!$B$6 -> 30 | Y77: 1560 | Z77: =Y77*'Fuel and Labor Assumptions'!$B$4 -> 70200 | AA77: =(((U77*'Collection Route Parameters'!$B$7)*Municipalities!V77)/1000)+(M77*V77) -> 57.56071429 | AB77: 2993.157143 | AC77: =AB77*'Truck Assumptions'!$B$10 -> 3157.780786 | AD77: =AC77*'Fuel and Labor Assumptions'!$B$10 -> 4199.848445 | AE77: 192847.1908 | AF77: =VLOOKUP(B77,'2012 Macro Cost Data'!$B$5:$F$245,5,FALSE) -> 298809.77 | AG77: -105962.5792
A78: Rural Collection - North | B78: 840 | C78: MARATHON, TOWN OF | D78: N | E78: =VLOOKUP(B78,'2012 Program Data'!$B$6:$D$235,3,FALSE) -> 1301 | F78: =VLOOKUP(B78,'2012 Program Data'!$B$6:$E$235,4,FALSE) -> 0 | G78: 1301 | H78: 125.42185 | J78: 137.964035 | K78: =VLOOKUP(B78,'2012 Program Data'!$B$6:$T$235,19,FALSE) -> 26 | L78: 0.002039319384 | M78: 20 | N78: =IF(AND(D78="Y",F78<1,K78=52),'Collection Route Parameters'!$B$35,IF(AND(D78="N",F78<1,K78=52),'Collection Route Parameters'!$B$37,IF(AND(D78="Y",F78<1,K78=26),'Collection Route Parameters'!$B$36,('Collection Route Parameters'!$B$38)))) -> 723.0882353 | O78: 723.0882353 | P78: ='Truck Assumptions'!$B$5/Municipalities!L78 -> 1716.258879 | Q78: run out of time | R78: 105.8823529 | S78: 105.8823529 | T78: =IF(Q78="run out of space",((N78-P78)/'Collection Route Parameters'!$B$43)-'Collection Route Parameters'!$B$54,"") ->  | U78: 723.0882353 | V78: =ROUNDUP((G78/U78)/'Fuel and Labor Assumptions'!$B$7,0) -> 1 | W78: =V78*'Truck Assumptions'!$B$16 -> 59223.67116 | X78: =(V78*'Fuel and Labor Assumptions'!$B$5)*'Fuel and Labor Assumptions'!$B$6 -> 15 | Y78: 390 | Z78: =Y78*'Fuel and Labor Assumptions'!$B$4 -> 17550 | AA78: =(((U78*'Collection Route Parameters'!$B$7)*Municipalities!V78)/1000)+(M78*V78) -> 27.23088235 | AB78: 708.0029412 | AC78: =AB78*'Truck Assumptions'!$B$10 -> 746.9431029 | AD78: =AC78*'Fuel and Labor Assumptions'!$B$10 -> 993.4343269 | AE78: 77767.10549 | AF78: =VLOOKUP(B78,'2012 Macro Cost Data'!$B$5:$F$245,5,FALSE) -> 66690 | AG78: 11077.10549
A79: Rural Collection - North | B79: 888 | C79: TRI-NEIGHBOURS | D79: N | E79: =VLOOKUP(B79,'2012 Program Data'!$B$6:$D$235,3,FALSE) -> 1312 | F79: =VLOOKUP(B79,'2012 Program Data'!$B$6:$E$235,4,FALSE) -> 0 | G79: 1312 | H79: 107.4279 | J79: 118.17069 | K79: 52 | L79: 0.001732098528 | M79: 20 | N79: =IF(AND(D79="Y",F79<1,K79=52),'Collection Route Parameters'!$B$35,IF(AND(D79="N",F79<1,K79=52),'Collection Route Parameters'!$B$37,IF(AND(D79="Y",F79<1,K79=26),'Collection Route Parameters'!$B$36,('Collection Route Parameters'!$B$38)))) -> 878.0357143 | O79: 878.0357143 | P79: ='Truck Assumptions'!$B$5/Municipalities!L79 -> 2020.670269 | Q79: run out of time | R79: 128.5714286 | S79: 128.5714286 | T79: =IF(Q79="run out of space",((N79-P79)/'Collection Route Parameters'!$B$43)-'Collection Route Parameters'!$B$54,"") ->  | U79: 878.0357143 | V79: =ROUNDUP((G79/U79)/'Fuel and Labor Assumptions'!$B$7,0) -> 1 | W79: =V79*'Truck Assumptions'!$B$16 -> 59223.67116 | X79: =(V79*'Fuel and Labor Assumptions'!$B$5)*'Fuel and Labor Assumptions'!$B$6 -> 15 | Y79: 780 | Z79: =Y79*'Fuel and Labor Assumptions'!$B$4 -> 35100 | AA79: =(((U79*'Collection Route Parameters'!$B$7)*Municipalities!V79)/1000)+(M79*V79) -> 28.78035714 | AB79: 1496.578571 | AC79: =AB79*'Truck Assumptions'!$B$10 -> 1578.890393 | AD79: =AC79*'Fuel and Labor Assumptions'!$B$10 -> 2099.924223 | AE79: 96423.59539 | AF79: =VLOOKUP(B79,'2012 Macro Cost Data'!$B$5:$F$245,5,FALSE) -> 29707.53 | AG79: 66716.06539
A80: Rural Collection - North | B80: 889 | C80: PAPINEAU-CAMERON, TOWNSHIP OF | D80: Y | E80: =VLOOKUP(B80,'2012 Program Data'!$B$6:$D$235,3,FALSE) -> 526 | F80: =VLOOKUP(B80,'2012 Program Data'!$B$6:$E$235,4,FALSE) -> 0 | G80: 526 | H80: 55.07131 | J80: 60.578441 | K80: 52 | L80: 0.0022147719 | M80: 20 | N80: =IF(AND(D80="Y",F80<1,K80=52),'Collection Route Parameters'!$B$35,IF(AND(D80="N",F80<1,K80=52),'Collection Route Parameters'!$B$37,IF(AND(D80="Y",F80<1,K80=26),'Collection Route Parameters'!$B$36,('Collection Route Parameters'!$B$38)))) -> 983.6 | O80: 983.6 | P80: ='Truck Assumptions'!$B$5/Municipalities!L80 -> 1580.298179 | Q80: run out of time | R80: 144 | S80: 144 | T80: =IF(Q80="run out of space",((N80-P80)/'Collection Route Parameters'!$B$43)-'Collection Route Parameters'!$B$54,"") ->  | U80: 983.6 | V80: =ROUNDUP((G80/U80)/'Fuel and Labor Assumptions'!$B$7,0) -> 1 | W80: =V80*'Truck Assumptions'!$B$16 -> 59223.67116 | X80: =(V80*'Fuel and Labor Assumptions'!$B$5)*'Fuel and Labor Assumptions'!$B$6 -> 15 | Y80: 780 | Z80: =Y80*'Fuel and Labor Assumptions'!$B$4 -> 35100 | AA80: =(((U80*'Collection Route Parameters'!$B$7)*Municipalities!V80)/1000)+(M80*V80) -> 29.836 | AB80: 1551.472 | AC80: =AB80*'Truck Assumptions'!$B$10 -> 1636.80296 | AD80: =AC80*'Fuel and Labor Assumptions'!$B$10 -> 2176.947937 | AE80: 96500.6191 | AF80: =VLOOKUP(B80,'2012 Macro Cost Data'!$B$5:$F$245,5,FALSE) -> 33993 | AG80: 62507.6191
A81: Rural Collection - North | B81: 891 | C81: POWASSAN, MUNICIPALITY OF | D81: Y | E81: =VLOOKUP(B81,'2012 Program Data'!$B$6:$D$235,3,FALSE) -> 1362 | F81: =VLOOKUP(B81,'2012 Program Data'!$B$6:$E$235,4,FALSE) -> 0 | G81: 1362 | H81: 328.54363 | J81: 361.397993 | K81: =VLOOKUP(B81,'2012 Program Data'!$B$6:$T$235,19,FALSE) -> 26 | L81: 0.005102761677 | M81: 20 | N81: =IF(AND(D81="Y",F81<1,K81=52),'Collection Route Parameters'!$B$35,IF(AND(D81="N",F81<1,K81=52),'Collection Route Parameters'!$B$37,IF(AND(D81="Y",F81<1,K81=26),'Collection Route Parameters'!$B$36,('Collection Route Parameters'!$B$38)))) -> 819.6666667 | O81: 819.6666667 | P81: ='Truck Assumptions'!$B$5/Municipalities!L81 -> 685.9030897 | Q81: run out of space | R81: 120 | S81: 120 | T81: =IF(Q81="run out of space",((N81-P81)/'Collection Route Parameters'!$B$43)-'Collection Route Parameters'!$B$54,"") -> 0.07368653886 | U81: 694.7454743 | V81: =ROUNDUP((G81/U81)/'Fuel and Labor Assumptions'!$B$7,0) -> 1 | W81: =V81*'Truck Assumptions'!$B$16 -> 59223.67116 | X81: =(V81*'Fuel and Labor Assumptions'!$B$5)*'Fuel and Labor Assumptions'!$B$6 -> 15 | Y81: 390 | Z81: =Y81*'Fuel and Labor Assumptions'!$B$4 -> 17550 | AA81: =(((U81*'Collection Route Parameters'!$B$7)*Municipalities!V81)/1000)+(M81*V81) -> 26.94745474 | AB81: 700.6338233 | AC81: =AB81*'Truck Assumptions'!$B$10 -> 739.1686836 | AD81: =AC81*'Fuel and Labor Assumptions'!$B$10 -> 983.0943492 | AE81: 77756.76551 | AF81: =VLOOKUP(B81,'2012 Macro Cost Data'!$B$5:$F$245,5,FALSE) -> 88197.58 | AG81: -10440.81449
A82: Rural Collection - North | B82: 904 | C82: SPANISH, TOWN OF | D82: Y | E82: =VLOOKUP(B82,'2012 Program Data'!$B$6:$D$235,3,FALSE) -> 385 | F82: =VLOOKUP(B82,'2012 Program Data'!$B$6:$E$235,4,FALSE) -> 0 | G82: 385 | H82: 26.279312 | J82: 28.9072432 | K82: 52 | L82: 0.001443918242 | M82: 20 | N82: =IF(AND(D82="Y",F82<1,K82=52),'Collection Route Parameters'!$B$35,IF(AND(D82="N",F82<1,K82=52),'Collection Route Parameters'!$B$37,IF(AND(D82="Y",F82<1,K82=26),'Collection Route Parameters'!$B$36,('Collection Route Parameters'!$B$38)))) -> 983.6 | O82: 983.6 | P82: ='Truck Assumptions'!$B$5/Municipalities!L82 -> 2423.959958 | Q82: run out of time | R82: 144 | S82: 144 | T82: =IF(Q82="run out of space",((N82-P82)/'Collection Route Parameters'!$B$43)-'Collection Route Parameters'!$B$54,"") ->  | U82: 983.6 | V82: =ROUNDUP((G82/U82)/'Fuel and Labor Assumptions'!$B$7,0) -> 1 | W82: =V82*'Truck Assumptions'!$B$16 -> 59223.67116 | X82: =(V82*'Fuel and Labor Assumptions'!$B$5)*'Fuel and Labor Assumptions'!$B$6 -> 15 | Y82: 780 | Z82: =Y82*'Fuel and Labor Assumptions'!$B$4 -> 35100 | AA82: =(((U82*'Collection Route Parameters'!$B$7)*Municipalities!V82)/1000)+(M82*V82) -> 29.836 | AB82: 1551.472 | AC82: =AB82*'Truck Assumptions'!$B$10 -> 1636.80296 | AD82: =AC82*'Fuel and Labor Assumptions'!$B$10 -> 2176.947937 | AE82: 96500.6191 | AF82: =VLOOKUP(B82,'2012 Macro Cost Data'!$B$5:$F$245,5,FALSE) -> 12374 | AG82: 84126.6191
A83: Rural Collection - North | B83: 906 | C83: SIOUX LOOKOUT, THE CORPORATION OF THE MUNICIPALITY OF | D83: Y | E83: =VLOOKUP(B83,'2012 Program Data'!$B$6:$D$235,3,FALSE) -> 2255 | F83: =VLOOKUP(B83,'2012 Program Data'!$B$6:$E$235,4,FALSE) -> 175 | G83: 2430 | H83: 107.186896 | J83: 117.9055856 | K83: 52 | L83: 0.0009330926369 | M83: 20 | N83: =IF(AND(D83="Y",F83<1,K83=52),'Collection Route Parameters'!$B$35,IF(AND(D83="N",F83<1,K83=52),'Collection Route Parameters'!$B$37,IF(AND(D83="Y",F83<1,K83=26),'Collection Route Parameters'!$B$36,('Collection Route Parameters'!$B$38)))) -> 723.0882353 | O83: 723.0882353 | P83: ='Truck Assumptions'!$B$5/Municipalities!L83 -> 3750.967333 | Q83: run out of time | R83: 105.8823529 | S83: 105.8823529 | T83: =IF(Q83="run out of space",((N83-P83)/'Collection Route Parameters'!$B$43)-'Collection Route Parameters'!$B$54,"") ->  | U83: 723.0882353 | V83: =ROUNDUP((G83/U83)/'Fuel and Labor Assumptions'!$B$7,0) -> 1 | W83: =V83*'Truck Assumptions'!$B$16 -> 59223.67116 | X83: =(V83*'Fuel and Labor Assumptions'!$B$5)*'Fuel and Labor Assumptions'!$B$6 -> 15 | Y83: 780 | Z83: =Y83*'Fuel and Labor Assumptions'!$B$4 -> 35100 | AA83: =(((U83*'Collection Route Parameters'!$B$7)*Municipalities!V83)/1000)+(M83*V83) -> 27.23088235 | AB83: 1416.005882 | AC83: =AB83*'Truck Assumptions'!$B$10 -> 1493.886206 | AD83: =AC83*'Fuel and Labor Assumptions'!$B$10 -> 1986.868654 | AE83: 96310.53982 | AF83: =VLOOKUP(B83,'2012 Macro Cost Data'!$B$5:$F$245,5,FALSE) -> 109548.75 | AG83: -13238.21018
A84: Rural Collection - North | B84: 917 | C84: ST. CHARLES, MUNICIPALITY OF | D84: Y | E84: =VLOOKUP(B84,'2012 Program Data'!$B$6:$D$235,3,FALSE) -> 822 | F84: =VLOOKUP(B84,'2012 Program Data'!$B$6:$E$235,4,FALSE) -> 110 | G84: 932 | H84: 54.836976 | J84: 60.3206736 | K84: 52 | L84: 0.001244649092 | M84: 20 | N84: =IF(AND(D84="Y",F84<1,K84=52),'Collection Route Parameters'!$B$35,IF(AND(D84="N",F84<1,K84=52),'Collection Route Parameters'!$B$37,IF(AND(D84="Y",F84<1,K84=26),'Collection Route Parameters'!$B$36,('Collection Route Parameters'!$B$38)))) -> 723.0882353 | O84: 723.0882353 | P84: ='Truck Assumptions'!$B$5/Municipalities!L84 -> 2812.037563 | Q84: run out of time | R84: 105.8823529 | S84: 105.8823529 | T84: =IF(Q84="run out of space",((N84-P84)/'Collection Route Parameters'!$B$43)-'Collection Route Parameters'!$B$54,"") ->  | U84: 723.0882353 | V84: =ROUNDUP((G84/U84)/'Fuel and Labor Assumptions'!$B$7,0) -> 1 | W84: =V84*'Truck Assumptions'!$B$16 -> 59223.67116 | X84: =(V84*'Fuel and Labor Assumptions'!$B$5)*'Fuel and Labor Assumptions'!$B$6 -> 15 | Y84: 780 | Z84: =Y84*'Fuel and Labor Assumptions'!$B$4 -> 35100 | AA84: =(((U84*'Collection Route Parameters'!$B$7)*Municipalities!V84)/1000)+(M84*V84) -> 27.23088235 | AB84: 1416.005882 | AC84: =AB84*'Truck Assumptions'!$B$10 -> 1493.886206 | AD84: =AC84*'Fuel and Labor Assumptions'!$B$10 -> 1986.868654 | AE84: 96310.53982 | AF84: =VLOOKUP(B84,'2012 Macro Cost Data'!$B$5:$F$245,5,FALSE) -> 28349.4 | AG84: 67961.13982
A85: Rural Collection - North | B85: 957 | C85: CHISHOLM, TOWNSHIP OF | D85: Y | E85: =VLOOKUP(B85,'2012 Program Data'!$B$6:$D$235,3,FALSE) -> 635 | F85: =VLOOKUP(B85,'2012 Program Data'!$B$6:$E$235,4,FALSE) -> 0 | G85: 635 | H85: 84.029448 | J85: 92.4323928 | K85: 52 | L85: 0.002799285064 | M85: 20 | N85: =IF(AND(D85="Y",F85<1,K85=52),'Collection Route Parameters'!$B$35,IF(AND(D85="N",F85<1,K85=52),'Collection Route Parameters'!$B$37,IF(AND(D85="Y",F85<1,K85=26),'Collection Route Parameters'!$B$36,('Collection Route Parameters'!$B$38)))) -> 983.6 | O85: 983.6 | P85: ='Truck Assumptions'!$B$5/Municipalities!L85 -> 1250.31925 | Q85: run out of time | R85: 144 | S85: 144 | T85: =IF(Q85="run out of space",((N85-P85)/'Collection Route Parameters'!$B$43)-'Collection Route Parameters'!$B$54,"") ->  | U85: 983.6 | V85: =ROUNDUP((G85/U85)/'Fuel and Labor Assumptions'!$B$7,0) -> 1 | W85: =V85*'Truck Assumptions'!$B$16 -> 59223.67116 | X85: =(V85*'Fuel and Labor Assumptions'!$B$5)*'Fuel and Labor Assumptions'!$B$6 -> 15 | Y85: 780 | Z85: =Y85*'Fuel and Labor Assumptions'!$B$4 -> 35100 | AA85: =(((U85*'Collection Route Parameters'!$B$7)*Municipalities!V85)/1000)+(M85*V85) -> 29.836 | AB85: 1551.472 | AC85: =AB85*'Truck Assumptions'!$B$10 -> 1636.80296 | AD85: =AC85*'Fuel and Labor Assumptions'!$B$10 -> 2176.947937 | AE85: 96500.6191 | AF85: =VLOOKUP(B85,'2012 Macro Cost Data'!$B$5:$F$245,5,FALSE) -> 31330.61 | AG85: 65170.0091
A86: Rural Collection - North | B86: 959 | C86: EAST FERRIS, TOWNSHIP OF | D86: Y | E86: =VLOOKUP(B86,'2012 Program Data'!$B$6:$D$235,3,FALSE) -> 2081 | F86: =VLOOKUP(B86,'2012 Program Data'!$B$6:$E$235,4,FALSE) -> 0 | G86: 2081 | H86: 347.196496 | J86: 381.9161456 | K86: =VLOOKUP(B86,'2012 Program Data'!$B$6:$T$235,19,FALSE) -> 26 | L86: 0.003529332658 | M86: 20 | N86: =IF(AND(D86="Y",F86<1,K86=52),'Collection Route Parameters'!$B$35,IF(AND(D86="N",F86<1,K86=52),'Collection Route Parameters'!$B$37,IF(AND(D86="Y",F86<1,K86=26),'Collection Route Parameters'!$B$36,('Collection Route Parameters'!$B$38)))) -> 819.6666667 | O86: 819.6666667 | P86: ='Truck Assumptions'!$B$5/Municipalities!L86 -> 991.6888939 | Q86: run out of time | R86: 120 | S86: 120 | T86: =IF(Q86="run out of space",((N86-P86)/'Collection Route Parameters'!$B$43)-'Collection Route Parameters'!$B$54,"") ->  | U86: 819.6666667 | V86: =ROUNDUP((G86/U86)/'Fuel and Labor Assumptions'!$B$7,0) -> 1 | W86: =V86*'Truck Assumptions'!$B$16 -> 59223.67116 | X86: =(V86*'Fuel and Labor Assumptions'!$B$5)*'Fuel and Labor Assumptions'!$B$6 -> 15 | Y86: 390 | Z86: =Y86*'Fuel and Labor Assumptions'!$B$4 -> 17550 | AA86: =(((U86*'Collection Route Parameters'!$B$7)*Municipalities!V86)/1000)+(M86*V86) -> 28.19666667 | AB86: 733.1133333 | AC86: =AB86*'Truck Assumptions'!$B$10 -> 773.4345667 | AD86: =AC86*'Fuel and Labor Assumptions'!$B$10 -> 1028.667974 | AE86: 77802.33914 | AF86: =VLOOKUP(B86,'2012 Macro Cost Data'!$B$5:$F$245,5,FALSE) -> 61219.14 | AG86: 16583.19914
A87: Rural Collection - North | B87: 969 | C87: RAINY RIVER FIRST NATIONS | D87: N | E87: =VLOOKUP(B87,'2012 Program Data'!$B$6:$D$235,3,FALSE) -> 108 | F87: =VLOOKUP(B87,'2012 Program Data'!$B$6:$E$235,4,FALSE) -> 0 | G87: 108 | H87: 12.65268 | J87: 13.917948 | K87: 52 | L87: 0.002478267094 | M87: 20 | N87: =IF(AND(D87="Y",F87<1,K87=52),'Collection Route Parameters'!$B$35,IF(AND(D87="N",F87<1,K87=52),'Collection Route Parameters'!$B$37,IF(AND(D87="Y",F87<1,K87=26),'Collection Route Parameters'!$B$36,('Collection Route Parameters'!$B$38)))) -> 878.0357143 | O87: 878.0357143 | P87: ='Truck Assumptions'!$B$5/Municipalities!L87 -> 1412.277155 | Q87: run out of time | R87: 128.5714286 | S87: 128.5714286 | T87: =IF(Q87="run out of space",((N87-P87)/'Collection Route Parameters'!$B$43)-'Collection Route Parameters'!$B$54,"") ->  | U87: 878.0357143 | V87: =ROUNDUP((G87/U87)/'Fuel and Labor Assumptions'!$B$7,0) -> 1 | W87: =V87*'Truck Assumptions'!$B$16 -> 59223.67116 | X87: =(V87*'Fuel and Labor Assumptions'!$B$5)*'Fuel and Labor Assumptions'!$B$6 -> 15 | Y87: 780 | Z87: =Y87*'Fuel and Labor Assumptions'!$B$4 -> 35100 | AA87: =(((U87*'Collection Route Parameters'!$B$7)*Municipalities!V87)/1000)+(M87*V87) -> 28.78035714 | AB87: 1496.578571 | AC87: =AB87*'Truck Assumptions'!$B$10 -> 1578.890393 | AD87: =AC87*'Fuel and Labor Assumptions'!$B$10 -> 2099.924223 | AE87: 96423.59539 | AF87: =VLOOKUP(B87,'2012 Macro Cost Data'!$B$5:$F$245,5,FALSE) -> 9722.66 | AG87: 86700.93539
A88: Rural Collection - North | B88: 970 | C88: CALLANDER, MUNICIPALITY OF | D88: N | E88: =VLOOKUP(B88,'2012 Program Data'!$B$6:$D$235,3,FALSE) -> 1677 | F88: =VLOOKUP(B88,'2012 Program Data'!$B$6:$E$235,4,FALSE) -> 0 | G88: 1677 | H88: 201.44284 | J88: 221.587124 | K88: =VLOOKUP(B88,'2012 Program Data'!$B$6:$T$235,19,FALSE) -> 52 | L88: 0.002541020183 | M88: 20 | N88: =IF(AND(D88="Y",F88<1,K88=52),'Collection Route Parameters'!$B$35,IF(AND(D88="N",F88<1,K88=52),'Collection Route Parameters'!$B$37,IF(AND(D88="Y",F88<1,K88=26),'Collection Route Parameters'!$B$36,('Collection Route Parameters'!$B$38)))) -> 878.0357143 | O88: 878.0357143 | P88: ='Truck Assumptions'!$B$5/Municipalities!L88 -> 1377.399528 | Q88: run out of time | R88: 128.5714286 | S88: 128.5714286 | T88: =IF(Q88="run out of space",((N88-P88)/'Collection Route Parameters'!$B$43)-'Collection Route Parameters'!$B$54,"") ->  | U88: 878.0357143 | V88: =ROUNDUP((G88/U88)/'Fuel and Labor Assumptions'!$B$7,0) -> 1 | W88: =V88*'Truck Assumptions'!$B$16 -> 59223.67116 | X88: =(V88*'Fuel and Labor Assumptions'!$B$5)*'Fuel and Labor Assumptions'!$B$6 -> 15 | Y88: 780 | Z88: =Y88*'Fuel and Labor Assumptions'!$B$4 -> 35100 | AA88: =(((U88*'Collection Route Parameters'!$B$7)*Municipalities!V88)/1000)+(M88*V88) -> 28.78035714 | AB88: 1496.578571 | AC88: =AB88*'Truck Assumptions'!$B$10 -> 1578.890393 | AD88: =AC88*'Fuel and Labor Assumptions'!$B$10 -> 2099.924223 | AE88: 96423.59539 | AF88: =VLOOKUP(B88,'2012 Macro Cost Data'!$B$5:$F$245,5,FALSE) -> 45623.83 | AG88: 50799.76539
A89: Rural Collection - North | B89: 986 | C89: BATCHEWANA FIRST NATIONS OJIBWAYS | D89: Y | E89: =VLOOKUP(B89,'2012 Program Data'!$B$6:$D$235,3,FALSE) -> 263 | F89: =VLOOKUP(B89,'2012 Program Data'!$B$6:$E$235,4,FALSE) -> 0 | G89: 263 | H89: 8.713392 | J89: 9.5847312 | K89: =VLOOKUP(B89,'2012 Program Data'!$B$6:$T$235,19,FALSE) -> 52 | L89: 0.0007008431705 | M89: 20 | N89: =IF(AND(D89="Y",F89<1,K89=52),'Collection Route Parameters'!$B$35,IF(AND(D89="N",F89<1,K89=52),'Collection Route Parameters'!$B$37,IF(AND(D89="Y",F89<1,K89=26),'Collection Route Parameters'!$B$36,('Collection Route Parameters'!$B$38)))) -> 983.6 | O89: 983.6 | P89: ='Truck Assumptions'!$B$5/Municipalities!L89 -> 4993.984599 | Q89: run out of time | R89: 144 | S89: 144 | T89: =IF(Q89="run out of space",((N89-P89)/'Collection Route Parameters'!$B$43)-'Collection Route Parameters'!$B$54,"") ->  | U89: 983.6 | V89: =ROUNDUP((G89/U89)/'Fuel and Labor Assumptions'!$B$7,0) -> 1 | W89: =V89*'Truck Assumptions'!$B$16 -> 59223.67116 | X89: =(V89*'Fuel and Labor Assumptions'!$B$5)*'Fuel and Labor Assumptions'!$B$6 -> 15 | Y89: 780 | Z89: =Y89*'Fuel and Labor Assumptions'!$B$4 -> 35100 | AA89: =(((U89*'Collection Route Parameters'!$B$7)*Municipalities!V89)/1000)+(M89*V89) -> 29.836 | AB89: 1551.472 | AC89: =AB89*'Truck Assumptions'!$B$10 -> 1636.80296 | AD89: =AC89*'Fuel and Labor Assumptions'!$B$10 -> 2176.947937 | AE89: 96500.6191 | AF89: =VLOOKUP(B89,'2012 Macro Cost Data'!$B$5:$F$245,5,FALSE) -> 23839.19 | AG89: 72661.4291
A90: Rural Collection - North | B90: 988 | C90: NIPPISING FIRST NATION | D90: Y | E90: =VLOOKUP(B90,'2012 Program Data'!$B$6:$D$235,3,FALSE) -> 732 | F90: =VLOOKUP(B90,'2012 Program Data'!$B$6:$E$235,4,FALSE) -> 0 | G90: 732 | H90: 62.01885 | J90: 68.220735 | K90: 26 | L90: 0.00179226395 | M90: 20 | N90: =IF(AND(D90="Y",F90<1,K90=52),'Collection Route Parameters'!$B$35,IF(AND(D90="N",F90<1,K90=52),'Collection Route Parameters'!$B$37,IF(AND(D90="Y",F90<1,K90=26),'Collection Route Parameters'!$B$36,('Collection Route Parameters'!$B$38)))) -> 819.6666667 | O90: 819.6666667 | P90: ='Truck Assumptions'!$B$5/Municipalities!L90 -> 1952.837359 | Q90: run out of time | R90: 120 | S90: 120 | T90: =IF(Q90="run out of space",((N90-P90)/'Collection Route Parameters'!$B$43)-'Collection Route Parameters'!$B$54,"") ->  | U90: 819.6666667 | V90: =ROUNDUP((G90/U90)/'Fuel and Labor Assumptions'!$B$7,0) -> 1 | W90: =V90*'Truck Assumptions'!$B$16 -> 59223.67116 | X90: =(V90*'Fuel and Labor Assumptions'!$B$5)*'Fuel and Labor Assumptions'!$B$6 -> 15 | Y90: 390 | Z90: =Y90*'Fuel and Labor Assumptions'!$B$4 -> 17550 | AA90: =(((U90*'Collection Route Parameters'!$B$7)*Municipalities!V90)/1000)+(M90*V90) -> 28.19666667 | AB90: 733.1133333 | AC90: =AB90*'Truck Assumptions'!$B$10 -> 773.4345667 | AD90: =AC90*'Fuel and Labor Assumptions'!$B$10 -> 1028.667974 | AE90: 77802.33914 | AF90: =VLOOKUP(B90,'2012 Macro Cost Data'!$B$5:$F$245,5,FALSE) -> 26731.7 | AG90: 51070.63914
A91: Rural Collection South | B91: 39 | C91: NORTH HURON, TOWNSHIP OF | D91: N | E91: =VLOOKUP(B91,'2012 Program Data'!$B$6:$D$235,3,FALSE) -> 2234 | F91: =VLOOKUP(B91,'2012 Program Data'!$B$6:$E$235,4,FALSE) -> 0 | G91: 2234 | H91: 469.10572 | J91: 516.016292 | K91: 52 | L91: 0.004441983093 | M91: 20 | N91: =IF(AND(D91="Y",F91<1,K91=52),'Collection Route Parameters'!$B$35,IF(AND(D91="N",F91<1,K91=52),'Collection Route Parameters'!$B$37,IF(AND(D91="Y",F91<1,K91=26),'Collection Route Parameters'!$B$36,('Collection Route Parameters'!$B$38)))) -> 878.0357143 | O91: 878.0357143 | P91: ='Truck Assumptions'!$B$5/Municipalities!L91 -> 787.9363623 | Q91: run out of space | R91: 128.5714286 | S91: 128.5714286 | U91: 878.0357143 | V91: =ROUNDUP((G91/U91)/'Fuel and Labor Assumptions'!$B$7,0) -> 1 | W91: =V91*'Truck Assumptions'!$B$16 -> 59223.67116 | X91: =(V91*'Fuel and Labor Assumptions'!$B$5)*'Fuel and Labor Assumptions'!$B$6 -> 15 | Y91: 780 | Z91: =Y91*'Fuel and Labor Assumptions'!$B$4 -> 35100 | AA91: =(((U91*'Collection Route Parameters'!$B$7)*Municipalities!V91)/1000)+(M91*V91) -> 28.78035714 | AB91: 1496.578571 | AC91: =AB91*'Truck Assumptions'!$B$10 -> 1578.890393 | AD91: =AC91*'Fuel and Labor Assumptions'!$B$10 -> 2099.924223 | AE91: 96423.59539 | AF91: =VLOOKUP(B91,'2012 Macro Cost Data'!$B$5:$F$245,5,FALSE) -> 84116.14 | AG91: 12307.45539
A92: Rural Collection South | B92: 59 | C92: ASHFIELD-COLBORNE-WAWANOSH, TOWNSHIP OF | D92: Y | E92: =VLOOKUP(B92,'2012 Program Data'!$B$6:$D$235,3,FALSE) -> 3096 | F92: =VLOOKUP(B92,'2012 Program Data'!$B$6:$E$235,4,FALSE) -> 0 | G92: 3096 | H92: 251.44484 | J92: 276.589324 | K92: 52 | L92: 0.00171803148 | M92: 20 | N92: =IF(AND(D92="Y",F92<1,K92=52),'Collection Route Parameters'!$B$35,IF(AND(D92="N",F92<1,K92=52),'Collection Route Parameters'!$B$37,IF(AND(D92="Y",F92<1,K92=26),'Collection Route Parameters'!$B$36,('Collection Route Parameters'!$B$38)))) -> 983.6 | O92: 983.6 | P92: ='Truck Assumptions'!$B$5/Municipalities!L92 -> 2037.21529 | Q92: run out of time | R92: 144 | S92: 144 | T92: =IF(Q92="run out of space",((N92-P92)/'Collection Route Parameters'!$B$43)-'Collection Route Parameters'!$B$54,"") ->  | U92: 983.6 | V92: =ROUNDUP((G92/U92)/'Fuel and Labor Assumptions'!$B$7,0) -> 1 | W92: =V92*'Truck Assumptions'!$B$16 -> 59223.67116 | X92: =(V92*'Fuel and Labor Assumptions'!$B$5)*'Fuel and Labor Assumptions'!$B$6 -> 15 | Y92: 780 | Z92: =Y92*'Fuel and Labor Assumptions'!$B$4 -> 35100 | AA92: =(((U92*'Collection Route Parameters'!$B$7)*Municipalities!V92)/1000)+(M92*V92) -> 29.836 | AB92: 1551.472 | AC92: =AB92*'Truck Assumptions'!$B$10 -> 1636.80296 | AD92: =AC92*'Fuel and Labor Assumptions'!$B$10 -> 2176.947937 | AE92: 96500.6191 | AF92: =VLOOKUP(B92,'2012 Macro Cost Data'!$B$5:$F$245,5,FALSE) -> 114785.28 | AG92: -18284.6609
A93: Rural Collection South | B93: 128 | C93: HOWICK, TOWNSHIP OF | D93: Y | E93: =VLOOKUP(B93,'2012 Program Data'!$B$6:$D$235,3,FALSE) -> 1410 | F93: =VLOOKUP(B93,'2012 Program Data'!$B$6:$E$235,4,FALSE) -> 0 | G93: 1410 | H93: 158.815048 | J93: 174.6965528 | K93: =VLOOKUP(B93,'2012 Program Data'!$B$6:$T$235,19,FALSE) -> 26 | L93: 0.002382658931 | M93: 20 | N93: =IF(AND(D93="Y",F93<1,K93=52),'Collection Route Parameters'!$B$35,IF(AND(D93="N",F93<1,K93=52),'Collection Route Parameters'!$B$37,IF(AND(D93="Y",F93<1,K93=26),'Collection Route Parameters'!$B$36,('Collection Route Parameters'!$B$38)))) -> 819.6666667 | O93: 819.6666667 | P93: ='Truck Assumptions'!$B$5/Municipalities!L93 -> 1468.947131 | Q93: run out of time | R93: 120 | S93: 120 | T93: =IF(Q93="run out of space",((N93-P93)/'Collection Route Parameters'!$B$43)-'Collection Route Parameters'!$B$54,"") ->  | U93: 819.6666667 | V93: =ROUNDUP((G93/U93)/'Fuel and Labor Assumptions'!$B$7,0) -> 1 | W93: =V93*'Truck Assumptions'!$B$16 -> 59223.67116 | X93: =(V93*'Fuel and Labor Assumptions'!$B$5)*'Fuel and Labor Assumptions'!$B$6 -> 15 | Y93: 390 | Z93: =Y93*'Fuel and Labor Assumptions'!$B$4 -> 17550 | AA93: =(((U93*'Collection Route Parameters'!$B$7)*Municipalities!V93)/1000)+(M93*V93) -> 28.19666667 | AB93: 733.1133333 | AC93: =AB93*'Truck Assumptions'!$B$10 -> 773.4345667 | AD93: =AC93*'Fuel and Labor Assumptions'!$B$10 -> 1028.667974 | AE93: 77802.33914 | AF93: =VLOOKUP(B93,'2012 Macro Cost Data'!$B$5:$F$245,5,FALSE) -> 43976 | AG93: 33826.33914
A94: Rural Collection South | B94: 152 | C94: CHATSWORTH, TOWNSHIP OF | D94: N | E94: =VLOOKUP(B94,'2012 Program Data'!$B$6:$D$235,3,FALSE) -> 3175 | F94: =VLOOKUP(B94,'2012 Program Data'!$B$6:$E$235,4,FALSE) -> 0 | G94: 3175 | H94: 339.604888 | J94: 373.5653768 | K94: =VLOOKUP(B94,'2012 Program Data'!$B$6:$T$235,19,FALSE) -> 26 | L94: 0.002262661277 | M94: 20 | N94: =IF(AND(D94="Y",F94<1,K94=52),'Collection Route Parameters'!$B$35,IF(AND(D94="N",F94<1,K94=52),'Collection Route Parameters'!$B$37,IF(AND(D94="Y",F94<1,K94=26),'Collection Route Parameters'!$B$36,('Collection Route Parameters'!$B$38)))) -> 723.0882353 | O94: 723.0882353 | P94: ='Truck Assumptions'!$B$5/Municipalities!L94 -> 1546.851062 | Q94: run out of time | R94: 105.8823529 | S94: 105.8823529 | T94: =IF(Q94="run out of space",((N94-P94)/'Collection Route Parameters'!$B$43)-'Collection Route Parameters'!$B$54,"") ->  | U94: 723.0882353 | V94: =ROUNDUP((G94/U94)/'Fuel and Labor Assumptions'!$B$7,0) -> 1 | W94: =V94*'Truck Assumptions'!$B$16 -> 59223.67116 | X94: =(V94*'Fuel and Labor Assumptions'!$B$5)*'Fuel and Labor Assumptions'!$B$6 -> 15 | Y94: 390 | Z94: =Y94*'Fuel and Labor Assumptions'!$B$4 -> 17550 | AA94: =(((U94*'Collection Route Parameters'!$B$7)*Municipalities!V94)/1000)+(M94*V94) -> 27.23088235 | AB94: 708.0029412 | AC94: =AB94*'Truck Assumptions'!$B$10 -> 746.9431029 | AD94: =AC94*'Fuel and Labor Assumptions'!$B$10 -> 993.4343269 | AE94: 77767.10549 | AF94: =VLOOKUP(B94,'2012 Macro Cost Data'!$B$5:$F$245,5,FALSE) -> 103089.17 | AG94: -25322.06451
A95: Rural Collection South | B95: 162 | C95: THE BLUE MOUNTAINS, TOWN OF | D95: N | E95: =VLOOKUP(B95,'2012 Program Data'!$B$6:$D$235,3,FALSE) -> 5899 | F95: =VLOOKUP(B95,'2012 Program Data'!$B$6:$E$235,4,FALSE) -> 1312 | G95: 7248 | H95: 791.49 | J95: 870.639 | K95: 52 | L95: 0.002310024516 | M95: 20 | N95: =IF(AND(D95="Y",F95<1,K95=52),'Collection Route Parameters'!$B$35,IF(AND(D95="N",F95<1,K95=52),'Collection Route Parameters'!$B$37,IF(AND(D95="Y",F95<1,K95=26),'Collection Route Parameters'!$B$36,('Collection Route Parameters'!$B$38)))) -> 723.0882353 | O95: 723.0882353 | P95: ='Truck Assumptions'!$B$5/Municipalities!L95 -> 1515.135435 | Q95: run out of time | R95: 105.8823529 | S95: 105.8823529 | T95: =IF(Q95="run out of space",((N95-P95)/'Collection Route Parameters'!$B$43)-'Collection Route Parameters'!$B$54,"") ->  | U95: 723.0882353 | V95: =ROUNDUP((G95/U95)/'Fuel and Labor Assumptions'!$B$7,0) -> 3 | W95: =V95*'Truck Assumptions'!$B$16 -> 177671.0135 | X95: =(V95*'Fuel and Labor Assumptions'!$B$5)*'Fuel and Labor Assumptions'!$B$6 -> 45 | Y95: 2340 | Z95: =Y95*'Fuel and Labor Assumptions'!$B$4 -> 105300 | AA95: =(((U95*'Collection Route Parameters'!$B$7)*Municipalities!V95)/1000)+(M95*V95) -> 81.69264706 | AB95: 4248.017647 | AC95: =AB95*'Truck Assumptions'!$B$10 -> 4481.658618 | AD95: =AC95*'Fuel and Labor Assumptions'!$B$10 -> 5960.605961 | AE95: 288931.6195 | AF95: =VLOOKUP(B95,'2012 Macro Cost Data'!$B$5:$F$245,5,FALSE) -> 279694.23 | AG95: 9237.389454
A96: Rural Collection South | B96: 166 | C96: THAMES CENTRE, MUNICIPALITY OF | D96: N | E96: =VLOOKUP(B96,'2012 Program Data'!$B$6:$D$235,3,FALSE) -> 4762 | F96: =VLOOKUP(B96,'2012 Program Data'!$B$6:$E$235,4,FALSE) -> 0 | G96: 4762 | H96: 1039.06801 | J96: 1142.974811 | K96: =VLOOKUP(B96,'2012 Program Data'!$B$6:$T$235,19,FALSE) -> 36 | L96: 0.004615767498 | M96: 20 | N96: =IF(AND(D96="Y",F96<1,K96=52),'Collection Route Parameters'!$B$35,IF(AND(D96="N",F96<1,K96=52),'Collection Route Parameters'!$B$37,IF(AND(D96="Y",F96<1,K96=26),'Collection Route Parameters'!$B$36,('Collection Route Parameters'!$B$38)))) -> 723.0882353 | O96: 723.0882353 | P96: ='Truck Assumptions'!$B$5/Municipalities!L96 -> 758.2704288 | Q96: run out of time | R96: 105.8823529 | S96: 105.8823529 | T96: =IF(Q96="run out of space",((N96-P96)/'Collection Route Parameters'!$B$43)-'Collection Route Parameters'!$B$54,"") ->  | U96: 723.0882353 | V96: =ROUNDUP((G96/U96)/'Fuel and Labor Assumptions'!$B$7,0) -> 2 | W96: =V96*'Truck Assumptions'!$B$16 -> 118447.3423 | X96: =(V96*'Fuel and Labor Assumptions'!$B$5)*'Fuel and Labor Assumptions'!$B$6 -> 30 | Y96: 1080 | Z96: =Y96*'Fuel and Labor Assumptions'!$B$4 -> 48600 | AA96: =(((U96*'Collection Route Parameters'!$B$7)*Municipalities!V96)/1000)+(M96*V96) -> 54.46176471 | AB96: 1960.623529 | AC96: =AB96*'Truck Assumptions'!$B$10 -> 2068.457824 | AD96: =AC96*'Fuel and Labor Assumptions'!$B$10 -> 2751.048905 | AE96: 169798.3912 | AF96: =VLOOKUP(B96,'2012 Macro Cost Data'!$B$5:$F$245,5,FALSE) -> 319047.52 | AG96: -149249.1288
A97: Rural Collection South | B97: 192 | C97: WEST ELGIN, MUNICIPALITY OF | D97: N | E97: =VLOOKUP(B97,'2012 Program Data'!$B$6:$D$235,3,FALSE) -> 1180 | F97: =VLOOKUP(B97,'2012 Program Data'!$B$6:$E$235,4,FALSE) -> 1780 | G97: 2960 | H97: 177.99 | J97: 195.789 | K97: =VLOOKUP(B97,'2012 Program Data'!$B$6:$T$235,19,FALSE) -> 36 | L97: 0.001272017931 | M97: 20 | N97: =IF(AND(D97="Y",F97<1,K97=52),'Collection Route Parameters'!$B$35,IF(AND(D97="N",F97<1,K97=52),'Collection Route Parameters'!$B$37,IF(AND(D97="Y",F97<1,K97=26),'Collection Route Parameters'!$B$36,('Collection Route Parameters'!$B$38)))) -> 723.0882353 | O97: 723.0882353 | P97: ='Truck Assumptions'!$B$5/Municipalities!L97 -> 2751.533539 | Q97: run out of time | R97: 105.8823529 | S97: 105.8823529 | T97: =IF(Q97="run out of space",((N97-P97)/'Collection Route Parameters'!$B$43)-'Collection Route Parameters'!$B$54,"") ->  | U97: 723.0882353 | V97: =ROUNDUP((G97/U97)/'Fuel and Labor Assumptions'!$B$7,0) -> 1 | W97: =V97*'Truck Assumptions'!$B$16 -> 59223.67116 | X97: =(V97*'Fuel and Labor Assumptions'!$B$5)*'Fuel and Labor Assumptions'!$B$6 -> 15 | Y97: 540 | Z97: =Y97*'Fuel and Labor Assumptions'!$B$4 -> 24300 | AA97: =(((U97*'Collection Route Parameters'!$B$7)*Municipalities!V97)/1000)+(M97*V97) -> 27.23088235 | AB97: 980.3117647 | AC97: =AB97*'Truck Assumptions'!$B$10 -> 1034.228912 | AD97: =AC97*'Fuel and Labor Assumptions'!$B$10 -> 1375.524453 | AE97: 84899.19562 | AF97: =VLOOKUP(B97,'2012 Macro Cost Data'!$B$5:$F$245,5,FALSE) -> 45913.81 | AG97: 38985.38562
A98: Rural Collection South | B98: 194 | C98: AMARANTH, TOWNSHIP OF | D98: N | E98: =VLOOKUP(B98,'2012 Program Data'!$B$6:$D$235,3,FALSE) -> 1374 | F98: =VLOOKUP(B98,'2012 Program Data'!$B$6:$E$235,4,FALSE) -> 0 | G98: 1374 | H98: 271.12 | J98: 298.232 | K98: 52 | L98: 0.004174112641 | M98: 20 | N98: =IF(AND(D98="Y",F98<1,K98=52),'Collection Route Parameters'!$B$35,IF(AND(D98="N",F98<1,K98=52),'Collection Route Parameters'!$B$37,IF(AND(D98="Y",F98<1,K98=26),'Collection Route Parameters'!$B$36,('Collection Route Parameters'!$B$38)))) -> 878.0357143 | O98: 878.0357143 | P98: ='Truck Assumptions'!$B$5/Municipalities!L98 -> 838.5015692 | Q98: run out of space | R98: 128.5714286 | S98: 128.5714286 | U98: 878.0357143 | V98: =ROUNDUP((G98/U98)/'Fuel and Labor Assumptions'!$B$7,0) -> 1 | W98: =V98*'Truck Assumptions'!$B$16 -> 59223.67116 | X98: =(V98*'Fuel and Labor Assumptions'!$B$5)*'Fuel and Labor Assumptions'!$B$6 -> 15 | Y98: 780 | Z98: =Y98*'Fuel and Labor Assumptions'!$B$4 -> 35100 | AA98: =(((U98*'Collection Route Parameters'!$B$7)*Municipalities!V98)/1000)+(M98*V98) -> 28.78035714 | AB98: 1496.578571 | AC98: =AB98*'Truck Assumptions'!$B$10 -> 1578.890393 | AD98: =AC98*'Fuel and Labor Assumptions'!$B$10 -> 2099.924223 | AE98: 96423.59539 | AF98: =VLOOKUP(B98,'2012 Macro Cost Data'!$B$5:$F$245,5,FALSE) -> 44215.55 | AG98: 52208.04539
A99: Rural Collection South | B99: 201 | C99: MONO, TOWN OF | D99: Y | E99: =VLOOKUP(B99,'2012 Program Data'!$B$6:$D$235,3,FALSE) -> 2881 | F99: =VLOOKUP(B99,'2012 Program Data'!$B$6:$E$235,4,FALSE) -> 0 | G99: 2881 | H99: 681.66 | J99: 749.826 | K99: 52 | L99: 0.005005113075 | M99: 20 | N99: =IF(AND(D99="Y",F99<1,K99=52),'Collection Route Parameters'!$B$35,IF(AND(D99="N",F99<1,K99=52),'Collection Route Parameters'!$B$37,IF(AND(D99="Y",F99<1,K99=26),'Collection Route Parameters'!$B$36,('Collection Route Parameters'!$B$38)))) -> 983.6 | O99: 983.6 | P99: ='Truck Assumptions'!$B$5/Municipalities!L99 -> 699.2849008 | Q99: run out of space | R99: =IF(N99=$AL$15,$AL$3,IF(N99=$AL$16,$AL$4,IF(N99=$AL$17,$AL$5,IF(N99=$AL$6,$AL$18,IF(N99=$AL$19,$AL$7,IF(N99=$AL$20,$AL$8,IF(N99=$AL$21,$AL$9,$AL$10))))))) -> 144 | S99: 144 | T99: =IF(Q99="run out of space",((N99-P99)/'Collection Route Parameters'!$B$43)-'Collection Route Parameters'!$B$54,"") -> 0.9100838846 | U99: 830.3369802 | V99: =ROUNDUP((G99/U99)/'Fuel and Labor Assumptions'!$B$7,0) -> 1 | W99: =V99*'Truck Assumptions'!$B$16 -> 59223.67116 | X99: =(V99*'Fuel and Labor Assumptions'!$B$5)*'Fuel and Labor Assumptions'!$B$6 -> 15 | Y99: 780 | Z99: =Y99*'Fuel and Labor Assumptions'!$B$4 -> 35100 | AA99: =(((U99*'Collection Route Parameters'!$B$7)*Municipalities!V99)/1000)+(M99*V99) -> 28.3033698 | AB99: 1471.77523 | AC99: =AB99*'Truck Assumptions'!$B$10 -> 1552.722867 | AD99: =AC99*'Fuel and Labor Assumptions'!$B$10 -> 2065.121414 | AE99: 96388.79258 | AF99: =VLOOKUP(B99,'2012 Macro Cost Data'!$B$5:$F$245,5,FALSE) -> 132468.32 | AG99: -36079.52742
A100: Rural Collection South | B100: 212 | C100: GEORGIAN BLUFFS, TOWNSHIP OF | D100: N | E100: =VLOOKUP(B100,'2012 Program Data'!$B$6:$D$235,3,FALSE) -> 5165 | F100: =VLOOKUP(B100,'2012 Program Data'!$B$6:$E$235,4,FALSE) -> 0 | G100: 5165 | H100: 567.579224 | J100: 624.3371464 | K100: 52 | L100: 0.002324585399 | M100: 20 | N100: =IF(AND(D100="Y",F100<1,K100=52),'Collection Route Parameters'!$B$35,IF(AND(D100="N",F100<1,K100=52),'Collection Route Parameters'!$B$37,IF(AND(D100="Y",F100<1,K100=26),'Collection Route Parameters'!$B$36,('Collection Route Parameters'!$B$38)))) -> 878.0357143 | O100: 878.0357143 | P100: ='Truck Assumptions'!$B$5/Municipalities!L100 -> 1505.644835 | Q100: run out of time | R100: 128.5714286 | S100: 128.5714286 | T100: =IF(Q100="run out of space",((N100-P100)/'Collection Route Parameters'!$B$43)-'Collection Route Parameters'!$B$54,"") ->  | U100: 878.0357143 | V100: =ROUNDUP((G100/U100)/'Fuel and Labor Assumptions'!$B$7,0) -> 2 | W100: =V100*'Truck Assumptions'!$B$16 -> 118447.3423 | X100: =(V100*'Fuel and Labor Assumptions'!$B$5)*'Fuel and Labor Assumptions'!$B$6 -> 30 | Y100: 1560 | Z100: =Y100*'Fuel and Labor Assumptions'!$B$4 -> 70200 | AA100: =(((U100*'Collection Route Parameters'!$B$7)*Municipalities!V100)/1000)+(M100*V100) -> 57.56071429 | AB100: 2993.157143 | AC100: =AB100*'Truck Assumptions'!$B$10 -> 3157.780786 | AD100: =AC100*'Fuel and Labor Assumptions'!$B$10 -> 4199.848445 | AE100: 192847.1908 | AF100: =VLOOKUP(B100,'2012 Macro Cost Data'!$B$5:$F$245,5,FALSE) -> 209700 | AG100: -16852.80923
A101: Rural Collection South | B101: 216 | C101: MEAFORD, MUNICIPALITY OF | D101: Y | E101: =VLOOKUP(B101,'2012 Program Data'!$B$6:$D$235,3,FALSE) -> 6060 | F101: =VLOOKUP(B101,'2012 Program Data'!$B$6:$E$235,4,FALSE) -> 0 | G101: 6060 | H101: 821.79218 | J101: 903.971398 | K101: =VLOOKUP(B101,'2012 Program Data'!$B$6:$T$235,19,FALSE) -> 52 | L101: 0.002868657648 | M101: 20 | N101: =IF(AND(D101="Y",F101<1,K101=52),'Collection Route Parameters'!$B$35,IF(AND(D101="N",F101<1,K101=52),'Collection Route Parameters'!$B$37,IF(AND(D101="Y",F101<1,K101=26),'Collection Route Parameters'!$B$36,('Collection Route Parameters'!$B$38)))) -> 983.6 | O101: 983.6 | P101: ='Truck Assumptions'!$B$5/Municipalities!L101 -> 1220.08285 | Q101: run out of time | R101: 144 | S101: 144 | T101: =IF(Q101="run out of space",((N101-P101)/'Collection Route Parameters'!$B$43)-'Collection Route Parameters'!$B$54,"") ->  | U101: 983.6 | V101: =ROUNDUP((G101/U101)/'Fuel and Labor Assumptions'!$B$7,0) -> 2 | W101: =V101*'Truck Assumptions'!$B$16 -> 118447.3423 | X101: =(V101*'Fuel and Labor Assumptions'!$B$5)*'Fuel and Labor Assumptions'!$B$6 -> 30 | Y101: 1560 | Z101: =Y101*'Fuel and Labor Assumptions'!$B$4 -> 70200 | AA101: =(((U101*'Collection Route Parameters'!$B$7)*Municipalities!V101)/1000)+(M101*V101) -> 59.672 | AB101: 3102.944 | AC101: =AB101*'Truck Assumptions'!$B$10 -> 3273.60592 | AD101: =AC101*'Fuel and Labor Assumptions'!$B$10 -> 4353.895874 | AE101: 193001.2382 | AF101: =VLOOKUP(B101,'2012 Macro Cost Data'!$B$5:$F$245,5,FALSE) -> 291834.65 | AG101: -98833.4118
A102: Rural Collection South | B102: 229 | C102: CENTRAL ELGIN, MUNICIPALITY OF | D102: N | E102: =VLOOKUP(B102,'2012 Program Data'!$B$6:$D$235,3,FALSE) -> 5598 | F102: =VLOOKUP(B102,'2012 Program Data'!$B$6:$E$235,4,FALSE) -> 0 | G102: 5598 | H102: 523.92 | J102: 576.312 | K102: =VLOOKUP(B102,'2012 Program Data'!$B$6:$T$235,19,FALSE) -> 52 | L102: 0.001979800478 | M102: 20 | N102: =IF(AND(D102="Y",F102<1,K102=52),'Collection Route Parameters'!$B$35,IF(AND(D102="N",F102<1,K102=52),'Collection Route Parameters'!$B$37,IF(AND(D102="Y",F102<1,K102=26),'Collection Route Parameters'!$B$36,('Collection Route Parameters'!$B$38)))) -> 878.0357143 | O102: 878.0357143 | P102: ='Truck Assumptions'!$B$5/Municipalities!L102 -> 1767.854912 | Q102: run out of time | R102: 128.5714286 | S102: 128.5714286 | T102: =IF(Q102="run out of space",((N102-P102)/'Collection Route Parameters'!$B$43)-'Collection Route Parameters'!$B$54,"") ->  | U102: 878.0357143 | V102: =ROUNDUP((G102/U102)/'Fuel and Labor Assumptions'!$B$7,0) -> 2 | W102: =V102*'Truck Assumptions'!$B$16 -> 118447.3423 | X102: =(V102*'Fuel and Labor Assumptions'!$B$5)*'Fuel and Labor Assumptions'!$B$6 -> 30 | Y102: 1560 | Z102: =Y102*'Fuel and Labor Assumptions'!$B$4 -> 70200 | AA102: =(((U102*'Collection Route Parameters'!$B$7)*Municipalities!V102)/1000)+(M102*V102) -> 57.56071429 | AB102: 2993.157143 | AC102: =AB102*'Truck Assumptions'!$B$10 -> 3157.780786 | AD102: =AC102*'Fuel and Labor Assumptions'!$B$10 -> 4199.848445 | AE102: 192847.1908 | AF102: =VLOOKUP(B102,'2012 Macro Cost Data'!$B$5:$F$245,5,FALSE) -> 308168.21 | AG102: -115321.0192
A103: Rural Collection South | B103: 235 | C103: EAST LUTHER GRAND VALLEY, TOWNSHIP OF | D103: Y | E103: =VLOOKUP(B103,'2012 Program Data'!$B$6:$D$235,3,FALSE) -> 1384 | F103: =VLOOKUP(B103,'2012 Program Data'!$B$6:$E$235,4,FALSE) -> 0 | G103: 1384 | H103: 221.06215 | J103: 243.168365 | K103: =VLOOKUP(B103,'2012 Program Data'!$B$6:$T$235,19,FALSE) -> 52 | L103: 0.003378840109 | M103: 20 | N103: =IF(AND(D103="Y",F103<1,K103=52),'Collection Route Parameters'!$B$35,IF(AND(D103="N",F103<1,K103=52),'Collection Route Parameters'!$B$37,IF(AND(D103="Y",F103<1,K103=26),'Collection Route Parameters'!$B$36,('Collection Route Parameters'!$B$38)))) -> 983.6 | O103: 983.6 | P103: ='Truck Assumptions'!$B$5/Municipalities!L103 -> 1035.858427 | Q103: run out of time | R103: 144 | S103: 144 | T103: =IF(Q103="run out of space",((N103-P103)/'Collection Route Parameters'!$B$43)-'Collection Route Parameters'!$B$54,"") ->  | U103: 983.6 | V103: =ROUNDUP((G103/U103)/'Fuel and Labor Assumptions'!$B$7,0) -> 1 | W103: =V103*'Truck Assumptions'!$B$16 -> 59223.67116 | X103: =(V103*'Fuel and Labor Assumptions'!$B$5)*'Fuel and Labor Assumptions'!$B$6 -> 15 | Y103: 780 | Z103: =Y103*'Fuel and Labor Assumptions'!$B$4 -> 35100 | AA103: =(((U103*'Collection Route Parameters'!$B$7)*Municipalities!V103)/1000)+(M103*V103) -> 29.836 | AB103: 1551.472 | AC103: =AB103*'Truck Assumptions'!$B$10 -> 1636.80296 | AD103: =AC103*'Fuel and Labor Assumptions'!$B$10 -> 2176.947937 | AE103: 96500.6191 | AF103: =VLOOKUP(B103,'2012 Macro Cost Data'!$B$5:$F$245,5,FALSE) -> 83977.39 | AG103: 12523.2291
A104: Rural Collection South | B104: 236 | C104: NORTH GRENVILLE, MUNICIPALITY OF | D104: N | E104: =VLOOKUP(B104,'2012 Program Data'!$B$6:$D$235,3,FALSE) -> 6061 | F104: =VLOOKUP(B104,'2012 Program Data'!$B$6:$E$235,4,FALSE) -> 0 | G104: 6061 | H104: 1102.4978 | J104: 1212.74758 | K104: =VLOOKUP(B104,'2012 Program Data'!$B$6:$T$235,19,FALSE) -> 52 | L104: 0.003847891247 | M104: 20 | N104: =IF(AND(D104="Y",F104<1,K104=52),'Collection Route Parameters'!$B$35,IF(AND(D104="N",F104<1,K104=52),'Collection Route Parameters'!$B$37,IF(AND(D104="Y",F104<1,K104=26),'Collection Route Parameters'!$B$36,('Collection Route Parameters'!$B$38)))) -> 878.0357143 | O104: 878.0357143 | P104: ='Truck Assumptions'!$B$5/Municipalities!L104 -> 909.5891166 | Q104: run out of time | R104: 128.5714286 | S104: 128.5714286 | T104: =IF(Q104="run out of space",((N104-P104)/'Collection Route Parameters'!$B$43)-'Collection Route Parameters'!$B$54,"") ->  | U104: 878.0357143 | V104: =ROUNDUP((G104/U104)/'Fuel and Labor Assumptions'!$B$7,0) -> 2 | W104: =V104*'Truck Assumptions'!$B$16 -> 118447.3423 | X104: =(V104*'Fuel and Labor Assumptions'!$B$5)*'Fuel and Labor Assumptions'!$B$6 -> 30 | Y104: 1560 | Z104: =Y104*'Fuel and Labor Assumptions'!$B$4 -> 70200 | AA104: =(((U104*'Collection Route Parameters'!$B$7)*Municipalities!V104)/1000)+(M104*V104) -> 57.56071429 | AB104: 2993.157143 | AC104: =AB104*'Truck Assumptions'!$B$10 -> 3157.780786 | AD104: =AC104*'Fuel and Labor Assumptions'!$B$10 -> 4199.848445 | AE104: 192847.1908 | AF104: =VLOOKUP(B104,'2012 Macro Cost Data'!$B$5:$F$245,5,FALSE) -> 233461.42 | AG104: -40614.22923
A105: Rural Collection South | B105: 239 | C105: OTTAWA VALLEY WASTE RECOVERY CENTRE | D105: N | E105: =VLOOKUP(B105,'2012 Program Data'!$B$6:$D$235,3,FALSE) -> 17017 | F105: =VLOOKUP(B105,'2012 Program Data'!$B$6:$E$235,4,FALSE) -> 1575 | G105: 18592 | H105: 3279.57 | J105: 3607.527 | K105: =VLOOKUP(B105,'2012 Program Data'!$B$6:$T$235,19,FALSE) -> 26 | L105: 0.003731471559 | M105: 20 | N105: =IF(AND(D105="Y",F105<1,K105=52),'Collection Route Parameters'!$B$35,IF(AND(D105="N",F105<1,K105=52),'Collection Route Parameters'!$B$37,IF(AND(D105="Y",F105<1,K105=26),'Collection Route Parameters'!$B$36,('Collection Route Parameters'!$B$38)))) -> 723.0882353 | O105: 723.0882353 | P105: ='Truck Assumptions'!$B$5/Municipalities!L105 -> 937.9677546 | Q105: run out of time | R105: 105.8823529 | S105: 105.8823529 | T105: =IF(Q105="run out of space",((N105-P105)/'Collection Route Parameters'!$B$43)-'Collection Route Parameters'!$B$54,"") ->  | U105: 723.0882353 | V105: =ROUNDUP((G105/U105)/'Fuel and Labor Assumptions'!$B$7,0) -> 6 | W105: =V105*'Truck Assumptions'!$B$16 -> 355342.027 | X105: =(V105*'Fuel and Labor Assumptions'!$B$5)*'Fuel and Labor Assumptions'!$B$6 -> 90 | Y105: 2340 | Z105: =Y105*'Fuel and Labor Assumptions'!$B$4 -> 105300 | AA105: =(((U105*'Collection Route Parameters'!$B$7)*Municipalities!V105)/1000)+(M105*V105) -> 163.3852941 | AB105: 4248.017647 | AC105: =AB105*'Truck Assumptions'!$B$10 -> 4481.658618 | AD105: =AC105*'Fuel and Labor Assumptions'!$B$10 -> 5960.605961 | AE105: 466602.6329 | AF105: =VLOOKUP(B105,'2012 Macro Cost Data'!$B$5:$F$245,5,FALSE) -> 882055.24 | AG105: -415452.6071
A106: Rural Collection South | B106: 249 | C106: HAWKESBURY JOINT RECYCLING | D106: Y | E106: =VLOOKUP(B106,'2012 Program Data'!$B$6:$D$235,3,FALSE) -> 10499 | F106: =VLOOKUP(B106,'2012 Program Data'!$B$6:$E$235,4,FALSE) -> 0 | G106: 10499 | H106: 1277.4424 | J106: 1405.18664 | K106: =VLOOKUP(B106,'2012 Program Data'!$B$6:$T$235,19,FALSE) -> 52 | L106: 0.002573847033 | M106: 20 | N106: =IF(AND(D106="Y",F106<1,K106=52),'Collection Route Parameters'!$B$35,IF(AND(D106="N",F106<1,K106=52),'Collection Route Parameters'!$B$37,IF(AND(D106="Y",F106<1,K106=26),'Collection Route Parameters'!$B$36,('Collection Route Parameters'!$B$38)))) -> 983.6 | O106: 983.6 | P106: ='Truck Assumptions'!$B$5/Municipalities!L106 -> 1359.832171 | Q106: run out of time | R106: 144 | S106: 144 | T106: =IF(Q106="run out of space",((N106-P106)/'Collection Route Parameters'!$B$43)-'Collection Route Parameters'!$B$54,"") ->  | U106: 983.6 | V106: =ROUNDUP((G106/U106)/'Fuel and Labor Assumptions'!$B$7,0) -> 3 | W106: =V106*'Truck Assumptions'!$B$16 -> 177671.0135 | X106: =(V106*'Fuel and Labor Assumptions'!$B$5)*'Fuel and Labor Assumptions'!$B$6 -> 45 | Y106: 2340 | Z106: =Y106*'Fuel and Labor Assumptions'!$B$4 -> 105300 | AA106: =(((U106*'Collection Route Parameters'!$B$7)*Municipalities!V106)/1000)+(M106*V106) -> 89.508 | AB106: 4654.416 | AC106: =AB106*'Truck Assumptions'!$B$10 -> 4910.40888 | AD106: =AC106*'Fuel and Labor Assumptions'!$B$10 -> 6530.84381 | AE106: 289501.8573 | AF106: =VLOOKUP(B106,'2012 Macro Cost Data'!$B$5:$F$245,5,FALSE) -> 382336.95 | AG106: -92835.0927
A107: Rural Collection South | B107: 271 | C107: NORTH GLENGARRY, TOWNSHIP OF | D107: Y | E107: =VLOOKUP(B107,'2012 Program Data'!$B$6:$D$235,3,FALSE) -> 4693 | F107: =VLOOKUP(B107,'2012 Program Data'!$B$6:$E$235,4,FALSE) -> 0 | G107: 4693 | H107: 1015.7 | J107: 1117.27 | K107: =VLOOKUP(B107,'2012 Program Data'!$B$6:$T$235,19,FALSE) -> 52 | L107: 0.004578299923 | M107: 20 | N107: =IF(AND(D107="Y",F107<1,K107=52),'Collection Route Parameters'!$B$35,IF(AND(D107="N",F107<1,K107=52),'Collection Route Parameters'!$B$37,IF(AND(D107="Y",F107<1,K107=26),'Collection Route Parameters'!$B$36,('Collection Route Parameters'!$B$38)))) -> 983.6 | O107: 983.6 | P107: ='Truck Assumptions'!$B$5/Municipalities!L107 -> 764.47591 | Q107: run out of space | R107: 144 | S107: 144 | T107: =IF(Q107="run out of space",((N107-P107)/'Collection Route Parameters'!$B$43)-'Collection Route Parameters'!$B$54,"") -> 0.5479116109 | U107: 843.375182 | V107: =ROUNDUP((G107/U107)/'Fuel and Labor Assumptions'!$B$7,0) -> 2 | W107: =V107*'Truck Assumptions'!$B$16 -> 118447.3423 | X107: =(V107*'Fuel and Labor Assumptions'!$B$5)*'Fuel and Labor Assumptions'!$B$6 -> 30 | Y107: 1560 | Z107: =Y107*'Fuel and Labor Assumptions'!$B$4 -> 70200 | AA107: =(((U107*'Collection Route Parameters'!$B$7)*Municipalities!V107)/1000)+(M107*V107) -> 56.86750364 | AB107: 2957.110189 | AC107: =AB107*'Truck Assumptions'!$B$10 -> 3119.75125 | AD107: =AC107*'Fuel and Labor Assumptions'!$B$10 -> 4149.269162 | AE107: 192796.6115 | AF107: =VLOOKUP(B107,'2012 Macro Cost Data'!$B$5:$F$245,5,FALSE) -> 179753.88 | AG107: 13042.73149
A108: Rural Collection South | B108: 275 | C108: ST. CLAIR, TOWNSHIP OF | D108: N | E108: =VLOOKUP(B108,'2012 Program Data'!$B$6:$D$235,3,FALSE) -> 6003 | F108: =VLOOKUP(B108,'2012 Program Data'!$B$6:$E$235,4,FALSE) -> 0 | G108: 6003 | H108: 704.91 | J108: 775.401 | K108: =VLOOKUP(B108,'2012 Program Data'!$B$6:$T$235,19,FALSE) -> 26 | L108: 0.002484017607 | M108: 20 | N108: =IF(AND(D108="Y",F108<1,K108=52),'Collection Route Parameters'!$B$35,IF(AND(D108="N",F108<1,K108=52),'Collection Route Parameters'!$B$37,IF(AND(D108="Y",F108<1,K108=26),'Collection Route Parameters'!$B$36,('Collection Route Parameters'!$B$38)))) -> 723.0882353 | O108: 723.0882353 | P108: ='Truck Assumptions'!$B$5/Municipalities!L108 -> 1409.007726 | Q108: run out of time | R108: 105.8823529 | S108: 105.8823529 | T108: =IF(Q108="run out of space",((N108-P108)/'Collection Route Parameters'!$B$43)-'Collection Route Parameters'!$B$54,"") ->  | U108: 723.0882353 | V108: =ROUNDUP((G108/U108)/'Fuel and Labor Assumptions'!$B$7,0) -> 2 | W108: =V108*'Truck Assumptions'!$B$16 -> 118447.3423 | X108: =(V108*'Fuel and Labor Assumptions'!$B$5)*'Fuel and Labor Assumptions'!$B$6 -> 30 | Y108: 780 | Z108: =Y108*'Fuel and Labor Assumptions'!$B$4 -> 35100 | AA108: =(((U108*'Collection Route Parameters'!$B$7)*Municipalities!V108)/1000)+(M108*V108) -> 54.46176471 | AB108: 1416.005882 | AC108: =AB108*'Truck Assumptions'!$B$10 -> 1493.886206 | AD108: =AC108*'Fuel and Labor Assumptions'!$B$10 -> 1986.868654 | AE108: 155534.211 | AF108: =VLOOKUP(B108,'2012 Macro Cost Data'!$B$5:$F$245,5,FALSE) -> 180257.52 | AG108: -24723.30902
A109: Rural Collection South | B109: 280 | C109: EAST GARAFRAXA, TOWNSHIP OF | D109: Y | E109: =VLOOKUP(B109,'2012 Program Data'!$B$6:$D$235,3,FALSE) -> 924 | F109: =VLOOKUP(B109,'2012 Program Data'!$B$6:$E$235,4,FALSE) -> 0 | G109: 924 | H109: 229.93 | J109: 252.923 | K109: 52 | L109: 0.005263965201 | M109: 20 | N109: =IF(AND(D109="Y",F109<1,K109=52),'Collection Route Parameters'!$B$35,IF(AND(D109="N",F109<1,K109=52),'Collection Route Parameters'!$B$37,IF(AND(D109="Y",F109<1,K109=26),'Collection Route Parameters'!$B$36,('Collection Route Parameters'!$B$38)))) -> 983.6 | O109: 983.6 | P109: ='Truck Assumptions'!$B$5/Municipalities!L109 -> 664.8980124 | Q109: run out of space | R109: 144 | S109: 144 | T109: =IF(Q109="run out of space",((N109-P109)/'Collection Route Parameters'!$B$43)-'Collection Route Parameters'!$B$54,"") -> 1.101122153 | U109: 823.4596025 | V109: =ROUNDUP((G109/U109)/'Fuel and Labor Assumptions'!$B$7,0) -> 1 | W109: =V109*'Truck Assumptions'!$B$16 -> 59223.67116 | X109: =(V109*'Fuel and Labor Assumptions'!$B$5)*'Fuel and Labor Assumptions'!$B$6 -> 15 | Y109: 780 | Z109: =Y109*'Fuel and Labor Assumptions'!$B$4 -> 35100 | AA109: =(((U109*'Collection Route Parameters'!$B$7)*Municipalities!V109)/1000)+(M109*V109) -> 28.23459602 | AB109: 1468.198993 | AC109: =AB109*'Truck Assumptions'!$B$10 -> 1548.949938 | AD109: =AC109*'Fuel and Labor Assumptions'!$B$10 -> 2060.103417 | AE109: 96383.77458 | AF109: =VLOOKUP(B109,'2012 Macro Cost Data'!$B$5:$F$245,5,FALSE) -> 65005.42 | AG109: 31378.35458
A110: Rural Collection South | B110: 282 | C110: ATHENS, TOWNSHIP OF | D110: N | E110: =VLOOKUP(B110,'2012 Program Data'!$B$6:$D$235,3,FALSE) -> 439 | F110: =VLOOKUP(B110,'2012 Program Data'!$B$6:$E$235,4,FALSE) -> 975 | G110: 1414 | H110: 189.90538 | J110: 208.895918 | K110: =VLOOKUP(B110,'2012 Program Data'!$B$6:$T$235,19,FALSE) -> 52 | L110: 0.002841039033 | M110: 20 | N110: =IF(AND(D110="Y",F110<1,K110=52),'Collection Route Parameters'!$B$35,IF(AND(D110="N",F110<1,K110=52),'Collection Route Parameters'!$B$37,IF(AND(D110="Y",F110<1,K110=26),'Collection Route Parameters'!$B$36,('Collection Route Parameters'!$B$38)))) -> 723.0882353 | O110: 723.0882353 | P110: ='Truck Assumptions'!$B$5/Municipalities!L110 -> 1231.943651 | Q110: run out of time | R110: 105.8823529 | S110: 105.8823529 | T110: =IF(Q110="run out of space",((N110-P110)/'Collection Route Parameters'!$B$43)-'Collection Route Parameters'!$B$54,"") ->  | U110: 723.0882353 | V110: =ROUNDUP((G110/U110)/'Fuel and Labor Assumptions'!$B$7,0) -> 1 | W110: =V110*'Truck Assumptions'!$B$16 -> 59223.67116 | X110: =(V110*'Fuel and Labor Assumptions'!$B$5)*'Fuel and Labor Assumptions'!$B$6 -> 15 | Y110: 780 | Z110: =Y110*'Fuel and Labor Assumptions'!$B$4 -> 35100 | AA110: =(((U110*'Collection Route Parameters'!$B$7)*Municipalities!V110)/1000)+(M110*V110) -> 27.23088235 | AB110: 1416.005882 | AC110: =AB110*'Truck Assumptions'!$B$10 -> 1493.886206 | AD110: =AC110*'Fuel and Labor Assumptions'!$B$10 -> 1986.868654 | AE110: 96310.53982 | AF110: =VLOOKUP(B110,'2012 Macro Cost Data'!$B$5:$F$245,5,FALSE) -> 15804.05 | AG110: 80506.48982
A111: Rural Collection South | B111: 285 | C111: MULMUR, TOWNSHIP OF | D111: Y | E111: =VLOOKUP(B111,'2012 Program Data'!$B$6:$D$235,3,FALSE) -> 1666 | F111: =VLOOKUP(B111,'2012 Program Data'!$B$6:$E$235,4,FALSE) -> 0 | G111: 1666 | H111: 289.41237 | J111: 318.353607 | K111: 52 | L111: 0.003674780762 | M111: 20 | N111: =IF(AND(D111="Y",F111<1,K111=52),'Collection Route Parameters'!$B$35,IF(AND(D111="N",F111<1,K111=52),'Collection Route Parameters'!$B$37,IF(AND(D111="Y",F111<1,K111=26),'Collection Route Parameters'!$B$36,('Collection Route Parameters'!$B$38)))) -> 983.6 | O111: 983.6 | P111: ='Truck Assumptions'!$B$5/Municipalities!L111 -> 952.4377715 | Q111: run out of space | R111: 144 | S111: 144 | U111: 983.6 | V111: =ROUNDUP((G111/U111)/'Fuel and Labor Assumptions'!$B$7,0) -> 1 | W111: =V111*'Truck Assumptions'!$B$16 -> 59223.67116 | X111: =(V111*'Fuel and Labor Assumptions'!$B$5)*'Fuel and Labor Assumptions'!$B$6 -> 15 | Y111: 780 | Z111: =Y111*'Fuel and Labor Assumptions'!$B$4 -> 35100 | AA111: =(((U111*'Collection Route Parameters'!$B$7)*Municipalities!V111)/1000)+(M111*V111) -> 29.836 | AB111: 1551.472 | AC111: =AB111*'Truck Assumptions'!$B$10 -> 1636.80296 | AD111: =AC111*'Fuel and Labor Assumptions'!$B$10 -> 2176.947937 | AE111: 96500.6191 | AF111: =VLOOKUP(B111,'2012 Macro Cost Data'!$B$5:$F$245,5,FALSE) -> 51313.05 | AG111: 45187.5691
A112: Rural Collection South | B112: 287 | C112: MERRICKVILLE-WOLFORD, VILLAGE OF | D112: N | E112: =VLOOKUP(B112,'2012 Program Data'!$B$6:$D$235,3,FALSE) -> 426 | F112: =VLOOKUP(B112,'2012 Program Data'!$B$6:$E$235,4,FALSE) -> 822 | G112: 1248 | H112: 203.54 | J112: 223.894 | K112: =VLOOKUP(B112,'2012 Program Data'!$B$6:$T$235,19,FALSE) -> 52 | L112: 0.003450043146 | M112: 20 | N112: =IF(AND(D112="Y",F112<1,K112=52),'Collection Route Parameters'!$B$35,IF(AND(D112="N",F112<1,K112=52),'Collection Route Parameters'!$B$37,IF(AND(D112="Y",F112<1,K112=26),'Collection Route Parameters'!$B$36,('Collection Route Parameters'!$B$38)))) -> 723.0882353 | O112: 723.0882353 | P112: ='Truck Assumptions'!$B$5/Municipalities!L112 -> 1014.480066 | Q112: run out of time | R112: 105.8823529 | S112: 105.8823529 | T112: =IF(Q112="run out of space",((N112-P112)/'Collection Route Parameters'!$B$43)-'Collection Route Parameters'!$B$54,"") ->  | U112: 723.0882353 | V112: =ROUNDUP((G112/U112)/'Fuel and Labor Assumptions'!$B$7,0) -> 1 | W112: =V112*'Truck Assumptions'!$B$16 -> 59223.67116 | X112: =(V112*'Fuel and Labor Assumptions'!$B$5)*'Fuel and Labor Assumptions'!$B$6 -> 15 | Y112: 780 | Z112: =Y112*'Fuel and Labor Assumptions'!$B$4 -> 35100 | AA112: =(((U112*'Collection Route Parameters'!$B$7)*Municipalities!V112)/1000)+(M112*V112) -> 27.23088235 | AB112: 1416.005882 | AC112: =AB112*'Truck Assumptions'!$B$10 -> 1493.886206 | AD112: =AC112*'Fuel and Labor Assumptions'!$B$10 -> 1986.868654 | AE112: 96310.53982 | AF112: =VLOOKUP(B112,'2012 Macro Cost Data'!$B$5:$F$245,5,FALSE) -> 17330 | AG112: 78980.53982
A113: Rural Collection South | B113: 290 | C113: NORTH STORMONT, TOWNSHIP OF | D113: N | E113: =VLOOKUP(B113,'2012 Program Data'!$B$6:$D$235,3,FALSE) -> 2490 | F113: =VLOOKUP(B113,'2012 Program Data'!$B$6:$E$235,4,FALSE) -> 0 | G113: 2490 | H113: 400.285576 | J113: 440.3141336 | K113: =VLOOKUP(B113,'2012 Program Data'!$B$6:$T$235,19,FALSE) -> 26 | L113: 0.003400634334 | M113: 20 | N113: =IF(AND(D113="Y",F113<1,K113=52),'Collection Route Parameters'!$B$35,IF(AND(D113="N",F113<1,K113=52),'Collection Route Parameters'!$B$37,IF(AND(D113="Y",F113<1,K113=26),'Collection Route Parameters'!$B$36,('Collection Route Parameters'!$B$38)))) -> 723.0882353 | O113: 723.0882353 | P113: ='Truck Assumptions'!$B$5/Municipalities!L113 -> 1029.219744 | Q113: run out of time | R113: 105.8823529 | S113: 105.8823529 | T113: =IF(Q113="run out of space",((N113-P113)/'Collection Route Parameters'!$B$43)-'Collection Route Parameters'!$B$54,"") ->  | U113: 723.0882353 | V113: =ROUNDUP((G113/U113)/'Fuel and Labor Assumptions'!$B$7,0) -> 1 | W113: =V113*'Truck Assumptions'!$B$16 -> 59223.67116 | X113: =(V113*'Fuel and Labor Assumptions'!$B$5)*'Fuel and Labor Assumptions'!$B$6 -> 15 | Y113: 390 | Z113: =Y113*'Fuel and Labor Assumptions'!$B$4 -> 17550 | AA113: =(((U113*'Collection Route Parameters'!$B$7)*Municipalities!V113)/1000)+(M113*V113) -> 27.23088235 | AB113: 708.0029412 | AC113: =AB113*'Truck Assumptions'!$B$10 -> 746.9431029 | AD113: =AC113*'Fuel and Labor Assumptions'!$B$10 -> 993.4343269 | AE113: 77767.10549 | AF113: =VLOOKUP(B113,'2012 Macro Cost Data'!$B$5:$F$245,5,FALSE) -> 101340.7 | AG113: -23573.59451
A114: Rural Collection South | B114: 294 | C114: RUSSELL, TOWNSHIP OF | D114: Y | E114: =VLOOKUP(B114,'2012 Program Data'!$B$6:$D$235,3,FALSE) -> 5607 | F114: =VLOOKUP(B114,'2012 Program Data'!$B$6:$E$235,4,FALSE) -> 0 | G114: 5607 | H114: 1067.755752 | J114: 1174.531327 | K114: =VLOOKUP(B114,'2012 Program Data'!$B$6:$T$235,19,FALSE) -> 52 | L114: 0.004028382541 | M114: 20 | N114: =IF(AND(D114="Y",F114<1,K114=52),'Collection Route Parameters'!$B$35,IF(AND(D114="N",F114<1,K114=52),'Collection Route Parameters'!$B$37,IF(AND(D114="Y",F114<1,K114=26),'Collection Route Parameters'!$B$36,('Collection Route Parameters'!$B$38)))) -> 983.6 | O114: 983.6 | P114: ='Truck Assumptions'!$B$5/Municipalities!L114 -> 868.8350633 | Q114: run out of space | R114: 144 | S114: 144 | T114: =IF(Q114="run out of space",((N114-P114)/'Collection Route Parameters'!$B$43)-'Collection Route Parameters'!$B$54,"") -> -0.0318614627 | U114: 983.6 | V114: =ROUNDUP((G114/U114)/'Fuel and Labor Assumptions'!$B$7,0) -> 2 | W114: =V114*'Truck Assumptions'!$B$16 -> 118447.3423 | X114: =(V114*'Fuel and Labor Assumptions'!$B$5)*'Fuel and Labor Assumptions'!$B$6 -> 30 | Y114: 1560 | Z114: =Y114*'Fuel and Labor Assumptions'!$B$4 -> 70200 | AA114: =(((U114*'Collection Route Parameters'!$B$7)*Municipalities!V114)/1000)+(M114*V114) -> 59.672 | AB114: 3102.944 | AC114: =AB114*'Truck Assumptions'!$B$10 -> 3273.60592 | AD114: =AC114*'Fuel and Labor Assumptions'!$B$10 -> 4353.895874 | AE114: 193001.2382 | AF114: =VLOOKUP(B114,'2012 Macro Cost Data'!$B$5:$F$245,5,FALSE) -> 285417.97 | AG114: -92416.7318
A115: Rural Collection South | B115: 296 | C115: SOUTH FRONTENAC, TOWNSHIP OF | D115: N | E115: =VLOOKUP(B115,'2012 Program Data'!$B$6:$D$235,3,FALSE) -> 10194 | F115: =VLOOKUP(B115,'2012 Program Data'!$B$6:$E$235,4,FALSE) -> 0 | G115: 10194 | H115: 903 | J115: 993.3 | K115: 52 | L115: 0.001873839815 | M115: 20 | N115: =IF(AND(D115="Y",F115<1,K115=52),'Collection Route Parameters'!$B$35,IF(AND(D115="N",F115<1,K115=52),'Collection Route Parameters'!$B$37,IF(AND(D115="Y",F115<1,K115=26),'Collection Route Parameters'!$B$36,('Collection Route Parameters'!$B$38)))) -> 878.0357143 | O115: 878.0357143 | P115: ='Truck Assumptions'!$B$5/Municipalities!L115 -> 1867.82241 | Q115: run out of time | R115: 128.5714286 | S115: 128.5714286 | T115: =IF(Q115="run out of space",((N115-P115)/'Collection Route Parameters'!$B$43)-'Collection Route Parameters'!$B$54,"") ->  | U115: 878.0357143 | V115: =ROUNDUP((G115/U115)/'Fuel and Labor Assumptions'!$B$7,0) -> 3 | W115: =V115*'Truck Assumptions'!$B$16 -> 177671.0135 | X115: =(V115*'Fuel and Labor Assumptions'!$B$5)*'Fuel and Labor Assumptions'!$B$6 -> 45 | Y115: 2340 | Z115: =Y115*'Fuel and Labor Assumptions'!$B$4 -> 105300 | AA115: =(((U115*'Collection Route Parameters'!$B$7)*Municipalities!V115)/1000)+(M115*V115) -> 86.34107143 | AB115: 4489.735714 | AC115: =AB115*'Truck Assumptions'!$B$10 -> 4736.671179 | AD115: =AC115*'Fuel and Labor Assumptions'!$B$10 -> 6299.772668 | AE115: 289270.7862 | AF115: =VLOOKUP(B115,'2012 Macro Cost Data'!$B$5:$F$245,5,FALSE) -> 512766.76 | AG115: -223495.9738
A116: Rural Collection South | B116: 301 | C116: SOUTH STORMONT, TOWNSHIP OF | D116: Y | E116: =VLOOKUP(B116,'2012 Program Data'!$B$6:$D$235,3,FALSE) -> 5154 | F116: =VLOOKUP(B116,'2012 Program Data'!$B$6:$E$235,4,FALSE) -> 0 | G116: 5154 | H116: 622.72056 | J116: 684.992616 | K116: =VLOOKUP(B116,'2012 Program Data'!$B$6:$T$235,19,FALSE) -> 26 | L116: 0.002555866302 | M116: 20 | N116: =IF(AND(D116="Y",F116<1,K116=52),'Collection Route Parameters'!$B$35,IF(AND(D116="N",F116<1,K116=52),'Collection Route Parameters'!$B$37,IF(AND(D116="Y",F116<1,K116=26),'Collection Route Parameters'!$B$36,('Collection Route Parameters'!$B$38)))) -> 819.6666667 | O116: 819.6666667 | P116: ='Truck Assumptions'!$B$5/Municipalities!L116 -> 1369.398703 | Q116: run out of time | R116: 120 | S116: 120 | T116: =IF(Q116="run out of space",((N116-P116)/'Collection Route Parameters'!$B$43)-'Collection Route Parameters'!$B$54,"") ->  | U116: 819.6666667 | V116: =ROUNDUP((G116/U116)/'Fuel and Labor Assumptions'!$B$7,0) -> 2 | W116: =V116*'Truck Assumptions'!$B$16 -> 118447.3423 | X116: =(V116*'Fuel and Labor Assumptions'!$B$5)*'Fuel and Labor Assumptions'!$B$6 -> 30 | Y116: 780 | Z116: =Y116*'Fuel and Labor Assumptions'!$B$4 -> 35100 | AA116: =(((U116*'Collection Route Parameters'!$B$7)*Municipalities!V116)/1000)+(M116*V116) -> 56.39333333 | AB116: 1466.226667 | AC116: =AB116*'Truck Assumptions'!$B$10 -> 1546.869133 | AD116: =AC116*'Fuel and Labor Assumptions'!$B$10 -> 2057.335947 | AE116: 155604.6783 | AF116: =VLOOKUP(B116,'2012 Macro Cost Data'!$B$5:$F$245,5,FALSE) -> 143872.54 | AG116: 11732.13828
A117: Rural Collection South | B117: 321 | C117: NORTH DUNDAS, TOWNSHIP OF | D117: N | E117: =VLOOKUP(B117,'2012 Program Data'!$B$6:$D$235,3,FALSE) -> 4553 | F117: =VLOOKUP(B117,'2012 Program Data'!$B$6:$E$235,4,FALSE) -> 0 | G117: 4553 | H117: 532.99 | J117: 586.289 | K117: =VLOOKUP(B117,'2012 Program Data'!$B$6:$T$235,19,FALSE) -> 26 | L117: 0.002476342733 | M117: 20 | N117: =IF(AND(D117="Y",F117<1,K117=52),'Collection Route Parameters'!$B$35,IF(AND(D117="N",F117<1,K117=52),'Collection Route Parameters'!$B$37,IF(AND(D117="Y",F117<1,K117=26),'Collection Route Parameters'!$B$36,('Collection Route Parameters'!$B$38)))) -> 723.0882353 | O117: 723.0882353 | P117: ='Truck Assumptions'!$B$5/Municipalities!L117 -> 1413.374633 | Q117: run out of time | R117: 105.8823529 | S117: 105.8823529 | T117: =IF(Q117="run out of space",((N117-P117)/'Collection Route Parameters'!$B$43)-'Collection Route Parameters'!$B$54,"") ->  | U117: 723.0882353 | V117: =ROUNDUP((G117/U117)/'Fuel and Labor Assumptions'!$B$7,0) -> 2 | W117: =V117*'Truck Assumptions'!$B$16 -> 118447.3423 | X117: =(V117*'Fuel and Labor Assumptions'!$B$5)*'Fuel and Labor Assumptions'!$B$6 -> 30 | Y117: 780 | Z117: =Y117*'Fuel and Labor Assumptions'!$B$4 -> 35100 | AA117: =(((U117*'Collection Route Parameters'!$B$7)*Municipalities!V117)/1000)+(M117*V117) -> 54.46176471 | AB117: 1416.005882 | AC117: =AB117*'Truck Assumptions'!$B$10 -> 1493.886206 | AD117: =AC117*'Fuel and Labor Assumptions'!$B$10 -> 1986.868654 | AE117: 155534.211 | AF117: =VLOOKUP(B117,'2012 Macro Cost Data'!$B$5:$F$245,5,FALSE) -> 238390.2 | AG117: -82855.98902
A118: Rural Collection South | B118: 325 | C118: WHITEWATER REGION, TOWNSHIP OF | D118: N | E118: =VLOOKUP(B118,'2012 Program Data'!$B$6:$D$235,3,FALSE) -> 3461 | F118: =VLOOKUP(B118,'2012 Program Data'!$B$6:$E$235,4,FALSE) -> 0 | G118: 3461 | H118: 413.5483 | J118: 454.90313 | K118: =VLOOKUP(B118,'2012 Program Data'!$B$6:$T$235,19,FALSE) -> 26 | L118: 0.002527632798 | M118: 20 | N118: =IF(AND(D118="Y",F118<1,K118=52),'Collection Route Parameters'!$B$35,IF(AND(D118="N",F118<1,K118=52),'Collection Route Parameters'!$B$37,IF(AND(D118="Y",F118<1,K118=26),'Collection Route Parameters'!$B$36,('Collection Route Parameters'!$B$38)))) -> 723.0882353 | O118: 723.0882353 | P118: ='Truck Assumptions'!$B$5/Municipalities!L118 -> 1384.694803 | Q118: run out of time | R118: 105.8823529 | S118: 105.8823529 | T118: =IF(Q118="run out of space",((N118-P118)/'Collection Route Parameters'!$B$43)-'Collection Route Parameters'!$B$54,"") ->  | U118: 723.0882353 | V118: =ROUNDUP((G118/U118)/'Fuel and Labor Assumptions'!$B$7,0) -> 1 | W118: =V118*'Truck Assumptions'!$B$16 -> 59223.67116 | X118: =(V118*'Fuel and Labor Assumptions'!$B$5)*'Fuel and Labor Assumptions'!$B$6 -> 15 | Y118: 390 | Z118: =Y118*'Fuel and Labor Assumptions'!$B$4 -> 17550 | AA118: =(((U118*'Collection Route Parameters'!$B$7)*Municipalities!V118)/1000)+(M118*V118) -> 27.23088235 | AB118: 708.0029412 | AC118: =AB118*'Truck Assumptions'!$B$10 -> 746.9431029 | AD118: =AC118*'Fuel and Labor Assumptions'!$B$10 -> 993.4343269 | AE118: 77767.10549 | AF118: =VLOOKUP(B118,'2012 Macro Cost Data'!$B$5:$F$245,5,FALSE) -> 149609 | AG118: -71841.89451
A119: Rural Collection South | B119: 346 | C119: SOUTHWOLD, TOWNSHIP OF | D119: Y | E119: =VLOOKUP(B119,'2012 Program Data'!$B$6:$D$235,3,FALSE) -> 1707 | F119: =VLOOKUP(B119,'2012 Program Data'!$B$6:$E$235,4,FALSE) -> 0 | G119: 1707 | H119: 192.16467 | J119: 211.381137 | K119: 52 | L119: 0.002381383635 | M119: 20 | N119: =IF(AND(D119="Y",F119<1,K119=52),'Collection Route Parameters'!$B$35,IF(AND(D119="N",F119<1,K119=52),'Collection Route Parameters'!$B$37,IF(AND(D119="Y",F119<1,K119=26),'Collection Route Parameters'!$B$36,('Collection Route Parameters'!$B$38)))) -> 983.6 | O119: 983.6 | P119: ='Truck Assumptions'!$B$5/Municipalities!L119 -> 1469.733792 | Q119: run out of time | R119: 144 | S119: 144 | T119: =IF(Q119="run out of space",((N119-P119)/'Collection Route Parameters'!$B$43)-'Collection Route Parameters'!$B$54,"") ->  | U119: 983.6 | V119: =ROUNDUP((G119/U119)/'Fuel and Labor Assumptions'!$B$7,0) -> 1 | W119: =V119*'Truck Assumptions'!$B$16 -> 59223.67116 | X119: =(V119*'Fuel and Labor Assumptions'!$B$5)*'Fuel and Labor Assumptions'!$B$6 -> 15 | Y119: 780 | Z119: =Y119*'Fuel and Labor Assumptions'!$B$4 -> 35100 | AA119: =(((U119*'Collection Route Parameters'!$B$7)*Municipalities!V119)/1000)+(M119*V119) -> 29.836 | AB119: 1551.472 | AC119: =AB119*'Truck Assumptions'!$B$10 -> 1636.80296 | AD119: =AC119*'Fuel and Labor Assumptions'!$B$10 -> 2176.947937 | AE119: 96500.6191 | AF119: =VLOOKUP(B119,'2012 Macro Cost Data'!$B$5:$F$245,5,FALSE) -> 72825.41 | AG119: 23675.2091
A120: Rural Collection South | B120: 358 | C120: BAYHAM, MUNICIPALITY OF | D120: N | E120: =VLOOKUP(B120,'2012 Program Data'!$B$6:$D$235,3,FALSE) -> 2655 | F120: =VLOOKUP(B120,'2012 Program Data'!$B$6:$E$235,4,FALSE) -> 0 | G120: 2655 | H120: 412.99 | J120: 454.289 | K120: =VLOOKUP(B120,'2012 Program Data'!$B$6:$T$235,19,FALSE) -> 52 | L120: 0.003290518615 | M120: 20 | N120: =IF(AND(D120="Y",F120<1,K120=52),'Collection Route Parameters'!$B$35,IF(AND(D120="N",F120<1,K120=52),'Collection Route Parameters'!$B$37,IF(AND(D120="Y",F120<1,K120=26),'Collection Route Parameters'!$B$36,('Collection Route Parameters'!$B$38)))) -> 878.0357143 | O120: 878.0357143 | P120: ='Truck Assumptions'!$B$5/Municipalities!L120 -> 1063.662118 | Q120: run out of time | R120: 128.5714286 | S120: 128.5714286 | T120: =IF(Q120="run out of space",((N120-P120)/'Collection Route Parameters'!$B$43)-'Collection Route Parameters'!$B$54,"") ->  | U120: 878.0357143 | V120: =ROUNDUP((G120/U120)/'Fuel and Labor Assumptions'!$B$7,0) -> 1 | W120: =V120*'Truck Assumptions'!$B$16 -> 59223.67116 | X120: =(V120*'Fuel and Labor Assumptions'!$B$5)*'Fuel and Labor Assumptions'!$B$6 -> 15 | Y120: 780 | Z120: =Y120*'Fuel and Labor Assumptions'!$B$4 -> 35100 | AA120: =(((U120*'Collection Route Parameters'!$B$7)*Municipalities!V120)/1000)+(M120*V120) -> 28.78035714 | AB120: 1496.578571 | AC120: =AB120*'Truck Assumptions'!$B$10 -> 1578.890393 | AD120: =AC120*'Fuel and Labor Assumptions'!$B$10 -> 2099.924223 | AE120: 96423.59539 | AF120: =VLOOKUP(B120,'2012 Macro Cost Data'!$B$5:$F$245,5,FALSE) -> 159668.6 | AG120: -63245.00461
A121: Rural Collection South | B121: 361 | C121: CLARENCE-ROCKLAND, CITY OF | D121: N | E121: =VLOOKUP(B121,'2012 Program Data'!$B$6:$D$235,3,FALSE) -> 8935 | F121: =VLOOKUP(B121,'2012 Program Data'!$B$6:$E$235,4,FALSE) -> 0 | G121: 8935 | H121: 1496.97162 | J121: 1646.668782 | K121: =VLOOKUP(B121,'2012 Program Data'!$B$6:$T$235,19,FALSE) -> 52 | L121: 0.003544119457 | M121: 20 | N121: =IF(AND(D121="Y",F121<1,K121=52),'Collection Route Parameters'!$B$35,IF(AND(D121="N",F121<1,K121=52),'Collection Route Parameters'!$B$37,IF(AND(D121="Y",F121<1,K121=26),'Collection Route Parameters'!$B$36,('Collection Route Parameters'!$B$38)))) -> 878.0357143 | O121: 878.0357143 | P121: ='Truck Assumptions'!$B$5/Municipalities!L121 -> 987.551363 | Q121: run out of time | R121: 128.5714286 | S121: 128.5714286 | T121: =IF(Q121="run out of space",((N121-P121)/'Collection Route Parameters'!$B$43)-'Collection Route Parameters'!$B$54,"") ->  | U121: 878.0357143 | V121: =ROUNDUP((G121/U121)/'Fuel and Labor Assumptions'!$B$7,0) -> 3 | W121: =V121*'Truck Assumptions'!$B$16 -> 177671.0135 | X121: =(V121*'Fuel and Labor Assumptions'!$B$5)*'Fuel and Labor Assumptions'!$B$6 -> 45 | Y121: 2340 | Z121: =Y121*'Fuel and Labor Assumptions'!$B$4 -> 105300 | AA121: =(((U121*'Collection Route Parameters'!$B$7)*Municipalities!V121)/1000)+(M121*V121) -> 86.34107143 | AB121: 4489.735714 | AC121: =AB121*'Truck Assumptions'!$B$10 -> 4736.671179 | AD121: =AC121*'Fuel and Labor Assumptions'!$B$10 -> 6299.772668 | AE121: 289270.7862 | AF121: =VLOOKUP(B121,'2012 Macro Cost Data'!$B$5:$F$245,5,FALSE) -> 338691.69 | AG121: -49420.90384
A122: Rural Collection South | B122: 376 | C122: THE NATION, MUNICIPALITY | D122: Y | E122: =VLOOKUP(B122,'2012 Program Data'!$B$6:$D$235,3,FALSE) -> 4376 | F122: =VLOOKUP(B122,'2012 Program Data'!$B$6:$E$235,4,FALSE) -> 0 | G122: 4376 | H122: 833.42464 | J122: 916.767104 | K122: =VLOOKUP(B122,'2012 Program Data'!$B$6:$T$235,19,FALSE) -> 52 | L122: 0.004028824638 | M122: 20 | N122: =IF(AND(D122="Y",F122<1,K122=52),'Collection Route Parameters'!$B$35,IF(AND(D122="N",F122<1,K122=52),'Collection Route Parameters'!$B$37,IF(AND(D122="Y",F122<1,K122=26),'Collection Route Parameters'!$B$36,('Collection Route Parameters'!$B$38)))) -> 983.6 | O122: 983.6 | P122: ='Truck Assumptions'!$B$5/Municipalities!L122 -> 868.739723 | Q122: run out of space | R122: 144 | S122: 144 | U122: 983.6 | V122: =ROUNDUP((G122/U122)/'Fuel and Labor Assumptions'!$B$7,0) -> 1 | W122: =V122*'Truck Assumptions'!$B$16 -> 59223.67116 | X122: =(V122*'Fuel and Labor Assumptions'!$B$5)*'Fuel and Labor Assumptions'!$B$6 -> 15 | Y122: 780 | Z122: =Y122*'Fuel and Labor Assumptions'!$B$4 -> 35100 | AA122: =(((U122*'Collection Route Parameters'!$B$7)*Municipalities!V122)/1000)+(M122*V122) -> 29.836 | AB122: 1551.472 | AC122: =AB122*'Truck Assumptions'!$B$10 -> 1636.80296 | AD122: =AC122*'Fuel and Labor Assumptions'!$B$10 -> 2176.947937 | AE122: 96500.6191 | AF122: =VLOOKUP(B122,'2012 Macro Cost Data'!$B$5:$F$245,5,FALSE) -> 254465.33 | AG122: -157964.7109
A123: Rural Collection South | B123: 382 | C123: DUTTON-DUNWICH, MUNICIPALITY OF | D123: N | E123: =VLOOKUP(B123,'2012 Program Data'!$B$6:$D$235,3,FALSE) -> 1591 | F123: =VLOOKUP(B123,'2012 Program Data'!$B$6:$E$235,4,FALSE) -> 0 | G123: 1591 | H123: 275.21 | J123: 302.731 | K123: =VLOOKUP(B123,'2012 Program Data'!$B$6:$T$235,19,FALSE) -> 26 | L123: 0.003659176618 | M123: 20 | N123: =IF(AND(D123="Y",F123<1,K123=52),'Collection Route Parameters'!$B$35,IF(AND(D123="N",F123<1,K123=52),'Collection Route Parameters'!$B$37,IF(AND(D123="Y",F123<1,K123=26),'Collection Route Parameters'!$B$36,('Collection Route Parameters'!$B$38)))) -> 723.0882353 | O123: 723.0882353 | P123: ='Truck Assumptions'!$B$5/Municipalities!L123 -> 956.4993344 | Q123: run out of time | R123: 105.8823529 | S123: 105.8823529 | T123: =IF(Q123="run out of space",((N123-P123)/'Collection Route Parameters'!$B$43)-'Collection Route Parameters'!$B$54,"") ->  | U123: 723.0882353 | V123: =ROUNDUP((G123/U123)/'Fuel and Labor Assumptions'!$B$7,0) -> 1 | W123: =V123*'Truck Assumptions'!$B$16 -> 59223.67116 | X123: =(V123*'Fuel and Labor Assumptions'!$B$5)*'Fuel and Labor Assumptions'!$B$6 -> 15 | Y123: 390 | Z123: =Y123*'Fuel and Labor Assumptions'!$B$4 -> 17550 | AA123: =(((U123*'Collection Route Parameters'!$B$7)*Municipalities!V123)/1000)+(M123*V123) -> 27.23088235 | AB123: 708.0029412 | AC123: =AB123*'Truck Assumptions'!$B$10 -> 746.9431029 | AD123: =AC123*'Fuel and Labor Assumptions'!$B$10 -> 993.4343269 | AE123: 77767.10549 | AF123: =VLOOKUP(B123,'2012 Macro Cost Data'!$B$5:$F$245,5,FALSE) -> 71764.08 | AG123: 6003.025491
A124: Rural Collection South | B124: 389 | C124: GREATER NAPANEE, TOWNSHIP OF | D124: Y | E124: =VLOOKUP(B124,'2012 Program Data'!$B$6:$D$235,3,FALSE) -> 6885 | F124: =VLOOKUP(B124,'2012 Program Data'!$B$6:$E$235,4,FALSE) -> 0 | G124: 6885 | H124: 953.65256 | J124: 1049.017816 | K124: 52 | L124: 0.002930053673 | M124: 20 | N124: =IF(AND(D124="Y",F124<1,K124=52),'Collection Route Parameters'!$B$35,IF(AND(D124="N",F124<1,K124=52),'Collection Route Parameters'!$B$37,IF(AND(D124="Y",F124<1,K124=26),'Collection Route Parameters'!$B$36,('Collection Route Parameters'!$B$38)))) -> 983.6 | O124: 983.6 | P124: ='Truck Assumptions'!$B$5/Municipalities!L124 -> 1194.517367 | Q124: run out of time | R124: 144 | S124: 144 | T124: =IF(Q124="run out of space",((N124-P124)/'Collection Route Parameters'!$B$43)-'Collection Route Parameters'!$B$54,"") ->  | U124: 983.6 | V124: =ROUNDUP((G124/U124)/'Fuel and Labor Assumptions'!$B$7,0) -> 2 | W124: =V124*'Truck Assumptions'!$B$16 -> 118447.3423 | X124: =(V124*'Fuel and Labor Assumptions'!$B$5)*'Fuel and Labor Assumptions'!$B$6 -> 30 | Y124: 1560 | Z124: =Y124*'Fuel and Labor Assumptions'!$B$4 -> 70200 | AA124: =(((U124*'Collection Route Parameters'!$B$7)*Municipalities!V124)/1000)+(M124*V124) -> 59.672 | AB124: 3102.944 | AC124: =AB124*'Truck Assumptions'!$B$10 -> 3273.60592 | AD124: =AC124*'Fuel and Labor Assumptions'!$B$10 -> 4353.895874 | AE124: 193001.2382 | AF124: =VLOOKUP(B124,'2012 Macro Cost Data'!$B$5:$F$245,5,FALSE) -> 104640.35 | AG124: 88360.8882
A125: Rural Collection South | B125: 434 | C125: EDWARDSBURGH CARDINAL, TOWNSHIP OF | D125: N | E125: =VLOOKUP(B125,'2012 Program Data'!$B$6:$D$235,3,FALSE) -> 3011 | F125: =VLOOKUP(B125,'2012 Program Data'!$B$6:$E$235,4,FALSE) -> 0 | G125: 3011 | H125: 283.541776 | J125: 311.8959536 | K125: =VLOOKUP(B125,'2012 Program Data'!$B$6:$T$235,19,FALSE) -> 52 | L125: 0.00199202893 | M125: 20 | N125: =IF(AND(D125="Y",F125<1,K125=52),'Collection Route Parameters'!$B$35,IF(AND(D125="N",F125<1,K125=52),'Collection Route Parameters'!$B$37,IF(AND(D125="Y",F125<1,K125=26),'Collection Route Parameters'!$B$36,('Collection Route Parameters'!$B$38)))) -> 878.0357143 | O125: 878.0357143 | P125: ='Truck Assumptions'!$B$5/Municipalities!L125 -> 1757.002595 | Q125: run out of time | R125: 128.5714286 | S125: 128.5714286 | T125: =IF(Q125="run out of space",((N125-P125)/'Collection Route Parameters'!$B$43)-'Collection Route Parameters'!$B$54,"") ->  | U125: 878.0357143 | V125: =ROUNDUP((G125/U125)/'Fuel and Labor Assumptions'!$B$7,0) -> 1 | W125: =V125*'Truck Assumptions'!$B$16 -> 59223.67116 | X125: =(V125*'Fuel and Labor Assumptions'!$B$5)*'Fuel and Labor Assumptions'!$B$6 -> 15 | Y125: 780 | Z125: =Y125*'Fuel and Labor Assumptions'!$B$4 -> 35100 | AA125: =(((U125*'Collection Route Parameters'!$B$7)*Municipalities!V125)/1000)+(M125*V125) -> 28.78035714 | AB125: 1496.578571 | AC125: =AB125*'Truck Assumptions'!$B$10 -> 1578.890393 | AD125: =AC125*'Fuel and Labor Assumptions'!$B$10 -> 2099.924223 | AE125: 96423.59539 | AF125: =VLOOKUP(B125,'2012 Macro Cost Data'!$B$5:$F$245,5,FALSE) -> 161465.62 | AG125: -65042.02461
A126: Rural Collection South | B126: 437 | C126: PLYMPTON-WYOMING, TOWN OF | D126: N | E126: =VLOOKUP(B126,'2012 Program Data'!$B$6:$D$235,3,FALSE) -> 3198 | F126: =VLOOKUP(B126,'2012 Program Data'!$B$6:$E$235,4,FALSE) -> 0 | G126: 3388 | H126: 280.1341 | J126: 308.14751 | K126: =VLOOKUP(B126,'2012 Program Data'!$B$6:$T$235,19,FALSE) -> 52 | L126: 0.001749089036 | M126: 20 | N126: =IF(AND(D126="Y",F126<1,K126=52),'Collection Route Parameters'!$B$35,IF(AND(D126="N",F126<1,K126=52),'Collection Route Parameters'!$B$37,IF(AND(D126="Y",F126<1,K126=26),'Collection Route Parameters'!$B$36,('Collection Route Parameters'!$B$38)))) -> 878.0357143 | O126: 878.0357143 | P126: ='Truck Assumptions'!$B$5/Municipalities!L126 -> 2001.041644 | Q126: run out of time | R126: 128.5714286 | S126: 128.5714286 | T126: =IF(Q126="run out of space",((N126-P126)/'Collection Route Parameters'!$B$43)-'Collection Route Parameters'!$B$54,"") ->  | U126: 878.0357143 | V126: =ROUNDUP((G126/U126)/'Fuel and Labor Assumptions'!$B$7,0) -> 1 | W126: =V126*'Truck Assumptions'!$B$16 -> 59223.67116 | X126: =(V126*'Fuel and Labor Assumptions'!$B$5)*'Fuel and Labor Assumptions'!$B$6 -> 15 | Y126: 780 | Z126: =Y126*'Fuel and Labor Assumptions'!$B$4 -> 35100 | AA126: =(((U126*'Collection Route Parameters'!$B$7)*Municipalities!V126)/1000)+(M126*V126) -> 28.78035714 | AB126: 1496.578571 | AC126: =AB126*'Truck Assumptions'!$B$10 -> 1578.890393 | AD126: =AC126*'Fuel and Labor Assumptions'!$B$10 -> 2099.924223 | AE126: 96423.59539 | AF126: =VLOOKUP(B126,'2012 Macro Cost Data'!$B$5:$F$245,5,FALSE) -> 220848.73 | AG126: -124425.1346
A127: Rural Collection South | B127: 502 | C127: SOUTH GLENGARRY, TOWNSHIP OF | D127: N | E127: =VLOOKUP(B127,'2012 Program Data'!$B$6:$D$235,3,FALSE) -> 5616 | F127: =VLOOKUP(B127,'2012 Program Data'!$B$6:$E$235,4,FALSE) -> 0 | G127: 5616 | H127: 672.47365 | J127: 739.721015 | K127: 52 | L127: 0.002533013557 | M127: 20 | N127: =IF(AND(D127="Y",F127<1,K127=52),'Collection Route Parameters'!$B$35,IF(AND(D127="N",F127<1,K127=52),'Collection Route Parameters'!$B$37,IF(AND(D127="Y",F127<1,K127=26),'Collection Route Parameters'!$B$36,('Collection Route Parameters'!$B$38)))) -> 878.0357143 | O127: 878.0357143 | P127: ='Truck Assumptions'!$B$5/Municipalities!L127 -> 1381.753363 | Q127: run out of time | R127: 128.5714286 | S127: 128.5714286 | T127: =IF(Q127="run out of space",((N127-P127)/'Collection Route Parameters'!$B$43)-'Collection Route Parameters'!$B$54,"") ->  | U127: 878.0357143 | V127: =ROUNDUP((G127/U127)/'Fuel and Labor Assumptions'!$B$7,0) -> 2 | W127: =V127*'Truck Assumptions'!$B$16 -> 118447.3423 | X127: =(V127*'Fuel and Labor Assumptions'!$B$5)*'Fuel and Labor Assumptions'!$B$6 -> 30 | Y127: 1560 | Z127: =Y127*'Fuel and Labor Assumptions'!$B$4 -> 70200 | AA127: =(((U127*'Collection Route Parameters'!$B$7)*Municipalities!V127)/1000)+(M127*V127) -> 57.56071429 | AB127: 2993.157143 | AC127: =AB127*'Truck Assumptions'!$B$10 -> 3157.780786 | AD127: =AC127*'Fuel and Labor Assumptions'!$B$10 -> 4199.848445 | AE127: 192847.1908 | AF127: =VLOOKUP(B127,'2012 Macro Cost Data'!$B$5:$F$245,5,FALSE) -> 232193 | AG127: -39345.80923
A128: Rural Collection South | B128: 503 | C128: MALAHIDE, TOWNSHIP OF | D128: Y | E128: =VLOOKUP(B128,'2012 Program Data'!$B$6:$D$235,3,FALSE) -> 3007 | F128: =VLOOKUP(B128,'2012 Program Data'!$B$6:$E$235,4,FALSE) -> 0 | G128: 3007 | H128: 353.95 | J128: 389.345 | K128: 52 | L128: 0.002489991302 | M128: 20 | N128: =IF(AND(D128="Y",F128<1,K128=52),'Collection Route Parameters'!$B$35,IF(AND(D128="N",F128<1,K128=52),'Collection Route Parameters'!$B$37,IF(AND(D128="Y",F128<1,K128=26),'Collection Route Parameters'!$B$36,('Collection Route Parameters'!$B$38)))) -> 983.6 | O128: 983.6 | P128: ='Truck Assumptions'!$B$5/Municipalities!L128 -> 1405.6274 | Q128: run out of time | R128: 144 | S128: 144 | T128: =IF(Q128="run out of space",((N128-P128)/'Collection Route Parameters'!$B$43)-'Collection Route Parameters'!$B$54,"") ->  | U128: 983.6 | V128: =ROUNDUP((G128/U128)/'Fuel and Labor Assumptions'!$B$7,0) -> 1 | W128: =V128*'Truck Assumptions'!$B$16 -> 59223.67116 | X128: =(V128*'Fuel and Labor Assumptions'!$B$5)*'Fuel and Labor Assumptions'!$B$6 -> 15 | Y128: 780 | Z128: =Y128*'Fuel and Labor Assumptions'!$B$4 -> 35100 | AA128: =(((U128*'Collection Route Parameters'!$B$7)*Municipalities!V128)/1000)+(M128*V128) -> 29.836 | AB128: 1551.472 | AC128: =AB128*'Truck Assumptions'!$B$10 -> 1636.80296 | AD128: =AC128*'Fuel and Labor Assumptions'!$B$10 -> 2176.947937 | AE128: 96500.6191 | AF128: =VLOOKUP(B128,'2012 Macro Cost Data'!$B$5:$F$245,5,FALSE) -> 107830.03 | AG128: -11329.4109
A129: Rural Collection South | B129: 510 | C129: SOUTH DUNDAS, TOWNSHIP OF | D129: N | E129: =VLOOKUP(B129,'2012 Program Data'!$B$6:$D$235,3,FALSE) -> 4442 | F129: =VLOOKUP(B129,'2012 Program Data'!$B$6:$E$235,4,FALSE) -> 0 | G129: 4442 | H129: 514.446664 | J129: 565.8913304 | K129: 52 | L129: 0.00244991571 | M129: 20 | N129: =IF(AND(D129="Y",F129<1,K129=52),'Collection Route Parameters'!$B$35,IF(AND(D129="N",F129<1,K129=52),'Collection Route Parameters'!$B$37,IF(AND(D129="Y",F129<1,K129=26),'Collection Route Parameters'!$B$36,('Collection Route Parameters'!$B$38)))) -> 878.0357143 | O129: 878.0357143 | P129: ='Truck Assumptions'!$B$5/Municipalities!L129 -> 1428.620579 | Q129: run out of time | R129: 128.5714286 | S129: 128.5714286 | T129: =IF(Q129="run out of space",((N129-P129)/'Collection Route Parameters'!$B$43)-'Collection Route Parameters'!$B$54,"") ->  | U129: 878.0357143 | V129: =ROUNDUP((G129/U129)/'Fuel and Labor Assumptions'!$B$7,0) -> 2 | W129: =V129*'Truck Assumptions'!$B$16 -> 118447.3423 | X129: =(V129*'Fuel and Labor Assumptions'!$B$5)*'Fuel and Labor Assumptions'!$B$6 -> 30 | Y129: 1560 | Z129: =Y129*'Fuel and Labor Assumptions'!$B$4 -> 70200 | AA129: =(((U129*'Collection Route Parameters'!$B$7)*Municipalities!V129)/1000)+(M129*V129) -> 57.56071429 | AB129: 2993.157143 | AC129: =AB129*'Truck Assumptions'!$B$10 -> 3157.780786 | AD129: =AC129*'Fuel and Labor Assumptions'!$B$10 -> 4199.848445 | AE129: 192847.1908 | AF129: =VLOOKUP(B129,'2012 Macro Cost Data'!$B$5:$F$245,5,FALSE) -> 266734.97 | AG129: -73887.77923
A130: Rural Collection South | B130: 531 | C130: BRANT, COUNTY OF | D130: N | E130: =VLOOKUP(B130,'2012 Program Data'!$B$6:$D$235,3,FALSE) -> 13847 | F130: =VLOOKUP(B130,'2012 Program Data'!$B$6:$E$235,4,FALSE) -> 0 | G130: 13862 | H130: 1918.72 | J130: 2110.592 | K130: =VLOOKUP(B130,'2012 Program Data'!$B$6:$T$235,19,FALSE) -> 26 | L130: 0.002928026814 | M130: 20 | N130: =IF(AND(D130="Y",F130<1,K130=52),'Collection Route Parameters'!$B$35,IF(AND(D130="N",F130<1,K130=52),'Collection Route Parameters'!$B$37,IF(AND(D130="Y",F130<1,K130=26),'Collection Route Parameters'!$B$36,('Collection Route Parameters'!$B$38)))) -> 723.0882353 | O130: 723.0882353 | P130: ='Truck Assumptions'!$B$5/Municipalities!L130 -> 1195.344245 | Q130: run out of time | R130: 105.8823529 | S130: 105.8823529 | T130: =IF(Q130="run out of space",((N130-P130)/'Collection Route Parameters'!$B$43)-'Collection Route Parameters'!$B$54,"") ->  | U130: 723.0882353 | V130: =ROUNDUP((G130/U130)/'Fuel and Labor Assumptions'!$B$7,0) -> 4 | W130: =V130*'Truck Assumptions'!$B$16 -> 236894.6847 | X130: =(V130*'Fuel and Labor Assumptions'!$B$5)*'Fuel and Labor Assumptions'!$B$6 -> 60 | Y130: 1560 | Z130: =Y130*'Fuel and Labor Assumptions'!$B$4 -> 70200 | AA130: =(((U130*'Collection Route Parameters'!$B$7)*Municipalities!V130)/1000)+(M130*V130) -> 108.9235294 | AB130: 2832.011765 | AC130: =AB130*'Truck Assumptions'!$B$10 -> 2987.772412 | AD130: =AC130*'Fuel and Labor Assumptions'!$B$10 -> 3973.737308 | AE130: 311068.422 | AF130: =VLOOKUP(B130,'2012 Macro Cost Data'!$B$5:$F$245,5,FALSE) -> 776075.72 | AG130: -465007.298
A131: Rural Collection South | B131: 550 | C131: HASTINGS HIGHLANDS, MUNICIPALITY OF | D131: N | E131: =VLOOKUP(B131,'2012 Program Data'!$B$6:$D$235,3,FALSE) -> 3780 | F131: =VLOOKUP(B131,'2012 Program Data'!$B$6:$E$235,4,FALSE) -> 0 | G131: 3780 | H131: 260 | J131: =H131*(1+$B$234) -> 286 | K131: 52 | L131: =(J131/G131)/52 -> 0.001455026455 | M131: 20 | N131: =IF(AND(D131="Y",F131<1,K131=52),'Collection Route Parameters'!$B$35,IF(AND(D131="N",F131<1,K131=52),'Collection Route Parameters'!$B$37,IF(AND(D131="Y",F131<1,K131=26),'Collection Route Parameters'!$B$36,('Collection Route Parameters'!$B$38)))) -> 878.0357143 | O131: 878.0357143 | P131: ='Truck Assumptions'!$B$5/Municipalities!L131 -> 2405.454545 | Q131: run out of time | R131: =IF(N131=$AL$15,$AL$3,IF(N131=$AL$16,$AL$4,IF(N131=$AL$17,$AL$5,IF(N131=$AL$6,$AL$18,IF(N131=$AL$19,$AL$7,IF(N131=$AL$20,$AL$8,IF(N131=$AL$21,$AL$9,$AL$10))))))) -> 128.5714286 | S131: 128.5714286 | T131: =IF(Q131="run out of space",((N131-P131)/'Collection Route Parameters'!$B$43)-'Collection Route Parameters'!$B$54,"") ->  | U131: 878.0357143 | V131: =ROUNDUP((G131/U131)/'Fuel and Labor Assumptions'!$B$7,0) -> 1 | W131: =V131*'Truck Assumptions'!$B$16 -> 59223.67116 | X131: =(V131*'Fuel and Labor Assumptions'!$B$5)*'Fuel and Labor Assumptions'!$B$6 -> 15 | Y131: =X131*K131 -> 780 | Z131: =Y131*'Fuel and Labor Assumptions'!$B$4 -> 35100 | AA131: =(((U131*'Collection Route Parameters'!$B$7)*Municipalities!V131)/1000)+(M131*V131) -> 28.78035714 | AB131: =AA131*K131 -> 1496.578571 | AC131: =AB131*'Truck Assumptions'!$B$10 -> 1578.890393 | AD131: =AC131*'Fuel and Labor Assumptions'!$B$10 -> 2099.924223 | AE131: =AD131+Z131+W131 -> 96423.59539 | AF131: =VLOOKUP(B131,'2012 Macro Cost Data'!$B$5:$F$245,5,FALSE) -> 81303.75 | AG131: =AE131-AF131 -> 15119.84539
A132: Rural Collection South | B132: 551 | C132: HORTON, TOWNSHIP OF | D132: Y | E132: =VLOOKUP(B132,'2012 Program Data'!$B$6:$D$235,3,FALSE) -> 1340 | F132: =VLOOKUP(B132,'2012 Program Data'!$B$6:$E$235,4,FALSE) -> 0 | G132: 1340 | H132: 178.88576 | J132: 196.774336 | K132: =VLOOKUP(B132,'2012 Program Data'!$B$6:$T$235,19,FALSE) -> 26 | L132: 0.002823971527 | M132: 20 | N132: =IF(AND(D132="Y",F132<1,K132=52),'Collection Route Parameters'!$B$35,IF(AND(D132="N",F132<1,K132=52),'Collection Route Parameters'!$B$37,IF(AND(D132="Y",F132<1,K132=26),'Collection Route Parameters'!$B$36,('Collection Route Parameters'!$B$38)))) -> 819.6666667 | O132: 819.6666667 | P132: ='Truck Assumptions'!$B$5/Municipalities!L132 -> 1239.389267 | Q132: =IF(O132>P132,"run out of space", "run out of time") -> run out of time | R132: 120 | S132: =IF(AND(I132>0,D132="Y"),(R132*(G132-I132)/G132)+($AL$11*I132/G132),IF(AND(I132>0,D132="N"),(R132*(G132-I132)/G132)+($AL$12*I132/G132),R132)) -> 120 | T132: =IF(Q132="run out of space",((N132-P132)/'Collection Route Parameters'!$B$43)-'Collection Route Parameters'!$B$54,"") ->  | U132: =IF(AND(T132<>"",T132>0),(R132*T132)+P132,O132) -> 819.6666667 | V132: =ROUNDUP((G132/U132)/'Fuel and Labor Assumptions'!$B$7,0) -> 1 | W132: =V132*'Truck Assumptions'!$B$16 -> 59223.67116 | X132: =(V132*'Fuel and Labor Assumptions'!$B$5)*'Fuel and Labor Assumptions'!$B$6 -> 15 | Y132: 390 | Z132: =Y132*'Fuel and Labor Assumptions'!$B$4 -> 17550 | AA132: =(((U132*'Collection Route Parameters'!$B$7)*Municipalities!V132)/1000)+(M132*V132) -> 28.19666667 | AB132: 733.1133333 | AC132: =AB132*'Truck Assumptions'!$B$10 -> 773.4345667 | AD132: =AC132*'Fuel and Labor Assumptions'!$B$10 -> 1028.667974 | AE132: 77802.33914 | AF132: =VLOOKUP(B132,'2012 Macro Cost Data'!$B$5:$F$245,5,FALSE) -> 80453.52 | AG132: -2651.180862
A133: Rural Collection South | B133: 555 | C133: GREY HIGHLANDS, MUNICIPALITY OF | D133: Y | E133: =VLOOKUP(B133,'2012 Program Data'!$B$6:$D$235,3,FALSE) -> 5262 | F133: =VLOOKUP(B133,'2012 Program Data'!$B$6:$E$235,4,FALSE) -> 0 | G133: 5262 | H133: 640.912592 | J133: 705.0038512 | K133: =VLOOKUP(B133,'2012 Program Data'!$B$6:$T$235,19,FALSE) -> 26 | L133: 0.002576542449 | M133: 20 | N133: =IF(AND(D133="Y",F133<1,K133=52),'Collection Route Parameters'!$B$35,IF(AND(D133="N",F133<1,K133=52),'Collection Route Parameters'!$B$37,IF(AND(D133="Y",F133<1,K133=26),'Collection Route Parameters'!$B$36,('Collection Route Parameters'!$B$38)))) -> 819.6666667 | O133: =IF(AND(D133="Y",I133>0),($AL$15*(1-I133/G133)+($AL$23*(I133/G133))),IF(AND(D133="N",I133>0),($AL$18*(1-I133/G133)+($AL$24*(I133/G133))),(N133))) -> 819.6666667 | P133: ='Truck Assumptions'!$B$5/Municipalities!L133 -> 1358.409601 | Q133: run out of time | R133: 120 | S133: 120 | T133: =IF(Q133="run out of space",((N133-P133)/'Collection Route Parameters'!$B$43)-'Collection Route Parameters'!$B$54,"") ->  | U133: 819.6666667 | V133: =ROUNDUP((G133/U133)/'Fuel and Labor Assumptions'!$B$7,0) -> 2 | W133: =V133*'Truck Assumptions'!$B$16 -> 118447.3423 | X133: =(V133*'Fuel and Labor Assumptions'!$B$5)*'Fuel and Labor Assumptions'!$B$6 -> 30 | Y133: 780 | Z133: =Y133*'Fuel and Labor Assumptions'!$B$4 -> 35100 | AA133: =(((U133*'Collection Route Parameters'!$B$7)*Municipalities!V133)/1000)+(M133*V133) -> 56.39333333 | AB133: 1466.226667 | AC133: =AB133*'Truck Assumptions'!$B$10 -> 1546.869133 | AD133: =AC133*'Fuel and Labor Assumptions'!$B$10 -> 2057.335947 | AE133: 155604.6783 | AF133: =VLOOKUP(B133,'2012 Macro Cost Data'!$B$5:$F$245,5,FALSE) -> 245982 | AG133: -90377.32172
A134: Rural Collection South | B134: 556 | C134: MCNAB-BRAESIDE, TOWNSHIP OF | D134: Y | E134: =VLOOKUP(B134,'2012 Program Data'!$B$6:$D$235,3,FALSE) -> 3114 | F134: =VLOOKUP(B134,'2012 Program Data'!$B$6:$E$235,4,FALSE) -> 0 | G134: 3114 | H134: 574.199 | J134: 631.6189 | K134: 52 | L134: 0.003900615706 | M134: 20 | N134: =IF(AND(D134="Y",F134<1,K134=52),'Collection Route Parameters'!$B$35,IF(AND(D134="N",F134<1,K134=52),'Collection Route Parameters'!$B$37,IF(AND(D134="Y",F134<1,K134=26),'Collection Route Parameters'!$B$36,('Collection Route Parameters'!$B$38)))) -> 983.6 | O134: 983.6 | P134: ='Truck Assumptions'!$B$5/Municipalities!L134 -> 897.2942387 | Q134: run out of space | R134: 144 | S134: 144 | U134: 983.6 | V134: =ROUNDUP((G134/U134)/'Fuel and Labor Assumptions'!$B$7,0) -> 1 | W134: =V134*'Truck Assumptions'!$B$16 -> 59223.67116 | X134: =(V134*'Fuel and Labor Assumptions'!$B$5)*'Fuel and Labor Assumptions'!$B$6 -> 15 | Y134: 780 | Z134: =Y134*'Fuel and Labor Assumptions'!$B$4 -> 35100 | AA134: =(((U134*'Collection Route Parameters'!$B$7)*Municipalities!V134)/1000)+(M134*V134) -> 29.836 | AB134: 1551.472 | AC134: =AB134*'Truck Assumptions'!$B$10 -> 1636.80296 | AD134: =AC134*'Fuel and Labor Assumptions'!$B$10 -> 2176.947937 | AE134: 96500.6191 | AF134: =VLOOKUP(B134,'2012 Macro Cost Data'!$B$5:$F$245,5,FALSE) -> 129830 | AG134: -33329.3809
A135: Rural Collection South | B135: 558 | C135: SOUTHWEST MIDDLESEX, MUNICIPALITY OF | D135: Y | E135: =VLOOKUP(B135,'2012 Program Data'!$B$6:$D$235,3,FALSE) -> 2470 | F135: =VLOOKUP(B135,'2012 Program Data'!$B$6:$E$235,4,FALSE) -> 0 | G135: 2470 | H135: 362.979736 | J135: 399.2777096 | K135: 52 | L135: 0.00310867105 | M135: 20 | N135: =IF(AND(D135="Y",F135<1,K135=52),'Collection Route Parameters'!$B$35,IF(AND(D135="N",F135<1,K135=52),'Collection Route Parameters'!$B$37,IF(AND(D135="Y",F135<1,K135=26),'Collection Route Parameters'!$B$36,('Collection Route Parameters'!$B$38)))) -> 983.6 | O135: 983.6 | P135: ='Truck Assumptions'!$B$5/Municipalities!L135 -> 1125.883036 | Q135: run out of time | R135: 144 | S135: 144 | T135: =IF(Q135="run out of space",((N135-P135)/'Collection Route Parameters'!$B$43)-'Collection Route Parameters'!$B$54,"") ->  | U135: 983.6 | V135: =ROUNDUP((G135/U135)/'Fuel and Labor Assumptions'!$B$7,0) -> 1 | W135: =V135*'Truck Assumptions'!$B$16 -> 59223.67116 | X135: =(V135*'Fuel and Labor Assumptions'!$B$5)*'Fuel and Labor Assumptions'!$B$6 -> 15 | Y135: 780 | Z135: =Y135*'Fuel and Labor Assumptions'!$B$4 -> 35100 | AA135: =(((U135*'Collection Route Parameters'!$B$7)*Municipalities!V135)/1000)+(M135*V135) -> 29.836 | AB135: 1551.472 | AC135: =AB135*'Truck Assumptions'!$B$10 -> 1636.80296 | AD135: =AC135*'Fuel and Labor Assumptions'!$B$10 -> 2176.947937 | AE135: 96500.6191 | AF135: =VLOOKUP(B135,'2012 Macro Cost Data'!$B$5:$F$245,5,FALSE) -> 229146.78 | AG135: -132646.1609
A136: Rural Collection South | B136: 600 | C136: ALFRED AND PLANTAGENET, TOWNSHIP OF | D136: N | E136: =VLOOKUP(B136,'2012 Program Data'!$B$6:$D$235,3,FALSE) -> 4146 | F136: =VLOOKUP(B136,'2012 Program Data'!$B$6:$E$235,4,FALSE) -> 0 | G136: 4146 | H136: 627.251176 | J136: 689.9762936 | K136: 52 | L136: 0.003200379855 | M136: 20 | N136: =IF(AND(D136="Y",F136<1,K136=52),'Collection Route Parameters'!$B$35,IF(AND(D136="N",F136<1,K136=52),'Collection Route Parameters'!$B$37,IF(AND(D136="Y",F136<1,K136=26),'Collection Route Parameters'!$B$36,('Collection Route Parameters'!$B$38)))) -> 878.0357143 | O136: 878.0357143 | P136: ='Truck Assumptions'!$B$5/Municipalities!L136 -> 1093.620182 | Q136: run out of time | R136: 128.5714286 | S136: 128.5714286 | T136: =IF(Q136="run out of space",((N136-P136)/'Collection Route Parameters'!$B$43)-'Collection Route Parameters'!$B$54,"") ->  | U136: 878.0357143 | V136: =ROUNDUP((G136/U136)/'Fuel and Labor Assumptions'!$B$7,0) -> 1 | W136: =V136*'Truck Assumptions'!$B$16 -> 59223.67116 | X136: =(V136*'Fuel and Labor Assumptions'!$B$5)*'Fuel and Labor Assumptions'!$B$6 -> 15 | Y136: 780 | Z136: =Y136*'Fuel and Labor Assumptions'!$B$4 -> 35100 | AA136: =(((U136*'Collection Route Parameters'!$B$7)*Municipalities!V136)/1000)+(M136*V136) -> 28.78035714 | AB136: 1496.578571 | AC136: =AB136*'Truck Assumptions'!$B$10 -> 1578.890393 | AD136: =AC136*'Fuel and Labor Assumptions'!$B$10 -> 2099.924223 | AE136: 96423.59539 | AF136: =VLOOKUP(B136,'2012 Macro Cost Data'!$B$5:$F$245,5,FALSE) -> 218324.11 | AG136: -121900.5146
A137: Rural Collection South | B137: 604 | C137: WEST GREY, MUNICIPALITY OF | D137: N | E137: =VLOOKUP(B137,'2012 Program Data'!$B$6:$D$235,3,FALSE) -> 5564 | F137: =VLOOKUP(B137,'2012 Program Data'!$B$6:$E$235,4,FALSE) -> 0 | G137: 5564 | H137: 771.796088 | J137: 848.9756968 | K137: 52 | L137: 0.002934301889 | M137: 20 | N137: =IF(AND(D137="Y",F137<1,K137=52),'Collection Route Parameters'!$B$35,IF(AND(D137="N",F137<1,K137=52),'Collection Route Parameters'!$B$37,IF(AND(D137="Y",F137<1,K137=26),'Collection Route Parameters'!$B$36,('Collection Route Parameters'!$B$38)))) -> 878.0357143 | O137: 878.0357143 | P137: ='Truck Assumptions'!$B$5/Municipalities!L137 -> 1192.787972 | Q137: run out of time | R137: 128.5714286 | S137: 128.5714286 | T137: =IF(Q137="run out of space",((N137-P137)/'Collection Route Parameters'!$B$43)-'Collection Route Parameters'!$B$54,"") ->  | U137: 878.0357143 | V137: =ROUNDUP((G137/U137)/'Fuel and Labor Assumptions'!$B$7,0) -> 2 | W137: =V137*'Truck Assumptions'!$B$16 -> 118447.3423 | X137: =(V137*'Fuel and Labor Assumptions'!$B$5)*'Fuel and Labor Assumptions'!$B$6 -> 30 | Y137: 1560 | Z137: =Y137*'Fuel and Labor Assumptions'!$B$4 -> 70200 | AA137: =(((U137*'Collection Route Parameters'!$B$7)*Municipalities!V137)/1000)+(M137*V137) -> 57.56071429 | AB137: 2993.157143 | AC137: =AB137*'Truck Assumptions'!$B$10 -> 3157.780786 | AD137: =AC137*'Fuel and Labor Assumptions'!$B$10 -> 4199.848445 | AE137: 192847.1908 | AF137: =VLOOKUP(B137,'2012 Macro Cost Data'!$B$5:$F$245,5,FALSE) -> 240887.17 | AG137: -48039.97923
A138: Rural Collection South | B138: 612 | C138: SOUTHGATE, TOWNSHIP OF | D138: Y | E138: =VLOOKUP(B138,'2012 Program Data'!$B$6:$D$235,3,FALSE) -> 2921 | F138: =VLOOKUP(B138,'2012 Program Data'!$B$6:$E$235,4,FALSE) -> 0 | G138: 2921 | H138: 591.693232 | J138: 650.8625552 | K138: =VLOOKUP(B138,'2012 Program Data'!$B$6:$T$235,19,FALSE) -> 26 | L138: 0.004285035125 | M138: 20 | N138: =IF(AND(D138="Y",F138<1,K138=52),'Collection Route Parameters'!$B$35,IF(AND(D138="N",F138<1,K138=52),'Collection Route Parameters'!$B$37,IF(AND(D138="Y",F138<1,K138=26),'Collection Route Parameters'!$B$36,('Collection Route Parameters'!$B$38)))) -> 819.6666667 | O138: 819.6666667 | P138: ='Truck Assumptions'!$B$5/Municipalities!L138 -> 816.796105 | Q138: run out of space | R138: 120 | S138: 120 | U138: 819.6666667 | V138: =ROUNDUP((G138/U138)/'Fuel and Labor Assumptions'!$B$7,0) -> 1 | W138: =V138*'Truck Assumptions'!$B$16 -> 59223.67116 | X138: =(V138*'Fuel and Labor Assumptions'!$B$5)*'Fuel and Labor Assumptions'!$B$6 -> 15 | Y138: 390 | Z138: =Y138*'Fuel and Labor Assumptions'!$B$4 -> 17550 | AA138: =(((U138*'Collection Route Parameters'!$B$7)*Municipalities!V138)/1000)+(M138*V138) -> 28.19666667 | AB138: 733.1133333 | AC138: =AB138*'Truck Assumptions'!$B$10 -> 773.4345667 | AD138: =AC138*'Fuel and Labor Assumptions'!$B$10 -> 1028.667974 | AE138: 77802.33914 | AF138: =VLOOKUP(B138,'2012 Macro Cost Data'!$B$5:$F$245,5,FALSE) -> 195211.68 | AG138: -117409.3409
A139: Rural Collection South | B139: 711 | C139: BANCROFT, TOWN OF | D139: N | E139: =VLOOKUP(B139,'2012 Program Data'!$B$6:$D$235,3,FALSE) -> 1896 | F139: =VLOOKUP(B139,'2012 Program Data'!$B$6:$E$235,4,FALSE) -> 0 | G139: 1896 | H139: 386.73 | J139: 425.403 | K139: =VLOOKUP(B139,'2012 Program Data'!$B$6:$T$235,19,FALSE) -> 52 | L139: 0.004314782132 | M139: 20 | N139: =IF(AND(D139="Y",F139<1,K139=52),'Collection Route Parameters'!$B$35,IF(AND(D139="N",F139<1,K139=52),'Collection Route Parameters'!$B$37,IF(AND(D139="Y",F139<1,K139=26),'Collection Route Parameters'!$B$36,('Collection Route Parameters'!$B$38)))) -> 878.0357143 | O139: 878.0357143 | P139: ='Truck Assumptions'!$B$5/Municipalities!L139 -> 811.1649424 | Q139: run out of space | R139: 128.5714286 | S139: 128.5714286 | U139: 878.0357143 | V139: =ROUNDUP((G139/U139)/'Fuel and Labor Assumptions'!$B$7,0) -> 1 | W139: =V139*'Truck Assumptions'!$B$16 -> 59223.67116 | X139: =(V139*'Fuel and Labor Assumptions'!$B$5)*'Fuel and Labor Assumptions'!$B$6 -> 15 | Y139: 780 | Z139: =Y139*'Fuel and Labor Assumptions'!$B$4 -> 35100 | AA139: =(((U139*'Collection Route Parameters'!$B$7)*Municipalities!V139)/1000)+(M139*V139) -> 28.78035714 | AB139: 1496.578571 | AC139: =AB139*'Truck Assumptions'!$B$10 -> 1578.890393 | AD139: =AC139*'Fuel and Labor Assumptions'!$B$10 -> 2099.924223 | AE139: 96423.59539 | AF139: =VLOOKUP(B139,'2012 Macro Cost Data'!$B$5:$F$245,5,FALSE) -> 97425.31 | AG139: -1001.714613
A140: Rural Collection South | B140: 712 | C140: BECKWITH, TOWNSHIP OF | D140: Y | E140: =VLOOKUP(B140,'2012 Program Data'!$B$6:$D$235,3,FALSE) -> 2950 | F140: =VLOOKUP(B140,'2012 Program Data'!$B$6:$E$235,4,FALSE) -> 0 | G140: 2950 | H140: 435.44 | J140: 478.984 | K140: 52 | L140: 0.003122451108 | M140: 20 | N140: =IF(AND(D140="Y",F140<1,K140=52),'Collection Route Parameters'!$B$35,IF(AND(D140="N",F140<1,K140=52),'Collection Route Parameters'!$B$37,IF(AND(D140="Y",F140<1,K140=26),'Collection Route Parameters'!$B$36,('Collection Route Parameters'!$B$38)))) -> 983.6 | O140: 983.6 | P140: ='Truck Assumptions'!$B$5/Municipalities!L140 -> 1120.914269 | Q140: run out of time | R140: 144 | S140: 144 | T140: =IF(Q140="run out of space",((N140-P140)/'Collection Route Parameters'!$B$43)-'Collection Route Parameters'!$B$54,"") ->  | U140: 983.6 | V140: =ROUNDUP((G140/U140)/'Fuel and Labor Assumptions'!$B$7,0) -> 1 | W140: =V140*'Truck Assumptions'!$B$16 -> 59223.67116 | X140: =(V140*'Fuel and Labor Assumptions'!$B$5)*'Fuel and Labor Assumptions'!$B$6 -> 15 | Y140: 780 | Z140: =Y140*'Fuel and Labor Assumptions'!$B$4 -> 35100 | AA140: =(((U140*'Collection Route Parameters'!$B$7)*Municipalities!V140)/1000)+(M140*V140) -> 29.836 | AB140: 1551.472 | AC140: =AB140*'Truck Assumptions'!$B$10 -> 1636.80296 | AD140: =AC140*'Fuel and Labor Assumptions'!$B$10 -> 2176.947937 | AE140: 96500.6191 | AF140: =VLOOKUP(B140,'2012 Macro Cost Data'!$B$5:$F$245,5,FALSE) -> 197439.55 | AG140: -100938.9309
A141: Rural Collection South | B141: 731 | C141: CARLETON PLACE, TOWN OF | D141: Y | E141: =VLOOKUP(B141,'2012 Program Data'!$B$6:$D$235,3,FALSE) -> 4243 | F141: =VLOOKUP(B141,'2012 Program Data'!$B$6:$E$235,4,FALSE) -> 0 | G141: 4243 | H141: 623.18 | J141: 685.498 | K141: =VLOOKUP(B141,'2012 Program Data'!$B$6:$T$235,19,FALSE) -> 52 | L141: 0.003106918182 | M141: 20 | N141: =IF(AND(D141="Y",F141<1,K141=52),'Collection Route Parameters'!$B$35,IF(AND(D141="N",F141<1,K141=52),'Collection Route Parameters'!$B$37,IF(AND(D141="Y",F141<1,K141=26),'Collection Route Parameters'!$B$36,('Collection Route Parameters'!$B$38)))) -> 983.6 | O141: 983.6 | P141: ='Truck Assumptions'!$B$5/Municipalities!L141 -> 1126.518239 | Q141: run out of time | R141: 144 | S141: 144 | T141: =IF(Q141="run out of space",((N141-P141)/'Collection Route Parameters'!$B$43)-'Collection Route Parameters'!$B$54,"") ->  | U141: 983.6 | V141: =ROUNDUP((G141/U141)/'Fuel and Labor Assumptions'!$B$7,0) -> 1 | W141: =V141*'Truck Assumptions'!$B$16 -> 59223.67116 | X141: =(V141*'Fuel and Labor Assumptions'!$B$5)*'Fuel and Labor Assumptions'!$B$6 -> 15 | Y141: 780 | Z141: =Y141*'Fuel and Labor Assumptions'!$B$4 -> 35100 | AA141: =(((U141*'Collection Route Parameters'!$B$7)*Municipalities!V141)/1000)+(M141*V141) -> 29.836 | AB141: 1551.472 | AC141: =AB141*'Truck Assumptions'!$B$10 -> 1636.80296 | AD141: =AC141*'Fuel and Labor Assumptions'!$B$10 -> 2176.947937 | AE141: 96500.6191 | AF141: =VLOOKUP(B141,'2012 Macro Cost Data'!$B$5:$F$245,5,FALSE) -> 254122.62 | AG141: -157622.0009
A142: Rural Collection South | B142: 749 | C142: CONMEE, TOWNSHIP OF | D142: N | E142: =VLOOKUP(B142,'2012 Program Data'!$B$6:$D$235,3,FALSE) -> 0 | F142: =VLOOKUP(B142,'2012 Program Data'!$B$6:$E$235,4,FALSE) -> 285 | G142: 285 | H142: 16.58301 | J142: 18.241311 | K142: 52 | L142: 0.001230857692 | M142: 20 | N142: =IF(AND(D142="Y",F142<1,K142=52),'Collection Route Parameters'!$B$35,IF(AND(D142="N",F142<1,K142=52),'Collection Route Parameters'!$B$37,IF(AND(D142="Y",F142<1,K142=26),'Collection Route Parameters'!$B$36,('Collection Route Parameters'!$B$38)))) -> 723.0882353 | O142: 723.0882353 | P142: ='Truck Assumptions'!$B$5/Municipalities!L142 -> 2843.54562 | Q142: run out of time | R142: 105.8823529 | S142: 105.8823529 | T142: =IF(Q142="run out of space",((N142-P142)/'Collection Route Parameters'!$B$43)-'Collection Route Parameters'!$B$54,"") ->  | U142: 723.0882353 | V142: =ROUNDUP((G142/U142)/'Fuel and Labor Assumptions'!$B$7,0) -> 1 | W142: =V142*'Truck Assumptions'!$B$16 -> 59223.67116 | X142: =(V142*'Fuel and Labor Assumptions'!$B$5)*'Fuel and Labor Assumptions'!$B$6 -> 15 | Y142: 780 | Z142: =Y142*'Fuel and Labor Assumptions'!$B$4 -> 35100 | AA142: =(((U142*'Collection Route Parameters'!$B$7)*Municipalities!V142)/1000)+(M142*V142) -> 27.23088235 | AB142: 1416.005882 | AC142: =AB142*'Truck Assumptions'!$B$10 -> 1493.886206 | AD142: =AC142*'Fuel and Labor Assumptions'!$B$10 -> 1986.868654 | AE142: 96310.53982 | AF142: =VLOOKUP(B142,'2012 Macro Cost Data'!$B$5:$F$245,5,FALSE) -> 0 | AG142: 96310.53982
A143: Rural Collection South | B143: 786 | C143: HALDIMAND, COUNTY OF | D143: N | E143: =VLOOKUP(B143,'2012 Program Data'!$B$6:$D$235,3,FALSE) -> 19852 | F143: =VLOOKUP(B143,'2012 Program Data'!$B$6:$E$235,4,FALSE) -> 0 | G143: 19852 | H143: 2902.13 | J143: 3192.343 | K143: 52 | L143: 0.003092444667 | M143: 20 | N143: =IF(AND(D143="Y",F143<1,K143=52),'Collection Route Parameters'!$B$35,IF(AND(D143="N",F143<1,K143=52),'Collection Route Parameters'!$B$37,IF(AND(D143="Y",F143<1,K143=26),'Collection Route Parameters'!$B$36,('Collection Route Parameters'!$B$38)))) -> 878.0357143 | O143: 878.0357143 | P143: ='Truck Assumptions'!$B$5/Municipalities!L143 -> 1131.790663 | Q143: run out of time | R143: 128.5714286 | S143: 128.5714286 | T143: =IF(Q143="run out of space",((N143-P143)/'Collection Route Parameters'!$B$43)-'Collection Route Parameters'!$B$54,"") ->  | U143: 878.0357143 | V143: =ROUNDUP((G143/U143)/'Fuel and Labor Assumptions'!$B$7,0) -> 5 | W143: =V143*'Truck Assumptions'!$B$16 -> 296118.3558 | X143: =(V143*'Fuel and Labor Assumptions'!$B$5)*'Fuel and Labor Assumptions'!$B$6 -> 75 | Y143: 3900 | Z143: =Y143*'Fuel and Labor Assumptions'!$B$4 -> 175500 | AA143: =(((U143*'Collection Route Parameters'!$B$7)*Municipalities!V143)/1000)+(M143*V143) -> 143.9017857 | AB143: 7482.892857 | AC143: =AB143*'Truck Assumptions'!$B$10 -> 7894.451964 | AD143: =AC143*'Fuel and Labor Assumptions'!$B$10 -> 10499.62111 | AE143: 482117.9769 | AF143: =VLOOKUP(B143,'2012 Macro Cost Data'!$B$5:$F$245,5,FALSE) -> 1371837.25 | AG143: -889719.2731
A144: Rural Collection South | B144: 854 | C144: MISSISSIPPI MILLS, TOWN OF | D144: N | E144: =VLOOKUP(B144,'2012 Program Data'!$B$6:$D$235,3,FALSE) -> 5417 | F144: =VLOOKUP(B144,'2012 Program Data'!$B$6:$E$235,4,FALSE) -> 0 | G144: 5417 | H144: 778.33 | J144: 856.163 | K144: =VLOOKUP(B144,'2012 Program Data'!$B$6:$T$235,19,FALSE) -> 52 | L144: 0.00303944491 | M144: 20 | N144: =IF(AND(D144="Y",F144<1,K144=52),'Collection Route Parameters'!$B$35,IF(AND(D144="N",F144<1,K144=52),'Collection Route Parameters'!$B$37,IF(AND(D144="Y",F144<1,K144=26),'Collection Route Parameters'!$B$36,('Collection Route Parameters'!$B$38)))) -> 878.0357143 | O144: 878.0357143 | P144: ='Truck Assumptions'!$B$5/Municipalities!L144 -> 1151.526053 | Q144: run out of time | R144: 128.5714286 | S144: 128.5714286 | T144: =IF(Q144="run out of space",((N144-P144)/'Collection Route Parameters'!$B$43)-'Collection Route Parameters'!$B$54,"") ->  | U144: 878.0357143 | V144: =ROUNDUP((G144/U144)/'Fuel and Labor Assumptions'!$B$7,0) -> 2 | W144: =V144*'Truck Assumptions'!$B$16 -> 118447.3423 | X144: =(V144*'Fuel and Labor Assumptions'!$B$5)*'Fuel and Labor Assumptions'!$B$6 -> 30 | Y144: 1560 | Z144: =Y144*'Fuel and Labor Assumptions'!$B$4 -> 70200 | AA144: =(((U144*'Collection Route Parameters'!$B$7)*Municipalities!V144)/1000)+(M144*V144) -> 57.56071429 | AB144: 2993.157143 | AC144: =AB144*'Truck Assumptions'!$B$10 -> 3157.780786 | AD144: =AC144*'Fuel and Labor Assumptions'!$B$10 -> 4199.848445 | AE144: 192847.1908 | AF144: =VLOOKUP(B144,'2012 Macro Cost Data'!$B$5:$F$245,5,FALSE) -> 285086.33 | AG144: -92239.13923
A145: Rural Collection South | B145: 855 | C145: MONTAGUE, TOWNSHIP OF | D145: Y | E145: =VLOOKUP(B145,'2012 Program Data'!$B$6:$D$235,3,FALSE) -> 1475 | F145: =VLOOKUP(B145,'2012 Program Data'!$B$6:$E$235,4,FALSE) -> 0 | G145: 1475 | H145: 214.42 | J145: 235.862 | K145: 52 | L145: 0.003075123859 | M145: 20 | N145: =IF(AND(D145="Y",F145<1,K145=52),'Collection Route Parameters'!$B$35,IF(AND(D145="N",F145<1,K145=52),'Collection Route Parameters'!$B$37,IF(AND(D145="Y",F145<1,K145=26),'Collection Route Parameters'!$B$36,('Collection Route Parameters'!$B$38)))) -> 983.6 | O145: 983.6 | P145: ='Truck Assumptions'!$B$5/Municipalities!L145 -> 1138.165537 | Q145: run out of time | R145: 144 | S145: 144 | T145: =IF(Q145="run out of space",((N145-P145)/'Collection Route Parameters'!$B$43)-'Collection Route Parameters'!$B$54,"") ->  | U145: 983.6 | V145: =ROUNDUP((G145/U145)/'Fuel and Labor Assumptions'!$B$7,0) -> 1 | W145: =V145*'Truck Assumptions'!$B$16 -> 59223.67116 | X145: =(V145*'Fuel and Labor Assumptions'!$B$5)*'Fuel and Labor Assumptions'!$B$6 -> 15 | Y145: 780 | Z145: =Y145*'Fuel and Labor Assumptions'!$B$4 -> 35100 | AA145: =(((U145*'Collection Route Parameters'!$B$7)*Municipalities!V145)/1000)+(M145*V145) -> 29.836 | AB145: 1551.472 | AC145: =AB145*'Truck Assumptions'!$B$10 -> 1636.80296 | AD145: =AC145*'Fuel and Labor Assumptions'!$B$10 -> 2176.947937 | AE145: 96500.6191 | AF145: =VLOOKUP(B145,'2012 Macro Cost Data'!$B$5:$F$245,5,FALSE) -> 85372.78 | AG145: 11127.8391
A146: Rural Collection South | B146: 958 | C146: DEEP RIVER, TOWN OF | D146: Y | E146: =VLOOKUP(B146,'2012 Program Data'!$B$6:$D$235,3,FALSE) -> 1851 | F146: =VLOOKUP(B146,'2012 Program Data'!$B$6:$E$235,4,FALSE) -> 0 | G146: 1851 | H146: 601.137088 | J146: 661.2507968 | K146: =VLOOKUP(B146,'2012 Program Data'!$B$6:$T$235,19,FALSE) -> 26 | L146: 0.006869995395 | M146: 20 | N146: =IF(AND(D146="Y",F146<1,K146=52),'Collection Route Parameters'!$B$35,IF(AND(D146="N",F146<1,K146=52),'Collection Route Parameters'!$B$37,IF(AND(D146="Y",F146<1,K146=26),'Collection Route Parameters'!$B$36,('Collection Route Parameters'!$B$38)))) -> 819.6666667 | O146: 819.6666667 | P146: ='Truck Assumptions'!$B$5/Municipalities!L146 -> 509.461768 | Q146: run out of space | R146: 120 | S146: 120 | T146: =IF(Q146="run out of space",((N146-P146)/'Collection Route Parameters'!$B$43)-'Collection Route Parameters'!$B$54,"") -> 1.053916104 | U146: 635.9317004 | V146: =ROUNDUP((G146/U146)/'Fuel and Labor Assumptions'!$B$7,0) -> 1 | W146: =V146*'Truck Assumptions'!$B$16 -> 59223.67116 | X146: =(V146*'Fuel and Labor Assumptions'!$B$5)*'Fuel and Labor Assumptions'!$B$6 -> 15 | Y146: 390 | Z146: =Y146*'Fuel and Labor Assumptions'!$B$4 -> 17550 | AA146: =(((U146*'Collection Route Parameters'!$B$7)*Municipalities!V146)/1000)+(M146*V146) -> 26.359317 | AB146: 685.3422421 | AC146: =AB146*'Truck Assumptions'!$B$10 -> 723.0360654 | AD146: =AC146*'Fuel and Labor Assumptions'!$B$10 -> 961.637967 | AE146: 77735.30913 | AF146: =VLOOKUP(B146,'2012 Macro Cost Data'!$B$5:$F$245,5,FALSE) -> 113349.65 | AG146: -35614.34087
A147: Rural Collection South | B147: 967 | C147: MOHAWKS OF THE BAY OF QUINTE | D147: N | E147: =VLOOKUP(B147,'2012 Program Data'!$B$6:$D$235,3,FALSE) -> 1022 | F147: =VLOOKUP(B147,'2012 Program Data'!$B$6:$E$235,4,FALSE) -> 0 | G147: 1022 | H147: 282.35767 | J147: 310.593437 | K147: 52 | L147: 0.005844374473 | M147: 20 | N147: =IF(AND(D147="Y",F147<1,K147=52),'Collection Route Parameters'!$B$35,IF(AND(D147="N",F147<1,K147=52),'Collection Route Parameters'!$B$37,IF(AND(D147="Y",F147<1,K147=26),'Collection Route Parameters'!$B$36,('Collection Route Parameters'!$B$38)))) -> 878.0357143 | O147: 878.0357143 | P147: ='Truck Assumptions'!$B$5/Municipalities!L147 -> 598.8664854 | Q147: run out of space | R147: 128.5714286 | S147: 128.5714286 | T147: =IF(Q147="run out of space",((N147-P147)/'Collection Route Parameters'!$B$43)-'Collection Route Parameters'!$B$54,"") -> 0.8814957161 | U147: 712.2016489 | V147: =ROUNDUP((G147/U147)/'Fuel and Labor Assumptions'!$B$7,0) -> 1 | W147: =V147*'Truck Assumptions'!$B$16 -> 59223.67116 | X147: =(V147*'Fuel and Labor Assumptions'!$B$5)*'Fuel and Labor Assumptions'!$B$6 -> 15 | Y147: 780 | Z147: =Y147*'Fuel and Labor Assumptions'!$B$4 -> 35100 | AA147: =(((U147*'Collection Route Parameters'!$B$7)*Municipalities!V147)/1000)+(M147*V147) -> 27.12201649 | AB147: 1410.344857 | AC147: =AB147*'Truck Assumptions'!$B$10 -> 1487.913825 | AD147: =AC147*'Fuel and Labor Assumptions'!$B$10 -> 1978.925387 | AE147: 96302.59655 | AF147: =VLOOKUP(B147,'2012 Macro Cost Data'!$B$5:$F$245,5,FALSE) -> 57522.76 | AG147: 38779.83655
A148: Rural Collection South | B148: 971 | C148: LOYALIST, TOWNSHIP OF | D148: N | E148: =VLOOKUP(B148,'2012 Program Data'!$B$6:$D$235,3,FALSE) -> 6389 | F148: =VLOOKUP(B148,'2012 Program Data'!$B$6:$E$235,4,FALSE) -> 287 | G148: 6676 | H148: 1042.97 | J148: 1147.267 | K148: =VLOOKUP(B148,'2012 Program Data'!$B$6:$T$235,19,FALSE) -> 52 | L148: 0.003304797322 | M148: 20 | N148: =IF(AND(D148="Y",F148<1,K148=52),'Collection Route Parameters'!$B$35,IF(AND(D148="N",F148<1,K148=52),'Collection Route Parameters'!$B$37,IF(AND(D148="Y",F148<1,K148=26),'Collection Route Parameters'!$B$36,('Collection Route Parameters'!$B$38)))) -> 723.0882353 | O148: 723.0882353 | P148: ='Truck Assumptions'!$B$5/Municipalities!L148 -> 1059.06646 | Q148: run out of time | R148: 105.8823529 | S148: 105.8823529 | T148: =IF(Q148="run out of space",((N148-P148)/'Collection Route Parameters'!$B$43)-'Collection Route Parameters'!$B$54,"") ->  | U148: 723.0882353 | V148: =ROUNDUP((G148/U148)/'Fuel and Labor Assumptions'!$B$7,0) -> 2 | W148: =V148*'Truck Assumptions'!$B$16 -> 118447.3423 | X148: =(V148*'Fuel and Labor Assumptions'!$B$5)*'Fuel and Labor Assumptions'!$B$6 -> 30 | Y148: 1560 | Z148: =Y148*'Fuel and Labor Assumptions'!$B$4 -> 70200 | AA148: =(((U148*'Collection Route Parameters'!$B$7)*Municipalities!V148)/1000)+(M148*V148) -> 54.46176471 | AB148: 2832.011765 | AC148: =AB148*'Truck Assumptions'!$B$10 -> 2987.772412 | AD148: =AC148*'Fuel and Labor Assumptions'!$B$10 -> 3973.737308 | AE148: 192621.0796 | AF148: =VLOOKUP(B148,'2012 Macro Cost Data'!$B$5:$F$245,5,FALSE) -> 289445.69 | AG148: -96824.61036
A149: Rural Collection South | B149: 976 | C149: CHIPPEWAS OF NAWASH FIRST NATION | D149: Y | E149: =VLOOKUP(B149,'2012 Program Data'!$B$6:$D$235,3,FALSE) -> 273 | F149: =VLOOKUP(B149,'2012 Program Data'!$B$6:$E$235,4,FALSE) -> 0 | G149: 273 | H149: 15.52236 | J149: 17.074596 | K149: =VLOOKUP(B149,'2012 Program Data'!$B$6:$T$235,19,FALSE) -> 52 | L149: 0.001202775148 | M149: 20 | N149: =IF(AND(D149="Y",F149<1,K149=52),'Collection Route Parameters'!$B$35,IF(AND(D149="N",F149<1,K149=52),'Collection Route Parameters'!$B$37,IF(AND(D149="Y",F149<1,K149=26),'Collection Route Parameters'!$B$36,('Collection Route Parameters'!$B$38)))) -> 983.6 | O149: 983.6 | P149: ='Truck Assumptions'!$B$5/Municipalities!L149 -> 2909.937078 | Q149: run out of time | R149: 144 | S149: 144 | T149: =IF(Q149="run out of space",((N149-P149)/'Collection Route Parameters'!$B$43)-'Collection Route Parameters'!$B$54,"") ->  | U149: 983.6 | V149: =ROUNDUP((G149/U149)/'Fuel and Labor Assumptions'!$B$7,0) -> 1 | W149: =V149*'Truck Assumptions'!$B$16 -> 59223.67116 | X149: =(V149*'Fuel and Labor Assumptions'!$B$5)*'Fuel and Labor Assumptions'!$B$6 -> 15 | Y149: 780 | Z149: =Y149*'Fuel and Labor Assumptions'!$B$4 -> 35100 | AA149: =(((U149*'Collection Route Parameters'!$B$7)*Municipalities!V149)/1000)+(M149*V149) -> 29.836 | AB149: 1551.472 | AC149: =AB149*'Truck Assumptions'!$B$10 -> 1636.80296 | AD149: =AC149*'Fuel and Labor Assumptions'!$B$10 -> 2176.947937 | AE149: 96500.6191 | AF149: =VLOOKUP(B149,'2012 Macro Cost Data'!$B$5:$F$245,5,FALSE) -> 40089.94 | AG149: 56410.6791
A150: Rural Collection South | B150: 978 | C150: SAGAMOK ANISHNAWBEK FIRST NATION | D150: Y | E150: =VLOOKUP(B150,'2012 Program Data'!$B$6:$D$235,3,FALSE) -> 0 | F150: =VLOOKUP(B150,'2012 Program Data'!$B$6:$E$235,4,FALSE) -> 398 | G150: 398 | H150: 37.05057 | J150: 40.755627 | K150: 52 | L150: 0.001969251401 | M150: 20 | N150: =IF(AND(D150="Y",F150<1,K150=52),'Collection Route Parameters'!$B$35,IF(AND(D150="N",F150<1,K150=52),'Collection Route Parameters'!$B$37,IF(AND(D150="Y",F150<1,K150=26),'Collection Route Parameters'!$B$36,('Collection Route Parameters'!$B$38)))) -> 723.0882353 | O150: 723.0882353 | P150: ='Truck Assumptions'!$B$5/Municipalities!L150 -> 1777.325129 | Q150: run out of time | R150: 105.8823529 | S150: 105.8823529 | T150: =IF(Q150="run out of space",((N150-P150)/'Collection Route Parameters'!$B$43)-'Collection Route Parameters'!$B$54,"") ->  | U150: 723.0882353 | V150: =ROUNDUP((G150/U150)/'Fuel and Labor Assumptions'!$B$7,0) -> 1 | W150: =V150*'Truck Assumptions'!$B$16 -> 59223.67116 | X150: =(V150*'Fuel and Labor Assumptions'!$B$5)*'Fuel and Labor Assumptions'!$B$6 -> 15 | Y150: 780 | Z150: =Y150*'Fuel and Labor Assumptions'!$B$4 -> 35100 | AA150: =(((U150*'Collection Route Parameters'!$B$7)*Municipalities!V150)/1000)+(M150*V150) -> 27.23088235 | AB150: 1416.005882 | AC150: =AB150*'Truck Assumptions'!$B$10 -> 1493.886206 | AD150: =AC150*'Fuel and Labor Assumptions'!$B$10 -> 1986.868654 | AE150: 96310.53982 | AF150: =VLOOKUP(B150,'2012 Macro Cost Data'!$B$5:$F$245,5,FALSE) -> 0 | AG150: 96310.53982
A151: Rural Collection South | B151: 980 | C151: ATIKAMEKSHENG ANISHNAWBEK FIRST NATION | D151: Y | E151: =VLOOKUP(B151,'2012 Program Data'!$B$6:$D$235,3,FALSE) -> 120 | F151: =VLOOKUP(B151,'2012 Program Data'!$B$6:$E$235,4,FALSE) -> 0 | G151: 120 | H151: 50.95856 | J151: 56.054416 | K151: =VLOOKUP(B151,'2012 Program Data'!$B$6:$T$235,19,FALSE) -> 52 | L151: 0.008983079487 | M151: 20 | N151: =IF(AND(D151="Y",F151<1,K151=52),'Collection Route Parameters'!$B$35,IF(AND(D151="N",F151<1,K151=52),'Collection Route Parameters'!$B$37,IF(AND(D151="Y",F151<1,K151=26),'Collection Route Parameters'!$B$36,('Collection Route Parameters'!$B$38)))) -> 983.6 | O151: 983.6 | P151: ='Truck Assumptions'!$B$5/Municipalities!L151 -> 389.6213993 | Q151: run out of space | R151: 144 | S151: 144 | T151: =IF(Q151="run out of space",((N151-P151)/'Collection Route Parameters'!$B$43)-'Collection Route Parameters'!$B$54,"") -> 2.63043667 | U151: 768.4042799 | V151: =ROUNDUP((G151/U151)/'Fuel and Labor Assumptions'!$B$7,0) -> 1 | W151: =V151*'Truck Assumptions'!$B$16 -> 59223.67116 | X151: =(V151*'Fuel and Labor Assumptions'!$B$5)*'Fuel and Labor Assumptions'!$B$6 -> 15 | Y151: 780 | Z151: =Y151*'Fuel and Labor Assumptions'!$B$4 -> 35100 | AA151: =(((U151*'Collection Route Parameters'!$B$7)*Municipalities!V151)/1000)+(M151*V151) -> 27.6840428 | AB151: 1439.570226 | AC151: =AB151*'Truck Assumptions'!$B$10 -> 1518.746588 | AD151: =AC151*'Fuel and Labor Assumptions'!$B$10 -> 2019.932962 | AE151: 96343.60413 | AF151: =VLOOKUP(B151,'2012 Macro Cost Data'!$B$5:$F$245,5,FALSE) -> 14319.41 | AG151: 82024.19413
A152: Rural Collection South | B152: 981 | C152: CHIPPEWAS OF RAMA FIRST NATION | D152: N | E152: =VLOOKUP(B152,'2012 Program Data'!$B$6:$D$235,3,FALSE) -> 364 | F152: =VLOOKUP(B152,'2012 Program Data'!$B$6:$E$235,4,FALSE) -> 0 | G152: 364 | H152: 91.13958 | J152: 100.253538 | K152: 52 | L152: 0.005296573225 | M152: 20 | N152: =IF(AND(D152="Y",F152<1,K152=52),'Collection Route Parameters'!$B$35,IF(AND(D152="N",F152<1,K152=52),'Collection Route Parameters'!$B$37,IF(AND(D152="Y",F152<1,K152=26),'Collection Route Parameters'!$B$36,('Collection Route Parameters'!$B$38)))) -> 878.0357143 | O152: 878.0357143 | P152: ='Truck Assumptions'!$B$5/Municipalities!L152 -> 660.8046092 | Q152: run out of space | R152: 128.5714286 | S152: 128.5714286 | T152: =IF(Q152="run out of space",((N152-P152)/'Collection Route Parameters'!$B$43)-'Collection Route Parameters'!$B$54,"") -> 0.5373950282 | U152: 729.8982557 | V152: =ROUNDUP((G152/U152)/'Fuel and Labor Assumptions'!$B$7,0) -> 1 | W152: =V152*'Truck Assumptions'!$B$16 -> 59223.67116 | X152: =(V152*'Fuel and Labor Assumptions'!$B$5)*'Fuel and Labor Assumptions'!$B$6 -> 15 | Y152: 780 | Z152: =Y152*'Fuel and Labor Assumptions'!$B$4 -> 35100 | AA152: =(((U152*'Collection Route Parameters'!$B$7)*Municipalities!V152)/1000)+(M152*V152) -> 27.29898256 | AB152: 1419.547093 | AC152: =AB152*'Truck Assumptions'!$B$10 -> 1497.622183 | AD152: =AC152*'Fuel and Labor Assumptions'!$B$10 -> 1991.837503 | AE152: 96315.50867 | AF152: =VLOOKUP(B152,'2012 Macro Cost Data'!$B$5:$F$245,5,FALSE) -> 68857.86 | AG152: 27457.64867
A153: Rural Collection South | B153: 983 | C153: CURVE LAKE FIRST NATION | D153: Y | E153: =VLOOKUP(B153,'2012 Program Data'!$B$6:$D$235,3,FALSE) -> 502 | F153: =VLOOKUP(B153,'2012 Program Data'!$B$6:$E$235,4,FALSE) -> 59 | G153: 563 | H153: 78.20894 | J153: 86.029834 | K153: =VLOOKUP(B153,'2012 Program Data'!$B$6:$T$235,19,FALSE) -> 52 | L153: 0.002938578836 | M153: 20 | N153: =IF(AND(D153="Y",F153<1,K153=52),'Collection Route Parameters'!$B$35,IF(AND(D153="N",F153<1,K153=52),'Collection Route Parameters'!$B$37,IF(AND(D153="Y",F153<1,K153=26),'Collection Route Parameters'!$B$36,('Collection Route Parameters'!$B$38)))) -> 723.0882353 | O153: 723.0882353 | P153: ='Truck Assumptions'!$B$5/Municipalities!L153 -> 1191.051932 | Q153: run out of time | R153: 105.8823529 | S153: 105.8823529 | T153: =IF(Q153="run out of space",((N153-P153)/'Collection Route Parameters'!$B$43)-'Collection Route Parameters'!$B$54,"") ->  | U153: 723.0882353 | V153: =ROUNDUP((G153/U153)/'Fuel and Labor Assumptions'!$B$7,0) -> 1 | W153: =V153*'Truck Assumptions'!$B$16 -> 59223.67116 | X153: =(V153*'Fuel and Labor Assumptions'!$B$5)*'Fuel and Labor Assumptions'!$B$6 -> 15 | Y153: 780 | Z153: =Y153*'Fuel and Labor Assumptions'!$B$4 -> 35100 | AA153: =(((U153*'Collection Route Parameters'!$B$7)*Municipalities!V153)/1000)+(M153*V153) -> 27.23088235 | AB153: 1416.005882 | AC153: =AB153*'Truck Assumptions'!$B$10 -> 1493.886206 | AD153: =AC153*'Fuel and Labor Assumptions'!$B$10 -> 1986.868654 | AE153: 96310.53982 | AF153: =VLOOKUP(B153,'2012 Macro Cost Data'!$B$5:$F$245,5,FALSE) -> 16500 | AG153: 79810.53982
A154: Rural Depot North | B154: 188 | C154: ARMOUR, TOWNSHIP OF | D154: Y | E154: =VLOOKUP(B154,'2012 Program Data'!$B$6:$D$235,3,FALSE) -> 495 | F154: =VLOOKUP(B154,'2012 Program Data'!$B$6:$E$235,4,FALSE) -> 1689 | G154: 2184 | H154: 218.02 | J154: 239.822 | K154: =VLOOKUP(B154,'2012 Program Data'!$B$6:$T$235,19,FALSE) -> 52 | L154: 0.002111704001 | M154: 20 | P154: ='Truck Assumptions'!$B$5/Municipalities!L154 -> 1657.42926 | T154: =IF(Q154="run out of space",((N154-P154)/'Collection Route Parameters'!$B$43)-'Collection Route Parameters'!$B$54,"") ->  | X154: =(V154*'Fuel and Labor Assumptions'!$B$5)*'Fuel and Labor Assumptions'!$B$6 -> 0 | Y154: 0 | Z154: =Y154*'Fuel and Labor Assumptions'!$B$4 -> 0 | AA154: =(((U154*'Collection Route Parameters'!$B$7)*Municipalities!V154)/1000)+(M154*V154) -> 0 | AB154: 0 | AC154: =AB154*'Truck Assumptions'!$B$10 -> 0 | AD154: =AC154*'Fuel and Labor Assumptions'!$B$10 -> 0 | AE154: 0 | AF154: =VLOOKUP(B154,'2012 Macro Cost Data'!$B$5:$F$245,5,FALSE) -> 40051.18 | AG154: -40051.18
A155: Rural Depot North | B155: 232 | C155: WHITESTONE, MUNICIPALITY OF | D155: N | E155: =VLOOKUP(B155,'2012 Program Data'!$B$6:$D$235,3,FALSE) -> 0 | F155: =VLOOKUP(B155,'2012 Program Data'!$B$6:$E$235,4,FALSE) -> 1634 | G155: 1634 | H155: 87.21038 | J155: 95.931418 | K155: =VLOOKUP(B155,'2012 Program Data'!$B$6:$T$235,19,FALSE) -> Depot | L155: 0.001129029964 | M155: 20 | T155: =IF(Q155="run out of space",((N155-P155)/'Collection Route Parameters'!$B$43)-'Collection Route Parameters'!$B$54,"") ->  | X155: =(V155*'Fuel and Labor Assumptions'!$B$5)*'Fuel and Labor Assumptions'!$B$6 -> 0 | Z155: =Y155*'Fuel and Labor Assumptions'!$B$4 ->  | AA155: =(((U155*'Collection Route Parameters'!$B$7)*Municipalities!V155)/1000)+(M155*V155) -> 0 | AC155: =AB155*'Truck Assumptions'!$B$10 ->  | AD155: =AC155*'Fuel and Labor Assumptions'!$B$10 -> 
A156: Rural Depot North | B156: 245 | C156: THE ARCHIPELAGO, TOWNSHIP OF | D156: N | E156: =VLOOKUP(B156,'2012 Program Data'!$B$6:$D$235,3,FALSE) -> 0 | F156: =VLOOKUP(B156,'2012 Program Data'!$B$6:$E$235,4,FALSE) -> 3299 | G156: 3299 | H156: 188.190136 | J156: 207.0091496 | K156: =VLOOKUP(B156,'2012 Program Data'!$B$6:$T$235,19,FALSE) -> Depot | L156: 0.001206712696 | M156: 20 | T156: =IF(Q156="run out of space",((N156-P156)/'Collection Route Parameters'!$B$43)-'Collection Route Parameters'!$B$54,"") ->  | X156: =(V156*'Fuel and Labor Assumptions'!$B$5)*'Fuel and Labor Assumptions'!$B$6 -> 0 | Z156: =Y156*'Fuel and Labor Assumptions'!$B$4 ->  | AA156: =(((U156*'Collection Route Parameters'!$B$7)*Municipalities!V156)/1000)+(M156*V156) -> 0 | AC156: =AB156*'Truck Assumptions'!$B$10 ->  | AD156: =AC156*'Fuel and Labor Assumptions'!$B$10 -> 
A157: Rural Depot North | B157: 338 | C157: COCHRANE TEMISKAMING WASTE MANAGEMENT BOARD | D157: Y | E157: =VLOOKUP(B157,'2012 Program Data'!$B$6:$D$235,3,FALSE) -> 0 | F157: =VLOOKUP(B157,'2012 Program Data'!$B$6:$E$235,4,FALSE) -> 19872 | G157: 19872 | H157: 1742.34 | J157: 1916.574 | K157: =VLOOKUP(B157,'2012 Program Data'!$B$6:$T$235,19,FALSE) -> Depot | L157: 0.001854729887 | M157: 20 | T157: =IF(Q157="run out of space",((N157-P157)/'Collection Route Parameters'!$B$43)-'Collection Route Parameters'!$B$54,"") ->  | X157: =(V157*'Fuel and Labor Assumptions'!$B$5)*'Fuel and Labor Assumptions'!$B$6 -> 0 | Z157: =Y157*'Fuel and Labor Assumptions'!$B$4 ->  | AA157: =(((U157*'Collection Route Parameters'!$B$7)*Municipalities!V157)/1000)+(M157*V157) -> 0 | AC157: =AB157*'Truck Assumptions'!$B$10 ->  | AD157: =AC157*'Fuel and Labor Assumptions'!$B$10 -> 
A158: Rural Depot North | B158: 372 | C158: CARLING, TOWNSHIP OF | D158: Y | E158: =VLOOKUP(B158,'2012 Program Data'!$B$6:$D$235,3,FALSE) -> 0 | F158: =VLOOKUP(B158,'2012 Program Data'!$B$6:$E$235,4,FALSE) -> 1678 | G158: 1678 | H158: 116.60794 | J158: 128.268734 | K158: =VLOOKUP(B158,'2012 Program Data'!$B$6:$T$235,19,FALSE) -> Depot | L158: 0.001470027666 | M158: 20 | T158: =IF(Q158="run out of space",((N158-P158)/'Collection Route Parameters'!$B$43)-'Collection Route Parameters'!$B$54,"") ->  | X158: =(V158*'Fuel and Labor Assumptions'!$B$5)*'Fuel and Labor Assumptions'!$B$6 -> 0 | Z158: =Y158*'Fuel and Labor Assumptions'!$B$4 ->  | AA158: =(((U158*'Collection Route Parameters'!$B$7)*Municipalities!V158)/1000)+(M158*V158) -> 0 | AC158: =AB158*'Truck Assumptions'!$B$10 ->  | AD158: =AC158*'Fuel and Labor Assumptions'!$B$10 -> 
A159: Rural Depot North | B159: 375 | C159: MCDOUGALL, MUNICIPALITY OF | D159: Y | E159: =VLOOKUP(B159,'2012 Program Data'!$B$6:$D$235,3,FALSE) -> 0 | F159: =VLOOKUP(B159,'2012 Program Data'!$B$6:$E$235,4,FALSE) -> 1800 | G159: 1800 | H159: 182.29 | J159: 200.519 | K159: =VLOOKUP(B159,'2012 Program Data'!$B$6:$T$235,19,FALSE) -> Depot | L159: 0.002142297009 | M159: 20 | T159: =IF(Q159="run out of space",((N159-P159)/'Collection Route Parameters'!$B$43)-'Collection Route Parameters'!$B$54,"") ->  | X159: =(V159*'Fuel and Labor Assumptions'!$B$5)*'Fuel and Labor Assumptions'!$B$6 -> 0 | Z159: =Y159*'Fuel and Labor Assumptions'!$B$4 ->  | AA159: =(((U159*'Collection Route Parameters'!$B$7)*Municipalities!V159)/1000)+(M159*V159) -> 0 | AC159: =AB159*'Truck Assumptions'!$B$10 ->  | AD159: =AC159*'Fuel and Labor Assumptions'!$B$10 -> 
A160: Rural Depot North | B160: 404 | C160: SEGUIN, TOWNSHIP OF | D160: N | E160: =VLOOKUP(B160,'2012 Program Data'!$B$6:$D$235,3,FALSE) -> 0 | F160: =VLOOKUP(B160,'2012 Program Data'!$B$6:$E$235,4,FALSE) -> 4732 | G160: 4732 | H160: 442.69582 | J160: 486.965402 | K160: =VLOOKUP(B160,'2012 Program Data'!$B$6:$T$235,19,FALSE) -> Depot | L160: 0.001979019288 | M160: 20 | T160: =IF(Q160="run out of space",((N160-P160)/'Collection Route Parameters'!$B$43)-'Collection Route Parameters'!$B$54,"") ->  | X160: =(V160*'Fuel and Labor Assumptions'!$B$5)*'Fuel and Labor Assumptions'!$B$6 -> 0 | Z160: =Y160*'Fuel and Labor Assumptions'!$B$4 ->  | AA160: =(((U160*'Collection Route Parameters'!$B$7)*Municipalities!V160)/1000)+(M160*V160) -> 0 | AC160: =AB160*'Truck Assumptions'!$B$10 ->  | AD160: =AC160*'Fuel and Labor Assumptions'!$B$10 -> 
A161: Rural Depot North | B161: 413 | C161: MCKELLAR, TOWNSHIP OF | D161: N | E161: =VLOOKUP(B161,'2012 Program Data'!$B$6:$D$235,3,FALSE) -> 0 | F161: =VLOOKUP(B161,'2012 Program Data'!$B$6:$E$235,4,FALSE) -> 1499 | G161: 1499 | H161: 88.6 | J161: 97.46 | K161: =VLOOKUP(B161,'2012 Program Data'!$B$6:$T$235,19,FALSE) -> Depot | L161: 0.001250320727 | M161: 20 | T161: =IF(Q161="run out of space",((N161-P161)/'Collection Route Parameters'!$B$43)-'Collection Route Parameters'!$B$54,"") ->  | X161: =(V161*'Fuel and Labor Assumptions'!$B$5)*'Fuel and Labor Assumptions'!$B$6 -> 0 | Z161: =Y161*'Fuel and Labor Assumptions'!$B$4 ->  | AA161: =(((U161*'Collection Route Parameters'!$B$7)*Municipalities!V161)/1000)+(M161*V161) -> 0 | AC161: =AB161*'Truck Assumptions'!$B$10 ->  | AD161: =AC161*'Fuel and Labor Assumptions'!$B$10 -> 
A162: Rural Depot North | B162: 537 | C162: CASEY, TOWNSHIP OF | D162: N | E162: =VLOOKUP(B162,'2012 Program Data'!$B$6:$D$235,3,FALSE) -> 0 | F162: =VLOOKUP(B162,'2012 Program Data'!$B$6:$E$235,4,FALSE) -> 157 | G162: 157 | H162: 51.758592 | J162: 56.9344512 | K162: =VLOOKUP(B162,'2012 Program Data'!$B$6:$T$235,19,FALSE) -> Depot | L162: 0.006973842626 | M162: 20 | T162: =IF(Q162="run out of space",((N162-P162)/'Collection Route Parameters'!$B$43)-'Collection Route Parameters'!$B$54,"") ->  | X162: =(V162*'Fuel and Labor Assumptions'!$B$5)*'Fuel and Labor Assumptions'!$B$6 -> 0 | Z162: =Y162*'Fuel and Labor Assumptions'!$B$4 ->  | AA162: =(((U162*'Collection Route Parameters'!$B$7)*Municipalities!V162)/1000)+(M162*V162) -> 0 | AC162: =AB162*'Truck Assumptions'!$B$10 ->  | AD162: =AC162*'Fuel and Labor Assumptions'!$B$10 -> 
A163: Rural Depot North | B163: 545 | C163: GILLIES, TOWNSHIP OF | D163: Y | E163: =VLOOKUP(B163,'2012 Program Data'!$B$6:$D$235,3,FALSE) -> 0 | F163: =VLOOKUP(B163,'2012 Program Data'!$B$6:$E$235,4,FALSE) -> 190 | G163: 190 | H163: 16.05614 | J163: 17.661754 | K163: =VLOOKUP(B163,'2012 Program Data'!$B$6:$T$235,19,FALSE) -> Depot | L163: 0.001787626923 | M163: 20 | T163: =IF(Q163="run out of space",((N163-P163)/'Collection Route Parameters'!$B$43)-'Collection Route Parameters'!$B$54,"") ->  | X163: =(V163*'Fuel and Labor Assumptions'!$B$5)*'Fuel and Labor Assumptions'!$B$6 -> 0 | Z163: =Y163*'Fuel and Labor Assumptions'!$B$4 ->  | AA163: =(((U163*'Collection Route Parameters'!$B$7)*Municipalities!V163)/1000)+(M163*V163) -> 0 | AC163: =AB163*'Truck Assumptions'!$B$10 ->  | AD163: =AC163*'Fuel and Labor Assumptions'!$B$10 -> 
A164: Rural Depot North | B164: 605 | C164: KERNS, TOWNSHIP OF | D164: N | E164: =VLOOKUP(B164,'2012 Program Data'!$B$6:$D$235,3,FALSE) -> 0 | F164: =VLOOKUP(B164,'2012 Program Data'!$B$6:$E$235,4,FALSE) -> 135 | G164: 135 | H164: 17.374608 | J164: 19.1120688 | K164: =VLOOKUP(B164,'2012 Program Data'!$B$6:$T$235,19,FALSE) -> Depot | L164: 0.002722516923 | M164: 20 | T164: =IF(Q164="run out of space",((N164-P164)/'Collection Route Parameters'!$B$43)-'Collection Route Parameters'!$B$54,"") ->  | X164: =(V164*'Fuel and Labor Assumptions'!$B$5)*'Fuel and Labor Assumptions'!$B$6 -> 0 | Z164: =Y164*'Fuel and Labor Assumptions'!$B$4 ->  | AA164: =(((U164*'Collection Route Parameters'!$B$7)*Municipalities!V164)/1000)+(M164*V164) -> 0 | AC164: =AB164*'Truck Assumptions'!$B$10 ->  | AD164: =AC164*'Fuel and Labor Assumptions'!$B$10 -> 
A165: Rural Depot North | B165: 607 | C165: HUDSON, TOWNSHIP OF | D165: Y | E165: =VLOOKUP(B165,'2012 Program Data'!$B$6:$D$235,3,FALSE) -> 0 | F165: =VLOOKUP(B165,'2012 Program Data'!$B$6:$E$235,4,FALSE) -> 336 | G165: 336 | H165: 26.070608 | J165: 28.6776688 | K165: =VLOOKUP(B165,'2012 Program Data'!$B$6:$T$235,19,FALSE) -> Depot | L165: 0.001641350092 | M165: 20 | T165: =IF(Q165="run out of space",((N165-P165)/'Collection Route Parameters'!$B$43)-'Collection Route Parameters'!$B$54,"") ->  | X165: =(V165*'Fuel and Labor Assumptions'!$B$5)*'Fuel and Labor Assumptions'!$B$6 -> 0 | Z165: =Y165*'Fuel and Labor Assumptions'!$B$4 ->  | AA165: =(((U165*'Collection Route Parameters'!$B$7)*Municipalities!V165)/1000)+(M165*V165) -> 0 | AC165: =AB165*'Truck Assumptions'!$B$10 ->  | AD165: =AC165*'Fuel and Labor Assumptions'!$B$10 -> 
A166: Rural Depot North | B166: 610 | C166: NEEBING, MUNICIPALITY OF | D166: N | E166: =VLOOKUP(B166,'2012 Program Data'!$B$6:$D$235,3,FALSE) -> 0 | F166: =VLOOKUP(B166,'2012 Program Data'!$B$6:$E$235,4,FALSE) -> 1259 | G166: 1286 | H166: 57.0627 | J166: 62.76897 | K166: =VLOOKUP(B166,'2012 Program Data'!$B$6:$T$235,19,FALSE) -> Depot | L166: 0.0009386435279 | M166: 20 | T166: =IF(Q166="run out of space",((N166-P166)/'Collection Route Parameters'!$B$43)-'Collection Route Parameters'!$B$54,"") ->  | X166: =(V166*'Fuel and Labor Assumptions'!$B$5)*'Fuel and Labor Assumptions'!$B$6 -> 0 | Z166: =Y166*'Fuel and Labor Assumptions'!$B$4 ->  | AA166: =(((U166*'Collection Route Parameters'!$B$7)*Municipalities!V166)/1000)+(M166*V166) -> 0 | AC166: =AB166*'Truck Assumptions'!$B$10 ->  | AD166: =AC166*'Fuel and Labor Assumptions'!$B$10 -> 
A167: Rural Depot North | B167: 611 | C167: CALVIN, MUNICIPALITY OF | D167: N | E167: =VLOOKUP(B167,'2012 Program Data'!$B$6:$D$235,3,FALSE) -> 0 | F167: =VLOOKUP(B167,'2012 Program Data'!$B$6:$E$235,4,FALSE) -> 300 | G167: 300 | H167: 19.43556 | J167: 21.379116 | K167: =VLOOKUP(B167,'2012 Program Data'!$B$6:$T$235,19,FALSE) -> Depot | L167: 0.001370456154 | M167: 20 | T167: =IF(Q167="run out of space",((N167-P167)/'Collection Route Parameters'!$B$43)-'Collection Route Parameters'!$B$54,"") ->  | X167: =(V167*'Fuel and Labor Assumptions'!$B$5)*'Fuel and Labor Assumptions'!$B$6 -> 0 | Z167: =Y167*'Fuel and Labor Assumptions'!$B$4 ->  | AA167: =(((U167*'Collection Route Parameters'!$B$7)*Municipalities!V167)/1000)+(M167*V167) -> 0 | AC167: =AB167*'Truck Assumptions'!$B$10 ->  | AD167: =AC167*'Fuel and Labor Assumptions'!$B$10 -> 
A168: Rural Depot North | B168: 616 | C168: PERRY, TOWNSHIP OF | D168: N | E168: =VLOOKUP(B168,'2012 Program Data'!$B$6:$D$235,3,FALSE) -> 0 | F168: =VLOOKUP(B168,'2012 Program Data'!$B$6:$E$235,4,FALSE) -> 1631 | G168: 1631 | H168: 154.54258 | J168: 169.996838 | K168: =VLOOKUP(B168,'2012 Program Data'!$B$6:$T$235,19,FALSE) -> Depot | L168: 0.002004396052 | M168: 20 | T168: =IF(Q168="run out of space",((N168-P168)/'Collection Route Parameters'!$B$43)-'Collection Route Parameters'!$B$54,"") ->  | X168: =(V168*'Fuel and Labor Assumptions'!$B$5)*'Fuel and Labor Assumptions'!$B$6 -> 0 | Z168: =Y168*'Fuel and Labor Assumptions'!$B$4 ->  | AA168: =(((U168*'Collection Route Parameters'!$B$7)*Municipalities!V168)/1000)+(M168*V168) -> 0 | AC168: =AB168*'Truck Assumptions'!$B$10 ->  | AD168: =AC168*'Fuel and Labor Assumptions'!$B$10 -> 
A169: Rural Depot North | B169: 709 | C169: ASSIGINACK, TOWNSHIP OF | D169: Y | E169: =VLOOKUP(B169,'2012 Program Data'!$B$6:$D$235,3,FALSE) -> 0 | F169: =VLOOKUP(B169,'2012 Program Data'!$B$6:$E$235,4,FALSE) -> 707 | G169: 707 | H169: 86.26 | J169: 94.886 | K169: =VLOOKUP(B169,'2012 Program Data'!$B$6:$T$235,19,FALSE) -> Depot | L169: 0.002580948754 | M169: 20 | T169: =IF(Q169="run out of space",((N169-P169)/'Collection Route Parameters'!$B$43)-'Collection Route Parameters'!$B$54,"") ->  | X169: =(V169*'Fuel and Labor Assumptions'!$B$5)*'Fuel and Labor Assumptions'!$B$6 -> 0 | Z169: =Y169*'Fuel and Labor Assumptions'!$B$4 ->  | AA169: =(((U169*'Collection Route Parameters'!$B$7)*Municipalities!V169)/1000)+(M169*V169) -> 0 | AC169: =AB169*'Truck Assumptions'!$B$10 ->  | AD169: =AC169*'Fuel and Labor Assumptions'!$B$10 -> 
A170: Rural Depot North | B170: 714 | C170: BILLINGS, TOWNSHIP OF | D170: N | E170: =VLOOKUP(B170,'2012 Program Data'!$B$6:$D$235,3,FALSE) -> 0 | F170: =VLOOKUP(B170,'2012 Program Data'!$B$6:$E$235,4,FALSE) -> 621 | G170: 621 | H170: 48.63278 | J170: 53.496058 | K170: =VLOOKUP(B170,'2012 Program Data'!$B$6:$T$235,19,FALSE) -> Depot | L170: 0.001656635018 | M170: 20 | T170: =IF(Q170="run out of space",((N170-P170)/'Collection Route Parameters'!$B$43)-'Collection Route Parameters'!$B$54,"") ->  | X170: =(V170*'Fuel and Labor Assumptions'!$B$5)*'Fuel and Labor Assumptions'!$B$6 -> 0 | Z170: =Y170*'Fuel and Labor Assumptions'!$B$4 ->  | AA170: =(((U170*'Collection Route Parameters'!$B$7)*Municipalities!V170)/1000)+(M170*V170) -> 0 | AC170: =AB170*'Truck Assumptions'!$B$10 ->  | AD170: =AC170*'Fuel and Labor Assumptions'!$B$10 -> 
A171: Rural Depot North | B171: 754 | C171: DESERONTO, TOWN OF | D171: Y | E171: =VLOOKUP(B171,'2012 Program Data'!$B$6:$D$235,3,FALSE) -> 777 | F171: =VLOOKUP(B171,'2012 Program Data'!$B$6:$E$235,4,FALSE) -> 0 | G171: 777 | H171: 121.17117 | J171: 133.288287 | K171: =VLOOKUP(B171,'2012 Program Data'!$B$6:$T$235,19,FALSE) -> 26 | L171: 0.003298888402 | M171: 20 | T171: =IF(Q171="run out of space",((N171-P171)/'Collection Route Parameters'!$B$43)-'Collection Route Parameters'!$B$54,"") ->  | X171: =(V171*'Fuel and Labor Assumptions'!$B$5)*'Fuel and Labor Assumptions'!$B$6 -> 0 | Y171: 0 | Z171: =Y171*'Fuel and Labor Assumptions'!$B$4 -> 0 | AA171: =(((U171*'Collection Route Parameters'!$B$7)*Municipalities!V171)/1000)+(M171*V171) -> 0 | AB171: 0 | AC171: =AB171*'Truck Assumptions'!$B$10 -> 0 | AD171: =AC171*'Fuel and Labor Assumptions'!$B$10 -> 0 | AE171: 0 | AG171: 0
A172: Rural Depot North | B172: 764 | C172: EMO, TOWNSHIP OF | D172: N | E172: =VLOOKUP(B172,'2012 Program Data'!$B$6:$D$235,3,FALSE) -> 0 | F172: =VLOOKUP(B172,'2012 Program Data'!$B$6:$E$235,4,FALSE) -> 732 | G172: 732 | H172: 45.0072 | J172: 49.50792 | K172: =VLOOKUP(B172,'2012 Program Data'!$B$6:$T$235,19,FALSE) -> Depot | L172: 0.001300649433 | M172: 20 | T172: =IF(Q172="run out of space",((N172-P172)/'Collection Route Parameters'!$B$43)-'Collection Route Parameters'!$B$54,"") ->  | X172: =(V172*'Fuel and Labor Assumptions'!$B$5)*'Fuel and Labor Assumptions'!$B$6 -> 0 | Z172: =Y172*'Fuel and Labor Assumptions'!$B$4 ->  | AA172: =(((U172*'Collection Route Parameters'!$B$7)*Municipalities!V172)/1000)+(M172*V172) -> 0 | AC172: =AB172*'Truck Assumptions'!$B$10 ->  | AD172: =AC172*'Fuel and Labor Assumptions'!$B$10 -> 
A173: Rural Depot North | B173: 775 | C173: FRENCH RIVER, MUNICIPALITY OF | D173: Y | E173: =VLOOKUP(B173,'2012 Program Data'!$B$6:$D$235,3,FALSE) -> 0 | F173: =VLOOKUP(B173,'2012 Program Data'!$B$6:$E$235,4,FALSE) -> 2476 | G173: 2476 | H173: 180.155032 | J173: 198.1705352 | K173: =VLOOKUP(B173,'2012 Program Data'!$B$6:$T$235,19,FALSE) -> Depot | L173: 0.001539164714 | M173: 20 | T173: =IF(Q173="run out of space",((N173-P173)/'Collection Route Parameters'!$B$43)-'Collection Route Parameters'!$B$54,"") ->  | X173: =(V173*'Fuel and Labor Assumptions'!$B$5)*'Fuel and Labor Assumptions'!$B$6 -> 0 | Z173: =Y173*'Fuel and Labor Assumptions'!$B$4 ->  | AA173: =(((U173*'Collection Route Parameters'!$B$7)*Municipalities!V173)/1000)+(M173*V173) -> 0 | AC173: =AB173*'Truck Assumptions'!$B$10 ->  | AD173: =AC173*'Fuel and Labor Assumptions'!$B$10 -> 
A174: Rural Depot North | B174: 790 | C174: HARLEY, TOWNSHIP OF | D174: N | E174: =VLOOKUP(B174,'2012 Program Data'!$B$6:$D$235,3,FALSE) -> 0 | F174: =VLOOKUP(B174,'2012 Program Data'!$B$6:$E$235,4,FALSE) -> 221 | G174: 221 | H174: 51.758592 | J174: 56.9344512 | K174: =VLOOKUP(B174,'2012 Program Data'!$B$6:$T$235,19,FALSE) -> Depot | L174: 0.004954268291 | M174: 20 | T174: =IF(Q174="run out of space",((N174-P174)/'Collection Route Parameters'!$B$43)-'Collection Route Parameters'!$B$54,"") ->  | X174: =(V174*'Fuel and Labor Assumptions'!$B$5)*'Fuel and Labor Assumptions'!$B$6 -> 0 | Z174: =Y174*'Fuel and Labor Assumptions'!$B$4 ->  | AA174: =(((U174*'Collection Route Parameters'!$B$7)*Municipalities!V174)/1000)+(M174*V174) -> 0 | AC174: =AB174*'Truck Assumptions'!$B$10 ->  | AD174: =AC174*'Fuel and Labor Assumptions'!$B$10 -> 
A175: Rural Depot North | B175: 796 | C175: HILLIARD, TOWNSHIP OF | D175: N | E175: =VLOOKUP(B175,'2012 Program Data'!$B$6:$D$235,3,FALSE) -> 0 | F175: =VLOOKUP(B175,'2012 Program Data'!$B$6:$E$235,4,FALSE) -> 141 | G175: 141 | H175: 7.92984 | J175: 8.722824 | K175: =VLOOKUP(B175,'2012 Program Data'!$B$6:$T$235,19,FALSE) -> Depot | L175: 0.001189692308 | M175: 20 | T175: =IF(Q175="run out of space",((N175-P175)/'Collection Route Parameters'!$B$43)-'Collection Route Parameters'!$B$54,"") ->  | X175: =(V175*'Fuel and Labor Assumptions'!$B$5)*'Fuel and Labor Assumptions'!$B$6 -> 0 | Z175: =Y175*'Fuel and Labor Assumptions'!$B$4 ->  | AA175: =(((U175*'Collection Route Parameters'!$B$7)*Municipalities!V175)/1000)+(M175*V175) -> 0 | AC175: =AB175*'Truck Assumptions'!$B$10 ->  | AD175: =AC175*'Fuel and Labor Assumptions'!$B$10 -> 
A176: Rural Depot North | B176: 797 | C176: HILTON BEACH, VILLAGE OF | D176: N | E176: =VLOOKUP(B176,'2012 Program Data'!$B$6:$D$235,3,FALSE) -> 0 | F176: =VLOOKUP(B176,'2012 Program Data'!$B$6:$E$235,4,FALSE) -> 499 | G176: 499 | H176: 18.3958 | J176: 20.23538 | K176: =VLOOKUP(B176,'2012 Program Data'!$B$6:$T$235,19,FALSE) -> Depot | L176: 0.0007798435332 | M176: 20 | T176: =IF(Q176="run out of space",((N176-P176)/'Collection Route Parameters'!$B$43)-'Collection Route Parameters'!$B$54,"") ->  | X176: =(V176*'Fuel and Labor Assumptions'!$B$5)*'Fuel and Labor Assumptions'!$B$6 -> 0 | Z176: =Y176*'Fuel and Labor Assumptions'!$B$4 ->  | AA176: =(((U176*'Collection Route Parameters'!$B$7)*Municipalities!V176)/1000)+(M176*V176) -> 0 | AC176: =AB176*'Truck Assumptions'!$B$10 ->  | AD176: =AC176*'Fuel and Labor Assumptions'!$B$10 -> 
A177: Rural Depot North | B177: 801 | C177: HURON SHORES, MUNICIPALITY OF | D177: Y | E177: =VLOOKUP(B177,'2012 Program Data'!$B$6:$D$235,3,FALSE) -> 0 | F177: =VLOOKUP(B177,'2012 Program Data'!$B$6:$E$235,4,FALSE) -> 1338 | G177: 1338 | H177: 137.09336 | J177: 150.802696 | K177: =VLOOKUP(B177,'2012 Program Data'!$B$6:$T$235,19,FALSE) -> Depot | L177: 0.0021674528 | M177: 20 | T177: =IF(Q177="run out of space",((N177-P177)/'Collection Route Parameters'!$B$43)-'Collection Route Parameters'!$B$54,"") ->  | X177: =(V177*'Fuel and Labor Assumptions'!$B$5)*'Fuel and Labor Assumptions'!$B$6 -> 0 | Z177: =Y177*'Fuel and Labor Assumptions'!$B$4 ->  | AA177: =(((U177*'Collection Route Parameters'!$B$7)*Municipalities!V177)/1000)+(M177*V177) -> 0 | AC177: =AB177*'Truck Assumptions'!$B$10 ->  | AD177: =AC177*'Fuel and Labor Assumptions'!$B$10 -> 
A178: Rural Depot North | B178: 807 | C178: JOHNSON, TOWNSHIP OF | D178: Y | E178: =VLOOKUP(B178,'2012 Program Data'!$B$6:$D$235,3,FALSE) -> 0 | F178: =VLOOKUP(B178,'2012 Program Data'!$B$6:$E$235,4,FALSE) -> 409 | G178: 409 | H178: 56.22328 | J178: 61.845608 | K178: =VLOOKUP(B178,'2012 Program Data'!$B$6:$T$235,19,FALSE) -> Depot | L178: 0.002907918375 | M178: 20 | T178: =IF(Q178="run out of space",((N178-P178)/'Collection Route Parameters'!$B$43)-'Collection Route Parameters'!$B$54,"") ->  | X178: =(V178*'Fuel and Labor Assumptions'!$B$5)*'Fuel and Labor Assumptions'!$B$6 -> 0 | Z178: =Y178*'Fuel and Labor Assumptions'!$B$4 ->  | AA178: =(((U178*'Collection Route Parameters'!$B$7)*Municipalities!V178)/1000)+(M178*V178) -> 0 | AC178: =AB178*'Truck Assumptions'!$B$10 ->  | AD178: =AC178*'Fuel and Labor Assumptions'!$B$10 -> 
A179: Rural Depot North | B179: 810 | C179: KEARNEY, TOWN OF | D179: N | E179: =VLOOKUP(B179,'2012 Program Data'!$B$6:$D$235,3,FALSE) -> 25 | F179: =VLOOKUP(B179,'2012 Program Data'!$B$6:$E$235,4,FALSE) -> 942 | G179: 967 | H179: 113.89322 | J179: 125.282542 | K179: 26 | L179: 0.002491499125 | M179: 20 | T179: =IF(Q179="run out of space",((N179-P179)/'Collection Route Parameters'!$B$43)-'Collection Route Parameters'!$B$54,"") ->  | X179: =(V179*'Fuel and Labor Assumptions'!$B$5)*'Fuel and Labor Assumptions'!$B$6 -> 0 | Y179: 0 | Z179: =Y179*'Fuel and Labor Assumptions'!$B$4 -> 0 | AA179: =(((U179*'Collection Route Parameters'!$B$7)*Municipalities!V179)/1000)+(M179*V179) -> 0 | AB179: 0 | AC179: =AB179*'Truck Assumptions'!$B$10 -> 0 | AD179: =AC179*'Fuel and Labor Assumptions'!$B$10 -> 0 | AE179: 0 | AG179: 0
A180: Rural Depot North | B180: 812 | C180: KILLARNEY, MUNICIPALITY OF | D180: N | E180: =VLOOKUP(B180,'2012 Program Data'!$B$6:$D$235,3,FALSE) -> 196 | F180: =VLOOKUP(B180,'2012 Program Data'!$B$6:$E$235,4,FALSE) -> 737 | G180: 933 | H180: 41.366872 | J180: 45.5035592 | K180: 26 | L180: 0.0009379083024 | M180: 20 | T180: =IF(Q180="run out of space",((N180-P180)/'Collection Route Parameters'!$B$43)-'Collection Route Parameters'!$B$54,"") ->  | X180: =(V180*'Fuel and Labor Assumptions'!$B$5)*'Fuel and Labor Assumptions'!$B$6 -> 0 | Y180: 0 | Z180: =Y180*'Fuel and Labor Assumptions'!$B$4 -> 0 | AA180: =(((U180*'Collection Route Parameters'!$B$7)*Municipalities!V180)/1000)+(M180*V180) -> 0 | AB180: 0 | AC180: =AB180*'Truck Assumptions'!$B$10 -> 0 | AD180: =AC180*'Fuel and Labor Assumptions'!$B$10 -> 0 | AE180: 0 | AG180: 0
A181: Rural Depot North | B181: 833 | C181: MACDONALD, MEREDITH & ABERDEEN ADDITIONAL, TOWNSHIP OF | D181: N | E181: =VLOOKUP(B181,'2012 Program Data'!$B$6:$D$235,3,FALSE) -> 0 | F181: =VLOOKUP(B181,'2012 Program Data'!$B$6:$E$235,4,FALSE) -> 771 | G181: 771 | H181: 71.06494 | J181: 78.171434 | K181: =VLOOKUP(B181,'2012 Program Data'!$B$6:$T$235,19,FALSE) -> Depot | L181: 0.001949801307 | M181: 20 | T181: =IF(Q181="run out of space",((N181-P181)/'Collection Route Parameters'!$B$43)-'Collection Route Parameters'!$B$54,"") ->  | X181: =(V181*'Fuel and Labor Assumptions'!$B$5)*'Fuel and Labor Assumptions'!$B$6 -> 0 | Z181: =Y181*'Fuel and Labor Assumptions'!$B$4 ->  | AA181: =(((U181*'Collection Route Parameters'!$B$7)*Municipalities!V181)/1000)+(M181*V181) -> 0 | AC181: =AB181*'Truck Assumptions'!$B$10 ->  | AD181: =AC181*'Fuel and Labor Assumptions'!$B$10 -> 
A182: Rural Depot North | B182: 834 | C182: MACHAR, TOWNSHIP OF | D182: N | E182: =VLOOKUP(B182,'2012 Program Data'!$B$6:$D$235,3,FALSE) -> 0 | F182: =VLOOKUP(B182,'2012 Program Data'!$B$6:$E$235,4,FALSE) -> 859 | G182: 859 | H182: 103.54 | J182: 113.894 | K182: =VLOOKUP(B182,'2012 Program Data'!$B$6:$T$235,19,FALSE) -> Depot | L182: 0.002549789559 | M182: 20 | T182: =IF(Q182="run out of space",((N182-P182)/'Collection Route Parameters'!$B$43)-'Collection Route Parameters'!$B$54,"") ->  | X182: =(V182*'Fuel and Labor Assumptions'!$B$5)*'Fuel and Labor Assumptions'!$B$6 -> 0 | Z182: =Y182*'Fuel and Labor Assumptions'!$B$4 ->  | AA182: =(((U182*'Collection Route Parameters'!$B$7)*Municipalities!V182)/1000)+(M182*V182) -> 0 | AC182: =AB182*'Truck Assumptions'!$B$10 ->  | AD182: =AC182*'Fuel and Labor Assumptions'!$B$10 -> 
A183: Rural Depot North | B183: 837 | C183: MAGNETAWAN, MUNICIPALITY OF | D183: N | E183: =VLOOKUP(B183,'2012 Program Data'!$B$6:$D$235,3,FALSE) -> 121 | F183: =VLOOKUP(B183,'2012 Program Data'!$B$6:$E$235,4,FALSE) -> 1879 | G183: 2000 | H183: 154.68 | J183: 170.148 | K183: 26 | L183: 0.001636038462 | M183: 20 | T183: =IF(Q183="run out of space",((N183-P183)/'Collection Route Parameters'!$B$43)-'Collection Route Parameters'!$B$54,"") ->  | X183: =(V183*'Fuel and Labor Assumptions'!$B$5)*'Fuel and Labor Assumptions'!$B$6 -> 0 | Y183: 0 | Z183: =Y183*'Fuel and Labor Assumptions'!$B$4 -> 0 | AA183: =(((U183*'Collection Route Parameters'!$B$7)*Municipalities!V183)/1000)+(M183*V183) -> 0 | AB183: 0 | AC183: =AB183*'Truck Assumptions'!$B$10 -> 0 | AD183: =AC183*'Fuel and Labor Assumptions'!$B$10 -> 0 | AE183: 0 | AG183: 0
A184: Rural Depot North | B184: 847 | C184: MCMURRICH/MONTEITH, TOWNSHIP OF | D184: N | E184: =VLOOKUP(B184,'2012 Program Data'!$B$6:$D$235,3,FALSE) -> 0 | F184: =VLOOKUP(B184,'2012 Program Data'!$B$6:$E$235,4,FALSE) -> 787 | G184: 787 | H184: 53.45 | J184: 58.795 | K184: =VLOOKUP(B184,'2012 Program Data'!$B$6:$T$235,19,FALSE) -> Depot | L184: 0.001436687518 | M184: 20 | T184: =IF(Q184="run out of space",((N184-P184)/'Collection Route Parameters'!$B$43)-'Collection Route Parameters'!$B$54,"") ->  | X184: =(V184*'Fuel and Labor Assumptions'!$B$5)*'Fuel and Labor Assumptions'!$B$6 -> 0 | Z184: =Y184*'Fuel and Labor Assumptions'!$B$4 ->  | AA184: =(((U184*'Collection Route Parameters'!$B$7)*Municipalities!V184)/1000)+(M184*V184) -> 0 | AC184: =AB184*'Truck Assumptions'!$B$10 ->  | AD184: =AC184*'Fuel and Labor Assumptions'!$B$10 -> 
A185: Rural Depot North | B185: 866 | C185: NIPISSING, TOWNSHIP OF | D185: N | E185: =VLOOKUP(B185,'2012 Program Data'!$B$6:$D$235,3,FALSE) -> 0 | F185: =VLOOKUP(B185,'2012 Program Data'!$B$6:$E$235,4,FALSE) -> 1278 | G185: 1278 | H185: 183.065 | J185: 201.3715 | K185: =VLOOKUP(B185,'2012 Program Data'!$B$6:$T$235,19,FALSE) -> Depot | L185: 0.003030147767 | M185: 20 | T185: =IF(Q185="run out of space",((N185-P185)/'Collection Route Parameters'!$B$43)-'Collection Route Parameters'!$B$54,"") ->  | X185: =(V185*'Fuel and Labor Assumptions'!$B$5)*'Fuel and Labor Assumptions'!$B$6 -> 0 | Z185: =Y185*'Fuel and Labor Assumptions'!$B$4 ->  | AA185: =(((U185*'Collection Route Parameters'!$B$7)*Municipalities!V185)/1000)+(M185*V185) -> 0 | AC185: =AB185*'Truck Assumptions'!$B$10 ->  | AD185: =AC185*'Fuel and Labor Assumptions'!$B$10 -> 
A186: Rural Depot North | B186: 871 | C186: OCONNOR, TOWNSHIP OF | D186: N | E186: =VLOOKUP(B186,'2012 Program Data'!$B$6:$D$235,3,FALSE) -> 0 | F186: =VLOOKUP(B186,'2012 Program Data'!$B$6:$E$235,4,FALSE) -> 274 | G186: 274 | H186: 19.01197 | J186: 20.913167 | K186: =VLOOKUP(B186,'2012 Program Data'!$B$6:$T$235,19,FALSE) -> Depot | L186: 0.001467796673 | M186: 20 | T186: =IF(Q186="run out of space",((N186-P186)/'Collection Route Parameters'!$B$43)-'Collection Route Parameters'!$B$54,"") ->  | X186: =(V186*'Fuel and Labor Assumptions'!$B$5)*'Fuel and Labor Assumptions'!$B$6 -> 0 | Z186: =Y186*'Fuel and Labor Assumptions'!$B$4 ->  | AA186: =(((U186*'Collection Route Parameters'!$B$7)*Municipalities!V186)/1000)+(M186*V186) -> 0 | AC186: =AB186*'Truck Assumptions'!$B$10 ->  | AD186: =AC186*'Fuel and Labor Assumptions'!$B$10 -> 
A187: Rural Depot North | B187: 873 | C187: OLIVER PAIPOONGE, MUNICIPALITY OF | D187: N | E187: =VLOOKUP(B187,'2012 Program Data'!$B$6:$D$235,3,FALSE) -> 0 | F187: =VLOOKUP(B187,'2012 Program Data'!$B$6:$E$235,4,FALSE) -> 2149 | G187: 2149 | H187: 145.08571 | J187: 159.594281 | K187: =VLOOKUP(B187,'2012 Program Data'!$B$6:$T$235,19,FALSE) -> Depot | L187: 0.001428162303 | M187: 20 | T187: =IF(Q187="run out of space",((N187-P187)/'Collection Route Parameters'!$B$43)-'Collection Route Parameters'!$B$54,"") ->  | X187: =(V187*'Fuel and Labor Assumptions'!$B$5)*'Fuel and Labor Assumptions'!$B$6 -> 0 | Z187: =Y187*'Fuel and Labor Assumptions'!$B$4 ->  | AA187: =(((U187*'Collection Route Parameters'!$B$7)*Municipalities!V187)/1000)+(M187*V187) -> 0 | AC187: =AB187*'Truck Assumptions'!$B$10 ->  | AD187: =AC187*'Fuel and Labor Assumptions'!$B$10 -> 
A188: Rural Depot North | B188: 895 | C188: RAINY RIVER, TOWN OF | D188: Y | E188: =VLOOKUP(B188,'2012 Program Data'!$B$6:$D$235,3,FALSE) -> 0 | F188: =VLOOKUP(B188,'2012 Program Data'!$B$6:$E$235,4,FALSE) -> 530 | G188: 530 | H188: 29.47944 | J188: 32.427384 | K188: =VLOOKUP(B188,'2012 Program Data'!$B$6:$T$235,19,FALSE) -> Depot | L188: 0.00117661045 | M188: 20 | T188: =IF(Q188="run out of space",((N188-P188)/'Collection Route Parameters'!$B$43)-'Collection Route Parameters'!$B$54,"") ->  | X188: =(V188*'Fuel and Labor Assumptions'!$B$5)*'Fuel and Labor Assumptions'!$B$6 -> 0 | Z188: =Y188*'Fuel and Labor Assumptions'!$B$4 ->  | AA188: =(((U188*'Collection Route Parameters'!$B$7)*Municipalities!V188)/1000)+(M188*V188) -> 0 | AC188: =AB188*'Truck Assumptions'!$B$10 ->  | AD188: =AC188*'Fuel and Labor Assumptions'!$B$10 -> 
A189: Rural Depot North | B189: 897 | C189: RED LAKE, MUNICIPALITY OF | D189: N | E189: =VLOOKUP(B189,'2012 Program Data'!$B$6:$D$235,3,FALSE) -> 2135 | F189: =VLOOKUP(B189,'2012 Program Data'!$B$6:$E$235,4,FALSE) -> 0 | G189: 2135 | H189: 212.738944 | J189: 234.0128384 | K189: 26 | L189: 0.002107843978 | M189: 20 | T189: =IF(Q189="run out of space",((N189-P189)/'Collection Route Parameters'!$B$43)-'Collection Route Parameters'!$B$54,"") ->  | X189: =(V189*'Fuel and Labor Assumptions'!$B$5)*'Fuel and Labor Assumptions'!$B$6 -> 0 | Y189: 0 | Z189: =Y189*'Fuel and Labor Assumptions'!$B$4 -> 0 | AA189: =(((U189*'Collection Route Parameters'!$B$7)*Municipalities!V189)/1000)+(M189*V189) -> 0 | AB189: 0 | AC189: =AB189*'Truck Assumptions'!$B$10 -> 0 | AD189: =AC189*'Fuel and Labor Assumptions'!$B$10 -> 0 | AE189: 0 | AG189: 0
A190: Rural Depot North | B190: 905 | C190: SHUNIAH, MUNICIPALITY OF | D190: N | E190: =VLOOKUP(B190,'2012 Program Data'!$B$6:$D$235,3,FALSE) -> 0 | F190: =VLOOKUP(B190,'2012 Program Data'!$B$6:$E$235,4,FALSE) -> 2460 | G190: 2460 | H190: 90.994944 | J190: 100.0944384 | K190: =VLOOKUP(B190,'2012 Program Data'!$B$6:$T$235,19,FALSE) -> Depot | L190: 0.000782476848 | M190: 20 | X190: =(V190*'Fuel and Labor Assumptions'!$B$5)*'Fuel and Labor Assumptions'!$B$6 -> 0 | Z190: =Y190*'Fuel and Labor Assumptions'!$B$4 ->  | AA190: =(((U190*'Collection Route Parameters'!$B$7)*Municipalities!V190)/1000)+(M190*V190) -> 0 | AC190: =AB190*'Truck Assumptions'!$B$10 ->  | AD190: =AC190*'Fuel and Labor Assumptions'!$B$10 -> 
A191: Rural Depot North | B191: 907 | C191: SIOUX NARROWS NESTOR FALLS, TOWNSHIP OF | D191: N | E191: =VLOOKUP(B191,'2012 Program Data'!$B$6:$D$235,3,FALSE) -> 0 | F191: =VLOOKUP(B191,'2012 Program Data'!$B$6:$E$235,4,FALSE) -> 1171 | G191: 1171 | H191: 11.28752 | J191: 12.416272 | K191: =VLOOKUP(B191,'2012 Program Data'!$B$6:$T$235,19,FALSE) -> Depot | L191: 0.0002039064573 | M191: 20 | X191: =(V191*'Fuel and Labor Assumptions'!$B$5)*'Fuel and Labor Assumptions'!$B$6 -> 0 | Z191: =Y191*'Fuel and Labor Assumptions'!$B$4 ->  | AA191: =(((U191*'Collection Route Parameters'!$B$7)*Municipalities!V191)/1000)+(M191*V191) -> 0 | AC191: =AB191*'Truck Assumptions'!$B$10 ->  | AD191: =AC191*'Fuel and Labor Assumptions'!$B$10 -> 
A192: Rural Depot North | B192: 918 | C192: ST. JOSEPH, TOWNSHIP OF | D192: Y | E192: =VLOOKUP(B192,'2012 Program Data'!$B$6:$D$235,3,FALSE) -> 0 | F192: =VLOOKUP(B192,'2012 Program Data'!$B$6:$E$235,4,FALSE) -> 928 | G192: 928 | H192: 73.87789 | J192: 81.265679 | K192: =VLOOKUP(B192,'2012 Program Data'!$B$6:$T$235,19,FALSE) -> Depot | L192: 0.001684053361 | M192: 20 | X192: =(V192*'Fuel and Labor Assumptions'!$B$5)*'Fuel and Labor Assumptions'!$B$6 -> 0 | Z192: =Y192*'Fuel and Labor Assumptions'!$B$4 ->  | AA192: =(((U192*'Collection Route Parameters'!$B$7)*Municipalities!V192)/1000)+(M192*V192) -> 0 | AC192: =AB192*'Truck Assumptions'!$B$10 ->  | AD192: =AC192*'Fuel and Labor Assumptions'!$B$10 -> 
A193: Rural Depot North | B193: 922 | C193: STRONG, TOWNSHIP OF | D193: N | E193: =VLOOKUP(B193,'2012 Program Data'!$B$6:$D$235,3,FALSE) -> 0 | F193: =VLOOKUP(B193,'2012 Program Data'!$B$6:$E$235,4,FALSE) -> 1005 | G193: 1005 | H193: 179.43 | J193: 197.373 | K193: =VLOOKUP(B193,'2012 Program Data'!$B$6:$T$235,19,FALSE) -> Depot | L193: 0.003776750861 | M193: 20 | X193: =(V193*'Fuel and Labor Assumptions'!$B$5)*'Fuel and Labor Assumptions'!$B$6 -> 0 | Z193: =Y193*'Fuel and Labor Assumptions'!$B$4 ->  | AA193: =(((U193*'Collection Route Parameters'!$B$7)*Municipalities!V193)/1000)+(M193*V193) -> 0 | AC193: =AB193*'Truck Assumptions'!$B$10 ->  | AD193: =AC193*'Fuel and Labor Assumptions'!$B$10 -> 
A194: Rural Depot North | B194: 924 | C194: TARBUTT & TARBUTT ADDITIONAL, TOWNSHIP OF | D194: Y | E194: =VLOOKUP(B194,'2012 Program Data'!$B$6:$D$235,3,FALSE) -> 0 | F194: =VLOOKUP(B194,'2012 Program Data'!$B$6:$E$235,4,FALSE) -> 2557 | G194: 2557 | H194: 215.213 | J194: 236.7343 | K194: =VLOOKUP(B194,'2012 Program Data'!$B$6:$T$235,19,FALSE) -> Depot | L194: 0.001780439066 | M194: 20 | X194: =(V194*'Fuel and Labor Assumptions'!$B$5)*'Fuel and Labor Assumptions'!$B$6 -> 0 | Z194: =Y194*'Fuel and Labor Assumptions'!$B$4 ->  | AA194: =(((U194*'Collection Route Parameters'!$B$7)*Municipalities!V194)/1000)+(M194*V194) -> 0 | AC194: =AB194*'Truck Assumptions'!$B$10 ->  | AD194: =AC194*'Fuel and Labor Assumptions'!$B$10 -> 
A195: Rural Depot North | B195: 955 | C195: BONFIELD, TOWNSHIP OF | D195: N | E195: =VLOOKUP(B195,'2012 Program Data'!$B$6:$D$235,3,FALSE) -> 0 | F195: =VLOOKUP(B195,'2012 Program Data'!$B$6:$E$235,4,FALSE) -> 1021 | G195: 1021 | H195: 47.82015 | J195: =H195*(1+$B$234) -> 52.602165 | K195: =VLOOKUP(B195,'2012 Program Data'!$B$6:$T$235,19,FALSE) -> Depot | L195: =(J195/G195)/52 -> 0.0009907738454 | M195: 20 | X195: =(V195*'Fuel and Labor Assumptions'!$B$5)*'Fuel and Labor Assumptions'!$B$6 -> 0 | Y195: =X195*K195 ->  | Z195: =Y195*'Fuel and Labor Assumptions'!$B$4 ->  | AA195: =(((U195*'Collection Route Parameters'!$B$7)*Municipalities!V195)/1000)+(M195*V195) -> 0 | AB195: =AA195*K195 ->  | AC195: =AB195*'Truck Assumptions'!$B$10 ->  | AD195: =AC195*'Fuel and Labor Assumptions'!$B$10 ->  | AE195: =AD195+Z195+W195 ->  | AG195: =AE195-AF195 -> 
A196: Rural Depot North | B196: 974 | C196: SERPENT RIVER FIRST NATIONS | D196: N | E196: =VLOOKUP(B196,'2012 Program Data'!$B$6:$D$235,3,FALSE) -> 0 | F196: =VLOOKUP(B196,'2012 Program Data'!$B$6:$E$235,4,FALSE) -> 160 | G196: 160 | H196: 21.63739 | J196: 23.801129 | K196: =VLOOKUP(B196,'2012 Program Data'!$B$6:$T$235,19,FALSE) -> Depot | L196: 0.00286071262 | M196: 20 | X196: =(V196*'Fuel and Labor Assumptions'!$B$5)*'Fuel and Labor Assumptions'!$B$6 -> 0 | Z196: =Y196*'Fuel and Labor Assumptions'!$B$4 ->  | AA196: =(((U196*'Collection Route Parameters'!$B$7)*Municipalities!V196)/1000)+(M196*V196) -> 0 | AC196: =AB196*'Truck Assumptions'!$B$10 ->  | AD196: =AC196*'Fuel and Labor Assumptions'!$B$10 -> 
A197: Rural Depot North | B197: 975 | C197: ALGONQUINS OF PIKWAKANAGAN | D197: N | E197: =VLOOKUP(B197,'2012 Program Data'!$B$6:$D$235,3,FALSE) -> 194 | F197: =VLOOKUP(B197,'2012 Program Data'!$B$6:$E$235,4,FALSE) -> 0 | G197: 194 | H197: 28.46884 | J197: 31.315724 | K197: 52 | L197: 0.003104254956 | M197: 20 | X197: =(V197*'Fuel and Labor Assumptions'!$B$5)*'Fuel and Labor Assumptions'!$B$6 -> 0 | Y197: 0 | Z197: =Y197*'Fuel and Labor Assumptions'!$B$4 -> 0 | AA197: =(((U197*'Collection Route Parameters'!$B$7)*Municipalities!V197)/1000)+(M197*V197) -> 0 | AB197: 0 | AC197: =AB197*'Truck Assumptions'!$B$10 -> 0 | AD197: =AC197*'Fuel and Labor Assumptions'!$B$10 -> 0 | AE197: 0 | AG197: 0
A198: Rural Depot North | B198: 979 | C198: CHIPPEWAS OF GEORGINA ISLAND | D198: Y | E198: =VLOOKUP(B198,'2012 Program Data'!$B$6:$D$235,3,FALSE) -> 303 | F198: =VLOOKUP(B198,'2012 Program Data'!$B$6:$E$235,4,FALSE) -> 0 | G198: 303 | H198: 23.1287 | J198: 25.44157 | K198: =VLOOKUP(B198,'2012 Program Data'!$B$6:$T$235,19,FALSE) -> 52 | L198: 0.001614722645 | M198: 20 | X198: =(V198*'Fuel and Labor Assumptions'!$B$5)*'Fuel and Labor Assumptions'!$B$6 -> 0 | Y198: 0 | Z198: =Y198*'Fuel and Labor Assumptions'!$B$4 -> 0 | AA198: =(((U198*'Collection Route Parameters'!$B$7)*Municipalities!V198)/1000)+(M198*V198) -> 0 | AB198: 0 | AC198: =AB198*'Truck Assumptions'!$B$10 -> 0 | AD198: =AC198*'Fuel and Labor Assumptions'!$B$10 -> 0 | AE198: 0 | AG198: 0
A199: Rural Depot North | B199: 985 | C199: WIKWEMIKONG UNCEDED INDIAN RESERVE | D199: N | E199: =VLOOKUP(B199,'2012 Program Data'!$B$6:$D$235,3,FALSE) -> 0 | F199: =VLOOKUP(B199,'2012 Program Data'!$B$6:$E$235,4,FALSE) -> 1152 | G199: 1152 | H199: 68.35022 | J199: 75.185242 | K199: =VLOOKUP(B199,'2012 Program Data'!$B$6:$T$235,19,FALSE) -> Depot | L199: 0.001255095519 | M199: 20 | X199: =(V199*'Fuel and Labor Assumptions'!$B$5)*'Fuel and Labor Assumptions'!$B$6 -> 0 | Z199: =Y199*'Fuel and Labor Assumptions'!$B$4 ->  | AA199: =(((U199*'Collection Route Parameters'!$B$7)*Municipalities!V199)/1000)+(M199*V199) -> 0 | AC199: =AB199*'Truck Assumptions'!$B$10 ->  | AD199: =AC199*'Fuel and Labor Assumptions'!$B$10 -> 
A200: Rural Depot South | B200: 100 | C200: ONEIDA NATION OF THE THAMES | D200: N | E200: =VLOOKUP(B200,'2012 Program Data'!$B$6:$D$235,3,FALSE) -> 454 | F200: =VLOOKUP(B200,'2012 Program Data'!$B$6:$E$235,4,FALSE) -> 1 | G200: 455 | H200: 33.096976 | J200: 36.4066736 | K200: =VLOOKUP(B200,'2012 Program Data'!$B$6:$T$235,19,FALSE) -> 52 | L200: 0.001538743601 | M200: 20 | X200: =(V200*'Fuel and Labor Assumptions'!$B$5)*'Fuel and Labor Assumptions'!$B$6 -> 0 | Y200: 0 | Z200: =Y200*'Fuel and Labor Assumptions'!$B$4 -> 0 | AA200: =(((U200*'Collection Route Parameters'!$B$7)*Municipalities!V200)/1000)+(M200*V200) -> 0 | AB200: 0 | AC200: =AB200*'Truck Assumptions'!$B$10 -> 0 | AD200: =AC200*'Fuel and Labor Assumptions'!$B$10 -> 0 | AE200: 0 | AG200: 0
... 33 more rows

Sheet 2012 Program Data
B2: 2012 Blue Box Program Data
D4: Blue Box Program | G4: Residential Blue Box Materials Collected (beyond 5 basic materials: ONP (old newsprint), Glass, Aluminum Cans, Steel Cans, PET Plastic) | T4: Total Number of Collections Per Year for Curbside Blue Box Programs 2) | V4: Residential Pay As You Throw Program for Garbage Collection
B5: Program Code | C5: Program Title | D5: Households Serviced by Curbside Collection 1) | E5: Households Serviced by Depot Collection Only | F5: Total # of Households Serviced | G5: Corrugated Cardboard | H5: Boxboard | I5: Gable Top Cartons | J5: Tetra Pak Cartons | K5: Other Aluminum Packaging & Foil | L5: Empty Aerosol Cans | M5: Empty Paint Cans | N5: HDPE Containers (#2) | O5: Other Bottles & Containers (#3, #5, #7) | P5: LDPE/HDPE film (#2, #4) | Q5: Tubs & Lids (#2, #4, & #5) | R5: Polystyrene Foam(#6) | S5: Polystyrene Crystal(#6) | T5: Single Family Dwellings | U5: Multi-Family Dwellings | V5: User Pay Waste Collection / Pay as You Throw | W5: Partial User Pay | X5: Full User Pay | Y5: Bag Limit Program for Garbage Collection
B6: 521 | C6: ADDINGTON HIGHLANDS, TOWNSHIP OF | D6: 2706 | E6: 0 | F6: =D6+E6 -> 2706 | G6: Y | H6: Y | I6: Y | J6: Y | K6: Y | L6: Y | M6: Y | N6: Y | O6: Y | P6: Y | Q6: Y | R6: Y | S6: Y | T6: N/A | U6: N/A | V6: Y | W6: Y | X6: N | Y6: N
B7: 522 | C7: ADMASTON/BROMLEY, TOWNSHIP OF | D7: 0 | E7: 1336 | F7: 1336 | G7: Y | H7: Y | I7: Y | J7: Y | K7: Y | L7: Y | M7: Y | N7: Y | O7: Y | P7: Y | Q7: Y | R7: Y | S7: Y | T7: Depot | U7: Depot | V7: N | W7: N | X7: N | Y7: N
B8: 600 | C8: ALFRED & PLANTAGENET, TOWNSHIP OF | D8: 4146 | E8: 0 | F8: 4146 | G8: Y | H8: Y | I8: Y | J8: Y | K8: Y | L8: Y | M8: Y | N8: Y | O8: Y | P8: Y | Q8: Y | R8: Y | S8: Y | T8: N/A | U8: N/A | V8: N | W8: N | X8: N | Y8: Y
B9: 173 | C9: ALGONQUIN HIGHLANDS,TOWNSHIP OF | D9: 0 | E9: 4537 | F9: 4537 | G9: Y | H9: Y | I9: Y | J9: Y | K9: Y | L9: N | M9: N | N9: Y | O9: Y | P9: Y | Q9: Y | R9: Y | S9: Y | T9: Depot | U9: Depot | V9: N | W9: N | X9: N | Y9: N
B10: 975 | C10: ALGONQUINS OF PIKWAKANAGAN | D10: 194 | E10: 0 | F10: 194 | G10: Y | H10: Y | I10: Y | J10: Y | K10: Y | L10: Y | M10: Y | N10: Y | O10: Y | P10: Y | Q10: Y | R10: Y | S10: Y | T10: N/A | U10: N/A | V10: N | W10: N | X10: N | Y10: N
B11: 194 | C11: AMARANTH, TOWNSHIP OF | D11: 1374 | E11: 0 | F11: 1374 | G11: Y | H11: Y | I11: Y | J11: Y | K11: Y | L11: Y | M11: Y | N11: Y | O11: Y | P11: Y | Q11: Y | R11: Y | S11: Y | T11: N/A | U11: N/A | V11: Y | W11: N | X11: Y | Y11: Y
B12: 188 | C12: ARMOUR, TOWNSHIP OF | D12: 495 | E12: 1689 | F12: 2184 | G12: Y | H12: Y | I12: N | J12: N | K12: Y | L12: N | M12: Y | N12: Y | O12: Y | P12: Y | Q12: Y | R12: N | S12: N | T12: 52 | U12: 52 | V12: N | W12: N | X12: N | Y12: N
B13: 524 | C13: ARNPRIOR, TOWN OF | D13: 3494 | E13: 0 | F13: 3494 | G13: Y | H13: Y | I13: Y | J13: Y | K13: Y | L13: Y | M13: Y | N13: Y | O13: Y | P13: Y | Q13: Y | R13: Y | S13: Y | T13: 26 | U13: 26 | V13: Y | W13: N | X13: Y | Y13: Y
B14: 59 | C14: ASHFIELD-COLBORNE-WAWANOSH, TOWNSHIP OF | D14: 3096 | E14: 0 | F14: 3096 | G14: Y | H14: Y | I14: Y | J14: N | K14: Y | L14: N | M14: N | N14: Y | O14: Y | P14: Y | Q14: Y | R14: N | S14: N | T14: N/A | U14: N/A | V14: Y | W14: Y | X14: N | Y14: N
B15: 709 | C15: ASSIGINACK, TOWNSHIP OF | D15: 0 | E15: 707 | F15: 707 | G15: Y | H15: Y | I15: Y | J15: Y | K15: Y | L15: Y | M15: Y | N15: Y | O15: N | P15: Y | Q15: N | R15: Y | S15: Y | T15: Depot | U15: Depot | V15: N | W15: N | X15: N | Y15: N
B16: 282 | C16: ATHENS, TOWNSHIP OF | D16: 439 | E16: 975 | F16: 1414 | G16: Y | H16: Y | I16: N | J16: N | K16: Y | L16: N | M16: N | N16: Y | O16: Y | P16: Y | Q16: Y | R16: N | S16: N | T16: 52 | U16: 52 | V16: Y | W16: Y | X16: N | Y16: N
B17: 710 | C17: ATIKOKAN, TOWNSHIP OF | D17: 1658 | E17: 0 | F17: 1658 | G17: Y | H17: Y | I17: Y | J17: N | K17: Y | L17: N | M17: N | N17: Y | O17: N | P17: N | Q17: N | R17: N | S17: N | T17: 52 | U17: 52 | V17: Y | W17: N | X17: Y | Y17: N
B18: 279 | C18: AUGUSTA, TOWNSHIP OF | D18: 0 | E18: 2855 | F18: 2855 | G18: Y | H18: Y | I18: Y | J18: Y | K18: Y | L18: Y | M18: Y | N18: Y | O18: Y | P18: Y | Q18: Y | R18: Y | S18: Y | T18: Depot | U18: Depot | V18: N | W18: N | X18: N | Y18: N
B19: 427 | C19: AYLMER, TOWN OF | D19: 2906 | E19: 0 | F19: 2906 | G19: Y | H19: Y | I19: Y | J19: Y | K19: Y | L19: Y | M19: Y | N19: Y | O19: Y | P19: Y | Q19: Y | R19: Y | S19: Y | T19: 52 | U19: 52 | V19: Y | W19: N | X19: Y | Y19: N
B20: 618 | C20: BALDWIN, TOWNSHIP OF | D20: 353 | E20: 0 | F20: 353 | G20: Y | H20: Y | I20: Y | J20: Y | K20: Y | L20: N | M20: N | N20: Y | O20: Y | P20: Y | Q20: Y | R20: Y | S20: Y | T20: 52 | U20: 52 | V20: Y | W20: N | X20: Y | Y20: N
B21: 711 | C21: BANCROFT, TOWN OF | D21: 1896 | E21: 0 | F21: 1896 | G21: Y | H21: Y | I21: Y | J21: Y | K21: Y | L21: Y | M21: Y | N21: Y | O21: Y | P21: Y | Q21: Y | R21: Y | S21: Y | T21: 52 | U21: 52 | V21: N | W21: N | X21: N | Y21: N
B22: 14 | C22: BARRIE, CITY OF | D22: 56292 | E22: 0 | F22: 56292 | G22: Y | H22: Y | I22: Y | J22: Y | K22: Y | L22: N | M22: N | N22: Y | O22: Y | P22: N | Q22: Y | R22: Y | S22: Y | T22: 52 | U22: 52 | V22: Y | W22: N | X22: Y | Y22: Y
B23: 986 | C23: BATCHEWANA FNS OJIBWAYS | D23: 263 | E23: 0 | F23: 263 | G23: N | H23: N | I23: N | J23: N | K23: N | L23: N | M23: N | N23: N | O23: N | P23: Y | Q23: N | R23: N | S23: N | T23: 52 | U23: 52 | V23: N | W23: N | X23: N | Y23: N
B24: 358 | C24: BAYHAM, MUNICIPALITY OF | D24: 2655 | E24: 0 | F24: 2655 | G24: Y | H24: Y | I24: Y | J24: Y | K24: Y | L24: Y | M24: Y | N24: Y | O24: Y | P24: Y | Q24: Y | R24: N | S24: N | T24: 52 | U24: 52 | V24: Y | W24: N | X24: Y | Y24: N
B25: 712 | C25: BECKWITH, TOWNSHIP OF | D25: 2950 | E25: 0 | F25: 2950 | G25: Y | H25: Y | I25: N | J25: N | K25: N | L25: Y | M25: Y | N25: Y | O25: Y | P25: N | Q25: Y | R25: N | S25: N | T25: N/A | U25: N/A | V25: Y | W25: Y | X25: N | Y25: N
B26: 714 | C26: BILLINGS, TOWNSHIP OF | D26: 0 | E26: 621 | F26: 621 | G26: Y | H26: Y | I26: Y | J26: N | K26: Y | L26: N | M26: Y | N26: Y | O26: N | P26: Y | Q26: N | R26: N | S26: N | T26: Depot | U26: Depot | V26: N | W26: N | X26: N | Y26: N
B27: 620 | C27: BLIND RIVER, TOWN OF | D27: 2417 | E27: 0 | F27: 2417 | G27: Y | H27: Y | I27: Y | J27: Y | K27: Y | L27: N | M27: N | N27: Y | O27: Y | P27: Y | Q27: Y | R27: N | S27: Y | T27: N/A | U27: N/A | V27: N | W27: N | X27: N | Y27: Y
B28: 186 | C28: BLUEWATER RECYCLING ASSOCIATION | D28: 72182 | E28: 503 | F28: 72685 | G28: Y | H28: Y | I28: Y | J28: Y | K28: Y | L28: Y | M28: Y | N28: Y | O28: Y | P28: Y | Q28: Y | R28: N | S28: N | T28: 52 | U28: 52 | V28: Y | W28: Y | X28: N | Y28: N
B29: 955 | C29: BONFIELD, TOWNSHIP OF | D29: 0 | E29: 1021 | F29: 1021 | G29: Y | H29: Y | I29: Y | J29: Y | K29: Y | L29: Y | M29: Y | N29: N | O29: Y | P29: Y | Q29: N | R29: N | S29: N | T29: Depot | U29: Depot | V29: N | W29: N | X29: N | Y29: Y
B30: 547 | C30: BONNECHERE VALLEY, TOWNSHIP OF | D30: 585 | E30: 1834 | F30: 2419 | G30: Y | H30: Y | I30: Y | J30: Y | K30: Y | L30: Y | M30: Y | N30: Y | O30: Y | P30: Y | Q30: Y | R30: Y | S30: Y | T30: 52 | U30: 52 | V30: Y | W30: Y | X30: N | Y30: N
B31: 531 | C31: BRANT, COUNTY OF | D31: 13847 | E31: 0 | F31: 13847 | G31: Y | H31: Y | I31: Y | J31: Y | K31: Y | L31: Y | M31: Y | N31: Y | O31: N | P31: N | Q31: Y | R31: N | S31: N | T31: 26 | U31: 26 | V31: N | W31: N | X31: N | Y31: Y
B32: 179 | C32: BRANTFORD, CITY OF | D32: 37874 | E32: 0 | F32: 37874 | G32: Y | H32: Y | I32: Y | J32: Y | K32: Y | L32: Y | M32: Y | N32: Y | O32: Y | P32: N | Q32: Y | R32: N | S32: Y | T32: 52 | U32: 52 | V32: N | W32: N | X32: N | Y32: Y
B33: 67 | C33: BROCKVILLE, CITY OF | D33: 9769 | E33: 0 | F33: 9769 | G33: Y | H33: Y | I33: Y | J33: Y | K33: Y | L33: Y | M33: Y | N33: Y | O33: Y | P33: N | Q33: Y | R33: N | S33: N | T33: 52 | U33: 52 | V33: Y | W33: N | X33: Y | Y33: Y
B34: 190 | C34: BRUCE AREA SOLID WASTE RECYCLING | D34: 31929 | E34: 1268 | F34: 33197 | G34: Y | H34: Y | I34: N | J34: N | K34: Y | L34: Y | M34: Y | N34: Y | O34: Y | P34: N | Q34: Y | R34: N | S34: N | T34: N/A | U34: N/A | V34: Y | W34: N | X34: Y | Y34: N
B35: 416 | C35: BRUDENELL; LYNDOCH & RAGLAN, TOWNSHIP OF | D35: 0 | E35: 1158 | F35: 1158 | G35: Y | H35: Y | I35: Y | J35: Y | K35: Y | L35: Y | M35: Y | N35: Y | O35: Y | P35: Y | Q35: Y | R35: Y | S35: Y | T35: Depot | U35: Depot | V35: N | W35: N | X35: N | Y35: N
B36: 970 | C36: CALLANDER, MUNICIPALITY OF | D36: 1677 | E36: 0 | F36: 1677 | G36: Y | H36: Y | I36: Y | J36: Y | K36: Y | L36: Y | M36: Y | N36: Y | O36: Y | P36: Y | Q36: Y | R36: N | S36: N | T36: 52 | U36: 52 | V36: N | W36: N | X36: N | Y36: Y
B37: 611 | C37: CALVIN, MUNICIPALITY OF | D37: 0 | E37: 300 | F37: 300 | G37: Y | H37: Y | I37: Y | J37: Y | K37: Y | L37: Y | M37: Y | N37: Y | O37: Y | P37: Y | Q37: Y | R37: N | S37: N | T37: Depot | U37: Depot | V37: Y | W37: N | X37: Y | Y37: Y
B38: 731 | C38: CARLETON PLACE, TOWN OF | D38: 4243 | E38: 0 | F38: 4243 | G38: Y | H38: Y | I38: N | J38: N | K38: N | L38: Y | M38: Y | N38: Y | O38: N | P38: N | Q38: N | R38: N | S38: N | T38: 52 | U38: 52 | V38: Y | W38: N | X38: Y | Y38: N
B39: 372 | C39: CARLING, TOWNSHIP OF | D39: 0 | E39: 1678 | F39: 1678 | G39: N | H39: N | I39: N | J39: N | K39: N | L39: N | M39: N | N39: N | O39: N | P39: N | Q39: N | R39: N | S39: N | T39: Depot | U39: Depot | V39: N | W39: N | X39: N | Y39: N
B40: 508 | C40: CARLOW MAYO, TOWNSHIP OF | D40: 0 | E40: 663 | F40: 663 | G40: N | H40: N | I40: N | J40: N | K40: N | L40: N | M40: N | N40: N | O40: N | P40: N | Q40: N | R40: N | S40: N | T40: Depot | U40: Depot | V40: N | W40: N | X40: N | Y40: N
B41: 537 | C41: CASEY, TOWNSHIP OF | D41: 0 | E41: 157 | F41: 157 | G41: Y | H41: Y | I41: Y | J41: Y | K41: Y | L41: Y | M41: Y | N41: Y | O41: Y | P41: Y | Q41: Y | R41: Y | S41: Y | T41: Depot | U41: Depot | V41: N | W41: N | X41: N | Y41: N
B42: 732 | C42: CASSELMAN, VILLAGE OF | D42: 1374 | E42: 0 | F42: 1374 | G42: N | H42: N | I42: N | J42: N | K42: N | L42: N | M42: N | N42: N | O42: N | P42: N | Q42: N | R42: N | S42: N | T42: 52 | U42: 52 | V42: Y | W42: Y | X42: N | Y42: Y
B43: 229 | C43: CENTRAL ELGIN, MUNICIPALITY OF | D43: 5598 | E43: 0 | F43: 5598 | G43: Y | H43: Y | I43: Y | J43: Y | K43: Y | L43: Y | M43: Y | N43: Y | O43: Y | P43: Y | Q43: Y | R43: N | S43: N | T43: 52 | U43: 52 | V43: Y | W43: N | X43: Y | Y43: N
B44: 629 | C44: CENTRAL FRONTENAC, TOWNSHIP OF | D44: 0 | E44: 3872 | F44: 3872 | G44: Y | H44: Y | I44: Y | J44: Y | K44: Y | L44: Y | M44: Y | N44: Y | O44: Y | P44: Y | Q44: Y | R44: Y | S44: Y | T44: Depot | U44: Depot | V44: Y | W44: N | X44: Y | Y44: N
